Workbook

Sheet Instructions
B2: USAID Clean Energy GHG Projections Calculator
B3: Purpose: | D3: This tool assists USAID operating units in calculating the projected greenhouse gas (GHG) emissions reduced or avoided through 2070 from clean energy projects and programs.
B4: Version Number: | D4: Version 2.0
B5: Version Date: | D5: October, 2023
B6: Activity Type: | D6: GHG Projections Calculator for Clean Energy Activities
B9: Instructions:
B10: If your clean energy activity involves multiple actions, each action may have to be estimated separately using this calculator.
B11: Note: Please enable macros before beginning.
B13: Step 1: Enter program information in the "Action Information" section of the "Data Input" page.
B15: Step 2: Specify the clean energy type and enter the data for respective technology type on the "Energy Information and Data" section of the "Data Input" page.
B17: Step 3: Review the default values used and accept or modify the values.
B19: Step 4: List any assumptions on the data from the action at the bottom of the "Data Input" page.
B21: Step 5: Click on the "Review Calculations" arrow to proceed to the "Calculations" page.
B23: Step 6: Review calculations.
B25: Step 7: Click on the "View Results" arrow to review the final calculation of annual emission reductions.
B27: Step 8: Report emission reductions to the Global Climate Change Office through the FACTS Info database.
B29: Legend:
C30: Cell Color Legend:
D31: Yellow cells are Input Fields.
D32: Green cells are GHG reduction estimates.
D33: White cells are calculations fields and are not editable.

Sheet Data Input
B2: Action Information and Data Input
B4: Use this form to enter information about the action and its energy use.
B9: Section 1 - Action Information
B10: Required fields *
D12: About the Action | H12: Reporting Details and Worksheet Status
D14: Implementing Mechanism Number* | H14: Point of Contact (Name)
D15: Implementing Mechanism Name* | H15: Contact Email
D16: Action Name* | H16: Contact Phone (Including Country Code)
D17: What is the current fiscal year or the year in which the action is being reported?* | H17: Worksheet Status
D18: Select the first year when the project is expected to reduce or avoid GHG emissions (i.e., the project is in operation)* | H18: Worksheet Date
D19: Operating Unit
D20: Implementing Partner | H20: Description of the Action
D22: Location of the Action
D23: Country*
D24: Subnational Region, State, or Province
D25: City
D26: Geographic Coordinates
B30: Section 2 - Energy Information and Data
B31: Required fields *
D34: What is the clean energy result of the action? *
M35: =ISTEXT(Section2Trigger) -> FALSE
D36: How many years is this project expected to be in operation (e.g., lifetime of the system)?* | M36: =ISTEXT(Section2Trigger) -> FALSE | N36: =ISNUMBER(ProjLifetime) -> FALSE
M37: =ISTEXT(Section2Trigger) -> FALSE
D38: Will the action replace direct fuel consumption (e.g., for heating, cooking, or lighting)? If so, select ‘Yes’. If the action will replace electricity (e.g., from the grid or on-site generators), please select 'No’. * | M38: =Section2Trigger=RenewableElectricity -> FALSE
M39: =Start -> FALSE
D40: Select the type of fuel reduced/avoided by the action: * | M40: =ElecReplFuel='Pick Lists'!B51 -> FALSE
M41: =M40 -> FALSE
D42: Does the impact of your action remain constant each year, or do you expect the impacts to change over time (e.g. grow)? * | M42: =M41 -> FALSE
M43: =M42 -> FALSE
D44: Do you want to enter the amount of fuel reduced/avoided for each year, or forecast the amount using an annual rate of change from the First Year of Operation? * | M44: =AND(M42,Ren1EnterDefault='Pick Lists'!B283) -> FALSE
M45: =M44 -> FALSE
D46: Enter the amount of fuel reduced/avoided from this action during the First Year of Operation: * | J46: Gigajoules (GJ) | M46: =AND(ElecReplFuel='Pick Lists'!B51,OR(H44='Pick Lists'!B288,H42='Pick Lists'!B282)) -> FALSE
M47: =M46 -> FALSE
D48: Enter the amount of fuel reduced/avoided each year: * | J48: Gigajoules (GJ) | M48: =AND(ElecReplFuel='Pick Lists'!B51,H44='Pick Lists'!B287) -> FALSE
D49: =Start_Year -> 2010 | J49: =RenFuelUnit2 -> Gigajoules (GJ) | M49: =AND($M$48,D49<=projendyear,D49>=AdoptionYear) -> FALSE
D50: =D49+1 -> 2011 | J50: Gigajoules (GJ) | M50: =AND($M$48,D50<=projendyear,D50>=AdoptionYear) -> FALSE
D51: =D50+1 -> 2012 | J51: Gigajoules (GJ) | M51: =AND($M$48,D51<=projendyear,D51>=AdoptionYear) -> FALSE
D52: 2013 | J52: Gigajoules (GJ) | M52: =AND($M$48,D52<=projendyear,D52>=AdoptionYear) -> FALSE
D53: 2014 | J53: Gigajoules (GJ) | M53: =AND($M$48,D53<=projendyear,D53>=AdoptionYear) -> FALSE
D54: 2015 | J54: Gigajoules (GJ) | M54: =AND($M$48,D54<=projendyear,D54>=AdoptionYear) -> FALSE
D55: 2016 | J55: Gigajoules (GJ) | M55: =AND($M$48,D55<=projendyear,D55>=AdoptionYear) -> FALSE
D56: 2017 | J56: Gigajoules (GJ) | M56: =AND($M$48,D56<=projendyear,D56>=AdoptionYear) -> FALSE
D57: 2018 | J57: Gigajoules (GJ) | M57: =AND($M$48,D57<=projendyear,D57>=AdoptionYear) -> FALSE
D58: 2019 | J58: Gigajoules (GJ) | M58: =AND($M$48,D58<=projendyear,D58>=AdoptionYear) -> FALSE
D59: 2020 | J59: Gigajoules (GJ) | M59: =AND($M$48,D59<=projendyear,D59>=AdoptionYear) -> FALSE
D60: 2021 | J60: Gigajoules (GJ) | M60: =AND($M$48,D60<=projendyear,D60>=AdoptionYear) -> FALSE
D61: 2022 | J61: Gigajoules (GJ) | M61: =AND($M$48,D61<=projendyear,D61>=AdoptionYear) -> FALSE
D62: 2023 | J62: Gigajoules (GJ) | M62: =AND($M$48,D62<=projendyear,D62>=AdoptionYear) -> FALSE
D63: 2024 | J63: Gigajoules (GJ) | M63: =AND($M$48,D63<=projendyear,D63>=AdoptionYear) -> FALSE
D64: 2025 | J64: Gigajoules (GJ) | M64: =AND($M$48,D64<=projendyear,D64>=AdoptionYear) -> FALSE
D65: 2026 | J65: Gigajoules (GJ) | M65: =AND($M$48,D65<=projendyear,D65>=AdoptionYear) -> FALSE
D66: 2027 | J66: Gigajoules (GJ) | M66: =AND($M$48,D66<=projendyear,D66>=AdoptionYear) -> FALSE
D67: 2028 | J67: Gigajoules (GJ) | M67: =AND($M$48,D67<=projendyear,D67>=AdoptionYear) -> FALSE
D68: 2029 | J68: Gigajoules (GJ) | M68: =AND($M$48,D68<=projendyear,D68>=AdoptionYear) -> FALSE
D69: 2030 | J69: Gigajoules (GJ) | M69: =AND($M$48,D69<=projendyear,D69>=AdoptionYear) -> FALSE
D70: 2031 | J70: Gigajoules (GJ) | M70: =AND($M$48,D70<=projendyear,D70>=AdoptionYear) -> FALSE
D71: 2032 | J71: Gigajoules (GJ) | M71: =AND($M$48,D71<=projendyear,D71>=AdoptionYear) -> FALSE
D72: 2033 | J72: Gigajoules (GJ) | M72: =AND($M$48,D72<=projendyear,D72>=AdoptionYear) -> FALSE
D73: 2034 | J73: Gigajoules (GJ) | M73: =AND($M$48,D73<=projendyear,D73>=AdoptionYear) -> FALSE
D74: 2035 | J74: Gigajoules (GJ) | M74: =AND($M$48,D74<=projendyear,D74>=AdoptionYear) -> FALSE
D75: 2036 | J75: Gigajoules (GJ) | M75: =AND($M$48,D75<=projendyear,D75>=AdoptionYear) -> FALSE
D76: 2037 | J76: Gigajoules (GJ) | M76: =AND($M$48,D76<=projendyear,D76>=AdoptionYear) -> FALSE
D77: 2038 | J77: Gigajoules (GJ) | M77: =AND($M$48,D77<=projendyear,D77>=AdoptionYear) -> FALSE
D78: 2039 | J78: Gigajoules (GJ) | M78: =AND($M$48,D78<=projendyear,D78>=AdoptionYear) -> FALSE
D79: 2040 | J79: Gigajoules (GJ) | M79: =AND($M$48,D79<=projendyear,D79>=AdoptionYear) -> FALSE
D80: 2041 | J80: Gigajoules (GJ) | M80: =AND($M$48,D80<=projendyear,D80>=AdoptionYear) -> FALSE
D81: 2042 | J81: Gigajoules (GJ) | M81: =AND($M$48,D81<=projendyear,D81>=AdoptionYear) -> FALSE
D82: 2043 | J82: Gigajoules (GJ) | M82: =AND($M$48,D82<=projendyear,D82>=AdoptionYear) -> FALSE
D83: 2044 | J83: Gigajoules (GJ) | M83: =AND($M$48,D83<=projendyear,D83>=AdoptionYear) -> FALSE
D84: 2045 | J84: Gigajoules (GJ) | M84: =AND($M$48,D84<=projendyear,D84>=AdoptionYear) -> FALSE
D85: 2046 | J85: Gigajoules (GJ) | M85: =AND($M$48,D85<=projendyear,D85>=AdoptionYear) -> FALSE
D86: 2047 | J86: Gigajoules (GJ) | M86: =AND($M$48,D86<=projendyear,D86>=AdoptionYear) -> FALSE
D87: 2048 | J87: Gigajoules (GJ) | M87: =AND($M$48,D87<=projendyear,D87>=AdoptionYear) -> FALSE
D88: 2049 | J88: Gigajoules (GJ) | M88: =AND($M$48,D88<=projendyear,D88>=AdoptionYear) -> FALSE
D89: 2050 | J89: Gigajoules (GJ) | M89: =AND($M$48,D89<=projendyear,D89>=AdoptionYear) -> FALSE
D90: 2051 | J90: Gigajoules (GJ) | M90: =AND($M$48,D90<=projendyear,D90>=AdoptionYear) -> FALSE
D91: 2052 | J91: Gigajoules (GJ) | M91: =AND($M$48,D91<=projendyear,D91>=AdoptionYear) -> FALSE
D92: 2053 | J92: Gigajoules (GJ) | M92: =AND($M$48,D92<=projendyear,D92>=AdoptionYear) -> FALSE
D93: 2054 | J93: Gigajoules (GJ) | M93: =AND($M$48,D93<=projendyear,D93>=AdoptionYear) -> FALSE
D94: 2055 | J94: Gigajoules (GJ) | M94: =AND($M$48,D94<=projendyear,D94>=AdoptionYear) -> FALSE
D95: 2056 | J95: Gigajoules (GJ) | M95: =AND($M$48,D95<=projendyear,D95>=AdoptionYear) -> FALSE
D96: 2057 | J96: Gigajoules (GJ) | M96: =AND($M$48,D96<=projendyear,D96>=AdoptionYear) -> FALSE
D97: 2058 | J97: Gigajoules (GJ) | M97: =AND($M$48,D97<=projendyear,D97>=AdoptionYear) -> FALSE
D98: 2059 | J98: Gigajoules (GJ) | M98: =AND($M$48,D98<=projendyear,D98>=AdoptionYear) -> FALSE
D99: 2060 | J99: Gigajoules (GJ) | M99: =AND($M$48,D99<=projendyear,D99>=AdoptionYear) -> FALSE
D100: 2061 | J100: Gigajoules (GJ) | M100: =AND($M$48,D100<=projendyear,D100>=AdoptionYear) -> FALSE
D101: 2062 | J101: Gigajoules (GJ) | M101: =AND($M$48,D101<=projendyear,D101>=AdoptionYear) -> FALSE
D102: 2063 | J102: Gigajoules (GJ) | M102: =AND($M$48,D102<=projendyear,D102>=AdoptionYear) -> FALSE
D103: 2064 | J103: Gigajoules (GJ) | M103: =AND($M$48,D103<=projendyear,D103>=AdoptionYear) -> FALSE
D104: 2065 | J104: Gigajoules (GJ) | M104: =AND($M$48,D104<=projendyear,D104>=AdoptionYear) -> FALSE
D105: 2066 | J105: Gigajoules (GJ) | M105: =AND($M$48,D105<=projendyear,D105>=AdoptionYear) -> FALSE
D106: 2067 | J106: Gigajoules (GJ) | M106: =AND($M$48,D106<=projendyear,D106>=AdoptionYear) -> FALSE
D107: 2068 | J107: Gigajoules (GJ) | M107: =AND($M$48,D107<=projendyear,D107>=AdoptionYear) -> FALSE
D108: 2069 | J108: Gigajoules (GJ) | M108: =AND($M$48,D108<=projendyear,D108>=AdoptionYear) -> FALSE
D109: 2070 | J109: Gigajoules (GJ) | M109: =AND($M$48,D109<=projendyear,D109>=AdoptionYear) -> FALSE
M110: =M48 -> FALSE
D111: Does the impact of your action remain constant each year, or do you expect the impact to change over time (e.g., grow)? * | M111: =ElecReplFuel='Pick Lists'!B52 -> FALSE
M112: =M111 -> FALSE
D113: Do you want to enter the electricity generated/saved for each year, or forecast the amount using an annual rate of change from the First Year of Operation? * | M113: =AND(M111,Ren2EnterDefault='Pick Lists'!B283) -> FALSE
M114: =M113 -> FALSE
D115: Enter the amount of electricity generated/saved from this action during the First Year of Operation: * | J115: MWh | M115: =OR(Ren2EnterDefault='Pick Lists'!B282,H113='Pick Lists'!B288) -> FALSE
M116: =M115 -> FALSE
D117: Enter the projected annual growth rate for the amount of electricity generated/saved from this action: * | M117: =AND(ElecReplFuel='Pick Lists'!B52,Ren2EnterDefault='Pick Lists'!B266) -> FALSE
M118: =M117 -> FALSE
D119: Enter the amount of electricity generated/saved each year: * | J119: MWh | M119: =H113='Pick Lists'!B287 -> FALSE
D120: =Start_Year -> 2010 | J120: =RenElecUnit2 -> MWh | M120: =AND($M$119,D120<=projendyear,D120>=AdoptionYear) -> FALSE
D121: =D120+1 -> 2011 | J121: =J119 -> MWh | M121: =AND($M$119,D121<=projendyear,D121>=AdoptionYear) -> FALSE
D122: =D121+1 -> 2012 | J122: =J121 -> MWh | M122: =AND($M$119,D122<=projendyear,D122>=AdoptionYear) -> FALSE
D123: 2013 | J123: MWh | M123: =AND($M$119,D123<=projendyear,D123>=AdoptionYear) -> FALSE
D124: 2014 | J124: MWh | M124: =AND($M$119,D124<=projendyear,D124>=AdoptionYear) -> FALSE
D125: 2015 | J125: MWh | M125: =AND($M$119,D125<=projendyear,D125>=AdoptionYear) -> FALSE
D126: 2016 | J126: MWh | M126: =AND($M$119,D126<=projendyear,D126>=AdoptionYear) -> FALSE
D127: 2017 | J127: MWh | M127: =AND($M$119,D127<=projendyear,D127>=AdoptionYear) -> FALSE
D128: 2018 | J128: MWh | M128: =AND($M$119,D128<=projendyear,D128>=AdoptionYear) -> FALSE
D129: 2019 | J129: MWh | M129: =AND($M$119,D129<=projendyear,D129>=AdoptionYear) -> FALSE
D130: 2020 | J130: MWh | M130: =AND($M$119,D130<=projendyear,D130>=AdoptionYear) -> FALSE
D131: =D130+1 -> 2021 | J131: MWh | M131: =AND($M$119,D131<=projendyear,D131>=AdoptionYear) -> FALSE
D132: 2022 | J132: MWh | M132: =AND($M$119,D132<=projendyear,D132>=AdoptionYear) -> FALSE
D133: 2023 | J133: MWh | M133: =AND($M$119,D133<=projendyear,D133>=AdoptionYear) -> FALSE
D134: 2024 | J134: MWh | M134: =AND($M$119,D134<=projendyear,D134>=AdoptionYear) -> FALSE
D135: 2025 | J135: MWh | M135: =AND($M$119,D135<=projendyear,D135>=AdoptionYear) -> FALSE
D136: 2026 | J136: MWh | M136: =AND($M$119,D136<=projendyear,D136>=AdoptionYear) -> FALSE
D137: 2027 | J137: MWh | M137: =AND($M$119,D137<=projendyear,D137>=AdoptionYear) -> FALSE
D138: 2028 | J138: MWh | M138: =AND($M$119,D138<=projendyear,D138>=AdoptionYear) -> FALSE
D139: 2029 | J139: MWh | M139: =AND($M$119,D139<=projendyear,D139>=AdoptionYear) -> FALSE
D140: 2030 | J140: MWh | M140: =AND($M$119,D140<=projendyear,D140>=AdoptionYear) -> FALSE
D141: =D140+1 -> 2031 | J141: =J140 -> MWh | M141: =AND($M$119,D141<=projendyear,D141>=AdoptionYear) -> FALSE
D142: 2032 | J142: MWh | M142: =AND($M$119,D142<=projendyear,D142>=AdoptionYear) -> FALSE
D143: 2033 | J143: MWh | M143: =AND($M$119,D143<=projendyear,D143>=AdoptionYear) -> FALSE
D144: 2034 | J144: MWh | M144: =AND($M$119,D144<=projendyear,D144>=AdoptionYear) -> FALSE
D145: 2035 | J145: MWh | M145: =AND($M$119,D145<=projendyear,D145>=AdoptionYear) -> FALSE
D146: 2036 | J146: MWh | M146: =AND($M$119,D146<=projendyear,D146>=AdoptionYear) -> FALSE
D147: 2037 | J147: MWh | M147: =AND($M$119,D147<=projendyear,D147>=AdoptionYear) -> FALSE
D148: 2038 | J148: MWh | M148: =AND($M$119,D148<=projendyear,D148>=AdoptionYear) -> FALSE
D149: 2039 | J149: MWh | M149: =AND($M$119,D149<=projendyear,D149>=AdoptionYear) -> FALSE
D150: 2040 | J150: MWh | M150: =AND($M$119,D150<=projendyear,D150>=AdoptionYear) -> FALSE
D151: =D150+1 -> 2041 | J151: MWh | M151: =AND($M$119,D151<=projendyear,D151>=AdoptionYear) -> FALSE
D152: 2042 | J152: MWh | M152: =AND($M$119,D152<=projendyear,D152>=AdoptionYear) -> FALSE
D153: 2043 | J153: MWh | M153: =AND($M$119,D153<=projendyear,D153>=AdoptionYear) -> FALSE
D154: 2044 | J154: MWh | M154: =AND($M$119,D154<=projendyear,D154>=AdoptionYear) -> FALSE
D155: 2045 | J155: MWh | M155: =AND($M$119,D155<=projendyear,D155>=AdoptionYear) -> FALSE
D156: 2046 | J156: MWh | M156: =AND($M$119,D156<=projendyear,D156>=AdoptionYear) -> FALSE
D157: 2047 | J157: MWh | M157: =AND($M$119,D157<=projendyear,D157>=AdoptionYear) -> FALSE
D158: 2048 | J158: MWh | M158: =AND($M$119,D158<=projendyear,D158>=AdoptionYear) -> FALSE
D159: 2049 | J159: MWh | M159: =AND($M$119,D159<=projendyear,D159>=AdoptionYear) -> FALSE
D160: 2050 | J160: MWh | M160: =AND($M$119,D160<=projendyear,D160>=AdoptionYear) -> FALSE
D161: 2051 | J161: MWh | M161: =AND($M$119,D161<=projendyear,D161>=AdoptionYear) -> FALSE
D162: 2052 | J162: MWh | M162: =AND($M$119,D162<=projendyear,D162>=AdoptionYear) -> FALSE
D163: 2053 | J163: MWh | M163: =AND($M$119,D163<=projendyear,D163>=AdoptionYear) -> FALSE
D164: 2054 | J164: MWh | M164: =AND($M$119,D164<=projendyear,D164>=AdoptionYear) -> FALSE
D165: 2055 | J165: MWh | M165: =AND($M$119,D165<=projendyear,D165>=AdoptionYear) -> FALSE
D166: 2056 | J166: MWh | M166: =AND($M$119,D166<=projendyear,D166>=AdoptionYear) -> FALSE
D167: 2057 | J167: MWh | M167: =AND($M$119,D167<=projendyear,D167>=AdoptionYear) -> FALSE
D168: 2058 | J168: MWh | M168: =AND($M$119,D168<=projendyear,D168>=AdoptionYear) -> FALSE
D169: 2059 | J169: MWh | M169: =AND($M$119,D169<=projendyear,D169>=AdoptionYear) -> FALSE
D170: 2060 | J170: MWh | M170: =AND($M$119,D170<=projendyear,D170>=AdoptionYear) -> FALSE
D171: 2061 | J171: MWh | M171: =AND($M$119,D171<=projendyear,D171>=AdoptionYear) -> FALSE
D172: 2062 | J172: MWh | M172: =AND($M$119,D172<=projendyear,D172>=AdoptionYear) -> FALSE
D173: 2063 | J173: MWh | M173: =AND($M$119,D173<=projendyear,D173>=AdoptionYear) -> FALSE
D174: 2064 | J174: MWh | M174: =AND($M$119,D174<=projendyear,D174>=AdoptionYear) -> FALSE
D175: 2065 | J175: MWh | M175: =AND($M$119,D175<=projendyear,D175>=AdoptionYear) -> FALSE
D176: 2066 | J176: MWh | M176: =AND($M$119,D176<=projendyear,D176>=AdoptionYear) -> FALSE
D177: 2067 | J177: MWh | M177: =AND($M$119,D177<=projendyear,D177>=AdoptionYear) -> FALSE
D178: 2068 | J178: MWh | M178: =AND($M$119,D178<=projendyear,D178>=AdoptionYear) -> FALSE
D179: 2069 | J179: MWh | M179: =AND($M$119,D179<=projendyear,D179>=AdoptionYear) -> FALSE
D180: 2070 | J180: =J159 -> MWh | M180: =AND($M$119,D180<=projendyear,D180>=AdoptionYear) -> FALSE
M181: =M119 -> FALSE
D182: How will the renewable electricity system be connected to the grid? * | M182: =ElecReplFuel='Pick Lists'!B52 -> FALSE
M183: =M182 -> FALSE
M184: FALSE
M185: =M184 -> FALSE
D186: Type of fuel consumed under the action: * | M186: =Section2Trigger=FuelSwitching -> FALSE
M187: =M186 -> FALSE
D188: Does the impact of your action remain constant each year, or do you expect the impact to change over time (e.g., grow)? * | M188: =Section2Trigger=FuelSwitching -> FALSE
M189: =M188 -> FALSE
D190: Do you want to enter the amount of fuel consumed each year, or forecast the amount using an annual rate of change from the First Year of Operation? * | M190: =AND(M188,FSEnterDefault='Pick Lists'!B283) -> FALSE
M191: =M190 -> FALSE
D192: Enter the amount of fuel consumed after the action in the First Year of Operation: * | J192: Gigajoules (GJ) | M192: =OR(H188='Pick Lists'!B282,'Data Input'!H190='Pick Lists'!B288) -> FALSE
M193: =M192 -> FALSE
D194: Enter the amount of fuel consumed by the action each year: * | J194: Gigajoules (GJ) | M194: =H190='Pick Lists'!B287 -> FALSE
D195: =Start_Year -> 2010 | J195: =FuelSwitFuelUnit2 | M195: =AND($M$194,D195<=projendyear,D195>=AdoptionYear) -> FALSE
D196: =D195+1 -> 2011 | J196: =J194 -> Gigajoules (GJ) | M196: =AND($M$194,D196<=projendyear,D196>=AdoptionYear) -> FALSE
D197: =D196+1 -> 2012 | J197: =J196 -> Gigajoules (GJ) | M197: =AND($M$194,D197<=projendyear,D197>=AdoptionYear) -> FALSE
D198: 2013 | J198: Gigajoules (GJ) | M198: =AND($M$194,D198<=projendyear,D198>=AdoptionYear) -> FALSE
D199: 2014 | J199: Gigajoules (GJ) | M199: =AND($M$194,D199<=projendyear,D199>=AdoptionYear) -> FALSE
D200: 2015 | J200: Gigajoules (GJ) | M200: =AND($M$194,D200<=projendyear,D200>=AdoptionYear) -> FALSE
D201: 2016 | J201: Gigajoules (GJ) | M201: =AND($M$194,D201<=projendyear,D201>=AdoptionYear) -> FALSE
D202: 2017 | J202: Gigajoules (GJ) | M202: =AND($M$194,D202<=projendyear,D202>=AdoptionYear) -> FALSE
D203: 2018 | J203: Gigajoules (GJ) | M203: =AND($M$194,D203<=projendyear,D203>=AdoptionYear) -> FALSE
D204: 2019 | J204: Gigajoules (GJ) | M204: =AND($M$194,D204<=projendyear,D204>=AdoptionYear) -> FALSE
D205: 2020 | J205: Gigajoules (GJ) | M205: =AND($M$194,D205<=projendyear,D205>=AdoptionYear) -> FALSE
D206: 2021 | J206: Gigajoules (GJ) | M206: =AND($M$194,D206<=projendyear,D206>=AdoptionYear) -> FALSE
D207: 2022 | J207: Gigajoules (GJ) | M207: =AND($M$194,D207<=projendyear,D207>=AdoptionYear) -> FALSE
D208: 2023 | J208: Gigajoules (GJ) | M208: =AND($M$194,D208<=projendyear,D208>=AdoptionYear) -> FALSE
D209: 2024 | J209: Gigajoules (GJ) | M209: =AND($M$194,D209<=projendyear,D209>=AdoptionYear) -> FALSE
D210: 2025 | J210: Gigajoules (GJ) | M210: =AND($M$194,D210<=projendyear,D210>=AdoptionYear) -> FALSE
D211: 2026 | J211: Gigajoules (GJ) | M211: =AND($M$194,D211<=projendyear,D211>=AdoptionYear) -> FALSE
D212: =D211+1 -> 2027 | J212: Gigajoules (GJ) | M212: =AND($M$194,D212<=projendyear,D212>=AdoptionYear) -> FALSE
D213: 2028 | J213: Gigajoules (GJ) | M213: =AND($M$194,D213<=projendyear,D213>=AdoptionYear) -> FALSE
D214: 2029 | J214: Gigajoules (GJ) | M214: =AND($M$194,D214<=projendyear,D214>=AdoptionYear) -> FALSE
... 274 more rows

Sheet Calculations
B2: Calculations
B4: Review the emission reduction calculations. Enter alternate values in the blue fields, if desired.
B9: Summary of Data Input
B10: This section summarizes data input in the Energy Information and Data section.
F13: ='Data Input'!D34 -> What is the clean energy result of the action? * | J13: =IF('Data Input'!H34="","",'Data Input'!H34) -> 
H15: ='Data Input'!D36 -> How many years is this project expected to be in operation (e.g., lifetime of the system)?* | J15: =IF('Data Input'!H36="","",'Data Input'!H36) -> 
F17: ='Data Input'!D38 -> Will the action replace direct fuel consumption (e.g., for heating, cooking, or lighting)? If so, select ‘Yes’. If the action will replace electricity (e.g., from the grid or on-site generators), please select 'No’. * | J17: =IF('Data Input'!H38="","",'Data Input'!H38) ->  | P17: ='Data Input'!M38 -> FALSE
P18: ='Data Input'!M39 -> FALSE
F19: ='Data Input'!D40 -> Select the type of fuel reduced/avoided by the action: * | J19: =IF('Data Input'!H40="","",'Data Input'!H40) ->  | P19: ='Data Input'!M40 -> FALSE
P20: ='Data Input'!M41 -> FALSE
F21: ='Data Input'!D42 -> Does the impact of your action remain constant each year, or do you expect the impacts to change over time (e.g. grow)? * | J21: =IF('Data Input'!H42="","",'Data Input'!H42) ->  | P21: ='Data Input'!M42 -> FALSE
P22: ='Data Input'!M43 -> FALSE
F23: ='Data Input'!D44 -> Do you want to enter the amount of fuel reduced/avoided for each year, or forecast the amount using an annual rate of change from the First Year of Operation? * | J23: =IF('Data Input'!H44="","",'Data Input'!H44) ->  | P23: ='Data Input'!M44 -> FALSE
P24: ='Data Input'!M45 -> FALSE
F25: ='Data Input'!D46 -> Enter the amount of fuel reduced/avoided from this action during the First Year of Operation: * | J25: =IF('Data Input'!H46="","",'Data Input'!H46) ->  | L25: =IF('Data Input'!J46="","",'Data Input'!J46) -> Gigajoules (GJ) | P25: ='Data Input'!M46 -> FALSE
P26: ='Data Input'!M47 -> FALSE
F27: ='Data Input'!D48 -> Enter the amount of fuel reduced/avoided each year: * | P27: ='Data Input'!M48 -> FALSE
F28: ='Data Input'!D49 -> 2010 | J28: =IF('Data Input'!H49="","",'Data Input'!H49) ->  | L28: =IF('Data Input'!J48="","",'Data Input'!J48) -> Gigajoules (GJ) | P28: ='Data Input'!M49 -> FALSE
F29: ='Data Input'!D50 -> 2011 | J29: =IF('Data Input'!H50="","",'Data Input'!H50) ->  | L29: =IF('Data Input'!J50="","",'Data Input'!J50) -> Gigajoules (GJ) | P29: ='Data Input'!M50 -> FALSE
F30: ='Data Input'!D51 -> 2012 | J30: =IF('Data Input'!H51="","",'Data Input'!H51) ->  | L30: =IF('Data Input'!J51="","",'Data Input'!J51) -> Gigajoules (GJ) | P30: ='Data Input'!M51 -> FALSE
F31: ='Data Input'!D52 -> 2013 | J31: =IF('Data Input'!H52="","",'Data Input'!H52) ->  | L31: =IF('Data Input'!J52="","",'Data Input'!J52) -> Gigajoules (GJ) | P31: ='Data Input'!M52 -> FALSE
F32: ='Data Input'!D53 -> 2014 | J32: =IF('Data Input'!H53="","",'Data Input'!H53) ->  | L32: =IF('Data Input'!J53="","",'Data Input'!J53) -> Gigajoules (GJ) | P32: ='Data Input'!M53 -> FALSE
F33: ='Data Input'!D54 -> 2015 | J33: =IF('Data Input'!H54="","",'Data Input'!H54) ->  | L33: =IF('Data Input'!J54="","",'Data Input'!J54) -> Gigajoules (GJ) | P33: ='Data Input'!M54 -> FALSE
F34: ='Data Input'!D55 -> 2016 | J34: =IF('Data Input'!H55="","",'Data Input'!H55) ->  | L34: =IF('Data Input'!J55="","",'Data Input'!J55) -> Gigajoules (GJ) | P34: ='Data Input'!M55 -> FALSE
F35: ='Data Input'!D56 -> 2017 | J35: =IF('Data Input'!H56="","",'Data Input'!H56) ->  | L35: =IF('Data Input'!J56="","",'Data Input'!J56) -> Gigajoules (GJ) | P35: ='Data Input'!M56 -> FALSE
F36: ='Data Input'!D57 -> 2018 | J36: =IF('Data Input'!H57="","",'Data Input'!H57) ->  | L36: =IF('Data Input'!J57="","",'Data Input'!J57) -> Gigajoules (GJ) | P36: ='Data Input'!M57 -> FALSE
F37: ='Data Input'!D58 -> 2019 | J37: =IF('Data Input'!H58="","",'Data Input'!H58) ->  | L37: =IF('Data Input'!J58="","",'Data Input'!J58) -> Gigajoules (GJ) | P37: ='Data Input'!M58 -> FALSE
F38: ='Data Input'!D59 -> 2020 | J38: =IF('Data Input'!H59="","",'Data Input'!H59) ->  | L38: =IF('Data Input'!J59="","",'Data Input'!J59) -> Gigajoules (GJ) | P38: ='Data Input'!M59 -> FALSE
F39: ='Data Input'!D60 -> 2021 | J39: =IF('Data Input'!H60="","",'Data Input'!H60) ->  | L39: =IF('Data Input'!J60="","",'Data Input'!J60) -> Gigajoules (GJ) | P39: ='Data Input'!M60 -> FALSE
F40: ='Data Input'!D61 -> 2022 | J40: =IF('Data Input'!H61="","",'Data Input'!H61) ->  | L40: =IF('Data Input'!J61="","",'Data Input'!J61) -> Gigajoules (GJ) | P40: ='Data Input'!M61 -> FALSE
F41: ='Data Input'!D62 -> 2023 | J41: =IF('Data Input'!H62="","",'Data Input'!H62) ->  | L41: =IF('Data Input'!J62="","",'Data Input'!J62) -> Gigajoules (GJ) | P41: ='Data Input'!M62 -> FALSE
F42: ='Data Input'!D63 -> 2024 | J42: =IF('Data Input'!H63="","",'Data Input'!H63) ->  | L42: =IF('Data Input'!J63="","",'Data Input'!J63) -> Gigajoules (GJ) | P42: ='Data Input'!M63 -> FALSE
F43: ='Data Input'!D64 -> 2025 | J43: =IF('Data Input'!H64="","",'Data Input'!H64) ->  | L43: =IF('Data Input'!J64="","",'Data Input'!J64) -> Gigajoules (GJ) | P43: ='Data Input'!M64 -> FALSE
F44: ='Data Input'!D65 -> 2026 | J44: =IF('Data Input'!H65="","",'Data Input'!H65) ->  | L44: =IF('Data Input'!J65="","",'Data Input'!J65) -> Gigajoules (GJ) | P44: ='Data Input'!M65 -> FALSE
F45: ='Data Input'!D66 -> 2027 | J45: =IF('Data Input'!H66="","",'Data Input'!H66) ->  | L45: =IF('Data Input'!J66="","",'Data Input'!J66) -> Gigajoules (GJ) | P45: ='Data Input'!M66 -> FALSE
F46: ='Data Input'!D67 -> 2028 | J46: =IF('Data Input'!H67="","",'Data Input'!H67) ->  | L46: =IF('Data Input'!J67="","",'Data Input'!J67) -> Gigajoules (GJ) | P46: ='Data Input'!M67 -> FALSE
F47: ='Data Input'!D68 -> 2029 | J47: =IF('Data Input'!H68="","",'Data Input'!H68) ->  | L47: =IF('Data Input'!J68="","",'Data Input'!J68) -> Gigajoules (GJ) | P47: ='Data Input'!M68 -> FALSE
F48: ='Data Input'!D69 -> 2030 | J48: =IF('Data Input'!H69="","",'Data Input'!H69) ->  | L48: =IF('Data Input'!J69="","",'Data Input'!J69) -> Gigajoules (GJ) | P48: ='Data Input'!M69 -> FALSE
F49: ='Data Input'!D70 -> 2031 | J49: =IF('Data Input'!H70="","",'Data Input'!H70) ->  | L49: =IF('Data Input'!J70="","",'Data Input'!J70) -> Gigajoules (GJ) | P49: ='Data Input'!M70 -> FALSE
F50: ='Data Input'!D71 -> 2032 | J50: =IF('Data Input'!H71="","",'Data Input'!H71) ->  | L50: =IF('Data Input'!J71="","",'Data Input'!J71) -> Gigajoules (GJ) | P50: ='Data Input'!M71 -> FALSE
F51: ='Data Input'!D72 -> 2033 | J51: =IF('Data Input'!H72="","",'Data Input'!H72) ->  | L51: =IF('Data Input'!J72="","",'Data Input'!J72) -> Gigajoules (GJ) | P51: ='Data Input'!M72 -> FALSE
F52: ='Data Input'!D73 -> 2034 | J52: =IF('Data Input'!H73="","",'Data Input'!H73) ->  | L52: =IF('Data Input'!J73="","",'Data Input'!J73) -> Gigajoules (GJ) | P52: ='Data Input'!M73 -> FALSE
F53: ='Data Input'!D74 -> 2035 | J53: =IF('Data Input'!H74="","",'Data Input'!H74) ->  | L53: =IF('Data Input'!J74="","",'Data Input'!J74) -> Gigajoules (GJ) | P53: ='Data Input'!M74 -> FALSE
F54: ='Data Input'!D75 -> 2036 | J54: =IF('Data Input'!H75="","",'Data Input'!H75) ->  | L54: =IF('Data Input'!J75="","",'Data Input'!J75) -> Gigajoules (GJ) | P54: ='Data Input'!M75 -> FALSE
F55: ='Data Input'!D76 -> 2037 | J55: =IF('Data Input'!H76="","",'Data Input'!H76) ->  | L55: =IF('Data Input'!J76="","",'Data Input'!J76) -> Gigajoules (GJ) | P55: ='Data Input'!M76 -> FALSE
F56: ='Data Input'!D77 -> 2038 | J56: =IF('Data Input'!H77="","",'Data Input'!H77) ->  | L56: =IF('Data Input'!J77="","",'Data Input'!J77) -> Gigajoules (GJ) | P56: ='Data Input'!M77 -> FALSE
F57: ='Data Input'!D78 -> 2039 | J57: =IF('Data Input'!H78="","",'Data Input'!H78) ->  | L57: =IF('Data Input'!J78="","",'Data Input'!J78) -> Gigajoules (GJ) | P57: ='Data Input'!M78 -> FALSE
F58: ='Data Input'!D79 -> 2040 | J58: =IF('Data Input'!H79="","",'Data Input'!H79) ->  | L58: =IF('Data Input'!J79="","",'Data Input'!J79) -> Gigajoules (GJ) | P58: ='Data Input'!M79 -> FALSE
F59: ='Data Input'!D80 -> 2041 | J59: =IF('Data Input'!H80="","",'Data Input'!H80) ->  | L59: =IF('Data Input'!J80="","",'Data Input'!J80) -> Gigajoules (GJ) | P59: ='Data Input'!M80 -> FALSE
F60: ='Data Input'!D81 -> 2042 | J60: =IF('Data Input'!H81="","",'Data Input'!H81) ->  | L60: =IF('Data Input'!J81="","",'Data Input'!J81) -> Gigajoules (GJ) | P60: ='Data Input'!M81 -> FALSE
F61: ='Data Input'!D82 -> 2043 | J61: =IF('Data Input'!H82="","",'Data Input'!H82) ->  | L61: =IF('Data Input'!J82="","",'Data Input'!J82) -> Gigajoules (GJ) | P61: ='Data Input'!M82 -> FALSE
F62: ='Data Input'!D83 -> 2044 | J62: =IF('Data Input'!H83="","",'Data Input'!H83) ->  | L62: =IF('Data Input'!J83="","",'Data Input'!J83) -> Gigajoules (GJ) | P62: ='Data Input'!M83 -> FALSE
F63: ='Data Input'!D84 -> 2045 | J63: =IF('Data Input'!H84="","",'Data Input'!H84) ->  | L63: =IF('Data Input'!J84="","",'Data Input'!J84) -> Gigajoules (GJ) | P63: ='Data Input'!M84 -> FALSE
F64: ='Data Input'!D85 -> 2046 | J64: =IF('Data Input'!H85="","",'Data Input'!H85) ->  | L64: =IF('Data Input'!J85="","",'Data Input'!J85) -> Gigajoules (GJ) | P64: ='Data Input'!M85 -> FALSE
F65: ='Data Input'!D86 -> 2047 | J65: =IF('Data Input'!H86="","",'Data Input'!H86) ->  | L65: =IF('Data Input'!J86="","",'Data Input'!J86) -> Gigajoules (GJ) | P65: ='Data Input'!M86 -> FALSE
F66: ='Data Input'!D87 -> 2048 | J66: =IF('Data Input'!H87="","",'Data Input'!H87) ->  | L66: =IF('Data Input'!J87="","",'Data Input'!J87) -> Gigajoules (GJ) | P66: ='Data Input'!M87 -> FALSE
F67: ='Data Input'!D88 -> 2049 | J67: =IF('Data Input'!H88="","",'Data Input'!H88) ->  | L67: =IF('Data Input'!J88="","",'Data Input'!J88) -> Gigajoules (GJ) | P67: ='Data Input'!M88 -> FALSE
F68: ='Data Input'!D89 -> 2050 | J68: =IF('Data Input'!H89="","",'Data Input'!H89) ->  | L68: =IF('Data Input'!J89="","",'Data Input'!J89) -> Gigajoules (GJ) | P68: ='Data Input'!M89 -> FALSE
F69: ='Data Input'!D90 -> 2051 | J69: =IF('Data Input'!H90="","",'Data Input'!H90) ->  | L69: =IF('Data Input'!J90="","",'Data Input'!J90) -> Gigajoules (GJ) | P69: ='Data Input'!M90 -> FALSE
F70: ='Data Input'!D91 -> 2052 | J70: =IF('Data Input'!H91="","",'Data Input'!H91) ->  | L70: =IF('Data Input'!J91="","",'Data Input'!J91) -> Gigajoules (GJ) | P70: ='Data Input'!M91 -> FALSE
F71: ='Data Input'!D92 -> 2053 | J71: =IF('Data Input'!H92="","",'Data Input'!H92) ->  | L71: =IF('Data Input'!J92="","",'Data Input'!J92) -> Gigajoules (GJ) | P71: ='Data Input'!M92 -> FALSE
F72: ='Data Input'!D93 -> 2054 | J72: =IF('Data Input'!H93="","",'Data Input'!H93) ->  | L72: =IF('Data Input'!J93="","",'Data Input'!J93) -> Gigajoules (GJ) | P72: ='Data Input'!M93 -> FALSE
F73: ='Data Input'!D94 -> 2055 | J73: =IF('Data Input'!H94="","",'Data Input'!H94) ->  | L73: =IF('Data Input'!J94="","",'Data Input'!J94) -> Gigajoules (GJ) | P73: ='Data Input'!M94 -> FALSE
F74: ='Data Input'!D95 -> 2056 | J74: =IF('Data Input'!H95="","",'Data Input'!H95) ->  | L74: =IF('Data Input'!J95="","",'Data Input'!J95) -> Gigajoules (GJ) | P74: ='Data Input'!M95 -> FALSE
F75: ='Data Input'!D96 -> 2057 | J75: =IF('Data Input'!H96="","",'Data Input'!H96) ->  | L75: =IF('Data Input'!J96="","",'Data Input'!J96) -> Gigajoules (GJ) | P75: ='Data Input'!M96 -> FALSE
F76: ='Data Input'!D97 -> 2058 | J76: =IF('Data Input'!H97="","",'Data Input'!H97) ->  | L76: =IF('Data Input'!J97="","",'Data Input'!J97) -> Gigajoules (GJ) | P76: ='Data Input'!M97 -> FALSE
F77: ='Data Input'!D98 -> 2059 | J77: =IF('Data Input'!H98="","",'Data Input'!H98) ->  | L77: =IF('Data Input'!J98="","",'Data Input'!J98) -> Gigajoules (GJ) | P77: ='Data Input'!M98 -> FALSE
F78: ='Data Input'!D99 -> 2060 | J78: =IF('Data Input'!H99="","",'Data Input'!H99) ->  | L78: =IF('Data Input'!J99="","",'Data Input'!J99) -> Gigajoules (GJ) | P78: ='Data Input'!M99 -> FALSE
F79: ='Data Input'!D100 -> 2061 | J79: =IF('Data Input'!H100="","",'Data Input'!H100) ->  | L79: =IF('Data Input'!J100="","",'Data Input'!J100) -> Gigajoules (GJ) | P79: ='Data Input'!M100 -> FALSE
F80: ='Data Input'!D101 -> 2062 | J80: =IF('Data Input'!H101="","",'Data Input'!H101) ->  | L80: =IF('Data Input'!J101="","",'Data Input'!J101) -> Gigajoules (GJ) | P80: ='Data Input'!M101 -> FALSE
F81: ='Data Input'!D102 -> 2063 | J81: =IF('Data Input'!H102="","",'Data Input'!H102) ->  | L81: =IF('Data Input'!J102="","",'Data Input'!J102) -> Gigajoules (GJ) | P81: ='Data Input'!M102 -> FALSE
F82: ='Data Input'!D103 -> 2064 | J82: =IF('Data Input'!H103="","",'Data Input'!H103) ->  | L82: =IF('Data Input'!J103="","",'Data Input'!J103) -> Gigajoules (GJ) | P82: ='Data Input'!M103 -> FALSE
F83: ='Data Input'!D104 -> 2065 | J83: =IF('Data Input'!H104="","",'Data Input'!H104) ->  | L83: =IF('Data Input'!J104="","",'Data Input'!J104) -> Gigajoules (GJ) | P83: ='Data Input'!M104 -> FALSE
F84: ='Data Input'!D105 -> 2066 | J84: =IF('Data Input'!H105="","",'Data Input'!H105) ->  | L84: =IF('Data Input'!J105="","",'Data Input'!J105) -> Gigajoules (GJ) | P84: ='Data Input'!M105 -> FALSE
F85: ='Data Input'!D106 -> 2067 | J85: =IF('Data Input'!H106="","",'Data Input'!H106) ->  | L85: =IF('Data Input'!J106="","",'Data Input'!J106) -> Gigajoules (GJ) | P85: ='Data Input'!M106 -> FALSE
F86: ='Data Input'!D107 -> 2068 | J86: =IF('Data Input'!H107="","",'Data Input'!H107) ->  | L86: =IF('Data Input'!J107="","",'Data Input'!J107) -> Gigajoules (GJ) | P86: ='Data Input'!M107 -> FALSE
F87: ='Data Input'!D108 -> 2069 | J87: =IF('Data Input'!H108="","",'Data Input'!H108) ->  | L87: =IF('Data Input'!J108="","",'Data Input'!J108) -> Gigajoules (GJ) | P87: ='Data Input'!M108 -> FALSE
F88: ='Data Input'!D109 -> 2070 | J88: =IF('Data Input'!H109="","",'Data Input'!H109) ->  | L88: =IF('Data Input'!J109="","",'Data Input'!J109) -> Gigajoules (GJ) | P88: ='Data Input'!M109 -> FALSE
P89: ='Data Input'!M110 -> FALSE
F90: ='Data Input'!D111 -> Does the impact of your action remain constant each year, or do you expect the impact to change over time (e.g., grow)? * | J90: =IF('Data Input'!H111="","",'Data Input'!H111) ->  | P90: ='Data Input'!M111 -> FALSE
P91: ='Data Input'!M112 -> FALSE
F92: ='Data Input'!D113 -> Do you want to enter the electricity generated/saved for each year, or forecast the amount using an annual rate of change from the First Year of Operation? * | J92: =IF('Data Input'!H113="","",'Data Input'!H113) ->  | P92: ='Data Input'!M113 -> FALSE
P93: ='Data Input'!M114 -> FALSE
F94: ='Data Input'!D115 -> Enter the amount of electricity generated/saved from this action during the First Year of Operation: * | J94: =IF('Data Input'!H115="","",'Data Input'!H115) ->  | L94: =IF('Data Input'!J115="","",'Data Input'!J115) -> MWh | P94: ='Data Input'!M115 -> FALSE
P95: ='Data Input'!M116 -> FALSE
F96: ='Data Input'!D117 -> Enter the projected annual growth rate for the amount of electricity generated/saved from this action: * | J96: =IF('Data Input'!H117="","",'Data Input'!H117) ->  | P96: ='Data Input'!M117 -> FALSE
P97: ='Data Input'!M118 -> FALSE
F98: ='Data Input'!D119 -> Enter the amount of electricity generated/saved each year: * | P98: ='Data Input'!M119 -> FALSE
F99: ='Data Input'!D120 -> 2010 | J99: =IF('Data Input'!H120="","",'Data Input'!H120) ->  | L99: =IF('Data Input'!J119="","",'Data Input'!J119) -> MWh | P99: ='Data Input'!M120 -> FALSE
F100: ='Data Input'!D121 -> 2011 | J100: =IF('Data Input'!H121="","",'Data Input'!H121) ->  | L100: =IF('Data Input'!J121="","",'Data Input'!J121) -> MWh | P100: ='Data Input'!M121 -> FALSE
F101: ='Data Input'!D122 -> 2012 | J101: =IF('Data Input'!H122="","",'Data Input'!H122) ->  | L101: =IF('Data Input'!J122="","",'Data Input'!J122) -> MWh | P101: ='Data Input'!M122 -> FALSE
F102: ='Data Input'!D123 -> 2013 | J102: =IF('Data Input'!H123="","",'Data Input'!H123) ->  | L102: =IF('Data Input'!J123="","",'Data Input'!J123) -> MWh | P102: ='Data Input'!M123 -> FALSE
F103: ='Data Input'!D124 -> 2014 | J103: =IF('Data Input'!H124="","",'Data Input'!H124) ->  | L103: =IF('Data Input'!J124="","",'Data Input'!J124) -> MWh | P103: ='Data Input'!M124 -> FALSE
F104: ='Data Input'!D125 -> 2015 | J104: =IF('Data Input'!H125="","",'Data Input'!H125) ->  | L104: =IF('Data Input'!J125="","",'Data Input'!J125) -> MWh | P104: ='Data Input'!M125 -> FALSE
F105: ='Data Input'!D126 -> 2016 | J105: =IF('Data Input'!H126="","",'Data Input'!H126) ->  | L105: =IF('Data Input'!J126="","",'Data Input'!J126) -> MWh | P105: ='Data Input'!M126 -> FALSE
F106: ='Data Input'!D127 -> 2017 | J106: =IF('Data Input'!H127="","",'Data Input'!H127) ->  | L106: =IF('Data Input'!J127="","",'Data Input'!J127) -> MWh | P106: ='Data Input'!M127 -> FALSE
F107: ='Data Input'!D128 -> 2018 | J107: =IF('Data Input'!H128="","",'Data Input'!H128) ->  | L107: =IF('Data Input'!J128="","",'Data Input'!J128) -> MWh | P107: ='Data Input'!M128 -> FALSE
F108: ='Data Input'!D129 -> 2019 | J108: =IF('Data Input'!H129="","",'Data Input'!H129) ->  | L108: =IF('Data Input'!J129="","",'Data Input'!J129) -> MWh | P108: ='Data Input'!M129 -> FALSE
F109: ='Data Input'!D130 -> 2020 | J109: =IF('Data Input'!H130="","",'Data Input'!H130) ->  | L109: =IF('Data Input'!J130="","",'Data Input'!J130) -> MWh | P109: ='Data Input'!M130 -> FALSE
F110: ='Data Input'!D131 -> 2021 | J110: =IF('Data Input'!H131="","",'Data Input'!H131) ->  | L110: =IF('Data Input'!J131="","",'Data Input'!J131) -> MWh | P110: ='Data Input'!M131 -> FALSE
F111: ='Data Input'!D132 -> 2022 | J111: =IF('Data Input'!H132="","",'Data Input'!H132) ->  | L111: =IF('Data Input'!J132="","",'Data Input'!J132) -> MWh | P111: ='Data Input'!M132 -> FALSE
F112: ='Data Input'!D133 -> 2023 | J112: =IF('Data Input'!H133="","",'Data Input'!H133) ->  | L112: =IF('Data Input'!J133="","",'Data Input'!J133) -> MWh | P112: ='Data Input'!M133 -> FALSE
F113: ='Data Input'!D134 -> 2024 | J113: =IF('Data Input'!H134="","",'Data Input'!H134) ->  | L113: =IF('Data Input'!J134="","",'Data Input'!J134) -> MWh | P113: ='Data Input'!M134 -> FALSE
F114: ='Data Input'!D135 -> 2025 | J114: =IF('Data Input'!H135="","",'Data Input'!H135) ->  | L114: =IF('Data Input'!J135="","",'Data Input'!J135) -> MWh | P114: ='Data Input'!M135 -> FALSE
F115: ='Data Input'!D136 -> 2026 | J115: =IF('Data Input'!H136="","",'Data Input'!H136) ->  | L115: =IF('Data Input'!J136="","",'Data Input'!J136) -> MWh | P115: ='Data Input'!M136 -> FALSE
F116: ='Data Input'!D137 -> 2027 | J116: =IF('Data Input'!H137="","",'Data Input'!H137) ->  | L116: =IF('Data Input'!J137="","",'Data Input'!J137) -> MWh | P116: ='Data Input'!M137 -> FALSE
F117: ='Data Input'!D138 -> 2028 | J117: =IF('Data Input'!H138="","",'Data Input'!H138) ->  | L117: =IF('Data Input'!J138="","",'Data Input'!J138) -> MWh | P117: ='Data Input'!M138 -> FALSE
F118: ='Data Input'!D139 -> 2029 | J118: =IF('Data Input'!H139="","",'Data Input'!H139) ->  | L118: =IF('Data Input'!J139="","",'Data Input'!J139) -> MWh | P118: ='Data Input'!M139 -> FALSE
F119: ='Data Input'!D140 -> 2030 | J119: =IF('Data Input'!H140="","",'Data Input'!H140) ->  | L119: =IF('Data Input'!J140="","",'Data Input'!J140) -> MWh | P119: ='Data Input'!M140 -> FALSE
F120: ='Data Input'!D141 -> 2031 | J120: =IF('Data Input'!H141="","",'Data Input'!H141) ->  | L120: =IF('Data Input'!J141="","",'Data Input'!J141) -> MWh | P120: ='Data Input'!M141 -> FALSE
F121: ='Data Input'!D142 -> 2032 | J121: =IF('Data Input'!H142="","",'Data Input'!H142) ->  | L121: =IF('Data Input'!J142="","",'Data Input'!J142) -> MWh | P121: ='Data Input'!M142 -> FALSE
F122: ='Data Input'!D143 -> 2033 | J122: =IF('Data Input'!H143="","",'Data Input'!H143) ->  | L122: =IF('Data Input'!J143="","",'Data Input'!J143) -> MWh | P122: ='Data Input'!M143 -> FALSE
F123: ='Data Input'!D144 -> 2034 | J123: =IF('Data Input'!H144="","",'Data Input'!H144) ->  | L123: =IF('Data Input'!J144="","",'Data Input'!J144) -> MWh | P123: ='Data Input'!M144 -> FALSE
F124: ='Data Input'!D145 -> 2035 | J124: =IF('Data Input'!H145="","",'Data Input'!H145) ->  | L124: =IF('Data Input'!J145="","",'Data Input'!J145) -> MWh | P124: ='Data Input'!M145 -> FALSE
F125: ='Data Input'!D146 -> 2036 | J125: =IF('Data Input'!H146="","",'Data Input'!H146) ->  | L125: =IF('Data Input'!J146="","",'Data Input'!J146) -> MWh | P125: ='Data Input'!M146 -> FALSE
F126: ='Data Input'!D147 -> 2037 | J126: =IF('Data Input'!H147="","",'Data Input'!H147) ->  | L126: =IF('Data Input'!J147="","",'Data Input'!J147) -> MWh | P126: ='Data Input'!M147 -> FALSE
F127: ='Data Input'!D148 -> 2038 | J127: =IF('Data Input'!H148="","",'Data Input'!H148) ->  | L127: =IF('Data Input'!J148="","",'Data Input'!J148) -> MWh | P127: ='Data Input'!M148 -> FALSE
F128: ='Data Input'!D149 -> 2039 | J128: =IF('Data Input'!H149="","",'Data Input'!H149) ->  | L128: =IF('Data Input'!J149="","",'Data Input'!J149) -> MWh | P128: ='Data Input'!M149 -> FALSE
F129: ='Data Input'!D150 -> 2040 | J129: =IF('Data Input'!H150="","",'Data Input'!H150) ->  | L129: =IF('Data Input'!J150="","",'Data Input'!J150) -> MWh | P129: ='Data Input'!M150 -> FALSE
F130: ='Data Input'!D151 -> 2041 | J130: =IF('Data Input'!H151="","",'Data Input'!H151) ->  | L130: =IF('Data Input'!J151="","",'Data Input'!J151) -> MWh | P130: ='Data Input'!M151 -> FALSE
F131: ='Data Input'!D152 -> 2042 | J131: =IF('Data Input'!H152="","",'Data Input'!H152) ->  | L131: =IF('Data Input'!J152="","",'Data Input'!J152) -> MWh | P131: ='Data Input'!M152 -> FALSE
F132: ='Data Input'!D153 -> 2043 | J132: =IF('Data Input'!H153="","",'Data Input'!H153) ->  | L132: =IF('Data Input'!J153="","",'Data Input'!J153) -> MWh | P132: ='Data Input'!M153 -> FALSE
F133: ='Data Input'!D154 -> 2044 | J133: =IF('Data Input'!H154="","",'Data Input'!H154) ->  | L133: =IF('Data Input'!J154="","",'Data Input'!J154) -> MWh | P133: ='Data Input'!M154 -> FALSE
F134: ='Data Input'!D155 -> 2045 | J134: =IF('Data Input'!H155="","",'Data Input'!H155) ->  | L134: =IF('Data Input'!J155="","",'Data Input'!J155) -> MWh | P134: ='Data Input'!M155 -> FALSE
F135: ='Data Input'!D156 -> 2046 | J135: =IF('Data Input'!H156="","",'Data Input'!H156) ->  | L135: =IF('Data Input'!J156="","",'Data Input'!J156) -> MWh | P135: ='Data Input'!M156 -> FALSE
F136: ='Data Input'!D157 -> 2047 | J136: =IF('Data Input'!H157="","",'Data Input'!H157) ->  | L136: =IF('Data Input'!J157="","",'Data Input'!J157) -> MWh | P136: ='Data Input'!M157 -> FALSE
F137: ='Data Input'!D158 -> 2048 | J137: =IF('Data Input'!H158="","",'Data Input'!H158) ->  | L137: =IF('Data Input'!J158="","",'Data Input'!J158) -> MWh | P137: ='Data Input'!M158 -> FALSE
F138: ='Data Input'!D159 -> 2049 | J138: =IF('Data Input'!H159="","",'Data Input'!H159) ->  | L138: =IF('Data Input'!J159="","",'Data Input'!J159) -> MWh | P138: ='Data Input'!M159 -> FALSE
F139: ='Data Input'!D160 -> 2050 | J139: =IF('Data Input'!H160="","",'Data Input'!H160) ->  | L139: =IF('Data Input'!J160="","",'Data Input'!J160) -> MWh | P139: ='Data Input'!M160 -> FALSE
F140: ='Data Input'!D161 -> 2051 | J140: =IF('Data Input'!H161="","",'Data Input'!H161) ->  | L140: =IF('Data Input'!J161="","",'Data Input'!J161) -> MWh | P140: ='Data Input'!M161 -> FALSE
F141: ='Data Input'!D162 -> 2052 | J141: =IF('Data Input'!H162="","",'Data Input'!H162) ->  | L141: =IF('Data Input'!J162="","",'Data Input'!J162) -> MWh | P141: ='Data Input'!M162 -> FALSE
F142: ='Data Input'!D163 -> 2053 | J142: =IF('Data Input'!H163="","",'Data Input'!H163) ->  | L142: =IF('Data Input'!J163="","",'Data Input'!J163) -> MWh | P142: ='Data Input'!M163 -> FALSE
F143: ='Data Input'!D164 -> 2054 | J143: =IF('Data Input'!H164="","",'Data Input'!H164) ->  | L143: =IF('Data Input'!J164="","",'Data Input'!J164) -> MWh | P143: ='Data Input'!M164 -> FALSE
F144: ='Data Input'!D165 -> 2055 | J144: =IF('Data Input'!H165="","",'Data Input'!H165) ->  | L144: =IF('Data Input'!J165="","",'Data Input'!J165) -> MWh | P144: ='Data Input'!M165 -> FALSE
F145: ='Data Input'!D166 -> 2056 | J145: =IF('Data Input'!H166="","",'Data Input'!H166) ->  | L145: =IF('Data Input'!J166="","",'Data Input'!J166) -> MWh | P145: ='Data Input'!M166 -> FALSE
F146: ='Data Input'!D167 -> 2057 | J146: =IF('Data Input'!H167="","",'Data Input'!H167) ->  | L146: =IF('Data Input'!J167="","",'Data Input'!J167) -> MWh | P146: ='Data Input'!M167 -> FALSE
F147: ='Data Input'!D168 -> 2058 | J147: =IF('Data Input'!H168="","",'Data Input'!H168) ->  | L147: =IF('Data Input'!J168="","",'Data Input'!J168) -> MWh | P147: ='Data Input'!M168 -> FALSE
F148: ='Data Input'!D169 -> 2059 | J148: =IF('Data Input'!H169="","",'Data Input'!H169) ->  | L148: =IF('Data Input'!J169="","",'Data Input'!J169) -> MWh | P148: ='Data Input'!M169 -> FALSE
F149: ='Data Input'!D170 -> 2060 | J149: =IF('Data Input'!H170="","",'Data Input'!H170) ->  | L149: =IF('Data Input'!J170="","",'Data Input'!J170) -> MWh | P149: ='Data Input'!M170 -> FALSE
F150: ='Data Input'!D171 -> 2061 | J150: =IF('Data Input'!H171="","",'Data Input'!H171) ->  | L150: =IF('Data Input'!J171="","",'Data Input'!J171) -> MWh | P150: ='Data Input'!M171 -> FALSE
F151: ='Data Input'!D172 -> 2062 | J151: =IF('Data Input'!H172="","",'Data Input'!H172) ->  | L151: =IF('Data Input'!J172="","",'Data Input'!J172) -> MWh | P151: ='Data Input'!M172 -> FALSE
F152: ='Data Input'!D173 -> 2063 | J152: =IF('Data Input'!H173="","",'Data Input'!H173) ->  | L152: =IF('Data Input'!J173="","",'Data Input'!J173) -> MWh | P152: ='Data Input'!M173 -> FALSE
F153: ='Data Input'!D174 -> 2064 | J153: =IF('Data Input'!H174="","",'Data Input'!H174) ->  | L153: =IF('Data Input'!J174="","",'Data Input'!J174) -> MWh | P153: ='Data Input'!M174 -> FALSE
F154: ='Data Input'!D175 -> 2065 | J154: =IF('Data Input'!H175="","",'Data Input'!H175) ->  | L154: =IF('Data Input'!J175="","",'Data Input'!J175) -> MWh | P154: ='Data Input'!M175 -> FALSE
F155: ='Data Input'!D176 -> 2066 | J155: =IF('Data Input'!H176="","",'Data Input'!H176) ->  | L155: =IF('Data Input'!J176="","",'Data Input'!J176) -> MWh | P155: ='Data Input'!M176 -> FALSE
F156: ='Data Input'!D177 -> 2067 | J156: =IF('Data Input'!H177="","",'Data Input'!H177) ->  | L156: =IF('Data Input'!J177="","",'Data Input'!J177) -> MWh | P156: ='Data Input'!M177 -> FALSE
F157: ='Data Input'!D178 -> 2068 | J157: =IF('Data Input'!H178="","",'Data Input'!H178) ->  | L157: =IF('Data Input'!J178="","",'Data Input'!J178) -> MWh | P157: ='Data Input'!M178 -> FALSE
F158: ='Data Input'!D179 -> 2069 | J158: =IF('Data Input'!H179="","",'Data Input'!H179) ->  | L158: =IF('Data Input'!J179="","",'Data Input'!J179) -> MWh | P158: ='Data Input'!M179 -> FALSE
F159: ='Data Input'!D180 -> 2070 | J159: =IF('Data Input'!H180="","",'Data Input'!H180) ->  | L159: =IF('Data Input'!J180="","",'Data Input'!J180) -> MWh | P159: ='Data Input'!M180 -> FALSE
P160: ='Data Input'!M181 -> FALSE
F161: ='Data Input'!D182 -> How will the renewable electricity system be connected to the grid? * | J161: =IF('Data Input'!H182="","",'Data Input'!H182) ->  | P161: ='Data Input'!M182 -> FALSE
P162: ='Data Input'!M183 -> FALSE
F163: ='Data Input'!D184 -> 0 | J163: =IF('Data Input'!H184="","",'Data Input'!H184) ->  | P163: ='Data Input'!M184 -> FALSE
P164: ='Data Input'!M185 -> FALSE
F165: ='Data Input'!D186 -> Type of fuel consumed under the action: * | J165: =IF('Data Input'!H186="","",'Data Input'!H186) ->  | P165: ='Data Input'!M186 -> FALSE
P166: ='Data Input'!M187 -> FALSE
F167: ='Data Input'!D188 -> Does the impact of your action remain constant each year, or do you expect the impact to change over time (e.g., grow)? * | J167: =IF('Data Input'!H188="","",'Data Input'!H188) ->  | P167: ='Data Input'!M188 -> FALSE
P168: ='Data Input'!M189 -> FALSE
F169: ='Data Input'!D190 -> Do you want to enter the amount of fuel consumed each year, or forecast the amount using an annual rate of change from the First Year of Operation? * | J169: =IF('Data Input'!H190="","",'Data Input'!H190) ->  | P169: ='Data Input'!M190 -> FALSE
P170: ='Data Input'!M191 -> FALSE
F171: ='Data Input'!D192 -> Enter the amount of fuel consumed after the action in the First Year of Operation: * | J171: =IF('Data Input'!H192="","",'Data Input'!H192) ->  | L171: =IF('Data Input'!J192="","",'Data Input'!J192) -> Gigajoules (GJ) | P171: ='Data Input'!M192 -> FALSE
P172: ='Data Input'!M193 -> FALSE
F173: ='Data Input'!D194 -> Enter the amount of fuel consumed by the action each year: * | P173: ='Data Input'!M194 -> FALSE
F174: ='Data Input'!D195 -> 2010 | J174: =IF('Data Input'!H195="","",'Data Input'!H195) ->  | L174: =IF('Data Input'!J194="","",'Data Input'!J194) -> Gigajoules (GJ) | P174: ='Data Input'!M195 -> FALSE
F175: ='Data Input'!D196 -> 2011 | J175: =IF('Data Input'!H196="","",'Data Input'!H196) ->  | L175: =IF('Data Input'!J196="","",'Data Input'!J196) -> Gigajoules (GJ) | P175: ='Data Input'!M196 -> FALSE
F176: ='Data Input'!D197 -> 2012 | J176: =IF('Data Input'!H197="","",'Data Input'!H197) ->  | L176: =IF('Data Input'!J197="","",'Data Input'!J197) -> Gigajoules (GJ) | P176: ='Data Input'!M197 -> FALSE
F177: ='Data Input'!D198 -> 2013 | J177: =IF('Data Input'!H198="","",'Data Input'!H198) ->  | L177: =IF('Data Input'!J198="","",'Data Input'!J198) -> Gigajoules (GJ) | P177: ='Data Input'!M198 -> FALSE
F178: ='Data Input'!D199 -> 2014 | J178: =IF('Data Input'!H199="","",'Data Input'!H199) ->  | L178: =IF('Data Input'!J199="","",'Data Input'!J199) -> Gigajoules (GJ) | P178: ='Data Input'!M199 -> FALSE
F179: ='Data Input'!D200 -> 2015 | J179: =IF('Data Input'!H200="","",'Data Input'!H200) ->  | L179: =IF('Data Input'!J200="","",'Data Input'!J200) -> Gigajoules (GJ) | P179: ='Data Input'!M200 -> FALSE
F180: ='Data Input'!D201 -> 2016 | J180: =IF('Data Input'!H201="","",'Data Input'!H201) ->  | L180: =IF('Data Input'!J201="","",'Data Input'!J201) -> Gigajoules (GJ) | P180: ='Data Input'!M201 -> FALSE
F181: ='Data Input'!D202 -> 2017 | J181: =IF('Data Input'!H202="","",'Data Input'!H202) ->  | L181: =IF('Data Input'!J202="","",'Data Input'!J202) -> Gigajoules (GJ) | P181: ='Data Input'!M202 -> FALSE
F182: ='Data Input'!D203 -> 2018 | J182: =IF('Data Input'!H203="","",'Data Input'!H203) ->  | L182: =IF('Data Input'!J203="","",'Data Input'!J203) -> Gigajoules (GJ) | P182: ='Data Input'!M203 -> FALSE
F183: ='Data Input'!D204 -> 2019 | J183: =IF('Data Input'!H204="","",'Data Input'!H204) ->  | L183: =IF('Data Input'!J204="","",'Data Input'!J204) -> Gigajoules (GJ) | P183: ='Data Input'!M204 -> FALSE
F184: ='Data Input'!D205 -> 2020 | J184: =IF('Data Input'!H205="","",'Data Input'!H205) ->  | L184: =IF('Data Input'!J205="","",'Data Input'!J205) -> Gigajoules (GJ) | P184: ='Data Input'!M205 -> FALSE
F185: ='Data Input'!D206 -> 2021 | J185: =IF('Data Input'!H206="","",'Data Input'!H206) ->  | L185: =IF('Data Input'!J206="","",'Data Input'!J206) -> Gigajoules (GJ) | P185: ='Data Input'!M206 -> FALSE
F186: ='Data Input'!D207 -> 2022 | J186: =IF('Data Input'!H207="","",'Data Input'!H207) ->  | L186: =IF('Data Input'!J207="","",'Data Input'!J207) -> Gigajoules (GJ) | P186: ='Data Input'!M207 -> FALSE
F187: ='Data Input'!D208 -> 2023 | J187: =IF('Data Input'!H208="","",'Data Input'!H208) ->  | L187: =IF('Data Input'!J208="","",'Data Input'!J208) -> Gigajoules (GJ) | P187: ='Data Input'!M208 -> FALSE
F188: ='Data Input'!D209 -> 2024 | J188: =IF('Data Input'!H209="","",'Data Input'!H209) ->  | L188: =IF('Data Input'!J209="","",'Data Input'!J209) -> Gigajoules (GJ) | P188: ='Data Input'!M209 -> FALSE
F189: ='Data Input'!D210 -> 2025 | J189: =IF('Data Input'!H210="","",'Data Input'!H210) ->  | L189: =IF('Data Input'!J210="","",'Data Input'!J210) -> Gigajoules (GJ) | P189: ='Data Input'!M210 -> FALSE
F190: ='Data Input'!D211 -> 2026 | J190: =IF('Data Input'!H211="","",'Data Input'!H211) ->  | L190: =IF('Data Input'!J211="","",'Data Input'!J211) -> Gigajoules (GJ) | P190: ='Data Input'!M211 -> FALSE
F191: ='Data Input'!D212 -> 2027 | J191: =IF('Data Input'!H212="","",'Data Input'!H212) ->  | L191: =IF('Data Input'!J212="","",'Data Input'!J212) -> Gigajoules (GJ) | P191: ='Data Input'!M212 -> FALSE
F192: ='Data Input'!D213 -> 2028 | J192: =IF('Data Input'!H213="","",'Data Input'!H213) ->  | L192: =IF('Data Input'!J213="","",'Data Input'!J213) -> Gigajoules (GJ) | P192: ='Data Input'!M213 -> FALSE
F193: ='Data Input'!D214 -> 2029 | J193: =IF('Data Input'!H214="","",'Data Input'!H214) ->  | L193: =IF('Data Input'!J214="","",'Data Input'!J214) -> Gigajoules (GJ) | P193: ='Data Input'!M214 -> FALSE
F194: ='Data Input'!D215 -> 2030 | J194: =IF('Data Input'!H215="","",'Data Input'!H215) ->  | L194: =IF('Data Input'!J215="","",'Data Input'!J215) -> Gigajoules (GJ) | P194: ='Data Input'!M215 -> FALSE
F195: ='Data Input'!D216 -> 2031 | J195: =IF('Data Input'!H216="","",'Data Input'!H216) ->  | L195: =IF('Data Input'!J216="","",'Data Input'!J216) -> Gigajoules (GJ) | P195: ='Data Input'!M216 -> FALSE
F196: ='Data Input'!D217 -> 2032 | J196: =IF('Data Input'!H217="","",'Data Input'!H217) ->  | L196: =IF('Data Input'!J217="","",'Data Input'!J217) -> Gigajoules (GJ) | P196: ='Data Input'!M217 -> FALSE
F197: ='Data Input'!D218 -> 2033 | J197: =IF('Data Input'!H218="","",'Data Input'!H218) ->  | L197: =IF('Data Input'!J218="","",'Data Input'!J218) -> Gigajoules (GJ) | P197: ='Data Input'!M218 -> FALSE
F198: ='Data Input'!D219 -> 2034 | J198: =IF('Data Input'!H219="","",'Data Input'!H219) ->  | L198: =IF('Data Input'!J219="","",'Data Input'!J219) -> Gigajoules (GJ) | P198: ='Data Input'!M219 -> FALSE
F199: ='Data Input'!D220 -> 2035 | J199: =IF('Data Input'!H220="","",'Data Input'!H220) ->  | L199: =IF('Data Input'!J220="","",'Data Input'!J220) -> Gigajoules (GJ) | P199: ='Data Input'!M220 -> FALSE
F200: ='Data Input'!D221 -> 2036 | J200: =IF('Data Input'!H221="","",'Data Input'!H221) ->  | L200: =IF('Data Input'!J221="","",'Data Input'!J221) -> Gigajoules (GJ) | P200: ='Data Input'!M221 -> FALSE
F201: ='Data Input'!D222 -> 2037 | J201: =IF('Data Input'!H222="","",'Data Input'!H222) ->  | L201: =IF('Data Input'!J222="","",'Data Input'!J222) -> Gigajoules (GJ) | P201: ='Data Input'!M222 -> FALSE
F202: ='Data Input'!D223 -> 2038 | J202: =IF('Data Input'!H223="","",'Data Input'!H223) ->  | L202: =IF('Data Input'!J223="","",'Data Input'!J223) -> Gigajoules (GJ) | P202: ='Data Input'!M223 -> FALSE
F203: ='Data Input'!D224 -> 2039 | J203: =IF('Data Input'!H224="","",'Data Input'!H224) ->  | L203: =IF('Data Input'!J224="","",'Data Input'!J224) -> Gigajoules (GJ) | P203: ='Data Input'!M224 -> FALSE
F204: ='Data Input'!D225 -> 2040 | J204: =IF('Data Input'!H225="","",'Data Input'!H225) ->  | L204: =IF('Data Input'!J225="","",'Data Input'!J225) -> Gigajoules (GJ) | P204: ='Data Input'!M225 -> FALSE
F205: ='Data Input'!D226 -> 2041 | J205: =IF('Data Input'!H226="","",'Data Input'!H226) ->  | L205: =IF('Data Input'!J226="","",'Data Input'!J226) -> Gigajoules (GJ) | P205: ='Data Input'!M226 -> FALSE
F206: ='Data Input'!D227 -> 2042 | J206: =IF('Data Input'!H227="","",'Data Input'!H227) ->  | L206: =IF('Data Input'!J227="","",'Data Input'!J227) -> Gigajoules (GJ) | P206: ='Data Input'!M227 -> FALSE
F207: ='Data Input'!D228 -> 2043 | J207: =IF('Data Input'!H228="","",'Data Input'!H228) ->  | L207: =IF('Data Input'!J228="","",'Data Input'!J228) -> Gigajoules (GJ) | P207: ='Data Input'!M228 -> FALSE
F208: ='Data Input'!D229 -> 2044 | J208: =IF('Data Input'!H229="","",'Data Input'!H229) ->  | L208: =IF('Data Input'!J229="","",'Data Input'!J229) -> Gigajoules (GJ) | P208: ='Data Input'!M229 -> FALSE
F209: ='Data Input'!D230 -> 2045 | J209: =IF('Data Input'!H230="","",'Data Input'!H230) ->  | L209: =IF('Data Input'!J230="","",'Data Input'!J230) -> Gigajoules (GJ) | P209: ='Data Input'!M230 -> FALSE
F210: ='Data Input'!D231 -> 2046 | J210: =IF('Data Input'!H231="","",'Data Input'!H231) ->  | L210: =IF('Data Input'!J231="","",'Data Input'!J231) -> Gigajoules (GJ) | P210: ='Data Input'!M231 -> FALSE
... 717 more rows

Sheet Results
B2: Results
B5: This page summarizes total FY GHGs reduced or avoided (tCO2e) and a breakdown of projected GHG reductions according to Indicator EG.12-7.
B7: Results and Summary
B9: Action Information Summary
C10: Implementing Mechanism Number | G10: =IF('Data Input'!F14="","",'Data Input'!F14) -> 
C11: Implementing Mechanism Name | G11: =IF('Data Input'!F15="","",'Data Input'!F15) -> 
C12: Action Name | G12: =IF('Data Input'!F16="","",'Data Input'!F16) -> 
C13: Current Fiscal Year | G13: ='Data Input'!F17 -> 0
C14: Action Implementation Year | G14: =IF('Data Input'!F18="","",'Data Input'!F18) -> 
C15: Country | G15: =IF('Data Input'!F23="","",'Data Input'!F23) -> 
C16: Clean Energy Result | G16: =IF('Data Input'!H34="","",'Data Input'!H34) -> 
B19: Total Projected GHG Reductions
C21: Total GHGs Reduced/Avoided from Year of Implementation through Project Lifetime
E22: Emission Reductions (tCO2e)
E23: =SUM($I$36:$I$91) -> 0
C26: Total GHGs Reduced/Avoided from Current FY through Project Lifetime
E27: Emission Reductions (tCO2e)
E28: =SUMIFS($I$36:$I$91,$AA$36:$AA$91,">=0") -> 0
B33: Projected GHG Reductions, disaggregated according to Indicator EG. 12-7 (tCO2e)
C35: Identifier | D35: Year | E35: Baseline Emissions | G35: Activity Emissions | I35: Emission Reductions
C36: =_xlfn.IFS(AA36<0,"Prior",AA36=0,"Current FY",AND(AA36>0,AA36<11),"Current FY+"&AA36,AA36>10,"Onward") -> Onward | D36: 2015 | E36: =DataProjection!K372 -> 0 | F36: - | G36: =DataProjection!K437 -> 0 | H36: = | I36: =DataProjection!K502 -> 0 | AA36: =D36-CurrentFY -> 2015 | AB36: =AND(AA36>=0,AA36<=10) -> FALSE
C37: =_xlfn.IFS(AA37<0,"Prior",AA37=0,"Current FY",AND(AA37>0,AA37<11),"Current FY+"&AA37,AA37>10,"Onward") -> Onward | D37: 2016 | E37: =DataProjection!K373 -> 0 | F37: - | G37: =DataProjection!K438 -> 0 | H37: = | I37: =DataProjection!K503 -> 0 | AA37: 2016 | AB37: FALSE
C38: =_xlfn.IFS(AA38<0,"Prior",AA38=0,"Current FY",AND(AA38>0,AA38<11),"Current FY+"&AA38,AA38>10,"Onward") -> Onward | D38: 2017 | E38: =DataProjection!K374 -> 0 | F38: - | G38: =DataProjection!K439 -> 0 | H38: = | I38: =DataProjection!K504 -> 0 | AA38: 2017 | AB38: FALSE
C39: =_xlfn.IFS(AA39<0,"Prior",AA39=0,"Current FY",AND(AA39>0,AA39<11),"Current FY+"&AA39,AA39>10,"Onward") -> Onward | D39: 2018 | E39: =DataProjection!K375 -> 0 | F39: - | G39: =DataProjection!K440 -> 0 | H39: = | I39: =DataProjection!K505 -> 0 | AA39: 2018 | AB39: FALSE
C40: =_xlfn.IFS(AA40<0,"Prior",AA40=0,"Current FY",AND(AA40>0,AA40<11),"Current FY+"&AA40,AA40>10,"Onward") -> Onward | D40: 2019 | E40: =DataProjection!K376 -> 0 | F40: - | G40: =DataProjection!K441 -> 0 | H40: = | I40: =DataProjection!K506 -> 0 | AA40: 2019 | AB40: FALSE
C41: =_xlfn.IFS(AA41<0,"Prior",AA41=0,"Current FY",AND(AA41>0,AA41<11),"Current FY+"&AA41,AA41>10,"Onward") -> Onward | D41: 2020 | E41: =DataProjection!K377 -> 0 | F41: - | G41: =DataProjection!K442 -> 0 | H41: = | I41: =DataProjection!K507 -> 0 | AA41: 2020 | AB41: FALSE
C42: =_xlfn.IFS(AA42<0,"Prior",AA42=0,"Current FY",AND(AA42>0,AA42<11),"Current FY+"&AA42,AA42>10,"Onward") -> Onward | D42: 2021 | E42: =DataProjection!K378 -> 0 | F42: - | G42: =DataProjection!K443 -> 0 | H42: = | I42: =DataProjection!K508 -> 0 | AA42: =D42-CurrentFY -> 2021 | AB42: =AND(AA42>=0,AA42<=10) -> FALSE
C43: =_xlfn.IFS(AA43<0,"Prior",AA43=0,"Current FY",AND(AA43>0,AA43<11),"Current FY+"&AA43,AA43>10,"Onward") -> Onward | D43: 2022 | E43: =DataProjection!K379 -> 0 | F43: - | G43: =DataProjection!K444 -> 0 | H43: = | I43: =DataProjection!K509 -> 0 | AA43: 2022 | AB43: FALSE
C44: =_xlfn.IFS(AA44<0,"Prior",AA44=0,"Current FY",AND(AA44>0,AA44<11),"Current FY+"&AA44,AA44>10,"Onward") -> Onward | D44: 2023 | E44: =DataProjection!K380 -> 0 | F44: - | G44: =DataProjection!K445 -> 0 | H44: = | I44: =DataProjection!K510 -> 0 | AA44: 2023 | AB44: FALSE
C45: =_xlfn.IFS(AA45<0,"Prior",AA45=0,"Current FY",AND(AA45>0,AA45<11),"Current FY+"&AA45,AA45>10,"Onward") -> Onward | D45: 2024 | E45: =DataProjection!K381 -> 0 | F45: - | G45: =DataProjection!K446 -> 0 | H45: = | I45: =DataProjection!K511 -> 0 | AA45: 2024 | AB45: FALSE
C46: =_xlfn.IFS(AA46<0,"Prior",AA46=0,"Current FY",AND(AA46>0,AA46<11),"Current FY+"&AA46,AA46>10,"Onward") -> Onward | D46: 2025 | E46: =DataProjection!K382 -> 0 | F46: - | G46: =DataProjection!K447 -> 0 | H46: = | I46: =DataProjection!K512 -> 0 | AA46: 2025 | AB46: FALSE
C47: =_xlfn.IFS(AA47<0,"Prior",AA47=0,"Current FY",AND(AA47>0,AA47<11),"Current FY+"&AA47,AA47>10,"Onward") -> Onward | D47: 2026 | E47: =DataProjection!K383 -> 0 | F47: - | G47: =DataProjection!K448 -> 0 | H47: = | I47: =DataProjection!K513 -> 0 | AA47: 2026 | AB47: FALSE
C48: =_xlfn.IFS(AA48<0,"Prior",AA48=0,"Current FY",AND(AA48>0,AA48<11),"Current FY+"&AA48,AA48>10,"Onward") -> Onward | D48: 2027 | E48: =DataProjection!K384 -> 0 | F48: - | G48: =DataProjection!K449 -> 0 | H48: = | I48: =DataProjection!K514 -> 0 | AA48: 2027 | AB48: FALSE
C49: =_xlfn.IFS(AA49<0,"Prior",AA49=0,"Current FY",AND(AA49>0,AA49<11),"Current FY+"&AA49,AA49>10,"Onward") -> Onward | D49: 2028 | E49: =DataProjection!K385 -> 0 | F49: - | G49: =DataProjection!K450 -> 0 | H49: = | I49: =DataProjection!K515 -> 0 | AA49: 2028 | AB49: FALSE
C50: =_xlfn.IFS(AA50<0,"Prior",AA50=0,"Current FY",AND(AA50>0,AA50<11),"Current FY+"&AA50,AA50>10,"Onward") -> Onward | D50: 2029 | E50: =DataProjection!K386 -> 0 | F50: - | G50: =DataProjection!K451 -> 0 | H50: = | I50: =DataProjection!K516 -> 0 | AA50: 2029 | AB50: FALSE
C51: =_xlfn.IFS(AA51<0,"Prior",AA51=0,"Current FY",AND(AA51>0,AA51<11),"Current FY+"&AA51,AA51>10,"Onward") -> Onward | D51: 2030 | E51: =DataProjection!K387 -> 0 | F51: - | G51: =DataProjection!K452 -> 0 | H51: = | I51: =DataProjection!K517 -> 0 | AA51: 2030 | AB51: FALSE
C52: =_xlfn.IFS(AA52<0,"Prior",AA52=0,"Current FY",AND(AA52>0,AA52<11),"Current FY+"&AA52,AA52>10,"Onward") -> Onward | D52: 2031 | E52: =DataProjection!K388 -> 0 | F52: - | G52: =DataProjection!K453 -> 0 | H52: = | I52: =DataProjection!K518 -> 0 | AA52: 2031 | AB52: FALSE
C53: =_xlfn.IFS(AA53<0,"Prior",AA53=0,"Current FY",AND(AA53>0,AA53<11),"Current FY+"&AA53,AA53>10,"Onward") -> Onward | D53: 2032 | E53: =DataProjection!K389 -> 0 | F53: - | G53: =DataProjection!K454 -> 0 | H53: = | I53: =DataProjection!K519 -> 0 | AA53: 2032 | AB53: FALSE
C54: =_xlfn.IFS(AA54<0,"Prior",AA54=0,"Current FY",AND(AA54>0,AA54<11),"Current FY+"&AA54,AA54>10,"Onward") -> Onward | D54: 2033 | E54: =DataProjection!K390 -> 0 | F54: - | G54: =DataProjection!K455 -> 0 | H54: = | I54: =DataProjection!K520 -> 0 | AA54: 2033 | AB54: FALSE
C55: =_xlfn.IFS(AA55<0,"Prior",AA55=0,"Current FY",AND(AA55>0,AA55<11),"Current FY+"&AA55,AA55>10,"Onward") -> Onward | D55: 2034 | E55: =DataProjection!K391 -> 0 | F55: - | G55: =DataProjection!K456 -> 0 | H55: = | I55: =DataProjection!K521 -> 0 | AA55: 2034 | AB55: FALSE
C56: =_xlfn.IFS(AA56<0,"Prior",AA56=0,"Current FY",AND(AA56>0,AA56<11),"Current FY+"&AA56,AA56>10,"Onward") -> Onward | D56: 2035 | E56: =DataProjection!K392 -> 0 | F56: - | G56: =DataProjection!K457 -> 0 | H56: = | I56: =DataProjection!K522 -> 0 | AA56: 2035 | AB56: FALSE
C57: =_xlfn.IFS(AA57<0,"Prior",AA57=0,"Current FY",AND(AA57>0,AA57<11),"Current FY+"&AA57,AA57>10,"Onward") -> Onward | D57: 2036 | E57: =DataProjection!K393 -> 0 | F57: - | G57: =DataProjection!K458 -> 0 | H57: = | I57: =DataProjection!K523 -> 0 | AA57: 2036 | AB57: FALSE
C58: =_xlfn.IFS(AA58<0,"Prior",AA58=0,"Current FY",AND(AA58>0,AA58<11),"Current FY+"&AA58,AA58>10,"Onward") -> Onward | D58: 2037 | E58: =DataProjection!K394 -> 0 | F58: - | G58: =DataProjection!K459 -> 0 | H58: = | I58: =DataProjection!K524 -> 0 | AA58: 2037 | AB58: FALSE
C59: =_xlfn.IFS(AA59<0,"Prior",AA59=0,"Current FY",AND(AA59>0,AA59<11),"Current FY+"&AA59,AA59>10,"Onward") -> Onward | D59: 2038 | E59: =DataProjection!K395 -> 0 | F59: - | G59: =DataProjection!K460 -> 0 | H59: = | I59: =DataProjection!K525 -> 0 | AA59: 2038 | AB59: FALSE
C60: =_xlfn.IFS(AA60<0,"Prior",AA60=0,"Current FY",AND(AA60>0,AA60<11),"Current FY+"&AA60,AA60>10,"Onward") -> Onward | D60: 2039 | E60: =DataProjection!K396 -> 0 | F60: - | G60: =DataProjection!K461 -> 0 | H60: = | I60: =DataProjection!K526 -> 0 | AA60: 2039 | AB60: FALSE
C61: =_xlfn.IFS(AA61<0,"Prior",AA61=0,"Current FY",AND(AA61>0,AA61<11),"Current FY+"&AA61,AA61>10,"Onward") -> Onward | D61: 2040 | E61: =DataProjection!K397 -> 0 | F61: - | G61: =DataProjection!K462 -> 0 | H61: = | I61: =DataProjection!K527 -> 0 | AA61: 2040 | AB61: FALSE
C62: =_xlfn.IFS(AA62<0,"Prior",AA62=0,"Current FY",AND(AA62>0,AA62<11),"Current FY+"&AA62,AA62>10,"Onward") -> Onward | D62: 2041 | E62: =DataProjection!K398 -> 0 | F62: - | G62: =DataProjection!K463 -> 0 | H62: = | I62: =DataProjection!K528 -> 0 | AA62: 2041 | AB62: FALSE
C63: =_xlfn.IFS(AA63<0,"Prior",AA63=0,"Current FY",AND(AA63>0,AA63<11),"Current FY+"&AA63,AA63>10,"Onward") -> Onward | D63: 2042 | E63: =DataProjection!K399 -> 0 | F63: - | G63: =DataProjection!K464 -> 0 | H63: = | I63: =DataProjection!K529 -> 0 | AA63: 2042 | AB63: FALSE
C64: =_xlfn.IFS(AA64<0,"Prior",AA64=0,"Current FY",AND(AA64>0,AA64<11),"Current FY+"&AA64,AA64>10,"Onward") -> Onward | D64: 2043 | E64: =DataProjection!K400 -> 0 | F64: - | G64: =DataProjection!K465 -> 0 | H64: = | I64: =DataProjection!K530 -> 0 | AA64: 2043 | AB64: FALSE
C65: =_xlfn.IFS(AA65<0,"Prior",AA65=0,"Current FY",AND(AA65>0,AA65<11),"Current FY+"&AA65,AA65>10,"Onward") -> Onward | D65: 2044 | E65: =DataProjection!K401 -> 0 | F65: - | G65: =DataProjection!K466 -> 0 | H65: = | I65: =DataProjection!K531 -> 0 | AA65: 2044 | AB65: FALSE
C66: =_xlfn.IFS(AA66<0,"Prior",AA66=0,"Current FY",AND(AA66>0,AA66<11),"Current FY+"&AA66,AA66>10,"Onward") -> Onward | D66: 2045 | E66: =DataProjection!K402 -> 0 | F66: - | G66: =DataProjection!K467 -> 0 | H66: = | I66: =DataProjection!K532 -> 0 | AA66: 2045 | AB66: FALSE
C67: =_xlfn.IFS(AA67<0,"Prior",AA67=0,"Current FY",AND(AA67>0,AA67<11),"Current FY+"&AA67,AA67>10,"Onward") -> Onward | D67: 2046 | E67: =DataProjection!K403 -> 0 | F67: - | G67: =DataProjection!K468 -> 0 | H67: = | I67: =DataProjection!K533 -> 0 | AA67: 2046 | AB67: FALSE
C68: =_xlfn.IFS(AA68<0,"Prior",AA68=0,"Current FY",AND(AA68>0,AA68<11),"Current FY+"&AA68,AA68>10,"Onward") -> Onward | D68: 2047 | E68: =DataProjection!K404 -> 0 | F68: - | G68: =DataProjection!K469 -> 0 | H68: = | I68: =DataProjection!K534 -> 0 | AA68: 2047 | AB68: FALSE
C69: =_xlfn.IFS(AA69<0,"Prior",AA69=0,"Current FY",AND(AA69>0,AA69<11),"Current FY+"&AA69,AA69>10,"Onward") -> Onward | D69: 2048 | E69: =DataProjection!K405 -> 0 | F69: - | G69: =DataProjection!K470 -> 0 | H69: = | I69: =DataProjection!K535 -> 0 | AA69: 2048 | AB69: FALSE
C70: =_xlfn.IFS(AA70<0,"Prior",AA70=0,"Current FY",AND(AA70>0,AA70<11),"Current FY+"&AA70,AA70>10,"Onward") -> Onward | D70: 2049 | E70: =DataProjection!K406 -> 0 | F70: - | G70: =DataProjection!K471 -> 0 | H70: = | I70: =DataProjection!K536 -> 0 | AA70: 2049 | AB70: FALSE
C71: =_xlfn.IFS(AA71<0,"Prior",AA71=0,"Current FY",AND(AA71>0,AA71<11),"Current FY+"&AA71,AA71>10,"Onward") -> Onward | D71: 2050 | E71: =DataProjection!K407 -> 0 | F71: - | G71: =DataProjection!K472 -> 0 | H71: = | I71: =DataProjection!K537 -> 0 | AA71: 2050 | AB71: FALSE
C72: =_xlfn.IFS(AA72<0,"Prior",AA72=0,"Current FY",AND(AA72>0,AA72<11),"Current FY+"&AA72,AA72>10,"Onward") -> Onward | D72: 2051 | E72: =DataProjection!K408 -> 0 | F72: - | G72: =DataProjection!K473 -> 0 | H72: = | I72: =DataProjection!K538 -> 0 | AA72: 2051 | AB72: FALSE
C73: =_xlfn.IFS(AA73<0,"Prior",AA73=0,"Current FY",AND(AA73>0,AA73<11),"Current FY+"&AA73,AA73>10,"Onward") -> Onward | D73: 2052 | E73: =DataProjection!K409 -> 0 | F73: - | G73: =DataProjection!K474 -> 0 | H73: = | I73: =DataProjection!K539 -> 0 | AA73: =D73-CurrentFY -> 2052 | AB73: FALSE
C74: =_xlfn.IFS(AA74<0,"Prior",AA74=0,"Current FY",AND(AA74>0,AA74<11),"Current FY+"&AA74,AA74>10,"Onward") -> Onward | D74: 2053 | E74: =DataProjection!K410 -> 0 | F74: - | G74: =DataProjection!K475 -> 0 | H74: = | I74: =DataProjection!K540 -> 0 | AA74: 2053 | AB74: FALSE
C75: =_xlfn.IFS(AA75<0,"Prior",AA75=0,"Current FY",AND(AA75>0,AA75<11),"Current FY+"&AA75,AA75>10,"Onward") -> Onward | D75: 2054 | E75: =DataProjection!K411 -> 0 | F75: - | G75: =DataProjection!K476 -> 0 | H75: = | I75: =DataProjection!K541 -> 0 | AA75: 2054 | AB75: FALSE
C76: =_xlfn.IFS(AA76<0,"Prior",AA76=0,"Current FY",AND(AA76>0,AA76<11),"Current FY+"&AA76,AA76>10,"Onward") -> Onward | D76: 2055 | E76: =DataProjection!K412 -> 0 | F76: - | G76: =DataProjection!K477 -> 0 | H76: = | I76: =DataProjection!K542 -> 0 | AA76: 2055 | AB76: FALSE
C77: =_xlfn.IFS(AA77<0,"Prior",AA77=0,"Current FY",AND(AA77>0,AA77<11),"Current FY+"&AA77,AA77>10,"Onward") -> Onward | D77: 2056 | E77: =DataProjection!K413 -> 0 | F77: - | G77: =DataProjection!K478 -> 0 | H77: = | I77: =DataProjection!K543 -> 0 | AA77: 2056 | AB77: FALSE
C78: =_xlfn.IFS(AA78<0,"Prior",AA78=0,"Current FY",AND(AA78>0,AA78<11),"Current FY+"&AA78,AA78>10,"Onward") -> Onward | D78: 2057 | E78: =DataProjection!K414 -> 0 | F78: - | G78: =DataProjection!K479 -> 0 | H78: = | I78: =DataProjection!K544 -> 0 | AA78: 2057 | AB78: FALSE
C79: =_xlfn.IFS(AA79<0,"Prior",AA79=0,"Current FY",AND(AA79>0,AA79<11),"Current FY+"&AA79,AA79>10,"Onward") -> Onward | D79: 2058 | E79: =DataProjection!K415 -> 0 | F79: - | G79: =DataProjection!K480 -> 0 | H79: = | I79: =DataProjection!K545 -> 0 | AA79: 2058 | AB79: FALSE
C80: =_xlfn.IFS(AA80<0,"Prior",AA80=0,"Current FY",AND(AA80>0,AA80<11),"Current FY+"&AA80,AA80>10,"Onward") -> Onward | D80: 2059 | E80: =DataProjection!K416 -> 0 | F80: - | G80: =DataProjection!K481 -> 0 | H80: = | I80: =DataProjection!K546 -> 0 | AA80: 2059 | AB80: FALSE
C81: =_xlfn.IFS(AA81<0,"Prior",AA81=0,"Current FY",AND(AA81>0,AA81<11),"Current FY+"&AA81,AA81>10,"Onward") -> Onward | D81: 2060 | E81: =DataProjection!K417 -> 0 | F81: - | G81: =DataProjection!K482 -> 0 | H81: = | I81: =DataProjection!K547 -> 0 | AA81: 2060 | AB81: FALSE
C82: =_xlfn.IFS(AA82<0,"Prior",AA82=0,"Current FY",AND(AA82>0,AA82<11),"Current FY+"&AA82,AA82>10,"Onward") -> Onward | D82: 2061 | E82: =DataProjection!K418 -> 0 | F82: - | G82: =DataProjection!K483 -> 0 | H82: = | I82: =DataProjection!K548 -> 0 | AA82: 2061 | AB82: FALSE
C83: =_xlfn.IFS(AA83<0,"Prior",AA83=0,"Current FY",AND(AA83>0,AA83<11),"Current FY+"&AA83,AA83>10,"Onward") -> Onward | D83: 2062 | E83: =DataProjection!K419 -> 0 | F83: - | G83: =DataProjection!K484 -> 0 | H83: = | I83: =DataProjection!K549 -> 0 | AA83: 2062 | AB83: FALSE
C84: =_xlfn.IFS(AA84<0,"Prior",AA84=0,"Current FY",AND(AA84>0,AA84<11),"Current FY+"&AA84,AA84>10,"Onward") -> Onward | D84: 2063 | E84: =DataProjection!K420 -> 0 | F84: - | G84: =DataProjection!K485 -> 0 | H84: = | I84: =DataProjection!K550 -> 0 | AA84: 2063 | AB84: FALSE
C85: =_xlfn.IFS(AA85<0,"Prior",AA85=0,"Current FY",AND(AA85>0,AA85<11),"Current FY+"&AA85,AA85>10,"Onward") -> Onward | D85: 2064 | E85: =DataProjection!K421 -> 0 | F85: - | G85: =DataProjection!K486 -> 0 | H85: = | I85: =DataProjection!K551 -> 0 | AA85: 2064 | AB85: FALSE
C86: =_xlfn.IFS(AA86<0,"Prior",AA86=0,"Current FY",AND(AA86>0,AA86<11),"Current FY+"&AA86,AA86>10,"Onward") -> Onward | D86: 2065 | E86: =DataProjection!K422 -> 0 | F86: - | G86: =DataProjection!K487 -> 0 | H86: = | I86: =DataProjection!K552 -> 0 | AA86: 2065 | AB86: FALSE
C87: =_xlfn.IFS(AA87<0,"Prior",AA87=0,"Current FY",AND(AA87>0,AA87<11),"Current FY+"&AA87,AA87>10,"Onward") -> Onward | D87: 2066 | E87: =DataProjection!K423 -> 0 | F87: - | G87: =DataProjection!K488 -> 0 | H87: = | I87: =DataProjection!K553 -> 0 | AA87: 2066 | AB87: FALSE
C88: =_xlfn.IFS(AA88<0,"Prior",AA88=0,"Current FY",AND(AA88>0,AA88<11),"Current FY+"&AA88,AA88>10,"Onward") -> Onward | D88: 2067 | E88: =DataProjection!K424 -> 0 | F88: - | G88: =DataProjection!K489 -> 0 | H88: = | I88: =DataProjection!K554 -> 0 | AA88: 2067 | AB88: FALSE
C89: =_xlfn.IFS(AA89<0,"Prior",AA89=0,"Current FY",AND(AA89>0,AA89<11),"Current FY+"&AA89,AA89>10,"Onward") -> Onward | D89: 2068 | E89: =DataProjection!K425 -> 0 | F89: - | G89: =DataProjection!K490 -> 0 | H89: = | I89: =DataProjection!K555 -> 0 | AA89: 2068 | AB89: FALSE
C90: =_xlfn.IFS(AA90<0,"Prior",AA90=0,"Current FY",AND(AA90>0,AA90<11),"Current FY+"&AA90,AA90>10,"Onward") -> Onward | D90: 2069 | E90: =DataProjection!K426 -> 0 | F90: - | G90: =DataProjection!K491 -> 0 | H90: = | I90: =DataProjection!K556 -> 0 | AA90: 2069 | AB90: FALSE
C91: =_xlfn.IFS(AA91<0,"Prior",AA91=0,"Current FY",AND(AA91>0,AA91<11),"Current FY+"&AA91,AA91>10,"Onward") -> Onward | D91: 2070 | E91: =DataProjection!K427 -> 0 | F91: - | G91: =DataProjection!K492 -> 0 | H91: = | I91: =DataProjection!K557 -> 0 | AA91: 2070 | AB91: FALSE
C92: Remaining Life of Project | E92: =SUMIF($C$36:$C$91,"Onward",$E$36:$E$91) -> 0 | F92: - | G92: =SUMIF($C$36:$C$91,"Onward",$G$36:$G$91) -> 0 | H92: = | I92: =SUMIF($C$36:$C$91,"Onward",$I$36:$I$91) -> 0
B143: Summary of Assumptions
B144: Summary of all assumptions and comments.
C146: =IF('Data Input'!C495="","",'Data Input'!C495) -> 

Sheet DataCollectionNeeds
B2: Data Collection Needs
B5: This page lists the necessary data the user should collect for estimating GHG emission reductions, which will vary by the action type.
B7: CLEER GHG Projections Calculator Pathways
B8: Instructions: This calculator is capable of estimating emissions using different sets of inputs. Follow the diagram below to understand how sets of inputs are grouped together to complete the calculations. The diagram will also be helpful in determining information you may need to collect in the future. Theree diagrams are presented for the three types of Clean Energy Results. Select the appropriate pathway for your Clean Energy Result. The diagram is color-coded to differentiate the type of input. Highlighted data inputs are further explained in the table below the diagram. Blue shapes are questions asked in the calculator, which determine the set of inputs necessary. Grey shapes indicate a user-selected answer which are chosen from a drop down menu. Yellow shapes indicate a user-input that is manually entered.
B12: Please select the Pathways for the Clean Energy Result you would like to view.
B14: Renewable Electricity Generation
B79: Fuel Switching
B131: Energy Efficiency
B192: CLEER GHG Projections Calculator Data Collection Needs
B194: Source | C194: Parameter | D194: Definition | E194: Typical Value/Units
B195: User-Provided | C195: Fuel Type | D195: The type of traditional or alternate fuel consumed in the baseline and/or action in the reporting year | E195: See a list of potential fuel types in Appendix A of the User Guide
B197: User-Provided | C197: Electricity Generated or Consumed | D197: Quantity of electricity consumed or generated by the action in the reporting year | E197: Kilowatt-hours (kWh)
E198: Megawatt-hours (MWh)
B199: User-Provided | C199: Activity Fuel Consumed | D199: Amount of alternate fuel consumed in the reporting year | E199: Gigajoules (GJ), or one of the volumetric units, by fuel type.
B200: User-Provided | C200: Baseline Fuel Consumed | D200: Amount of traditional fuel consumed in the baseline of the reporting year | E200: Gigajoules (GJ), or one of the volumetric units, by fuel type.
B202: User-Provided | C202: Percent Fuel Savings | D202: Percent of fuel savings as a result of the action in the reporting year | E202: Percent (0-99%)
B204: Default: IEA (2014) | C204: Grid Line Loss Factor | D204: Average annual grid line loss due to transmission and distribution (%) | E204: Percent (0-99%)
B205: Default: IEA (2014) | C205: Grid Electricity Emission Factor | D205: Average GHG emission factor for grid electricity, coal, oil, and natural gas, by country | E205: tCO2e/kWh of electricity
B206: Default: WEO (2015) | C206: Grid Electricity Emission Factor Projections | D206: Average GHG emission factor for grid electricity, by region | E206: tCO2e/kWh of electricity
B207: Default: IPCC (2006) | C207: Fuel-Specific Emission Factor | D207: GHG emission factor for specific fuel types | E207: tCO2e/GJ of fuel
B209: Note: See the CLEER Protocol Appendices for the default data sources and values.
B212: CLEER GHG Projections Calculator Data Definitions
B214: Pick Lists or Data Elements | D214: Description
B215: Impacts Remain Constant Impact Changes | D215: This option is used to select whether the impacts of the action are expected to remain constant or if they change over time. If the impacts are constant, the same activity data are used for all the future years. For Renewable Electricity Generation and Energy Efficiency clean energy results, the impacts are assumed to degrade by a default of 0.5%.
B216: Enter for Each Individual Year Forecast from Year of Implementation | D216: This option is activated if the user selects 'Impact Changes'. Users can enter the impact of the action for all future years individually if they have the data, or they can forecast it from the year of implementation. To forecast, a combination of data inputs are required, including i) the annual rate of change of energy impacts, ii) the year impacts stop growing, iii) the year impacts stop altogether, and iv) technology degradation rate. They are described below.
B217: Annnual rate of change of energy impacts | D217: The annual rate of change of energy impacts is the rate at which the impact of the action is growing. The default value of the rate of change is 0% and the user can over-write it if they know the site-specific values. The energy impacts will grow at this rate until the year that energy impacts stop growing.
B218: Year that energy impacts stop growing | D218: The annual energy impacts are expected to grow at either 0% or user-entered percent until this year. After this year, the impacts will only be affected by the technology degradation rate.
B219: Year that energy impacts stop altogether | D219: The annual energy impacts are expected to degrade at either 0.5% or user-entered percent until this year. After this year, the impacts will be zero.
B220: Technology degradation rate | D220: The technology degradation rate is the rate at which the impact of the action degrades. The default value of the degradation rate is 0.5% in the CLEER LTI Tool. Users are encouraged to enter the technology-specific degradation rates, if available.
B221: Grid Emission Factors (EFs) | D221: The historical Average Grid, Coal, Oil, and Natural Gas emission factors are obtained from International Energy Agency (IEA)'s CO2 Emissions from Fuels Combustion database. The most recent emission factors are for the year 2012.
B222: Grid EF Projections | D222: The Average Grid Emission Factor is projected using regional emission factor estimations, obtained from IEA's World Energy Outlook. For each country, the most recent Average Grid EF from IEA is grown at the rate of change of the regional EF. For Coal, Oil and Natural Gas, the projected EFs are assumed to be held constant at the most recent EF, by country.

Sheet Pick Lists
B3: Pick Lists
B4: Status List
B5: Draft
B6: In Review
B7: Edits Required
B8: Completed
B10: Grid Electricity
B11: Grid (Average Mix)
B12: Grid (Coal/Peat)
B13: Grid (Oil)
B14: Grid (Natural Gas)
B16: Fuel Units of Measure | C16: <Do not change order>
B17: Gigajoules (GJ)
B18: Tonnes (t)
B19: Gallons (gal)
B20: Liters (L)
B21: Pounds (lbs.)
B22: Kilograms (kg)
B23: Million BTUs (MMBTU)
B24: Therms
B25: 100 Cubic Feet (Ccf) | C25: Here just for Match/Vlookup
B27: Alternate Fuels List
B28: Gigajoules (GJ)
B29: Tonnes (t)
B30: Pounds (lbs.)
B31: Kilograms (kg)
B32: Million BTUs (MMBTU)
B33: Therms
B35: Natural Gas Fuels List
B36: Gigajoules (GJ)
B37: Tonnes (t)
B38: Pounds (lbs.)
B39: Kilograms (kg)
B40: Million BTUs (MMBTU)
B41: Therms
B42: 100 Cubic Feet (Ccf)
B44: Renewables Electricity Generation List
B45: Solar Photovoltaic
B46: Wind Turbine
B47: Geothermal Power
B48: Hydroelectric Power
B50: Yes No
B51: Yes
B52: No
B54: Source of Electricity
B55: Grid Electricity
B56: On-Site Combustion
B59: Electricity
B60: Diesel
B62: Electricity Units
B63: kWh
B64: MWh
B66: Clean Energy Types
B67: Renewable Electricity Generation
B68: Fuel Switching
B69: Energy Efficiency
B71: Grid Connection Types
B72: Central Utility Generation | C72: ->average mix, no line loss
B73: Distributed/Microgrid Generation | C73: -> average mix, with line loss
B74: Off-Grid | C74: -> diesel or average grid with line loss
B76: Grid Types
B77: Combined Marginal Grid | C77: Average Grid Mix
B78: Coal
B79: Oil
B80: Natural Gas
B82: Off-Grid Alternatives
B83: Average Grid Mix
B84: Diesel Generator
B88: New Fuel List | C88: [Do not remove blank rows]
B90: Grid Electricity
B92: --Common Fuels--
B93: Natural Gas | C93: Natural Gas
B94: Charcoal | C94: Biomass - Charcoal
B95: Coal - Bituminous | C95: Coal - Bituminous
B96: Diesel | C96: Oil - Gas/Diesel
B97: Motor Gasoline (Petrol) | C97: Gasoline - Motor
B98: Liquefied Petroleum Gases (LPGs) | C98: Liquefied Petroleum Gases
B99: Kerosene | C99: Kerosene - Other
B100: Fuel Oil (Residual) | C100: Oil - Residual Fuel
B101: Wood and Wood Waste | C101: Biomass - Wood / Wood Waste
B103: --Crude Oil and Petroleum Products--
B104: Aviation Gasoline | C104: Gasoline - Aviation
B105: Bitumen | C105: Bitumen
B106: Crude Oil | C106: Oil - Crude
B107: Ethane | C107: Ethane
B108: Jet Gasoline | C108: Gasoline - Jet
B109: Jet Kerosene | C109: Kerosene - Jet
B110: Lubricants | C110: Lubricants
B111: Naphtha | C111: Naphtha
B112: Natural Gas Liquids | C112: Natural Gas Liquids
B113: Orimulsion | C113: Orimulsion
B114: Other Petroleum Products | C114: Oil - Other Petroleum
B115: Petroleum Coke | C115: Petroleum Coke
B116: Refinery Feedstocks | C116: Refinery Feedstocks
B117: Refinery Gas | C117: Oil - Refinery Gas
B118: Shale Oil | C118: Oil - Shale
B119: Waxes | C119: Oil - Paraffin Waxes
B120: White Spirit and SBP | C120: Oil - White Spirit and SBP
B122: --Coal and Coal Products--
B123: Anthracite | C123: Coal - Anthracite
B124: Blast Furnace Gas | C124: Blast Furnace Gas
B125: Brown Coal Briquettes | C125: Brown Coal Briquettes
B126: Coal Tar | C126: Coal Tar
B127: Coke Oven Coke and Lignite Coke | C127: Coke - Coke Oven and Lignite
B128: Coke Oven Gas | C128: Coke Oven Gas
B129: Coking Coal | C129: Coal - Coking Coal
B130: Gas Coke | C130: Coke - Gas
B131: Gas Works Gas | C131: Gas Works Gas
B132: Lignite | C132: Coal - Lignite
B133: Oil Shale and Tar Sands | C133: Oil Shale and Tar Sands
B134: Oxygen Steel Furnace Gas | C134: Oxygen Steel Furnace Gas
B135: Patent Fuel | C135: Patent Fuel
B136: Sub-Bituminous Coal | C136: Coal - Sub-Bituminous
B138: --Biofuels--
B139: Biodiesels | C139: Biofuel - Biodiesels
B140: Biogasoline | C140: Biofuel - Biogasoline
B141: Landfill Gas | C141: Biogas - Landfill Gas
B142: Municipal Wastes (biomass fraction) | C142: Municipal Wastes (biomass fraction)
B143: Other Biogas | C143: Biogas - Other Biogas
B144: Other Liquid Biofuels | C144: Biofuel - Other Liquid Biofuels
B145: Other Primary Solid Biomass | C145: Biomass - Other Primary Solid
B146: Sludge Gas | C146: Biogas - Sludge Gas
B147: Sulphite Lyes (Black Liquor) | C147: Biomass - Sulphite lyes (Black Liquor)
B149: --Other--
B150: Industrial Wastes | C150: Industrial Wastes
B151: Municipal Wastes (nonbiomass fraction) | C151: Municipal Wastes (nonbiomass fraction)
B152: Peat | C152: Peat
B153: Waste Oils | C153: Waste Oils
E155: =IF('Data Input'!H349=0,2031,'Data Input'!H349) -> 2038 | F155: <-Selected. If 'Beyond 2070' is selected, then just show Beyond 2070. 2071 does that trick.
D156: Growth End Years | E156: Impact End Years
B157: Fiscal Years | C157: Installation Years | D157: 2070 | E157: Beyond 2070
B158: 2050 | C158: =IF(AND(RIGHT('Data Input'!$F$18,4)>=RIGHT('Pick Lists'!B158,4),(RIGHT('Data Input'!$F$18,4)-RIGHT('Pick Lists'!B158,4))<25),'Pick Lists'!B158,"") ->  | D158: 2069 | E158: =IF(D157>=$E$155,D157,"") -> 2070 | F158: =IF('Pick Lists'!B158>'Data Input'!$F$18,'Pick Lists'!B158,"") -> 2050 | G158: =IF(F158>=$E$155,F158,"") -> 2050 | K158: 2015
B159: 2049 | C159: =IF(AND(RIGHT('Data Input'!$F$18,4)>=RIGHT('Pick Lists'!B159,4),(RIGHT('Data Input'!$F$18,4)-RIGHT('Pick Lists'!B159,4))<25),'Pick Lists'!B159,"") ->  | D159: 2068 | E159: =IF(D158>=$E$155,D158,"") -> 2069 | F159: =IF('Pick Lists'!B159>'Data Input'!$F$18,'Pick Lists'!B159,"") -> 2049 | G159: =IF(F159>=$E$155,F159,"") -> 2049 | K159: 2016
B160: 2048 | C160: =IF(AND(RIGHT('Data Input'!$F$18,4)>=RIGHT('Pick Lists'!B160,4),(RIGHT('Data Input'!$F$18,4)-RIGHT('Pick Lists'!B160,4))<25),'Pick Lists'!B160,"") ->  | D160: 2067 | E160: 2068 | F160: =IF('Pick Lists'!B160>'Data Input'!$F$18,'Pick Lists'!B160,"") -> 2048 | G160: =IF(F160>=$E$155,F160,"") -> 2048 | I160: =COUNTA(D177:D208) -> 32 | K160: 2017
B161: 2047 | C161: =IF(AND(RIGHT('Data Input'!$F$18,4)>=RIGHT('Pick Lists'!B161,4),(RIGHT('Data Input'!$F$18,4)-RIGHT('Pick Lists'!B161,4))<25),'Pick Lists'!B161,"") ->  | D161: 2066 | E161: 2067 | F161: =IF('Pick Lists'!B161>'Data Input'!$F$18,'Pick Lists'!B161,"") -> 2047 | G161: 2047 | I161: =COUNTBLANK(D177:D208) -> 0 | K161: 2018
B162: 2046 | C162: =IF(AND(RIGHT('Data Input'!$F$18,4)>=RIGHT('Pick Lists'!B162,4),(RIGHT('Data Input'!$F$18,4)-RIGHT('Pick Lists'!B162,4))<25),'Pick Lists'!B162,"") ->  | D162: 2065 | E162: 2066 | F162: =IF('Pick Lists'!B162>'Data Input'!$F$18,'Pick Lists'!B162,"") -> 2046 | G162: 2046 | K162: 2019
B163: 2045 | C163: =IF(AND(RIGHT('Data Input'!$F$18,4)>=RIGHT('Pick Lists'!B163,4),(RIGHT('Data Input'!$F$18,4)-RIGHT('Pick Lists'!B163,4))<25),'Pick Lists'!B163,"") ->  | D163: 2064 | E163: 2065 | F163: =IF('Pick Lists'!B163>'Data Input'!$F$18,'Pick Lists'!B163,"") -> 2045 | G163: 2045 | K163: 2020
B164: 2044 | C164: =IF(AND(RIGHT('Data Input'!$F$18,4)>=RIGHT('Pick Lists'!B164,4),(RIGHT('Data Input'!$F$18,4)-RIGHT('Pick Lists'!B164,4))<25),'Pick Lists'!B164,"") ->  | D164: 2063 | E164: 2064 | F164: =IF('Pick Lists'!B164>'Data Input'!$F$18,'Pick Lists'!B164,"") -> 2044 | G164: 2044 | K164: 2021
B165: 2043 | C165: =IF(AND(RIGHT('Data Input'!$F$18,4)>=RIGHT('Pick Lists'!B165,4),(RIGHT('Data Input'!$F$18,4)-RIGHT('Pick Lists'!B165,4))<25),'Pick Lists'!B165,"") ->  | D165: 2062 | E165: 2063 | F165: =IF('Pick Lists'!B165>'Data Input'!$F$18,'Pick Lists'!B165,"") -> 2043 | G165: 2043 | K165: 2022
B166: 2042 | C166: =IF(AND(RIGHT('Data Input'!$F$18,4)>=RIGHT('Pick Lists'!B166,4),(RIGHT('Data Input'!$F$18,4)-RIGHT('Pick Lists'!B166,4))<25),'Pick Lists'!B166,"") ->  | D166: 2061 | E166: 2062 | F166: =IF('Pick Lists'!B166>'Data Input'!$F$18,'Pick Lists'!B166,"") -> 2042 | G166: 2042 | K166: 2023
B167: 2041 | C167: =IF(AND(RIGHT('Data Input'!$F$18,4)>=RIGHT('Pick Lists'!B167,4),(RIGHT('Data Input'!$F$18,4)-RIGHT('Pick Lists'!B167,4))<25),'Pick Lists'!B167,"") ->  | D167: 2060 | E167: 2061 | F167: =IF('Pick Lists'!B167>'Data Input'!$F$18,'Pick Lists'!B167,"") -> 2041 | G167: 2041 | K167: 2024
B168: 2040 | C168: =IF(AND(RIGHT('Data Input'!$F$18,4)>=RIGHT('Pick Lists'!B168,4),(RIGHT('Data Input'!$F$18,4)-RIGHT('Pick Lists'!B168,4))<25),'Pick Lists'!B168,"") ->  | D168: 2059 | E168: 2060 | F168: =IF('Pick Lists'!B168>'Data Input'!$F$18,'Pick Lists'!B168,"") -> 2040 | G168: 2040 | K168: 2025
B169: 2039 | C169: =IF(AND(RIGHT('Data Input'!$F$18,4)>=RIGHT('Pick Lists'!B169,4),(RIGHT('Data Input'!$F$18,4)-RIGHT('Pick Lists'!B169,4))<25),'Pick Lists'!B169,"") ->  | D169: 2058 | E169: 2059 | F169: =IF('Pick Lists'!B169>'Data Input'!$F$18,'Pick Lists'!B169,"") -> 2039 | G169: 2039 | K169: 2026
B170: 2038 | C170: =IF(AND(RIGHT('Data Input'!$F$18,4)>=RIGHT('Pick Lists'!B170,4),(RIGHT('Data Input'!$F$18,4)-RIGHT('Pick Lists'!B170,4))<25),'Pick Lists'!B170,"") ->  | D170: 2057 | E170: 2058 | F170: =IF('Pick Lists'!B170>'Data Input'!$F$18,'Pick Lists'!B170,"") -> 2038 | G170: 2038 | K170: 2027
B171: 2037 | C171: =IF(AND(RIGHT('Data Input'!$F$18,4)>=RIGHT('Pick Lists'!B171,4),(RIGHT('Data Input'!$F$18,4)-RIGHT('Pick Lists'!B171,4))<25),'Pick Lists'!B171,"") ->  | D171: 2056 | E171: 2057 | F171: =IF('Pick Lists'!B171>'Data Input'!$F$18,'Pick Lists'!B171,"") -> 2037 | K171: 2028
B172: 2036 | C172: =IF(AND(RIGHT('Data Input'!$F$18,4)>=RIGHT('Pick Lists'!B172,4),(RIGHT('Data Input'!$F$18,4)-RIGHT('Pick Lists'!B172,4))<25),'Pick Lists'!B172,"") ->  | D172: 2055 | E172: 2056 | F172: =IF('Pick Lists'!B172>'Data Input'!$F$18,'Pick Lists'!B172,"") -> 2036 | K172: 2029
B173: 2035 | C173: =IF(AND(RIGHT('Data Input'!$F$18,4)>=RIGHT('Pick Lists'!B173,4),(RIGHT('Data Input'!$F$18,4)-RIGHT('Pick Lists'!B173,4))<25),'Pick Lists'!B173,"") ->  | D173: 2054 | E173: 2055 | F173: =IF('Pick Lists'!B173>'Data Input'!$F$18,'Pick Lists'!B173,"") -> 2035 | K173: 2030
B174: 2034 | C174: =IF(AND(RIGHT('Data Input'!$F$18,4)>=RIGHT('Pick Lists'!B174,4),(RIGHT('Data Input'!$F$18,4)-RIGHT('Pick Lists'!B174,4))<25),'Pick Lists'!B174,"") ->  | D174: 2053 | E174: 2054 | F174: =IF('Pick Lists'!B174>'Data Input'!$F$18,'Pick Lists'!B174,"") -> 2034 | K174: 2031
B175: 2033 | C175: =IF(AND(RIGHT('Data Input'!$F$18,4)>=RIGHT('Pick Lists'!B175,4),(RIGHT('Data Input'!$F$18,4)-RIGHT('Pick Lists'!B175,4))<25),'Pick Lists'!B175,"") ->  | D175: 2052 | E175: 2053 | F175: =IF('Pick Lists'!B175>'Data Input'!$F$18,'Pick Lists'!B175,"") -> 2033 | K175: 2032
B176: 2032 | C176: =IF(AND(RIGHT('Data Input'!$F$18,4)>=RIGHT('Pick Lists'!B176,4),(RIGHT('Data Input'!$F$18,4)-RIGHT('Pick Lists'!B176,4))<25),'Pick Lists'!B176,"") ->  | D176: 2051 | E176: 2052 | F176: =IF('Pick Lists'!B176>'Data Input'!$F$18,'Pick Lists'!B176,"") -> 2032 | K176: 2033
B177: 2031 | C177: =IF(AND(RIGHT('Data Input'!$F$18,4)>=RIGHT('Pick Lists'!B177,4),(RIGHT('Data Input'!$F$18,4)-RIGHT('Pick Lists'!B177,4))<25),'Pick Lists'!B177,"") ->  | D177: 2050 | E177: 2051 | F177: =IF('Pick Lists'!B177>'Data Input'!$F$18,'Pick Lists'!B177,"") -> 2031 | K177: 2034
B178: 2030 | C178: =IF(AND(RIGHT('Data Input'!$F$18,4)>=RIGHT('Pick Lists'!B178,4),(RIGHT('Data Input'!$F$18,4)-RIGHT('Pick Lists'!B178,4))<25),'Pick Lists'!B178,"") ->  | D178: 2049 | E178: 2050 | F178: =IF('Pick Lists'!B178>'Data Input'!$F$18,'Pick Lists'!B178,"") -> 2030 | K178: 2035
B179: 2029 | C179: =IF(AND(RIGHT('Data Input'!$F$18,4)>=RIGHT('Pick Lists'!B179,4),(RIGHT('Data Input'!$F$18,4)-RIGHT('Pick Lists'!B179,4))<25),'Pick Lists'!B179,"") ->  | D179: 2048 | E179: 2049 | F179: =IF('Pick Lists'!B179>'Data Input'!$F$18,'Pick Lists'!B179,"") -> 2029 | K179: 2036
B180: 2028 | C180: =IF(AND(RIGHT('Data Input'!$F$18,4)>=RIGHT('Pick Lists'!B180,4),(RIGHT('Data Input'!$F$18,4)-RIGHT('Pick Lists'!B180,4))<25),'Pick Lists'!B180,"") ->  | D180: 2047 | E180: 2048 | F180: =IF('Pick Lists'!B180>'Data Input'!$F$18,'Pick Lists'!B180,"") -> 2028 | K180: 2037
B181: 2027 | C181: =IF(AND(RIGHT('Data Input'!$F$18,4)>=RIGHT('Pick Lists'!B181,4),(RIGHT('Data Input'!$F$18,4)-RIGHT('Pick Lists'!B181,4))<25),'Pick Lists'!B181,"") ->  | D181: 2046 | E181: 2047 | F181: =IF('Pick Lists'!B181>'Data Input'!$F$18,'Pick Lists'!B181,"") -> 2027 | K181: 2038
B182: 2026 | C182: =IF(AND(RIGHT('Data Input'!$F$18,4)>=RIGHT('Pick Lists'!B182,4),(RIGHT('Data Input'!$F$18,4)-RIGHT('Pick Lists'!B182,4))<25),'Pick Lists'!B182,"") ->  | D182: 2045 | E182: 2046 | F182: =IF('Pick Lists'!B182>'Data Input'!$F$18,'Pick Lists'!B182,"") -> 2026 | K182: 2039
B183: 2025 | C183: =IF(AND(RIGHT('Data Input'!$F$18,4)>=RIGHT('Pick Lists'!B183,4),(RIGHT('Data Input'!$F$18,4)-RIGHT('Pick Lists'!B183,4))<25),'Pick Lists'!B183,"") ->  | D183: 2044 | E183: 2045 | F183: =IF('Pick Lists'!B183>'Data Input'!$F$18,'Pick Lists'!B183,"") -> 2025 | K183: 2040
B184: 2024 | C184: =IF(AND(RIGHT('Data Input'!$F$18,4)>=RIGHT('Pick Lists'!B184,4),(RIGHT('Data Input'!$F$18,4)-RIGHT('Pick Lists'!B184,4))<25),'Pick Lists'!B184,"") ->  | D184: 2043 | E184: 2044 | F184: =IF('Pick Lists'!B184>'Data Input'!$F$18,'Pick Lists'!B184,"") -> 2024 | K184: 2041
B185: 2023 | C185: =IF(AND(RIGHT('Data Input'!$F$18,4)>=RIGHT('Pick Lists'!B185,4),(RIGHT('Data Input'!$F$18,4)-RIGHT('Pick Lists'!B185,4))<25),'Pick Lists'!B185,"") ->  | D185: 2042 | E185: 2043 | F185: =IF('Pick Lists'!B185>'Data Input'!$F$18,'Pick Lists'!B185,"") -> 2023 | K185: 2042
B186: 2022 | C186: =IF(AND(RIGHT('Data Input'!$F$18,4)>=RIGHT('Pick Lists'!B186,4),(RIGHT('Data Input'!$F$18,4)-RIGHT('Pick Lists'!B186,4))<25),'Pick Lists'!B186,"") ->  | D186: 2041 | E186: 2042 | F186: =IF('Pick Lists'!B186>'Data Input'!$F$18,'Pick Lists'!B186,"") -> 2022 | K186: 2043
B187: 2021 | C187: =IF(AND(RIGHT('Data Input'!$F$18,4)>=RIGHT('Pick Lists'!B187,4),(RIGHT('Data Input'!$F$18,4)-RIGHT('Pick Lists'!B187,4))<25),'Pick Lists'!B187,"") ->  | D187: 2040 | E187: 2041 | F187: =IF('Pick Lists'!B187>'Data Input'!$F$18,'Pick Lists'!B187,"") -> 2021 | K187: 2044
B188: 2020 | C188: =IF(AND(RIGHT('Data Input'!$F$18,4)>=RIGHT('Pick Lists'!B188,4),(RIGHT('Data Input'!$F$18,4)-RIGHT('Pick Lists'!B188,4))<25),'Pick Lists'!B188,"") ->  | D188: 2039 | E188: 2040 | F188: =IF('Pick Lists'!B188>'Data Input'!$F$18,'Pick Lists'!B188,"") -> 2020 | K188: 2045
B189: 2019 | C189: =IF(AND(RIGHT('Data Input'!$F$18,4)>=RIGHT('Pick Lists'!B189,4),(RIGHT('Data Input'!$F$18,4)-RIGHT('Pick Lists'!B189,4))<25),'Pick Lists'!B189,"") ->  | D189: 2038 | E189: 2039 | F189: =IF('Pick Lists'!B189>'Data Input'!$F$18,'Pick Lists'!B189,"") -> 2019 | K189: 2046
B190: 2018 | C190: =IF(AND(RIGHT('Data Input'!$F$18,4)>=RIGHT('Pick Lists'!B190,4),(RIGHT('Data Input'!$F$18,4)-RIGHT('Pick Lists'!B190,4))<25),'Pick Lists'!B190,"") ->  | D190: 2037 | E190: 2038 | F190: =IF('Pick Lists'!B190>'Data Input'!$F$18,'Pick Lists'!B190,"") -> 2018 | K190: 2047
B191: 2017 | C191: =IF(AND(RIGHT('Data Input'!$F$18,4)>=RIGHT('Pick Lists'!B191,4),(RIGHT('Data Input'!$F$18,4)-RIGHT('Pick Lists'!B191,4))<25),'Pick Lists'!B191,"") ->  | D191: 2036 | F191: =IF('Pick Lists'!B191>'Data Input'!$F$18,'Pick Lists'!B191,"") -> 2017 | K191: 2048
B192: 2016 | C192: =IF(AND(RIGHT('Data Input'!$F$18,4)>=RIGHT('Pick Lists'!B192,4),(RIGHT('Data Input'!$F$18,4)-RIGHT('Pick Lists'!B192,4))<25),'Pick Lists'!B192,"") ->  | D192: 2035 | F192: =IF('Pick Lists'!B192>'Data Input'!$F$18,'Pick Lists'!B192,"") -> 2016 | K192: 2049
B193: 2015 | C193: =IF(AND(RIGHT('Data Input'!$F$18,4)>=RIGHT('Pick Lists'!B193,4),(RIGHT('Data Input'!$F$18,4)-RIGHT('Pick Lists'!B193,4))<25),'Pick Lists'!B193,"") ->  | D193: 2034 | F193: =IF('Pick Lists'!B193>'Data Input'!$F$18,'Pick Lists'!B193,"") -> 2015 | K193: 2050
C194: =IF(AND(RIGHT('Data Input'!$F$18,4)>=RIGHT('Pick Lists'!B194,4),(RIGHT('Data Input'!$F$18,4)-RIGHT('Pick Lists'!B194,4))<25),'Pick Lists'!B194,"") ->  | D194: 2033 | F194: =IF('Pick Lists'!B194>'Data Input'!$F$18,'Pick Lists'!B194,"") -> 
C195: =IF(AND(RIGHT('Data Input'!$F$18,4)>=RIGHT('Pick Lists'!B195,4),(RIGHT('Data Input'!$F$18,4)-RIGHT('Pick Lists'!B195,4))<25),'Pick Lists'!B195,"") ->  | D195: 2032 | F195: =IF('Pick Lists'!B195>'Data Input'!$F$18,'Pick Lists'!B195,"") -> 
C196: =IF(AND(RIGHT('Data Input'!$F$18,4)>=RIGHT('Pick Lists'!B196,4),(RIGHT('Data Input'!$F$18,4)-RIGHT('Pick Lists'!B196,4))<25),'Pick Lists'!B196,"") ->  | D196: 2031 | F196: =IF('Pick Lists'!B196>'Data Input'!$F$18,'Pick Lists'!B196,"") -> 
C197: =IF(AND(RIGHT('Data Input'!$F$18,4)>=RIGHT('Pick Lists'!B197,4),(RIGHT('Data Input'!$F$18,4)-RIGHT('Pick Lists'!B197,4))<25),'Pick Lists'!B197,"") ->  | D197: 2030 | E197: =IF(D204>=$E$155,D204,"") ->  | F197: =IF('Pick Lists'!B197>'Data Input'!$F$18,'Pick Lists'!B197,"") -> 
C198: =IF(AND(RIGHT('Data Input'!$F$18,4)>=RIGHT('Pick Lists'!B198,4),(RIGHT('Data Input'!$F$18,4)-RIGHT('Pick Lists'!B198,4))<25),'Pick Lists'!B198,"") ->  | D198: 2029 | F198: =IF('Pick Lists'!B198>'Data Input'!$F$18,'Pick Lists'!B198,"") -> 
D199: 2028
B200: Energy Efficiency PIcklist | D200: 2027
B201: Energy consumed in absence of activity | D201: 2026
B202: Percent energy savings of activity | D202: 2025
D203: 2024
D204: 2023
D205: 2022
D206: 2021
D207: 2020
B208: Navigation Conditions | D208: =_xlfn.UNIQUE(F158:F198) -> 2050
B209: Activity Details Sections Check | D209: =IF(OR('Data Input'!F14="",'Data Input'!F15="",'Data Input'!F16="",'Data Input'!F18="",CountryInput=""),FALSE,TRUE) -> FALSE
B210: Renewable Replacing Traditional Fuel | D210: =IF(OR(ElecReplFuel="",'Data Input'!H40="",OR('Data Input'!H46="",OR('Data Input'!H40='Pick Lists'!B92,'Data Input'!H40='Pick Lists'!B103,'Data Input'!H40='Pick Lists'!B122,'Data Input'!H40='Pick Lists'!B138,'Data Input'!H40='Pick Lists'!B149)),OR('Data Input'!J46="<Fuel Units>",'Data Input'!J46="")),FALSE,TRUE) -> FALSE | E210: =IF(OR('Data Input'!H40='Pick Lists'!B92,'Data Input'!H40='Pick Lists'!B103,'Data Input'!H40='Pick Lists'!B122,'Data Input'!H40='Pick Lists'!B138,'Data Input'!H40='Pick Lists'!B149),FALSE,TRUE) -> TRUE
B211: Renewable Utility/Distributed/Micro Grid | D211: =IF(OR(ElecReplFuel="",'Data Input'!H115="",'Data Input'!J115="<Electricity Units>",GridConnection=""),FALSE,TRUE) -> FALSE
B212: Renewable Off-grid | D212: =IF(OR(ElecReplFuel="",'Data Input'!H115="",'Data Input'!J115="<Electricity Units>",GridConnection="",'Data Input'!H184=""),FALSE,TRUE) -> FALSE
B213: Renewable Section Check | D213: =IF(ElecReplFuel="yes",D210,IF(GridConnection='Pick Lists'!B74,'Pick Lists'!D212,'Pick Lists'!D211)) -> FALSE
B214: Fuel Switching Section Check | D214: =IF(OR('Data Input'!H188="",'Data Input'!H188='Pick Lists'!B92,'Data Input'!H188='Pick Lists'!B103,'Data Input'!H188='Pick Lists'!B122,'Data Input'!H188='Pick Lists'!B138,'Data Input'!H188='Pick Lists'!B149,'Data Input'!H192="",'Data Input'!J192="<Fuel Units>",'Data Input'!H257="",'Data Input'!H257='Pick Lists'!B92,'Data Input'!H257='Pick Lists'!B103,'Data Input'!H257='Pick Lists'!B122,'Data Input'!H257='Pick Lists'!B138,'Data Input'!H257='Pick Lists'!B149),FALSE,TRUE) -> FALSE
B215: Energy Efficiency Energy Savings | D215: =IF(OR('Data Input'!H259="",'Data Input'!H259='Pick Lists'!B92,'Data Input'!H259='Pick Lists'!B103,'Data Input'!H259='Pick Lists'!B122,'Data Input'!H259='Pick Lists'!B138,'Data Input'!H259='Pick Lists'!B149,'Data Input'!H265="",'Data Input'!J265="<Fuel Units>",'Data Input'!H267="",'Data Input'!H269=""),FALSE,TRUE) -> FALSE
B216: Energy Efficiency Percent Savings | D216: =IF(OR('Data Input'!H259="",'Data Input'!H259='Pick Lists'!B92,'Data Input'!H259='Pick Lists'!B103,'Data Input'!H259='Pick Lists'!B122,'Data Input'!H259='Pick Lists'!B138,'Data Input'!H259='Pick Lists'!B149,'Data Input'!H265="",'Data Input'!J265="<Fuel Units>",'Data Input'!H267="",'Data Input'!H271=""),FALSE,TRUE) -> FALSE
B217: Energy Efficiency Section Check | D217: =OR(D216,D215) -> FALSE
B218: Final Condition | D218: =AND(IF(Section2Trigger=EnergyEfficiency,'Pick Lists'!D217,IF(Section2Trigger=FuelSwitching,'Pick Lists'!D214,IF(Section2Trigger=RenewableElectricity,'Pick Lists'!D213))),'Pick Lists'!D209) -> FALSE | H218: =IF(J95='Pick Lists'!B269,"User Provided") -> FALSE
B220: New Navigation Conditions for CLEER LTI
B221: Section 1 | D221: =IF(OR('Data Input'!F14="",'Data Input'!F15="",'Data Input'!F16="",'Data Input'!F18="",CountryInput=""),FALSE,TRUE) -> FALSE
B222: Renewables | D222: =OR(D223,D227) -> FALSE
B223: Replacing Fuels | D223: =OR(D224:D226) -> FALSE
B224: Impact Constant | D224: =IF('Data Input'!H46="",FALSE,TRUE) -> FALSE
B225: Impact Changes -- Enter | D225: =IF(SUMIF('Data Input'!D49:F69,"<=2030",'Data Input'!H49:H69)=0,FALSE,TRUE) -> FALSE
B226: Impact Changes -- Forecast | D226: =IF('Data Input'!H46="",FALSE,TRUE) -> FALSE
B227: Replacing Electricity | D227: =AND(OR(D228:D230),D231) -> FALSE
... 55 more rows

Sheet Fuel EFs
B1: 1 | C1: 2 | D1: 3 | E1: 4 | F1: 5 | G1: 6 | H1: 7 | I1: 8 | J1: 9 | K1: 10 | L1: 11 | M1: 12 | N1: 13 | O1: 14 | P1: 15 | Q1: 16 | R1: 17 | S1: 18 | T1: 19 | U1: 20 | V1: 21 | W1: 22 | X1: 22
B2: Default Emission Factors for Stationary Combustion in the Energy Industries
D3: g of GHG per GJ on a Net Calorific Basis | P3: Density (kg/L) | Q3: Heating Values & Conversions (GJ/unit)
D4: CO2 | G4: CH4 | K4: N2O | N4: CO2E
B5: USAID CLEER Tool Name | C5: IPCC Name | D5: Default Emission Factor | E5: Lower | F5: Upper | G5: Default Emission Factor | H5: Lower | I5: Upper | J5: Default Emission Factor | K5: Lower | L5: Upper | M5: Default Emission Factor | N5: Lower | O5: Upper | Q5: Tonnes (t) | R5: Gallons (gal) | S5: Liter (L) | T5: Pounds (lbs.) | U5: Kilograms (kg) | V5: Million BTUs (MMBTU) | W5: Therms | X5: 100 Cubic Feet
C6: (intentional blank row) | Q6: (GJ/t) | R6: (GJ/gal) | S6: (GJ/L) | T6: (GJ/lbs) | U6: (GJ/kg) | V6: (GJ/MMBTU) | W6: (GJ/Therm) | X6: (GJ/Ccf)
A7: 48 | B7: Biofuel - Biodiesels | C7: Biodiesels | D7: 70800 | E7: 59800 | F7: 84300 | G7: 3 | H7: 1 | I7: 10 | J7: 0.6 | K7: 0.2 | L7: 2 | M7: =D7*Conversions!$L$4+'Fuel EFs'!G7*Conversions!$L$5+'Fuel EFs'!J7*Conversions!$L$6 -> 71053.8 | N7: =E7*Conversions!$L$4+'Fuel EFs'!H7*Conversions!$L$5+'Fuel EFs'!K7*Conversions!$L$6 -> 59884.6 | O7: =F7*Conversions!$L$4+'Fuel EFs'!I7*Conversions!$L$5+'Fuel EFs'!L7*Conversions!$L$6 -> 85146 | Q7: 27 | T7: =U7*Conversions!$E$84 -> 0.01224699399 | U7: =Q7*Conversions!$F$80 -> 0.027 | V7: =Conversions!$K$58 -> 1.055056 | W7: =Conversions!$K$59 -> 0.105506
A8: 47 | B8: Biofuel - Biogasoline | C8: Biogasoline | D8: 70800 | E8: 59800 | F8: 84300 | G8: 3 | H8: 1 | I8: 10 | J8: 0.6 | K8: 0.2 | L8: 2 | M8: =D8*Conversions!$L$4+'Fuel EFs'!G8*Conversions!$L$5+'Fuel EFs'!J8*Conversions!$L$6 -> 71053.8 | N8: =E8*Conversions!$L$4+'Fuel EFs'!H8*Conversions!$L$5+'Fuel EFs'!K8*Conversions!$L$6 -> 59884.6 | O8: =F8*Conversions!$L$4+'Fuel EFs'!I8*Conversions!$L$5+'Fuel EFs'!L8*Conversions!$L$6 -> 85146 | Q8: 27 | T8: =U8*Conversions!$E$84 -> 0.01224699399 | U8: =Q8*Conversions!$F$80 -> 0.027 | V8: =Conversions!$K$58 -> 1.055056 | W8: =Conversions!$K$59 -> 0.105506
A9: 49 | B9: Biofuel - Other Liquid Biofuels | C9: Other Liquid Biofuels | D9: 79600 | E9: 67100 | F9: 95300 | G9: 3 | H9: 1 | I9: 10 | J9: 0.6 | K9: 0.2 | L9: 2 | M9: =D9*Conversions!$L$4+'Fuel EFs'!G9*Conversions!$L$5+'Fuel EFs'!J9*Conversions!$L$6 -> 79853.8 | N9: =E9*Conversions!$L$4+'Fuel EFs'!H9*Conversions!$L$5+'Fuel EFs'!K9*Conversions!$L$6 -> 67184.6 | O9: =F9*Conversions!$L$4+'Fuel EFs'!I9*Conversions!$L$5+'Fuel EFs'!L9*Conversions!$L$6 -> 96146 | Q9: 27.4 | T9: =U9*Conversions!$E$84 -> 0.01242843094 | U9: =Q9*Conversions!$F$80 -> 0.0274 | V9: =Conversions!$K$58 -> 1.055056 | W9: =Conversions!$K$59 -> 0.105506
A10: 50 | B10: Biogas - Landfill Gas | C10: Landfill Gas | D10: 54600 | E10: 46200 | F10: 66000 | G10: 1 | H10: 0.3 | I10: 3 | J10: 0.1 | K10: 0.03 | L10: 0.3 | M10: =D10*Conversions!$L$4+'Fuel EFs'!G10*Conversions!$L$5+'Fuel EFs'!J10*Conversions!$L$6 -> 54654.8 | N10: =E10*Conversions!$L$4+'Fuel EFs'!H10*Conversions!$L$5+'Fuel EFs'!K10*Conversions!$L$6 -> 46216.44 | O10: =F10*Conversions!$L$4+'Fuel EFs'!I10*Conversions!$L$5+'Fuel EFs'!L10*Conversions!$L$6 -> 66164.4 | Q10: 50.4 | T10: =U10*Conversions!$E$84 -> 0.02286105545 | U10: =Q10*Conversions!$F$80 -> 0.0504 | V10: =Conversions!$K$58 -> 1.055056 | W10: =Conversions!$K$59 -> 0.105506
A11: 52 | B11: Biogas - Other Biogas | C11: Other Biogas | D11: 54600 | E11: 46200 | F11: 66000 | G11: 1 | H11: 0.3 | I11: 3 | J11: 0.1 | K11: 0.03 | L11: 0.3 | M11: =D11*Conversions!$L$4+'Fuel EFs'!G11*Conversions!$L$5+'Fuel EFs'!J11*Conversions!$L$6 -> 54654.8 | N11: =E11*Conversions!$L$4+'Fuel EFs'!H11*Conversions!$L$5+'Fuel EFs'!K11*Conversions!$L$6 -> 46216.44 | O11: =F11*Conversions!$L$4+'Fuel EFs'!I11*Conversions!$L$5+'Fuel EFs'!L11*Conversions!$L$6 -> 66164.4 | Q11: 50.4 | T11: =U11*Conversions!$E$84 -> 0.02286105545 | U11: =Q11*Conversions!$F$80 -> 0.0504 | V11: =Conversions!$K$58 -> 1.055056 | W11: =Conversions!$K$59 -> 0.105506
A12: 51 | B12: Biogas - Sludge Gas | C12: Sludge Gas | D12: 54600 | E12: 46200 | F12: 66000 | G12: 1 | H12: 0.3 | I12: 3 | J12: 0.1 | K12: 0.03 | L12: 0.3 | M12: =D12*Conversions!$L$4+'Fuel EFs'!G12*Conversions!$L$5+'Fuel EFs'!J12*Conversions!$L$6 -> 54654.8 | N12: =E12*Conversions!$L$4+'Fuel EFs'!H12*Conversions!$L$5+'Fuel EFs'!K12*Conversions!$L$6 -> 46216.44 | O12: =F12*Conversions!$L$4+'Fuel EFs'!I12*Conversions!$L$5+'Fuel EFs'!L12*Conversions!$L$6 -> 66164.4 | Q12: 50.4 | T12: =U12*Conversions!$E$84 -> 0.02286105545 | U12: =Q12*Conversions!$F$80 -> 0.0504 | V12: =Conversions!$K$58 -> 1.055056 | W12: =Conversions!$K$59 -> 0.105506
A13: 46 | B13: Biomass - Charcoal | C13: Charcoal | D13: 112000 | E13: 95000 | F13: 132000 | G13: 200 | H13: 70 | I13: 600 | J13: 4 | K13: 1.5 | L13: 15 | M13: =D13*Conversions!$L$4+'Fuel EFs'!G13*Conversions!$L$5+'Fuel EFs'!J13*Conversions!$L$6 -> 118192 | N13: =E13*Conversions!$L$4+'Fuel EFs'!H13*Conversions!$L$5+'Fuel EFs'!K13*Conversions!$L$6 -> 97197 | O13: =F13*Conversions!$L$4+'Fuel EFs'!I13*Conversions!$L$5+'Fuel EFs'!L13*Conversions!$L$6 -> 151470 | Q13: 29.5 | T13: =U13*Conversions!$E$84 -> 0.01338097492 | U13: =Q13*Conversions!$F$80 -> 0.0295 | V13: =Conversions!$K$58 -> 1.055056 | W13: =Conversions!$K$59 -> 0.105506
A14: 45 | B14: Biomass - Other Primary Solid | C14: Other Primary Solid Biomass | D14: 100000 | E14: 84700 | F14: 117000 | G14: 30 | H14: 10 | I14: 100 | J14: 4 | K14: 1.5 | L14: 15 | M14: =D14*Conversions!$L$4+'Fuel EFs'!G14*Conversions!$L$5+'Fuel EFs'!J14*Conversions!$L$6 -> 101942 | N14: =E14*Conversions!$L$4+'Fuel EFs'!H14*Conversions!$L$5+'Fuel EFs'!K14*Conversions!$L$6 -> 85397 | O14: =F14*Conversions!$L$4+'Fuel EFs'!I14*Conversions!$L$5+'Fuel EFs'!L14*Conversions!$L$6 -> 123970 | Q14: 11.6 | T14: =U14*Conversions!$E$84 -> 0.005261671492 | U14: =Q14*Conversions!$F$80 -> 0.0116 | V14: =Conversions!$K$58 -> 1.055056 | W14: =Conversions!$K$59 -> 0.105506
A15: 44 | B15: Biomass - Sulphite lyes (Black Liquor)a | C15: Sulphite lyes (Black Liquor)a | D15: 95300 | E15: 80700 | F15: 110000 | G15: 3 | H15: 1 | I15: 18 | J15: 2 | K15: 1 | L15: 21 | M15: =D15*Conversions!$L$4+'Fuel EFs'!G15*Conversions!$L$5+'Fuel EFs'!J15*Conversions!$L$6 -> 95971 | N15: =E15*Conversions!$L$4+'Fuel EFs'!H15*Conversions!$L$5+'Fuel EFs'!K15*Conversions!$L$6 -> 81023 | O15: =F15*Conversions!$L$4+'Fuel EFs'!I15*Conversions!$L$5+'Fuel EFs'!L15*Conversions!$L$6 -> 116708 | Q15: 11.8 | T15: =U15*Conversions!$E$84 -> 0.005352389966 | U15: =Q15*Conversions!$F$80 -> 0.0118 | V15: =Conversions!$K$58 -> 1.055056 | W15: =Conversions!$K$59 -> 0.105506
A16: 43 | B16: Biomass - Wood / Wood Waste | C16: Wood / Wood Waste | D16: 112000 | E16: 95000 | F16: 132000 | G16: 30 | H16: 10 | I16: 100 | J16: 4 | K16: 1.5 | L16: 15 | M16: =D16*Conversions!$L$4+'Fuel EFs'!G16*Conversions!$L$5+'Fuel EFs'!J16*Conversions!$L$6 -> 113942 | N16: =E16*Conversions!$L$4+'Fuel EFs'!H16*Conversions!$L$5+'Fuel EFs'!K16*Conversions!$L$6 -> 95697 | O16: =F16*Conversions!$L$4+'Fuel EFs'!I16*Conversions!$L$5+'Fuel EFs'!L16*Conversions!$L$6 -> 138970 | Q16: 15.6 | T16: =U16*Conversions!$E$84 -> 0.007076040972 | U16: =Q16*Conversions!$F$80 -> 0.0156 | V16: =Conversions!$K$58 -> 1.055056 | W16: =Conversions!$K$59 -> 0.105506
A17: 15 | B17: Bitumen | C17: Bitumen | D17: 80700 | E17: 73000 | F17: 89900 | G17: 3 | H17: 1 | I17: 10 | J17: 0.6 | K17: 0.2 | L17: 2 | M17: =D17*Conversions!$L$4+'Fuel EFs'!G17*Conversions!$L$5+'Fuel EFs'!J17*Conversions!$L$6 -> 80953.8 | N17: =E17*Conversions!$L$4+'Fuel EFs'!H17*Conversions!$L$5+'Fuel EFs'!K17*Conversions!$L$6 -> 73084.6 | O17: =F17*Conversions!$L$4+'Fuel EFs'!I17*Conversions!$L$5+'Fuel EFs'!L17*Conversions!$L$6 -> 90746 | Q17: 40.2 | T17: =U17*Conversions!$E$84 -> 0.01823441327 | U17: =Q17*Conversions!$F$80 -> 0.0402 | V17: =Conversions!$K$58 -> 1.055056 | W17: =Conversions!$K$59 -> 0.105506
A18: 36 | B18: Blast Furnace Gas | C18: Blast Furnace Gas | D18: 260000 | E18: 219000 | F18: 308000 | G18: 1 | H18: 0.3 | I18: 3 | J18: 0.1 | K18: 0.03 | L18: 0.3 | M18: =D18*Conversions!$L$4+'Fuel EFs'!G18*Conversions!$L$5+'Fuel EFs'!J18*Conversions!$L$6 -> 260054.8 | N18: =E18*Conversions!$L$4+'Fuel EFs'!H18*Conversions!$L$5+'Fuel EFs'!K18*Conversions!$L$6 -> 219016.44 | O18: =F18*Conversions!$L$4+'Fuel EFs'!I18*Conversions!$L$5+'Fuel EFs'!L18*Conversions!$L$6 -> 308164.4 | Q18: 2.47 | T18: =U18*Conversions!$E$84 -> 0.001120373154 | U18: =Q18*Conversions!$F$80 -> 0.00247 | V18: =Conversions!$K$58 -> 1.055056 | W18: =Conversions!$K$59 -> 0.105506
A19: 29 | B19: Brown Coal Briquettes | C19: Brown Coal Briquettes | D19: 97500 | E19: 87300 | F19: 109000 | G19: 1 | H19: 0.3 | I19: 3 | J19: 1.5 | K19: 0.5 | L19: 5 | M19: =D19*Conversions!$L$4+'Fuel EFs'!G19*Conversions!$L$5+'Fuel EFs'!J19*Conversions!$L$6 -> 97972 | N19: =E19*Conversions!$L$4+'Fuel EFs'!H19*Conversions!$L$5+'Fuel EFs'!K19*Conversions!$L$6 -> 87456.5 | O19: =F19*Conversions!$L$4+'Fuel EFs'!I19*Conversions!$L$5+'Fuel EFs'!L19*Conversions!$L$6 -> 110565 | Q19: 20.7 | T19: =U19*Conversions!$E$84 -> 0.009389362059 | U19: =Q19*Conversions!$F$80 -> 0.0207 | V19: =Conversions!$K$58 -> 1.055056 | W19: =Conversions!$K$59 -> 0.105506
A20: 23 | B20: Coal - Anthracite | C20: Anthracite | D20: 98300 | E20: 94600 | F20: 101000 | G20: 1 | H20: 0.3 | I20: 3 | J20: 1.5 | K20: 0.5 | L20: 5 | M20: =D20*Conversions!$L$4+'Fuel EFs'!G20*Conversions!$L$5+'Fuel EFs'!J20*Conversions!$L$6 -> 98772 | N20: =E20*Conversions!$L$4+'Fuel EFs'!H20*Conversions!$L$5+'Fuel EFs'!K20*Conversions!$L$6 -> 94756.5 | O20: =F20*Conversions!$L$4+'Fuel EFs'!I20*Conversions!$L$5+'Fuel EFs'!L20*Conversions!$L$6 -> 102565 | Q20: 26.7 | T20: =U20*Conversions!$E$84 -> 0.01211091628 | U20: =Q20*Conversions!$F$80 -> 0.0267 | V20: =Conversions!$K$58 -> 1.055056 | W20: =Conversions!$K$59 -> 0.105506
A21: 25 | B21: Coal - Bituminous | C21: Other Bituminous Coal | D21: 94600 | E21: 89500 | F21: 99700 | G21: 1 | H21: 0.3 | I21: 3 | J21: 1.5 | K21: 0.5 | L21: 5 | M21: =D21*Conversions!$L$4+'Fuel EFs'!G21*Conversions!$L$5+'Fuel EFs'!J21*Conversions!$L$6 -> 95072 | N21: =E21*Conversions!$L$4+'Fuel EFs'!H21*Conversions!$L$5+'Fuel EFs'!K21*Conversions!$L$6 -> 89656.5 | O21: =F21*Conversions!$L$4+'Fuel EFs'!I21*Conversions!$L$5+'Fuel EFs'!L21*Conversions!$L$6 -> 101265 | Q21: 25.8 | T21: =U21*Conversions!$E$84 -> 0.01170268315 | U21: =Q21*Conversions!$F$80 -> 0.0258 | V21: =Conversions!$K$58 -> 1.055056 | W21: =Conversions!$K$59 -> 0.105506
A22: 24 | B22: Coal - Coking Coal | C22: Coking Coal | D22: 94600 | E22: 87300 | F22: 101000 | G22: 1 | H22: 0.3 | I22: 3 | J22: 1.5 | K22: 0.5 | L22: 5 | M22: =D22*Conversions!$L$4+'Fuel EFs'!G22*Conversions!$L$5+'Fuel EFs'!J22*Conversions!$L$6 -> 95072 | N22: =E22*Conversions!$L$4+'Fuel EFs'!H22*Conversions!$L$5+'Fuel EFs'!K22*Conversions!$L$6 -> 87456.5 | O22: =F22*Conversions!$L$4+'Fuel EFs'!I22*Conversions!$L$5+'Fuel EFs'!L22*Conversions!$L$6 -> 102565 | Q22: 28.2 | T22: =U22*Conversions!$E$84 -> 0.01279130483 | U22: =Q22*Conversions!$F$80 -> 0.0282 | V22: =Conversions!$K$58 -> 1.055056 | W22: =Conversions!$K$59 -> 0.105506
A23: 27 | B23: Coal - Lignite | C23: Lignite | D23: 101000 | E23: 90900 | F23: 115000 | G23: 1 | H23: 0.3 | I23: 3 | J23: 1.5 | K23: 0.5 | L23: 5 | M23: =D23*Conversions!$L$4+'Fuel EFs'!G23*Conversions!$L$5+'Fuel EFs'!J23*Conversions!$L$6 -> 101472 | N23: =E23*Conversions!$L$4+'Fuel EFs'!H23*Conversions!$L$5+'Fuel EFs'!K23*Conversions!$L$6 -> 91056.5 | O23: =F23*Conversions!$L$4+'Fuel EFs'!I23*Conversions!$L$5+'Fuel EFs'!L23*Conversions!$L$6 -> 116565 | Q23: 11.9 | T23: =U23*Conversions!$E$84 -> 0.005397749203 | U23: =Q23*Conversions!$F$80 -> 0.0119 | V23: =Conversions!$K$58 -> 1.055056 | W23: =Conversions!$K$59 -> 0.105506
A24: 26 | B24: Coal - Sub-Bituminous | C24: Sub-Bituminous Coal | D24: 96100 | E24: 92800 | F24: 100000 | G24: 1 | H24: 0.3 | I24: 3 | J24: 1.5 | K24: 0.5 | L24: 5 | M24: =D24*Conversions!$L$4+'Fuel EFs'!G24*Conversions!$L$5+'Fuel EFs'!J24*Conversions!$L$6 -> 96572 | N24: =E24*Conversions!$L$4+'Fuel EFs'!H24*Conversions!$L$5+'Fuel EFs'!K24*Conversions!$L$6 -> 92956.5 | O24: =F24*Conversions!$L$4+'Fuel EFs'!I24*Conversions!$L$5+'Fuel EFs'!L24*Conversions!$L$6 -> 101565 | Q24: 18.9 | T24: =U24*Conversions!$E$84 -> 0.008572895793 | U24: =Q24*Conversions!$F$80 -> 0.0189 | V24: =Conversions!$K$58 -> 1.055056 | W24: =Conversions!$K$59 -> 0.105506
A25: 33 | B25: Coal Tar | C25: Coal Tar | D25: 80700 | E25: 68200 | F25: 95300 | G25: 1 | H25: 0.3 | I25: 3 | J25: 1.5 | K25: 0.5 | L25: 5 | M25: =D25*Conversions!$L$4+'Fuel EFs'!G25*Conversions!$L$5+'Fuel EFs'!J25*Conversions!$L$6 -> 81172 | N25: =E25*Conversions!$L$4+'Fuel EFs'!H25*Conversions!$L$5+'Fuel EFs'!K25*Conversions!$L$6 -> 68356.5 | O25: =F25*Conversions!$L$4+'Fuel EFs'!I25*Conversions!$L$5+'Fuel EFs'!L25*Conversions!$L$6 -> 96865 | Q25: 28 | T25: =U25*Conversions!$E$84 -> 0.01270058636 | U25: =Q25*Conversions!$F$80 -> 0.028 | V25: =Conversions!$K$58 -> 1.055056 | W25: =Conversions!$K$59 -> 0.105506
A26: 31 | B26: Coke - Coke Oven and Lignite | C26: Coke Oven Coke and Lignite Coke | D26: 107000 | E26: 95700 | F26: 119000 | G26: 1 | H26: 0.3 | I26: 3 | J26: 1.5 | K26: 0.5 | L26: 4 | M26: =D26*Conversions!$L$4+'Fuel EFs'!G26*Conversions!$L$5+'Fuel EFs'!J26*Conversions!$L$6 -> 107472 | N26: =E26*Conversions!$L$4+'Fuel EFs'!H26*Conversions!$L$5+'Fuel EFs'!K26*Conversions!$L$6 -> 95856.5 | O26: =F26*Conversions!$L$4+'Fuel EFs'!I26*Conversions!$L$5+'Fuel EFs'!L26*Conversions!$L$6 -> 120267 | Q26: 28.2 | T26: =U26*Conversions!$E$84 -> 0.01279130483 | U26: =Q26*Conversions!$F$80 -> 0.0282 | V26: =Conversions!$K$58 -> 1.055056 | W26: =Conversions!$K$59 -> 0.105506
A27: 32 | B27: Coke - Gas | C27: Gas Coke | D27: 107000 | E27: 95700 | F27: 119000 | G27: 1 | H27: 0.3 | I27: 3 | J27: 0.1 | K27: 0.03 | L27: 0.3 | M27: =D27*Conversions!$L$4+'Fuel EFs'!G27*Conversions!$L$5+'Fuel EFs'!J27*Conversions!$L$6 -> 107054.8 | N27: =E27*Conversions!$L$4+'Fuel EFs'!H27*Conversions!$L$5+'Fuel EFs'!K27*Conversions!$L$6 -> 95716.44 | O27: =F27*Conversions!$L$4+'Fuel EFs'!I27*Conversions!$L$5+'Fuel EFs'!L27*Conversions!$L$6 -> 119164.4 | Q27: 28.2 | T27: =U27*Conversions!$E$84 -> 0.01279130483 | U27: =Q27*Conversions!$F$80 -> 0.0282 | V27: =Conversions!$K$58 -> 1.055056 | W27: =Conversions!$K$59 -> 0.105506
A28: 35 | B28: Coke Oven Gas | C28: Coke Oven Gas | D28: 44400 | E28: 37300 | F28: 54100 | G28: 1 | H28: 0.3 | I28: 3 | J28: 0.1 | K28: 0.03 | L28: 0.3 | M28: =D28*Conversions!$L$4+'Fuel EFs'!G28*Conversions!$L$5+'Fuel EFs'!J28*Conversions!$L$6 -> 44454.8 | N28: =E28*Conversions!$L$4+'Fuel EFs'!H28*Conversions!$L$5+'Fuel EFs'!K28*Conversions!$L$6 -> 37316.44 | O28: =F28*Conversions!$L$4+'Fuel EFs'!I28*Conversions!$L$5+'Fuel EFs'!L28*Conversions!$L$6 -> 54264.4 | Q28: 38.7 | T28: =U28*Conversions!$E$84 -> 0.01755402472 | U28: =Q28*Conversions!$F$80 -> 0.0387 | V28: =Conversions!$K$58 -> 1.055056 | W28: =Conversions!$K$59 -> 0.105506
A29: 13 | B29: Ethane | C29: Ethane | D29: 61600 | E29: 56500 | F29: 68600 | G29: 1 | H29: 0.3 | I29: 3 | J29: 0.1 | K29: 0.03 | L29: 0.3 | M29: =D29*Conversions!$L$4+'Fuel EFs'!G29*Conversions!$L$5+'Fuel EFs'!J29*Conversions!$L$6 -> 61654.8 | N29: =E29*Conversions!$L$4+'Fuel EFs'!H29*Conversions!$L$5+'Fuel EFs'!K29*Conversions!$L$6 -> 56516.44 | O29: =F29*Conversions!$L$4+'Fuel EFs'!I29*Conversions!$L$5+'Fuel EFs'!L29*Conversions!$L$6 -> 68764.4 | Q29: 46.4 | T29: =U29*Conversions!$E$84 -> 0.02104668597 | U29: =Q29*Conversions!$F$80 -> 0.0464 | V29: =Conversions!$K$58 -> 1.055056 | W29: =Conversions!$K$59 -> 0.105506
A30: 34 | B30: Gas Works Gas | C30: Gas Works Gas | D30: 44400 | E30: 37300 | F30: 54100 | G30: 1 | H30: 0.3 | I30: 3 | J30: 0.1 | K30: 0.03 | L30: 0.3 | M30: =D30*Conversions!$L$4+'Fuel EFs'!G30*Conversions!$L$5+'Fuel EFs'!J30*Conversions!$L$6 -> 44454.8 | N30: =E30*Conversions!$L$4+'Fuel EFs'!H30*Conversions!$L$5+'Fuel EFs'!K30*Conversions!$L$6 -> 37316.44 | O30: =F30*Conversions!$L$4+'Fuel EFs'!I30*Conversions!$L$5+'Fuel EFs'!L30*Conversions!$L$6 -> 54264.4 | Q30: 38.7 | T30: =U30*Conversions!$E$84 -> 0.01755402472 | U30: =Q30*Conversions!$F$80 -> 0.0387 | V30: =Conversions!$K$58 -> 1.055056 | W30: =Conversions!$K$59 -> 0.105506
A31: 5 | B31: Gasoline - Aviation | C31: Aviation Gasoline | D31: 70000 | E31: 67500 | F31: 73000 | G31: 3 | H31: 1 | I31: 10 | J31: 0.6 | K31: 0.2 | L31: 2 | M31: =D31*Conversions!$L$4+'Fuel EFs'!G31*Conversions!$L$5+'Fuel EFs'!J31*Conversions!$L$6 -> 70253.8 | N31: =E31*Conversions!$L$4+'Fuel EFs'!H31*Conversions!$L$5+'Fuel EFs'!K31*Conversions!$L$6 -> 67584.6 | O31: =F31*Conversions!$L$4+'Fuel EFs'!I31*Conversions!$L$5+'Fuel EFs'!L31*Conversions!$L$6 -> 73846 | P31: 0.71 | Q31: 44.3 | R31: =S31*Conversions!$D$128 -> 0.1190625636 | S31: =P31*Conversions!$F$80*Q31 -> 0.031453 | T31: =U31*Conversions!$E$84 -> 0.02009414199 | U31: =Q31*Conversions!$F$80 -> 0.0443 | V31: =Conversions!$K$58 -> 1.055056 | W31: =Conversions!$K$59 -> 0.105506
A32: 6 | B32: Gasoline - Jet | C32: Jet Gasoline | D32: 70000 | E32: 67500 | F32: 73000 | G32: 3 | H32: 1 | I32: 10 | J32: 0.6 | K32: 0.2 | L32: 2 | M32: =D32*Conversions!$L$4+'Fuel EFs'!G32*Conversions!$L$5+'Fuel EFs'!J32*Conversions!$L$6 -> 70253.8 | N32: =E32*Conversions!$L$4+'Fuel EFs'!H32*Conversions!$L$5+'Fuel EFs'!K32*Conversions!$L$6 -> 67584.6 | O32: =F32*Conversions!$L$4+'Fuel EFs'!I32*Conversions!$L$5+'Fuel EFs'!L32*Conversions!$L$6 -> 73846 | Q32: 44.3 | T32: =U32*Conversions!$E$84 -> 0.02009414199 | U32: =Q32*Conversions!$F$80 -> 0.0443 | V32: =Conversions!$K$58 -> 1.055056 | W32: =Conversions!$K$59 -> 0.105506
A33: 4 | B33: Gasoline - Motor | C33: Motor Gasoline | D33: 69300 | E33: 67500 | F33: 73000 | G33: 3 | H33: 1 | I33: 10 | J33: 0.6 | K33: 0.2 | L33: 2 | M33: =D33*Conversions!$L$4+'Fuel EFs'!G33*Conversions!$L$5+'Fuel EFs'!J33*Conversions!$L$6 -> 69553.8 | N33: =E33*Conversions!$L$4+'Fuel EFs'!H33*Conversions!$L$5+'Fuel EFs'!K33*Conversions!$L$6 -> 67584.6 | O33: =F33*Conversions!$L$4+'Fuel EFs'!I33*Conversions!$L$5+'Fuel EFs'!L33*Conversions!$L$6 -> 73846 | P33: 0.74 | Q33: 44.3 | R33: =S33*Conversions!$D$128 -> 0.1240933762 | S33: =P33*Conversions!$F$80*Q33 -> 0.032782 | T33: =U33*Conversions!$E$84 -> 0.02009414199 | U33: =Q33*Conversions!$F$80 -> 0.0443 | V33: =Conversions!$K$58 -> 1.055056 | W33: =Conversions!$K$59 -> 0.105506
A34: 40 | B34: Industrial Wastes | C34: Industrial Wastes | D34: 143000 | E34: 110000 | F34: 183000 | G34: 30 | H34: 10 | I34: 100 | J34: 4 | K34: 1.5 | L34: 15 | M34: =D34*Conversions!$L$4+'Fuel EFs'!G34*Conversions!$L$5+'Fuel EFs'!J34*Conversions!$L$6 -> 144942 | N34: =E34*Conversions!$L$4+'Fuel EFs'!H34*Conversions!$L$5+'Fuel EFs'!K34*Conversions!$L$6 -> 110697 | O34: =F34*Conversions!$L$4+'Fuel EFs'!I34*Conversions!$L$5+'Fuel EFs'!L34*Conversions!$L$6 -> 189970 | Q34: NA | T34: NA | U34: NA | V34: =Conversions!$K$58 -> 1.055056 | W34: =Conversions!$K$59 -> 0.105506
A35: 7 | B35: Kerosene - Jet | C35: Jet Kerosene | D35: 71500 | E35: 69700 | F35: 74400 | G35: 3 | H35: 1 | I35: 10 | J35: 0.6 | K35: 0.2 | L35: 2 | M35: =D35*Conversions!$L$4+'Fuel EFs'!G35*Conversions!$L$5+'Fuel EFs'!J35*Conversions!$L$6 -> 71753.8 | N35: =E35*Conversions!$L$4+'Fuel EFs'!H35*Conversions!$L$5+'Fuel EFs'!K35*Conversions!$L$6 -> 69784.6 | O35: =F35*Conversions!$L$4+'Fuel EFs'!I35*Conversions!$L$5+'Fuel EFs'!L35*Conversions!$L$6 -> 75246 | P35: 0.79 | Q35: 44.1 | R35: =S35*Conversions!$D$128 -> 0.1318799687 | S35: =P35*Conversions!$F$80*Q35 -> 0.034839 | T35: =U35*Conversions!$E$84 -> 0.02000342352 | U35: =Q35*Conversions!$F$80 -> 0.0441 | V35: =Conversions!$K$58 -> 1.055056 | W35: =Conversions!$K$59 -> 0.105506
A36: 8 | B36: Kerosene - Other | C36: Other Kerosene | D36: 71900 | E36: 70800 | F36: 73700 | G36: 3 | H36: 1 | I36: 10 | J36: 0.6 | K36: 0.2 | L36: 2 | M36: =D36*Conversions!$L$4+'Fuel EFs'!G36*Conversions!$L$5+'Fuel EFs'!J36*Conversions!$L$6 -> 72153.8 | N36: =E36*Conversions!$L$4+'Fuel EFs'!H36*Conversions!$L$5+'Fuel EFs'!K36*Conversions!$L$6 -> 70884.6 | O36: =F36*Conversions!$L$4+'Fuel EFs'!I36*Conversions!$L$5+'Fuel EFs'!L36*Conversions!$L$6 -> 74546 | P36: 0.8 | Q36: 43.8 | R36: =S36*Conversions!$D$128 -> 0.1326408365 | S36: =P36*Conversions!$F$80*Q36 -> 0.03504 | T36: =U36*Conversions!$E$84 -> 0.01986734581 | U36: =Q36*Conversions!$F$80 -> 0.0438 | V36: =Conversions!$K$58 -> 1.055056 | W36: =Conversions!$K$59 -> 0.105506
A37: 12 | B37: Liquefied Petroleum Gases | C37: Liquefied Petroleum Gases | D37: 63100 | E37: 61600 | F37: 65600 | G37: 1 | H37: 0.3 | I37: 3 | J37: 0.1 | K37: 0.03 | L37: 0.3 | M37: =D37*Conversions!$L$4+'Fuel EFs'!G37*Conversions!$L$5+'Fuel EFs'!J37*Conversions!$L$6 -> 63154.8 | N37: =E37*Conversions!$L$4+'Fuel EFs'!H37*Conversions!$L$5+'Fuel EFs'!K37*Conversions!$L$6 -> 61616.44 | O37: =F37*Conversions!$L$4+'Fuel EFs'!I37*Conversions!$L$5+'Fuel EFs'!L37*Conversions!$L$6 -> 65764.4 | P37: 0.54 | Q37: 47.3 | R37: =S37*Conversions!$D$128 -> 0.0966869933 | S37: =P37*Conversions!$F$80*Q37 -> 0.025542 | T37: =U37*Conversions!$E$84 -> 0.0214549191 | U37: =Q37*Conversions!$F$80 -> 0.0473 | V37: =Conversions!$K$58 -> 1.055056 | W37: =Conversions!$K$59 -> 0.105506
A38: 16 | B38: Lubricants | C38: Lubricants | D38: 73300 | E38: 71900 | F38: 75200 | G38: 3 | H38: 1 | I38: 10 | J38: 0.6 | K38: 0.2 | L38: 2 | M38: =D38*Conversions!$L$4+'Fuel EFs'!G38*Conversions!$L$5+'Fuel EFs'!J38*Conversions!$L$6 -> 73553.8 | N38: =E38*Conversions!$L$4+'Fuel EFs'!H38*Conversions!$L$5+'Fuel EFs'!K38*Conversions!$L$6 -> 71984.6 | O38: =F38*Conversions!$L$4+'Fuel EFs'!I38*Conversions!$L$5+'Fuel EFs'!L38*Conversions!$L$6 -> 76046 | P38: 1 | Q38: 40.2 | R38: =S38*Conversions!$D$128 -> 0.1521735624 | S38: =P38*Conversions!$F$80*Q38 -> 0.0402 | T38: =U38*Conversions!$E$84 -> 0.01823441327 | U38: =Q38*Conversions!$F$80 -> 0.0402 | V38: =Conversions!$K$58 -> 1.055056 | W38: =Conversions!$K$59 -> 0.105506
A39: 53 | B39: Municipal Wastes (biomass fraction) | C39: Municipal Wastes (biomass fraction) | D39: 100000 | E39: 84700 | F39: 117000 | G39: 30 | H39: 10 | I39: 100 | J39: 4 | K39: 0.03 | L39: 15 | M39: =D39*Conversions!$L$4+'Fuel EFs'!G39*Conversions!$L$5+'Fuel EFs'!J39*Conversions!$L$6 -> 101942 | N39: =E39*Conversions!$L$4+'Fuel EFs'!H39*Conversions!$L$5+'Fuel EFs'!K39*Conversions!$L$6 -> 84958.94 | O39: =F39*Conversions!$L$4+'Fuel EFs'!I39*Conversions!$L$5+'Fuel EFs'!L39*Conversions!$L$6 -> 123970 | Q39: 11.6 | T39: =U39*Conversions!$E$84 -> 0.005261671492 | U39: =Q39*Conversions!$F$80 -> 0.0116 | V39: =Conversions!$K$58 -> 1.055056 | W39: =Conversions!$K$59 -> 0.105506
A40: 39 | B40: Municipal Wastes (nonbiomass fraction) | C40: Municipal Wastes (nonbiomass fraction) | D40: 91700 | E40: 73300 | F40: 121000 | G40: 30 | H40: 10 | I40: 100 | J40: 4 | K40: 1.5 | L40: 15 | M40: =D40*Conversions!$L$4+'Fuel EFs'!G40*Conversions!$L$5+'Fuel EFs'!J40*Conversions!$L$6 -> 93642 | N40: =E40*Conversions!$L$4+'Fuel EFs'!H40*Conversions!$L$5+'Fuel EFs'!K40*Conversions!$L$6 -> 73997 | O40: =F40*Conversions!$L$4+'Fuel EFs'!I40*Conversions!$L$5+'Fuel EFs'!L40*Conversions!$L$6 -> 127970 | Q40: 10 | T40: =U40*Conversions!$E$84 -> 0.0045359237 | U40: =Q40*Conversions!$F$80 -> 0.01 | V40: =Conversions!$K$58 -> 1.055056 | W40: =Conversions!$K$59 -> 0.105506
A41: 14 | B41: Naphtha | C41: Naphtha | D41: 73300 | E41: 69300 | F41: 76300 | G41: 3 | H41: 1 | I41: 10 | J41: 0.6 | K41: 0.2 | L41: 2 | M41: =D41*Conversions!$L$4+'Fuel EFs'!G41*Conversions!$L$5+'Fuel EFs'!J41*Conversions!$L$6 -> 73553.8 | N41: =E41*Conversions!$L$4+'Fuel EFs'!H41*Conversions!$L$5+'Fuel EFs'!K41*Conversions!$L$6 -> 69384.6 | O41: =F41*Conversions!$L$4+'Fuel EFs'!I41*Conversions!$L$5+'Fuel EFs'!L41*Conversions!$L$6 -> 77146 | P41: 0.77 | Q41: 44.5 | R41: =S41*Conversions!$D$128 -> 0.1297071422 | S41: =P41*Conversions!$F$80*Q41 -> 0.034265 | T41: =U41*Conversions!$E$84 -> 0.02018486046 | U41: =Q41*Conversions!$F$80 -> 0.0445 | V41: =Conversions!$K$58 -> 1.055056 | W41: =Conversions!$K$59 -> 0.105506
A42: 38 | B42: Natural Gas | C42: Natural Gas | D42: 56100 | E42: 54300 | F42: 58300 | G42: 1 | H42: 0.3 | I42: 3 | J42: 0.1 | K42: 0.03 | L42: 0.3 | M42: =D42*Conversions!$L$4+'Fuel EFs'!G42*Conversions!$L$5+'Fuel EFs'!J42*Conversions!$L$6 -> 56154.8 | N42: =E42*Conversions!$L$4+'Fuel EFs'!H42*Conversions!$L$5+'Fuel EFs'!K42*Conversions!$L$6 -> 54316.44 | O42: =F42*Conversions!$L$4+'Fuel EFs'!I42*Conversions!$L$5+'Fuel EFs'!L42*Conversions!$L$6 -> 58464.4 | Q42: 48 | T42: =U42*Conversions!$E$84 -> 0.02177243376 | U42: =Q42*Conversions!$F$80 -> 0.048 | V42: =Conversions!$K$58 -> 1.055056 | W42: =Conversions!$K$59 -> 0.105506 | X42: =1023*Conversions!H132/10*'Fuel EFs'!V42*Conversions!M57 -> 0.1079322288
A43: 3 | B43: Natural Gas Liquids | C43: Natural Gas Liquids | D43: 64200 | E43: 58300 | F43: 70400 | G43: 3 | H43: 1 | I43: 10 | J43: 0.6 | K43: 0.2 | L43: 2 | M43: =D43*Conversions!$L$4+'Fuel EFs'!G43*Conversions!$L$5+'Fuel EFs'!J43*Conversions!$L$6 -> 64453.8 | N43: =E43*Conversions!$L$4+'Fuel EFs'!H43*Conversions!$L$5+'Fuel EFs'!K43*Conversions!$L$6 -> 58384.6 | O43: =F43*Conversions!$L$4+'Fuel EFs'!I43*Conversions!$L$5+'Fuel EFs'!L43*Conversions!$L$6 -> 71246 | P43: 0.47 | Q43: 44.2 | R43: =S43*Conversions!$D$128 -> 0.07863814889 | S43: =P43*Conversions!$F$80*Q43 -> 0.020774 | T43: =U43*Conversions!$E$84 -> 0.02004878275 | U43: =Q43*Conversions!$F$80 -> 0.0442 | V43: =Conversions!$K$58 -> 1.055056 | W43: =Conversions!$K$59 -> 0.105506
A44: 1 | B44: Oil - Crude | C44: Crude Oil | D44: 73300 | E44: 71100 | F44: 75500 | G44: 3 | H44: 1 | I44: 10 | J44: 0.6 | K44: 0.2 | L44: 2 | M44: =D44*Conversions!$L$4+'Fuel EFs'!G44*Conversions!$L$5+'Fuel EFs'!J44*Conversions!$L$6 -> 73553.8 | N44: =E44*Conversions!$L$4+'Fuel EFs'!H44*Conversions!$L$5+'Fuel EFs'!K44*Conversions!$L$6 -> 71184.6 | O44: =F44*Conversions!$L$4+'Fuel EFs'!I44*Conversions!$L$5+'Fuel EFs'!L44*Conversions!$L$6 -> 76346 | P44: 0.8 | Q44: 42.3 | R44: =S44*Conversions!$D$128 -> 0.1280983421 | S44: =P44*Conversions!$F$80*Q44 -> 0.03384 | T44: =U44*Conversions!$E$84 -> 0.01918695725 | U44: =Q44*Conversions!$F$80 -> 0.0423 | V44: =Conversions!$K$58 -> 1.055056 | W44: =Conversions!$K$59 -> 0.105506
A45: 10 | B45: Oil - Gas/Diesel | C45: Gas/Diesel Oil | D45: 74100 | E45: 72600 | F45: 74800 | G45: 3 | H45: 1 | I45: 10 | J45: 0.6 | K45: 0.2 | L45: 2 | M45: =D45*Conversions!$L$4+'Fuel EFs'!G45*Conversions!$L$5+'Fuel EFs'!J45*Conversions!$L$6 -> 74353.8 | N45: =E45*Conversions!$L$4+'Fuel EFs'!H45*Conversions!$L$5+'Fuel EFs'!K45*Conversions!$L$6 -> 72684.6 | O45: =F45*Conversions!$L$4+'Fuel EFs'!I45*Conversions!$L$5+'Fuel EFs'!L45*Conversions!$L$6 -> 75646 | P45: 0.84 | Q45: 43 | R45: =S45*Conversions!$D$128 -> 0.1367290814 | S45: =P45*Conversions!$F$80*Q45 -> 0.03612 | T45: =U45*Conversions!$E$84 -> 0.01950447191 | U45: =Q45*Conversions!$F$80 -> 0.043 | V45: =Conversions!$K$58 -> 1.055056 | W45: =Conversions!$K$59 -> 0.105506
A46: 22 | B46: Oil - Other Petroleum | C46: Other Petroleum Products | D46: 73300 | E46: 72200 | F46: 74400 | G46: 3 | H46: 1 | I46: 10 | J46: 0.6 | K46: 0.2 | L46: 2 | M46: =D46*Conversions!$L$4+'Fuel EFs'!G46*Conversions!$L$5+'Fuel EFs'!J46*Conversions!$L$6 -> 73553.8 | N46: =E46*Conversions!$L$4+'Fuel EFs'!H46*Conversions!$L$5+'Fuel EFs'!K46*Conversions!$L$6 -> 72284.6 | O46: =F46*Conversions!$L$4+'Fuel EFs'!I46*Conversions!$L$5+'Fuel EFs'!L46*Conversions!$L$6 -> 75246 | Q46: 40.2 | T46: =U46*Conversions!$E$84 -> 0.01823441327 | U46: =Q46*Conversions!$F$80 -> 0.0402 | V46: =Conversions!$K$58 -> 1.055056 | W46: =Conversions!$K$59 -> 0.105506
A47: 20 | B47: Oil - Paraffin Waxes | C47: Paraffin Waxes | D47: 73300 | E47: 72200 | F47: 74400 | G47: 3 | H47: 1 | I47: 10 | J47: 0.6 | K47: 0.2 | L47: 2 | M47: =D47*Conversions!$L$4+'Fuel EFs'!G47*Conversions!$L$5+'Fuel EFs'!J47*Conversions!$L$6 -> 73553.8 | N47: =E47*Conversions!$L$4+'Fuel EFs'!H47*Conversions!$L$5+'Fuel EFs'!K47*Conversions!$L$6 -> 72284.6 | O47: =F47*Conversions!$L$4+'Fuel EFs'!I47*Conversions!$L$5+'Fuel EFs'!L47*Conversions!$L$6 -> 75246 | Q47: 40.2 | T47: =U47*Conversions!$E$84 -> 0.01823441327 | U47: =Q47*Conversions!$F$80 -> 0.0402 | V47: =Conversions!$K$58 -> 1.055056 | W47: =Conversions!$K$59 -> 0.105506
A48: 19 | B48: Oil - Refinery Gas | C48: Refinery Gas | D48: 57600 | E48: 48200 | F48: 69000 | G48: 1 | H48: 0.3 | I48: 3 | J48: 0.1 | K48: 0.03 | L48: 0.3 | M48: =D48*Conversions!$L$4+'Fuel EFs'!G48*Conversions!$L$5+'Fuel EFs'!J48*Conversions!$L$6 -> 57654.8 | N48: =E48*Conversions!$L$4+'Fuel EFs'!H48*Conversions!$L$5+'Fuel EFs'!K48*Conversions!$L$6 -> 48216.44 | O48: =F48*Conversions!$L$4+'Fuel EFs'!I48*Conversions!$L$5+'Fuel EFs'!L48*Conversions!$L$6 -> 69164.4 | Q48: 49.5 | T48: =U48*Conversions!$E$84 -> 0.02245282232 | U48: =Q48*Conversions!$F$80 -> 0.0495 | V48: =Conversions!$K$58 -> 1.055056 | W48: =Conversions!$K$59 -> 0.105506
A49: 11 | B49: Oil - Residual Fuel | C49: Residual Fuel Oil | D49: 77400 | E49: 75500 | F49: 78800 | G49: 3 | H49: 3 | I49: 30 | J49: 0.6 | K49: 0.2 | L49: 2 | M49: =D49*Conversions!$L$4+'Fuel EFs'!G49*Conversions!$L$5+'Fuel EFs'!J49*Conversions!$L$6 -> 77653.8 | N49: =E49*Conversions!$L$4+'Fuel EFs'!H49*Conversions!$L$5+'Fuel EFs'!K49*Conversions!$L$6 -> 75634.6 | O49: =F49*Conversions!$L$4+'Fuel EFs'!I49*Conversions!$L$5+'Fuel EFs'!L49*Conversions!$L$6 -> 80146 | P49: 0.94 | Q49: 40.4 | R49: =S49*Conversions!$D$128 -> 0.1437548061 | S49: =P49*Conversions!$F$80*Q49 -> 0.037976 | T49: =U49*Conversions!$E$84 -> 0.01832513175 | U49: =Q49*Conversions!$F$80 -> 0.0404 | V49: =Conversions!$K$58 -> 1.055056 | W49: =Conversions!$K$59 -> 0.105506
A50: 9 | B50: Oil - Shale | C50: Shale Oil | D50: 73300 | E50: 67800 | F50: 79200 | G50: 3 | H50: 1 | I50: 10 | J50: 0.6 | K50: 0.2 | L50: 2 | M50: =D50*Conversions!$L$4+'Fuel EFs'!G50*Conversions!$L$5+'Fuel EFs'!J50*Conversions!$L$6 -> 73553.8 | N50: =E50*Conversions!$L$4+'Fuel EFs'!H50*Conversions!$L$5+'Fuel EFs'!K50*Conversions!$L$6 -> 67884.6 | O50: =F50*Conversions!$L$4+'Fuel EFs'!I50*Conversions!$L$5+'Fuel EFs'!L50*Conversions!$L$6 -> 80046 | P50: 1 | Q50: 38.1 | R50: =S50*Conversions!$D$128 -> 0.1442241972 | S50: =P50*Conversions!$F$80*Q50 -> 0.0381 | T50: =U50*Conversions!$E$84 -> 0.0172818693 | U50: =Q50*Conversions!$F$80 -> 0.0381 | V50: =Conversions!$K$58 -> 1.055056 | W50: =Conversions!$K$59 -> 0.105506
A51: 21 | B51: Oil - White Spirit and SBP | C51: White Spirit and SBP | D51: 73300 | E51: 72200 | F51: 74400 | G51: 3 | H51: 1 | I51: 10 | J51: 0.6 | K51: 0.2 | L51: 2 | M51: =D51*Conversions!$L$4+'Fuel EFs'!G51*Conversions!$L$5+'Fuel EFs'!J51*Conversions!$L$6 -> 73553.8 | N51: =E51*Conversions!$L$4+'Fuel EFs'!H51*Conversions!$L$5+'Fuel EFs'!K51*Conversions!$L$6 -> 72284.6 | O51: =F51*Conversions!$L$4+'Fuel EFs'!I51*Conversions!$L$5+'Fuel EFs'!L51*Conversions!$L$6 -> 75246 | Q51: 40.2 | T51: =U51*Conversions!$E$84 -> 0.01823441327 | U51: =Q51*Conversions!$F$80 -> 0.0402 | V51: =Conversions!$K$58 -> 1.055056 | W51: =Conversions!$K$59 -> 0.105506
A52: 28 | B52: Oil Shale and Tar Sands | C52: Oil Shale and Tar Sands | D52: 107000 | E52: 90200 | F52: 125000 | G52: 1 | H52: 0.3 | I52: 3 | J52: 1.5 | K52: 0.5 | L52: 5 | M52: =D52*Conversions!$L$4+'Fuel EFs'!G52*Conversions!$L$5+'Fuel EFs'!J52*Conversions!$L$6 -> 107472 | N52: =E52*Conversions!$L$4+'Fuel EFs'!H52*Conversions!$L$5+'Fuel EFs'!K52*Conversions!$L$6 -> 90356.5 | O52: =F52*Conversions!$L$4+'Fuel EFs'!I52*Conversions!$L$5+'Fuel EFs'!L52*Conversions!$L$6 -> 126565 | Q52: 8.9 | T52: =U52*Conversions!$E$84 -> 0.004036972093 | U52: =Q52*Conversions!$F$80 -> 0.0089 | V52: =Conversions!$K$58 -> 1.055056 | W52: =Conversions!$K$59 -> 0.105506
A53: 2 | B53: Orimulsion | C53: Orimulsion | D53: 77000 | E53: 69300 | F53: 85400 | G53: 3 | H53: 1 | I53: 10 | J53: 0.6 | K53: 0.2 | L53: 2 | M53: =D53*Conversions!$L$4+'Fuel EFs'!G53*Conversions!$L$5+'Fuel EFs'!J53*Conversions!$L$6 -> 77253.8 | N53: =E53*Conversions!$L$4+'Fuel EFs'!H53*Conversions!$L$5+'Fuel EFs'!K53*Conversions!$L$6 -> 69384.6 | O53: =F53*Conversions!$L$4+'Fuel EFs'!I53*Conversions!$L$5+'Fuel EFs'!L53*Conversions!$L$6 -> 86246 | Q53: 27.5 | T53: =U53*Conversions!$E$84 -> 0.01247379018 | U53: =Q53*Conversions!$F$80 -> 0.0275 | V53: =Conversions!$K$58 -> 1.055056 | W53: =Conversions!$K$59 -> 0.105506
A54: 37 | B54: Oxygen Steel Furnace Gas | C54: Oxygen Steel Furnace Gas | D54: 182000 | E54: 145000 | F54: 202000 | G54: 1 | H54: 0.3 | I54: 3 | J54: 0.1 | K54: 0.03 | L54: 0.3 | M54: =D54*Conversions!$L$4+'Fuel EFs'!G54*Conversions!$L$5+'Fuel EFs'!J54*Conversions!$L$6 -> 182054.8 | N54: =E54*Conversions!$L$4+'Fuel EFs'!H54*Conversions!$L$5+'Fuel EFs'!K54*Conversions!$L$6 -> 145016.44 | O54: =F54*Conversions!$L$4+'Fuel EFs'!I54*Conversions!$L$5+'Fuel EFs'!L54*Conversions!$L$6 -> 202164.4 | Q54: 7.06 | T54: =U54*Conversions!$E$84 -> 0.003202362132 | U54: =Q54*Conversions!$F$80 -> 0.00706 | V54: =Conversions!$K$58 -> 1.055056 | W54: =Conversions!$K$59 -> 0.105506
A55: 30 | B55: Patent Fuel | C55: Patent Fuel | D55: 97500 | E55: 87300 | F55: 109000 | G55: 1 | H55: 0.3 | I55: 3 | J55: 1.5 | K55: 0.5 | L55: 5 | M55: =D55*Conversions!$L$4+'Fuel EFs'!G55*Conversions!$L$5+'Fuel EFs'!J55*Conversions!$L$6 -> 97972 | N55: =E55*Conversions!$L$4+'Fuel EFs'!H55*Conversions!$L$5+'Fuel EFs'!K55*Conversions!$L$6 -> 87456.5 | O55: =F55*Conversions!$L$4+'Fuel EFs'!I55*Conversions!$L$5+'Fuel EFs'!L55*Conversions!$L$6 -> 110565 | Q55: 20.7 | T55: =U55*Conversions!$E$84 -> 0.009389362059 | U55: =Q55*Conversions!$F$80 -> 0.0207 | V55: =Conversions!$K$58 -> 1.055056 | W55: =Conversions!$K$59 -> 0.105506
A56: 42 | B56: Peat | C56: Peata | D56: 106000 | E56: 100000 | F56: 108000 | G56: 1 | H56: 0.3 | I56: 3 | J56: 1.5 | K56: 0.5 | L56: 5 | M56: =D56*Conversions!$L$4+'Fuel EFs'!G56*Conversions!$L$5+'Fuel EFs'!J56*Conversions!$L$6 -> 106472 | N56: =E56*Conversions!$L$4+'Fuel EFs'!H56*Conversions!$L$5+'Fuel EFs'!K56*Conversions!$L$6 -> 100156.5 | O56: =F56*Conversions!$L$4+'Fuel EFs'!I56*Conversions!$L$5+'Fuel EFs'!L56*Conversions!$L$6 -> 109565 | Q56: 9.76 | T56: =U56*Conversions!$E$84 -> 0.004427061531 | U56: =Q56*Conversions!$F$80 -> 0.00976 | V56: =Conversions!$K$58 -> 1.055056 | W56: =Conversions!$K$59 -> 0.105506
A57: 17 | B57: Petroleum Coke | C57: Petroleum Coke | D57: 97500 | E57: 82900 | F57: 115000 | G57: 3 | H57: 1 | I57: 10 | J57: 0.6 | K57: 0.2 | L57: 2 | M57: =D57*Conversions!$L$4+'Fuel EFs'!G57*Conversions!$L$5+'Fuel EFs'!J57*Conversions!$L$6 -> 97753.8 | N57: =E57*Conversions!$L$4+'Fuel EFs'!H57*Conversions!$L$5+'Fuel EFs'!K57*Conversions!$L$6 -> 82984.6 | O57: =F57*Conversions!$L$4+'Fuel EFs'!I57*Conversions!$L$5+'Fuel EFs'!L57*Conversions!$L$6 -> 115846 | Q57: 32.5 | T57: =U57*Conversions!$E$84 -> 0.01474175203 | U57: =Q57*Conversions!$F$80 -> 0.0325 | V57: =Conversions!$K$58 -> 1.055056 | W57: =Conversions!$K$59 -> 0.105506
A58: 18 | B58: Refinery Feedstocks | C58: Refinery Feedstocks | D58: 73300 | E58: 68900 | F58: 76600 | G58: 3 | H58: 1 | I58: 10 | J58: 0.6 | K58: 0.2 | L58: 2 | M58: =D58*Conversions!$L$4+'Fuel EFs'!G58*Conversions!$L$5+'Fuel EFs'!J58*Conversions!$L$6 -> 73553.8 | N58: =E58*Conversions!$L$4+'Fuel EFs'!H58*Conversions!$L$5+'Fuel EFs'!K58*Conversions!$L$6 -> 68984.6 | O58: =F58*Conversions!$L$4+'Fuel EFs'!I58*Conversions!$L$5+'Fuel EFs'!L58*Conversions!$L$6 -> 77446 | Q58: 43 | T58: =U58*Conversions!$E$84 -> 0.01950447191 | U58: =Q58*Conversions!$F$80 -> 0.043 | V58: =Conversions!$K$58 -> 1.055056 | W58: =Conversions!$K$59 -> 0.105506
A59: 41 | B59: Waste Oils | C59: Waste Oils | D59: 73300 | E59: 72200 | F59: 74400 | G59: 30 | H59: 10 | I59: 100 | J59: 4 | K59: 1.5 | L59: 15 | M59: =D59*Conversions!$L$4+'Fuel EFs'!G59*Conversions!$L$5+'Fuel EFs'!J59*Conversions!$L$6 -> 75242 | N59: =E59*Conversions!$L$4+'Fuel EFs'!H59*Conversions!$L$5+'Fuel EFs'!K59*Conversions!$L$6 -> 72897 | O59: =F59*Conversions!$L$4+'Fuel EFs'!I59*Conversions!$L$5+'Fuel EFs'!L59*Conversions!$L$6 -> 81370 | Q59: 40.2 | T59: =U59*Conversions!$E$84 -> 0.01823441327 | U59: =Q59*Conversions!$F$80 -> 0.0402 | V59: =Conversions!$K$58 -> 1.055056 | W59: =Conversions!$K$59 -> 0.105506
B60: a Includes the biomass-derived CO2 emitted from the black liquor combustion unit and the biomass-derived CO2 emitted from the kraft mill lime kiln.
B62: Sources
B63: Fuel Emission Factors: 2006 IPCC Guidelines for National Greenhouse Gas Inventories - Chapter 2: Stationary Combustion.
B64: Table 2.2 - Default Emission Factors for Stationary Combustion in the Energy Industries (kg of greenhouse gas per TJ on a Net Calorific Basis)
B65: Note: Units converted to g of GHG per GJ for purposes of this tool
B66: Heating Value Factors: 2006 IPCC Guidelines for National Greenhouse Gas Inventories - Chapter 1: Introduction
B67: Tables 1.2 - Default Net Calorific Values (NCVs) in TJ per Gg
B68: Note: Units converted to GJ of energy per metric ton (mt) for purposes of this tool
B69: Fuel Density Factors: World Resources Institute - GHG Protocol for Stationary Combustion, 2005.
B70: Emission factors from Cross-cutting tools. Table 1.1 CO2 emission factors by fuel
B71: Heat content of Natural Gas, Btu per Cubic Foot, for 2011, End-Use Sectors is used. http://www.eia.gov/totalenergy/data/annual/showtext.cfm?t=ptb1204, http://www.eia.gov/totalenergy/data/monthly/pdf/sec13_4.pdf

Sheet DataProjection
B3: Renewable Electricity Generation
B4: Fuels Replaced
E5: Start Year | F5: 2010
B6: Year of Adoption | C6: =AdoptionYear -> 0 | E6: Max Projection | F6: =MAX(B14:B74) -> 2070
B7: Fuel Offset | C7: ='Data Input'!H46 -> 0 | D7: =RenFuelUnit1 -> Gigajoules (GJ)
B8: Tech Deg. Rate | C8: =TechDeg -> 0.005
B9: Growth Rate | C9: =GrowthRate -> 0
B10: Growth Rate Stop | C10: =YearGrowth -> 2038
B11: Impact Stop | C11: =YearImpact -> -1
B13: Year | C13: AD
B14: =Start_Year -> 2010 | C14: =IF(B14<$C$6,0,IF(B14=$C$6,$C$7,IF(B14>$C$11,0,IF(B14>$C$6,C13*(1-$C$8)+IF(B14<=$C$10,C13*($C$9),0))))) -> 0 | AF14: =AND(ISNUMBER(B14),B14>=AdoptionYear,B14<=YearImpact) -> FALSE
B15: =B14+1 -> 2011 | C15: =IF(B15<$C$6,0,IF(B15=$C$6,$C$7,IF(B15>$C$11,0,IF(B15>$C$6,C14*(1-$C$8)+IF(B15<=$C$10,C14*($C$9),0))))) -> 0 | AF15: =AND(ISNUMBER(B15),B15>=AdoptionYear,B15<=YearImpact) -> FALSE
B16: =B15+1 -> 2012 | C16: =IF(B16<$C$6,0,IF(B16=$C$6,$C$7,IF(B16>$C$11,0,IF(B16>$C$6,C15*(1-$C$8)+IF(B16<=$C$10,C15*($C$9),0))))) -> 0 | AF16: =AND(ISNUMBER(B16),B16>=AdoptionYear,B16<=YearImpact) -> FALSE
B17: 2013 | C17: 0 | AF17: =AND(ISNUMBER(B17),B17>=AdoptionYear,B17<=YearImpact) -> FALSE
B18: 2014 | C18: 0 | AF18: =AND(ISNUMBER(B18),B18>=AdoptionYear,B18<=YearImpact) -> FALSE
B19: 2015 | C19: 0 | AF19: =AND(ISNUMBER(B19),B19>=AdoptionYear,B19<=YearImpact) -> FALSE
B20: 2016 | C20: 0 | AF20: =AND(ISNUMBER(B20),B20>=AdoptionYear,B20<=YearImpact) -> FALSE
B21: 2017 | C21: 0 | AF21: =AND(ISNUMBER(B21),B21>=AdoptionYear,B21<=YearImpact) -> FALSE
B22: 2018 | C22: 0 | AF22: =AND(ISNUMBER(B22),B22>=AdoptionYear,B22<=YearImpact) -> FALSE
B23: 2019 | C23: 0 | AF23: =AND(ISNUMBER(B23),B23>=AdoptionYear,B23<=YearImpact) -> FALSE
B24: 2020 | C24: 0 | AF24: =AND(ISNUMBER(B24),B24>=AdoptionYear,B24<=YearImpact) -> FALSE
B25: 2021 | C25: 0 | AF25: =AND(ISNUMBER(B25),B25>=AdoptionYear,B25<=YearImpact) -> FALSE
B26: 2022 | C26: 0 | AF26: =AND(ISNUMBER(B26),B26>=AdoptionYear,B26<=YearImpact) -> FALSE
B27: 2023 | C27: 0 | AF27: =AND(ISNUMBER(B27),B27>=AdoptionYear,B27<=YearImpact) -> FALSE
B28: 2024 | C28: 0 | AF28: =AND(ISNUMBER(B28),B28>=AdoptionYear,B28<=YearImpact) -> FALSE
B29: 2025 | C29: 0 | AF29: =AND(ISNUMBER(B29),B29>=AdoptionYear,B29<=YearImpact) -> FALSE
B30: 2026 | C30: 0 | AF30: =AND(ISNUMBER(B30),B30>=AdoptionYear,B30<=YearImpact) -> FALSE
B31: 2027 | C31: 0 | AF31: =AND(ISNUMBER(B31),B31>=AdoptionYear,B31<=YearImpact) -> FALSE
B32: 2028 | C32: 0 | AF32: =AND(ISNUMBER(B32),B32>=AdoptionYear,B32<=YearImpact) -> FALSE
B33: 2029 | C33: 0 | AF33: =AND(ISNUMBER(B33),B33>=AdoptionYear,B33<=YearImpact) -> FALSE
B34: 2030 | C34: 0 | AF34: =AND(ISNUMBER(B34),B34>=AdoptionYear,B34<=YearImpact) -> FALSE
B35: =B34+1 -> 2031 | C35: =IF(B35<$C$6,0,IF(B35=$C$6,$C$7,IF(B35>$C$11,0,IF(B35>$C$6,C34*(1-$C$8)+IF(B35<=$C$10,C34*($C$9),0))))) -> 0 | AF35: =AND(ISNUMBER(B35),B35>=AdoptionYear,B35<=YearImpact) -> FALSE
B36: 2032 | C36: =IF(B36<$C$6,0,IF(B36=$C$6,$C$7,IF(B36>$C$11,0,IF(B36>$C$6,C35*(1-$C$8)+IF(B36<=$C$10,C35*($C$9),0))))) -> 0 | AF36: =AND(ISNUMBER(B36),B36>=AdoptionYear,B36<=YearImpact) -> FALSE
B37: 2033 | C37: 0 | AF37: =AND(ISNUMBER(B37),B37>=AdoptionYear,B37<=YearImpact) -> FALSE
B38: 2034 | C38: 0 | AF38: =AND(ISNUMBER(B38),B38>=AdoptionYear,B38<=YearImpact) -> FALSE
B39: 2035 | C39: 0 | AF39: =AND(ISNUMBER(B39),B39>=AdoptionYear,B39<=YearImpact) -> FALSE
B40: 2036 | C40: 0 | AF40: =AND(ISNUMBER(B40),B40>=AdoptionYear,B40<=YearImpact) -> FALSE
B41: 2037 | C41: 0 | AF41: =AND(ISNUMBER(B41),B41>=AdoptionYear,B41<=YearImpact) -> FALSE
B42: 2038 | C42: 0 | AF42: =AND(ISNUMBER(B42),B42>=AdoptionYear,B42<=YearImpact) -> FALSE
B43: 2039 | C43: 0 | AF43: =AND(ISNUMBER(B43),B43>=AdoptionYear,B43<=YearImpact) -> FALSE
B44: 2040 | C44: 0 | AF44: =AND(ISNUMBER(B44),B44>=AdoptionYear,B44<=YearImpact) -> FALSE
B45: 2041 | C45: 0 | AF45: =AND(ISNUMBER(B45),B45>=AdoptionYear,B45<=YearImpact) -> FALSE
B46: 2042 | C46: 0 | AF46: =AND(ISNUMBER(B46),B46>=AdoptionYear,B46<=YearImpact) -> FALSE
B47: 2043 | C47: 0 | AF47: =AND(ISNUMBER(B47),B47>=AdoptionYear,B47<=YearImpact) -> FALSE
B48: 2044 | C48: 0 | AF48: =AND(ISNUMBER(B48),B48>=AdoptionYear,B48<=YearImpact) -> FALSE
B49: 2045 | C49: 0 | AF49: =AND(ISNUMBER(B49),B49>=AdoptionYear,B49<=YearImpact) -> FALSE
B50: 2046 | C50: 0 | AF50: =AND(ISNUMBER(B50),B50>=AdoptionYear,B50<=YearImpact) -> FALSE
B51: 2047 | C51: 0 | AF51: =AND(ISNUMBER(B51),B51>=AdoptionYear,B51<=YearImpact) -> FALSE
B52: 2048 | C52: 0 | AF52: =AND(ISNUMBER(B52),B52>=AdoptionYear,B52<=YearImpact) -> FALSE
B53: 2049 | C53: 0 | AF53: =AND(ISNUMBER(B53),B53>=AdoptionYear,B53<=YearImpact) -> FALSE
B54: 2050 | C54: =IF(B54<$C$6,0,IF(B54=$C$6,$C$7,IF(B54>$C$11,0,IF(B54>$C$6,C53*(1-$C$8)+IF(B54<=$C$10,C53*($C$9),0))))) -> 0 | AF54: =AND(ISNUMBER(B54),B54>=AdoptionYear,B54<=YearImpact) -> FALSE
B55: 2051 | C55: 0 | AF55: =AND(ISNUMBER(B55),B55>=AdoptionYear,B55<=YearImpact) -> FALSE
B56: 2052 | C56: 0 | AF56: =AND(ISNUMBER(B56),B56>=AdoptionYear,B56<=YearImpact) -> FALSE
B57: 2053 | C57: 0 | AF57: =AND(ISNUMBER(B57),B57>=AdoptionYear,B57<=YearImpact) -> FALSE
B58: 2054 | C58: 0 | AF58: =AND(ISNUMBER(B58),B58>=AdoptionYear,B58<=YearImpact) -> FALSE
B59: 2055 | C59: 0 | AF59: =AND(ISNUMBER(B59),B59>=AdoptionYear,B59<=YearImpact) -> FALSE
B60: 2056 | C60: 0 | AF60: =AND(ISNUMBER(B60),B60>=AdoptionYear,B60<=YearImpact) -> FALSE
B61: 2057 | C61: 0 | AF61: =AND(ISNUMBER(B61),B61>=AdoptionYear,B61<=YearImpact) -> FALSE
B62: 2058 | C62: 0 | AF62: =AND(ISNUMBER(B62),B62>=AdoptionYear,B62<=YearImpact) -> FALSE
B63: 2059 | C63: 0 | AF63: =AND(ISNUMBER(B63),B63>=AdoptionYear,B63<=YearImpact) -> FALSE
B64: 2060 | C64: 0 | AF64: =AND(ISNUMBER(B64),B64>=AdoptionYear,B64<=YearImpact) -> FALSE
B65: 2061 | C65: 0 | AF65: =AND(ISNUMBER(B65),B65>=AdoptionYear,B65<=YearImpact) -> FALSE
B66: 2062 | C66: 0 | AF66: =AND(ISNUMBER(B66),B66>=AdoptionYear,B66<=YearImpact) -> FALSE
B67: 2063 | C67: 0 | AF67: =AND(ISNUMBER(B67),B67>=AdoptionYear,B67<=YearImpact) -> FALSE
B68: 2064 | C68: 0 | AF68: =AND(ISNUMBER(B68),B68>=AdoptionYear,B68<=YearImpact) -> FALSE
B69: 2065 | C69: 0 | AF69: =AND(ISNUMBER(B69),B69>=AdoptionYear,B69<=YearImpact) -> FALSE
B70: 2066 | C70: 0 | AF70: =AND(ISNUMBER(B70),B70>=AdoptionYear,B70<=YearImpact) -> FALSE
B71: 2067 | C71: 0 | AF71: =AND(ISNUMBER(B71),B71>=AdoptionYear,B71<=YearImpact) -> FALSE
B72: 2068 | C72: 0 | AF72: =AND(ISNUMBER(B72),B72>=AdoptionYear,B72<=YearImpact) -> FALSE
B73: 2069 | C73: 0 | AF73: =AND(ISNUMBER(B73),B73>=AdoptionYear,B73<=YearImpact) -> FALSE
B74: 2070 | C74: 0 | AF74: =AND(ISNUMBER(B74),B74>=AdoptionYear,B74<=YearImpact) -> FALSE
AF75: =AND(ISNUMBER(B75),B75>=AdoptionYear,B75<=YearImpact) -> FALSE
AF76: =AND(ISNUMBER(B76),B76>=AdoptionYear,B76<=YearImpact) -> FALSE
AF77: =AND(ISNUMBER(B77),B77>=AdoptionYear,B77<=YearImpact) -> FALSE
B78: Renewable Electricity Generation | AF78: =AND(ISNUMBER(B78),B78>=AdoptionYear,B78<=YearImpact) -> FALSE
B79: Electricity Generated | AF79: =AND(ISNUMBER(B79),B79>=AdoptionYear,B79<=YearImpact) -> FALSE
AF80: =AND(ISNUMBER(B80),B80>=AdoptionYear,B80<=YearImpact) -> FALSE
B81: Year of Adoption | C81: =AdoptionYear -> 0 | AF81: =AND(ISNUMBER(B81),B81>=AdoptionYear,B81<=YearImpact) -> FALSE
B82: Fuel Offset | C82: ='Data Input'!H115 -> 0 | D82: =RenElecUnit1 -> MWh | AF82: =AND(ISNUMBER(B82),B82>=AdoptionYear,B82<=YearImpact) -> FALSE
B83: Tech Deg. Rate | C83: ='Data Input'!H353 -> 0.005 | AF83: =AND(ISNUMBER(B83),B83>=AdoptionYear,B83<=YearImpact) -> FALSE
B84: Growth Rate | C84: ='Data Input'!H347 -> 0 | AF84: =AND(ISNUMBER(B84),B84>=AdoptionYear,B84<=YearImpact) -> FALSE
B85: Growth Rate Stop | C85: ='Data Input'!H349 -> 2038 | AF85: =AND(ISNUMBER(B85),B85>=AdoptionYear,B85<=YearImpact) -> FALSE
B86: Impact Stop | C86: ='Data Input'!H351 -> -1 | AF86: =AND(ISNUMBER(B86),B86>=AdoptionYear,B86<=YearImpact) -> FALSE
AF87: =AND(ISNUMBER(B87),B87>=AdoptionYear,B87<=YearImpact) -> FALSE
B88: Year | C88: AD | AF88: =AND(ISNUMBER(B88),B88>=AdoptionYear,B88<=YearImpact) -> FALSE
B89: =Start_Year -> 2010 | C89: =IF(B89<$C$81,0,IF(B89=$C$6,$C$82,IF(B89>$C$86,0,IF(B89>$C$6,C88*(1-$C$83)+IF(B89<=$C$85,C88*($C$84),0))))) -> 0 | AF89: =AND(ISNUMBER(B89),B89>=AdoptionYear,B89<=YearImpact) -> FALSE
B90: =B89+1 -> 2011 | C90: 0 | AF90: =AND(ISNUMBER(B90),B90>=AdoptionYear,B90<=YearImpact) -> FALSE
B91: =B90+1 -> 2012 | C91: 0 | AF91: =AND(ISNUMBER(B91),B91>=AdoptionYear,B91<=YearImpact) -> FALSE
B92: 2013 | C92: 0 | AF92: =AND(ISNUMBER(B92),B92>=AdoptionYear,B92<=YearImpact) -> FALSE
B93: 2014 | C93: 0 | AF93: =AND(ISNUMBER(B93),B93>=AdoptionYear,B93<=YearImpact) -> FALSE
B94: 2015 | C94: 0 | AF94: =AND(ISNUMBER(B94),B94>=AdoptionYear,B94<=YearImpact) -> FALSE
B95: 2016 | C95: 0 | AF95: =AND(ISNUMBER(B95),B95>=AdoptionYear,B95<=YearImpact) -> FALSE
B96: 2017 | C96: 0 | AF96: =AND(ISNUMBER(B96),B96>=AdoptionYear,B96<=YearImpact) -> FALSE
B97: 2018 | C97: 0 | AF97: =AND(ISNUMBER(B97),B97>=AdoptionYear,B97<=YearImpact) -> FALSE
B98: 2019 | C98: 0 | AF98: =AND(ISNUMBER(B98),B98>=AdoptionYear,B98<=YearImpact) -> FALSE
B99: 2020 | C99: 0 | AF99: =AND(ISNUMBER(B99),B99>=AdoptionYear,B99<=YearImpact) -> FALSE
B100: 2021 | C100: 0 | AF100: =AND(ISNUMBER(B100),B100>=AdoptionYear,B100<=YearImpact) -> FALSE
B101: 2022 | C101: 0 | AF101: =AND(ISNUMBER(B101),B101>=AdoptionYear,B101<=YearImpact) -> FALSE
B102: 2023 | C102: 0 | AF102: =AND(ISNUMBER(B102),B102>=AdoptionYear,B102<=YearImpact) -> FALSE
B103: 2024 | C103: 0 | AF103: =AND(ISNUMBER(B103),B103>=AdoptionYear,B103<=YearImpact) -> FALSE
B104: 2025 | C104: 0 | AF104: =AND(ISNUMBER(B104),B104>=AdoptionYear,B104<=YearImpact) -> FALSE
B105: 2026 | C105: 0 | AF105: =AND(ISNUMBER(B105),B105>=AdoptionYear,B105<=YearImpact) -> FALSE
B106: 2027 | C106: 0 | AF106: =AND(ISNUMBER(B106),B106>=AdoptionYear,B106<=YearImpact) -> FALSE
B107: 2028 | C107: 0 | AF107: =AND(ISNUMBER(B107),B107>=AdoptionYear,B107<=YearImpact) -> FALSE
B108: 2029 | C108: 0 | AF108: =AND(ISNUMBER(B108),B108>=AdoptionYear,B108<=YearImpact) -> FALSE
B109: 2030 | C109: 0 | AF109: =AND(ISNUMBER(B109),B109>=AdoptionYear,B109<=YearImpact) -> FALSE
B110: =B109+1 -> 2031 | C110: 0 | AF110: =AND(ISNUMBER(B110),B110>=AdoptionYear,B110<=YearImpact) -> FALSE
B111: 2032 | C111: 0 | AF111: =AND(ISNUMBER(B111),B111>=AdoptionYear,B111<=YearImpact) -> FALSE
B112: 2033 | C112: 0 | AF112: =AND(ISNUMBER(B112),B112>=AdoptionYear,B112<=YearImpact) -> FALSE
B113: 2034 | C113: 0 | AF113: =AND(ISNUMBER(B113),B113>=AdoptionYear,B113<=YearImpact) -> FALSE
B114: 2035 | C114: 0 | AF114: =AND(ISNUMBER(B114),B114>=AdoptionYear,B114<=YearImpact) -> FALSE
B115: 2036 | C115: 0 | AF115: =AND(ISNUMBER(B115),B115>=AdoptionYear,B115<=YearImpact) -> FALSE
B116: 2037 | C116: 0 | AF116: =AND(ISNUMBER(B116),B116>=AdoptionYear,B116<=YearImpact) -> FALSE
B117: 2038 | C117: 0 | AF117: =AND(ISNUMBER(B117),B117>=AdoptionYear,B117<=YearImpact) -> FALSE
B118: 2039 | C118: 0 | AF118: =AND(ISNUMBER(B118),B118>=AdoptionYear,B118<=YearImpact) -> FALSE
B119: 2040 | C119: 0 | AF119: =AND(ISNUMBER(B119),B119>=AdoptionYear,B119<=YearImpact) -> FALSE
B120: 2041 | C120: 0 | AF120: =AND(ISNUMBER(B120),B120>=AdoptionYear,B120<=YearImpact) -> FALSE
B121: 2042 | C121: 0 | AF121: =AND(ISNUMBER(B121),B121>=AdoptionYear,B121<=YearImpact) -> FALSE
B122: 2043 | C122: 0 | AF122: =AND(ISNUMBER(B122),B122>=AdoptionYear,B122<=YearImpact) -> FALSE
B123: 2044 | C123: 0 | AF123: =AND(ISNUMBER(B123),B123>=AdoptionYear,B123<=YearImpact) -> FALSE
B124: 2045 | C124: 0 | AF124: =AND(ISNUMBER(B124),B124>=AdoptionYear,B124<=YearImpact) -> FALSE
B125: 2046 | C125: 0 | AF125: =AND(ISNUMBER(B125),B125>=AdoptionYear,B125<=YearImpact) -> FALSE
B126: 2047 | C126: 0 | AF126: =AND(ISNUMBER(B126),B126>=AdoptionYear,B126<=YearImpact) -> FALSE
B127: 2048 | C127: 0 | AF127: =AND(ISNUMBER(B127),B127>=AdoptionYear,B127<=YearImpact) -> FALSE
B128: 2049 | C128: 0 | AF128: =AND(ISNUMBER(B128),B128>=AdoptionYear,B128<=YearImpact) -> FALSE
B129: 2050 | C129: =IF(B129<$C$81,0,IF(B129=$C$6,$C$82,IF(B129>$C$86,0,IF(B129>$C$6,C128*(1-$C$83)+IF(B129<=$C$85,C128*($C$84),0))))) -> 0 | AF129: =AND(ISNUMBER(B129),B129>=AdoptionYear,B129<=YearImpact) -> FALSE
B130: 2051 | C130: 0 | AF130: =AND(ISNUMBER(B130),B130>=AdoptionYear,B130<=YearImpact) -> FALSE
B131: 2052 | C131: 0 | AF131: =AND(ISNUMBER(B131),B131>=AdoptionYear,B131<=YearImpact) -> FALSE
B132: 2053 | C132: 0 | AF132: =AND(ISNUMBER(B132),B132>=AdoptionYear,B132<=YearImpact) -> FALSE
B133: 2054 | C133: 0 | AF133: =AND(ISNUMBER(B133),B133>=AdoptionYear,B133<=YearImpact) -> FALSE
B134: 2055 | C134: 0 | AF134: =AND(ISNUMBER(B134),B134>=AdoptionYear,B134<=YearImpact) -> FALSE
B135: 2056 | C135: 0 | AF135: =AND(ISNUMBER(B135),B135>=AdoptionYear,B135<=YearImpact) -> FALSE
B136: 2057 | C136: 0 | AF136: =AND(ISNUMBER(B136),B136>=AdoptionYear,B136<=YearImpact) -> FALSE
B137: 2058 | C137: 0 | AF137: =AND(ISNUMBER(B137),B137>=AdoptionYear,B137<=YearImpact) -> FALSE
B138: 2059 | C138: 0 | AF138: =AND(ISNUMBER(B138),B138>=AdoptionYear,B138<=YearImpact) -> FALSE
B139: 2060 | C139: 0 | AF139: =AND(ISNUMBER(B139),B139>=AdoptionYear,B139<=YearImpact) -> FALSE
B140: 2061 | C140: 0 | AF140: =AND(ISNUMBER(B140),B140>=AdoptionYear,B140<=YearImpact) -> FALSE
B141: 2062 | C141: 0 | AF141: =AND(ISNUMBER(B141),B141>=AdoptionYear,B141<=YearImpact) -> FALSE
B142: 2063 | C142: 0 | AF142: =AND(ISNUMBER(B142),B142>=AdoptionYear,B142<=YearImpact) -> FALSE
B143: 2064 | C143: 0 | AF143: =AND(ISNUMBER(B143),B143>=AdoptionYear,B143<=YearImpact) -> FALSE
B144: 2065 | C144: 0 | AF144: =AND(ISNUMBER(B144),B144>=AdoptionYear,B144<=YearImpact) -> FALSE
B145: 2066 | C145: 0 | AF145: =AND(ISNUMBER(B145),B145>=AdoptionYear,B145<=YearImpact) -> FALSE
B146: 2067 | C146: 0 | AF146: =AND(ISNUMBER(B146),B146>=AdoptionYear,B146<=YearImpact) -> FALSE
B147: 2068 | C147: 0 | AF147: =AND(ISNUMBER(B147),B147>=AdoptionYear,B147<=YearImpact) -> FALSE
B148: 2069 | C148: 0 | AF148: =AND(ISNUMBER(B148),B148>=AdoptionYear,B148<=YearImpact) -> FALSE
B149: 2070 | C149: 0 | AF149: =AND(ISNUMBER(B149),B149>=AdoptionYear,B149<=YearImpact) -> FALSE
AF150: =AND(ISNUMBER(B150),B150>=AdoptionYear,B150<=YearImpact) -> FALSE
AF151: =AND(ISNUMBER(B151),B151>=AdoptionYear,B151<=YearImpact) -> FALSE
B152: Fuel Switching | AF152: =AND(ISNUMBER(B152),B152>=AdoptionYear,B152<=YearImpact) -> FALSE
B153: Year of Adoption | C153: =AdoptionYear -> 0 | AF153: =AND(ISNUMBER(B153),B153>=AdoptionYear,B153<=YearImpact) -> FALSE
B154: Fuel Consumption | C154: ='Data Input'!H192 -> 0 | D154: =C154 -> 0 | E154: =FuelSwitFuelUnit1 -> Gigajoules (GJ) | AF154: =AND(ISNUMBER(B154),B154>=AdoptionYear,B154<=YearImpact) -> FALSE
B155: Tech Deg. Rate | C155: 0 | E155: <Not Applicable> | AF155: =AND(ISNUMBER(B155),B155>=AdoptionYear,B155<=YearImpact) -> FALSE
B156: Growth Rate | C156: =GrowthRate -> 0 | AF156: =AND(ISNUMBER(B156),B156>=AdoptionYear,B156<=YearImpact) -> FALSE
B157: Growth Rate Stop | C157: =YearGrowth -> 2038 | AF157: =AND(ISNUMBER(B157),B157>=AdoptionYear,B157<=YearImpact) -> FALSE
B158: Impact Stop | C158: =YearImpact -> -1 | AF158: =AND(ISNUMBER(B158),B158>=AdoptionYear,B158<=YearImpact) -> FALSE
AF159: =AND(ISNUMBER(B159),B159>=AdoptionYear,B159<=YearImpact) -> FALSE
B160: Year | C160: AD | D160: Baseline | AF160: =AND(ISNUMBER(B160),B160>=AdoptionYear,B160<=YearImpact) -> FALSE
B161: =Start_Year -> 2010 | C161: =IF(B161<$C$153,0,IF(B161=$C$6,$C$154,IF(B161>$C$158,0,IF(B161>$C$6,C160*(1-$C$155)+IF(B161<=$C$157,C160*($C$156),0))))) -> 0 | D161: =IF(B161<$C$153,0,IF(B161=$C$6,$D$154,IF(B161>$C$158,0,IF(B161>$C$6,C160*(1-$C$155)+IF(B161<=$C$157,C160*($C$156),0))))) -> 0 | AF161: =AND(ISNUMBER(B161),B161>=AdoptionYear,B161<=YearImpact) -> FALSE
B162: =B161+1 -> 2011 | C162: 0 | D162: =IF(B162<$C$153,0,IF(B162=$C$6,$D$154,IF(B162>$C$158,0,IF(B162>$C$6,D161*(1-$C$155)+IF(B162<=$C$157,D161*($C$156),0))))) -> 0 | AF162: =AND(ISNUMBER(B162),B162>=AdoptionYear,B162<=YearImpact) -> FALSE
B163: =B162+1 -> 2012 | C163: 0 | D163: 0 | AF163: =AND(ISNUMBER(B163),B163>=AdoptionYear,B163<=YearImpact) -> FALSE
B164: 2013 | C164: 0 | D164: 0 | AF164: =AND(ISNUMBER(B164),B164>=AdoptionYear,B164<=YearImpact) -> FALSE
B165: 2014 | C165: 0 | D165: 0 | AF165: =AND(ISNUMBER(B165),B165>=AdoptionYear,B165<=YearImpact) -> FALSE
B166: 2015 | C166: 0 | D166: 0 | AF166: =AND(ISNUMBER(B166),B166>=AdoptionYear,B166<=YearImpact) -> FALSE
B167: 2016 | C167: 0 | D167: 0 | AF167: =AND(ISNUMBER(B167),B167>=AdoptionYear,B167<=YearImpact) -> FALSE
B168: 2017 | C168: 0 | D168: 0 | AF168: =AND(ISNUMBER(B168),B168>=AdoptionYear,B168<=YearImpact) -> FALSE
B169: 2018 | C169: 0 | D169: 0 | AF169: =AND(ISNUMBER(B169),B169>=AdoptionYear,B169<=YearImpact) -> FALSE
B170: 2019 | C170: 0 | D170: 0 | AF170: =AND(ISNUMBER(B170),B170>=AdoptionYear,B170<=YearImpact) -> FALSE
B171: 2020 | C171: 0 | D171: 0 | AF171: =AND(ISNUMBER(B171),B171>=AdoptionYear,B171<=YearImpact) -> FALSE
B172: 2021 | C172: 0 | D172: 0 | AF172: =AND(ISNUMBER(B172),B172>=AdoptionYear,B172<=YearImpact) -> FALSE
B173: 2022 | C173: 0 | D173: 0 | AF173: =AND(ISNUMBER(B173),B173>=AdoptionYear,B173<=YearImpact) -> FALSE
B174: 2023 | C174: 0 | D174: 0 | AF174: =AND(ISNUMBER(B174),B174>=AdoptionYear,B174<=YearImpact) -> FALSE
B175: 2024 | C175: 0 | D175: 0 | AF175: =AND(ISNUMBER(B175),B175>=AdoptionYear,B175<=YearImpact) -> FALSE
B176: 2025 | C176: 0 | D176: 0 | AF176: =AND(ISNUMBER(B176),B176>=AdoptionYear,B176<=YearImpact) -> FALSE
B177: 2026 | C177: 0 | D177: 0 | AF177: =AND(ISNUMBER(B177),B177>=AdoptionYear,B177<=YearImpact) -> FALSE
B178: 2027 | C178: 0 | D178: 0 | AF178: =AND(ISNUMBER(B178),B178>=AdoptionYear,B178<=YearImpact) -> FALSE
B179: 2028 | C179: 0 | D179: 0 | AF179: =AND(ISNUMBER(B179),B179>=AdoptionYear,B179<=YearImpact) -> FALSE
B180: 2029 | C180: 0 | D180: 0 | AF180: =AND(ISNUMBER(B180),B180>=AdoptionYear,B180<=YearImpact) -> FALSE
B181: 2030 | C181: 0 | D181: 0 | AF181: =AND(ISNUMBER(B181),B181>=AdoptionYear,B181<=YearImpact) -> FALSE
B182: =B181+1 -> 2031 | C182: 0 | D182: 0 | AF182: =AND(ISNUMBER(B182),B182>=AdoptionYear,B182<=YearImpact) -> FALSE
B183: 2032 | C183: 0 | D183: 0 | AF183: =AND(ISNUMBER(B183),B183>=AdoptionYear,B183<=YearImpact) -> FALSE
B184: 2033 | C184: 0 | D184: 0 | AF184: =AND(ISNUMBER(B184),B184>=AdoptionYear,B184<=YearImpact) -> FALSE
B185: 2034 | C185: 0 | D185: 0 | AF185: =AND(ISNUMBER(B185),B185>=AdoptionYear,B185<=YearImpact) -> FALSE
B186: 2035 | C186: 0 | D186: 0 | AF186: =AND(ISNUMBER(B186),B186>=AdoptionYear,B186<=YearImpact) -> FALSE
B187: 2036 | C187: 0 | D187: 0 | AF187: =AND(ISNUMBER(B187),B187>=AdoptionYear,B187<=YearImpact) -> FALSE
B188: 2037 | C188: 0 | D188: 0 | AF188: =AND(ISNUMBER(B188),B188>=AdoptionYear,B188<=YearImpact) -> FALSE
B189: 2038 | C189: 0 | D189: 0 | AF189: =AND(ISNUMBER(B189),B189>=AdoptionYear,B189<=YearImpact) -> FALSE
B190: 2039 | C190: 0 | D190: 0 | AF190: =AND(ISNUMBER(B190),B190>=AdoptionYear,B190<=YearImpact) -> FALSE
B191: 2040 | C191: 0 | D191: 0 | AF191: =AND(ISNUMBER(B191),B191>=AdoptionYear,B191<=YearImpact) -> FALSE
B192: 2041 | C192: 0 | D192: 0 | AF192: =AND(ISNUMBER(B192),B192>=AdoptionYear,B192<=YearImpact) -> FALSE
B193: 2042 | C193: 0 | D193: 0 | AF193: =AND(ISNUMBER(B193),B193>=AdoptionYear,B193<=YearImpact) -> FALSE
B194: 2043 | C194: 0 | D194: 0 | AF194: =AND(ISNUMBER(B194),B194>=AdoptionYear,B194<=YearImpact) -> FALSE
B195: 2044 | C195: 0 | D195: 0 | AF195: =AND(ISNUMBER(B195),B195>=AdoptionYear,B195<=YearImpact) -> FALSE
B196: 2045 | C196: 0 | D196: 0 | AF196: =AND(ISNUMBER(B196),B196>=AdoptionYear,B196<=YearImpact) -> FALSE
B197: 2046 | C197: 0 | D197: 0 | AF197: =AND(ISNUMBER(B197),B197>=AdoptionYear,B197<=YearImpact) -> FALSE
B198: 2047 | C198: 0 | D198: 0 | AF198: =AND(ISNUMBER(B198),B198>=AdoptionYear,B198<=YearImpact) -> FALSE
B199: 2048 | C199: 0 | D199: 0 | AF199: =AND(ISNUMBER(B199),B199>=AdoptionYear,B199<=YearImpact) -> FALSE
B200: 2049 | C200: 0 | D200: 0 | AF200: =AND(ISNUMBER(B200),B200>=AdoptionYear,B200<=YearImpact) -> FALSE
B201: 2050 | C201: =IF(B201<$C$153,0,IF(B201=$C$6,$C$154,IF(B201>$C$158,0,IF(B201>$C$6,C200*(1-$C$155)+IF(B201<=$C$157,C200*($C$156),0))))) -> 0 | D201: =IF(B201<$C$153,0,IF(B201=$C$6,$D$154,IF(B201>$C$158,0,IF(B201>$C$6,D200*(1-$C$155)+IF(B201<=$C$157,D200*($C$156),0))))) -> 0 | AF201: =AND(ISNUMBER(B201),B201>=AdoptionYear,B201<=YearImpact) -> FALSE
B202: 2051 | C202: 0 | D202: 0 | AF202: =AND(ISNUMBER(B202),B202>=AdoptionYear,B202<=YearImpact) -> FALSE
B203: 2052 | C203: 0 | D203: 0 | AF203: =AND(ISNUMBER(B203),B203>=AdoptionYear,B203<=YearImpact) -> FALSE
... 361 more rows

Sheet Country Parameters
B1: 1 | C1: 2 | D1: 3 | E1: 4 | F1: 5 | G1: 6 | H1: 7 | I1: 8 | J1: 9 | K1: 10 | L1: 11 | M1: 12 | N1: 13 | Q1: 14 | R1: 15 | S1: 16 | V1: 7 | W1: =V1+1 -> 8 | X1: =W1+1 -> 9 | Y1: 10 | Z1: 11 | AA1: 12 | AB1: 13 | AC1: 14 | AD1: 15 | AE1: 16 | AF1: 17 | AG1: 18 | AH1: 19 | AI1: 20 | AJ1: 21 | AK1: 22 | AL1: 23 | AM1: 24 | AN1: 25 | AO1: 26 | AP1: 27 | AQ1: =AP1+1 -> 28 | AR1: 29 | AS1: 30 | AT1: 31 | AU1: 32 | AV1: 33 | AW1: 34 | AX1: 35 | AY1: 36 | AZ1: 37 | BA1: 38 | BB1: 39 | BC1: 40 | BD1: 41 | BE1: 42 | BF1: 43 | BG1: 44 | BH1: 45 | BI1: 46 | BN1: =BI1+1 -> 47 | BP1: 29 | BQ1: =BP1+1 -> 30 | BR1: =BQ1+1 -> 31 | BS1: 32 | BT1: 33 | BU1: 34 | BV1: 35 | BW1: 36 | BX1: 37 | BY1: 38 | BZ1: 39 | CA1: 40 | CB1: 41 | CC1: 42 | CD1: 43 | CE1: 44 | CF1: 45 | CG1: 46 | CH1: 47 | CI1: 48 | CJ1: 49 | CK1: =CJ1+1 -> 50 | CL1: 51 | CM1: 52 | CN1: 53 | CO1: 54 | CP1: 55 | CQ1: 56 | CR1: 57 | CS1: 58 | CT1: 59 | CU1: 60 | CV1: 61 | CW1: 62 | CX1: 63 | CY1: 64 | CZ1: 65 | DA1: 66 | DB1: 67 | DC1: 68
B2: Country Parameters | V2: Country Level Projection | BP2: PROXY DATA - Projection Defaults using Regional Growths
B3: Short-form name | C3: Long-form name | D3: US FIPS | E3: Alpha-2 | F3: Alpha-3 | G3: Numeric Code | H3: Latitude Average | I3: Longitude Average | J3: Region | K3: Grid Average Utilized (Grams CO2/kWh) | L3: Grams CO2/kWh (Coal/Peat) | M3: Grams CO2/kWh (Oil) | N3: Grams CO2/kWh (Natural Gas) | O3: Grid Average (IEA) (Grams CO2/kWh) | P3: CDM Avearge Combined Marginal (IGES) | Q3: Average Solar Insolation (kWh/m^2/day) and Average-Day Insolation (hr) | R3: Average Grid Line Loss Rate (%) | S3: Regional Average Grid Emission Factor utilized | T3: New Region (from WEO) | V3: =AdoptionYear -> 0 | W3: =V3+1 -> 1 | X3: =W3+1 -> 2 | Y3: 3 | Z3: 4 | AA3: 5 | AB3: 6 | AC3: 7 | AD3: 8 | AE3: 9 | AF3: 10 | AG3: 11 | AH3: 12 | AI3: 13 | AJ3: 14 | AK3: 15 | AL3: 16 | AM3: 17 | AN3: 18 | AO3: 19 | AP3: 20 | AQ3: =AP3+1 -> 21 | AR3: 22 | AS3: 23 | AT3: 24 | AU3: 25 | AV3: 26 | AW3: 27 | AX3: 28 | AY3: 29 | AZ3: 30 | BA3: 31 | BB3: 32 | BC3: 33 | BD3: 34 | BE3: 35 | BF3: 36 | BG3: 37 | BH3: 38 | BI3: 39 | BJ3: =BI3+1 -> 40 | BK3: =BJ3+1 -> 41 | BL3: =BK3+1 -> 42 | BM3: =BL3+1 -> 43 | BN3: =BM3+1 -> 44 | BP3: =AdoptionYear -> 0 | BQ3: =BP3+1 -> 1 | BR3: 2 | BS3: 3 | BT3: 4 | BU3: 5 | BV3: 6 | BW3: 7 | BX3: 8 | BY3: 9 | BZ3: 10 | CA3: 11 | CB3: 12 | CC3: 13 | CD3: 14 | CE3: 15 | CF3: 16 | CG3: 17 | CH3: 18 | CI3: 19 | CJ3: 20 | CK3: =CJ3+1 -> 21 | CL3: 22 | CM3: 23 | CN3: 24 | CO3: 25 | CP3: 26 | CQ3: 27 | CR3: 28 | CS3: 29 | CT3: 30 | CU3: 31 | CV3: 32 | CW3: 33 | CX3: 34 | CY3: 35 | CZ3: 36 | DA3: 37 | DB3: 38 | DC3: 39 | DD3: =DC3+1 -> 40 | DE3: =DD3+1 -> 41 | DF3: =DE3+1 -> 42 | DG3: =DF3+1 -> 43 | DH3: =DG3+1 -> 44
B4: Afghanistan | C4: Islamic Republic of Afghanistan | D4: AF | E4: AF | F4: AFG | G4: 4 | H4: 33 | I4: 65 | J4: Asia | K4: =IF(P4="N/A",O4,P4) -> 846.5339208 | L4: =IF(ISERROR(VLOOKUP($B4,'Grid EFs'!$B$14:$F$167,3,FALSE)),VLOOKUP($J4,'Grid EFs'!$B$4:$F$9,3,FALSE),VLOOKUP($B4,'Grid EFs'!$B$14:$F$167,3,FALSE)) -> 1144.2709 | M4: =IF(ISERROR(VLOOKUP($B4,'Grid EFs'!$B$14:$F$167,4,FALSE)),VLOOKUP($J4,'Grid EFs'!$B$4:$F$9,4,FALSE),VLOOKUP($B4,'Grid EFs'!$B$14:$F$167,4,FALSE)) -> 843.0648 | N4: =IF(ISERROR(VLOOKUP($B4,'Grid EFs'!$B$14:$F$167,5,FALSE)),VLOOKUP($J4,'Grid EFs'!$B$4:$F$9,5,FALSE),VLOOKUP($B4,'Grid EFs'!$B$14:$F$167,5,FALSE)) -> 451.9748 | O4: 451.1306 | P4: 846.5339208 | Q4: 5.3 | R4: =IF(ISERROR(VLOOKUP($B4,LineLoss!$B$4:$C$147,2,FALSE)),VLOOKUP($J4,LineLoss!$E$4:$F$9,2,FALSE),VLOOKUP($B4,LineLoss!$B$4:$C$147,2,FALSE)) -> 0.05730004629 | S4: =IF(ISNUMBER(MATCH(B4,'Grid EFs'!$B$14:$B$167,0)),"","*") -> * | T4: Non-OECD Asia | V4: =$K4 -> 846.5339208 | W4: =$K4 -> 846.5339208 | X4: 846.5339208 | Y4: 846.5339208 | Z4: 846.5339208 | AA4: 846.5339208 | AB4: 846.5339208 | AC4: 846.5339208 | AD4: 846.5339208 | AE4: 846.5339208 | AF4: 846.5339208 | AG4: 846.5339208 | AH4: 846.5339208 | AI4: 846.5339208 | AJ4: 846.5339208 | AK4: 846.5339208 | AL4: 846.5339208 | AM4: =$K4 -> 846.5339208 | AN4: 846.5339208 | AO4: 846.5339208 | AP4: 846.5339208 | AQ4: =$K4 -> 846.5339208 | AR4: 846.5339208 | AS4: 846.5339208 | AT4: 846.5339208 | AU4: 846.5339208 | AV4: 846.5339208 | AW4: 846.5339208 | AX4: 846.5339208 | AY4: 846.5339208 | AZ4: 846.5339208 | BA4: 846.5339208 | BB4: 846.5339208 | BC4: =$K4 -> 846.5339208 | BD4: 846.5339208 | BE4: 846.5339208 | BF4: 846.5339208 | BG4: 846.5339208 | BH4: 846.5339208 | BI4: 846.5339208 | BJ4: 846.5339208 | BK4: 846.5339208 | BL4: 846.5339208 | BM4: 846.5339208 | BN4: 846.5339208 | BP4: =$K4 -> 846.5339208 | BQ4: 846.5339208 | BR4: 846.5339208 | BS4: 846.5339208 | BT4: 846.5339208 | BU4: 846.5339208 | BV4: 846.5339208 | BW4: 846.5339208 | BX4: 846.5339208 | BY4: 846.5339208 | BZ4: =$K4 -> 846.5339208 | CA4: 846.5339208 | CB4: 846.5339208 | CC4: 846.5339208 | CD4: 846.5339208 | CE4: 846.5339208 | CF4: 846.5339208 | CG4: 846.5339208 | CH4: 846.5339208 | CI4: 846.5339208 | CJ4: 846.5339208 | CK4: 846.5339208 | CL4: 846.5339208 | CM4: 846.5339208 | CN4: 846.5339208 | CO4: 846.5339208 | CP4: =$K4 -> 846.5339208 | CQ4: 846.5339208 | CR4: 846.5339208 | CS4: 846.5339208 | CT4: 846.5339208 | CU4: 846.5339208 | CV4: 846.5339208 | CW4: 846.5339208 | CX4: 846.5339208 | CY4: 846.5339208 | CZ4: 846.5339208 | DA4: 846.5339208 | DB4: 846.5339208 | DC4: 846.5339208 | DD4: 846.5339208 | DE4: 846.5339208 | DF4: =$K4 -> 846.5339208 | DG4: 846.5339208 | DH4: 846.5339208
B5: Albania | C5: Republic of Albania | D5: AL | E5: AL | F5: ALB | G5: 8 | H5: 41 | I5: 20 | J5: Europe | K5: =IF(P5="N/A",O5,P5) -> 312.0333333 | L5: =IF(ISERROR(VLOOKUP($B5,'Grid EFs'!$B$14:$F$167,3,FALSE)),VLOOKUP($J5,'Grid EFs'!$B$4:$F$9,3,FALSE),VLOOKUP($B5,'Grid EFs'!$B$14:$F$167,3,FALSE)) -> 919.0507 | M5: =IF(ISERROR(VLOOKUP($B5,'Grid EFs'!$B$14:$F$167,4,FALSE)),VLOOKUP($J5,'Grid EFs'!$B$4:$F$9,4,FALSE),VLOOKUP($B5,'Grid EFs'!$B$14:$F$167,4,FALSE)) -> 785.5197 | N5: =IF(ISERROR(VLOOKUP($B5,'Grid EFs'!$B$14:$F$167,5,FALSE)),VLOOKUP($J5,'Grid EFs'!$B$4:$F$9,5,FALSE),VLOOKUP($B5,'Grid EFs'!$B$14:$F$167,5,FALSE)) -> 527.4198 | O5: 6.9824 | P5: 312.0333333 | Q5: 4.14 | R5: =IF(ISERROR(VLOOKUP($B5,LineLoss!$B$4:$C$147,2,FALSE)),VLOOKUP($J5,LineLoss!$E$4:$F$9,2,FALSE),VLOOKUP($B5,LineLoss!$B$4:$C$147,2,FALSE)) -> 0.1012017018 | S5: =IF(ISNUMBER(MATCH(B5,'Grid EFs'!$B$14:$B$167,0)),"","*") ->  | T5: Eastern Europe & Eurasia | V5: =$K5 -> 312.0333333 | W5: 312.0333333 | X5: 312.0333333 | Y5: 312.0333333 | Z5: 312.0333333 | AA5: 312.0333333 | AB5: 312.0333333 | AC5: 312.0333333 | AD5: 312.0333333 | AE5: 312.0333333 | AF5: 312.0333333 | AG5: 312.0333333 | AH5: 312.0333333 | AI5: 312.0333333 | AJ5: 312.0333333 | AK5: 312.0333333 | AL5: 312.0333333 | AM5: 312.0333333 | AN5: 312.0333333 | AO5: 312.0333333 | AP5: 312.0333333 | AQ5: 312.0333333 | AR5: 312.0333333 | AS5: 312.0333333 | AT5: 312.0333333 | AU5: 312.0333333 | AV5: 312.0333333 | AW5: 312.0333333 | AX5: 312.0333333 | AY5: 312.0333333 | AZ5: 312.0333333 | BA5: 312.0333333 | BB5: 312.0333333 | BC5: 312.0333333 | BD5: 312.0333333 | BE5: 312.0333333 | BF5: 312.0333333 | BG5: 312.0333333 | BH5: 312.0333333 | BI5: 312.0333333 | BJ5: 312.0333333 | BK5: 312.0333333 | BL5: 312.0333333 | BM5: 312.0333333 | BN5: 312.0333333 | BP5: 312.0333333 | BQ5: 312.0333333 | BR5: 312.0333333 | BS5: 312.0333333 | BT5: 312.0333333 | BU5: 312.0333333 | BV5: 312.0333333 | BW5: 312.0333333 | BX5: 312.0333333 | BY5: 312.0333333 | BZ5: 312.0333333 | CA5: 312.0333333 | CB5: 312.0333333 | CC5: 312.0333333 | CD5: 312.0333333 | CE5: 312.0333333 | CF5: 312.0333333 | CG5: 312.0333333 | CH5: 312.0333333 | CI5: 312.0333333 | CJ5: 312.0333333 | CK5: 312.0333333 | CL5: 312.0333333 | CM5: 312.0333333 | CN5: 312.0333333 | CO5: 312.0333333 | CP5: 312.0333333 | CQ5: 312.0333333 | CR5: 312.0333333 | CS5: 312.0333333 | CT5: 312.0333333 | CU5: 312.0333333 | CV5: 312.0333333 | CW5: 312.0333333 | CX5: 312.0333333 | CY5: 312.0333333 | CZ5: 312.0333333 | DA5: 312.0333333 | DB5: 312.0333333 | DC5: 312.0333333 | DD5: 312.0333333 | DE5: 312.0333333 | DF5: 312.0333333 | DG5: 312.0333333 | DH5: 312.0333333
B6: Algeria | C6: People's Democratic Republic of Algeria | D6: AG | E6: DZ | F6: DZA | G6: 12 | H6: 28 | I6: 3 | J6: Africa | K6: 720.023585 | L6: =IF(ISERROR(VLOOKUP($B6,'Grid EFs'!$B$14:$F$167,3,FALSE)),VLOOKUP($J6,'Grid EFs'!$B$4:$F$9,3,FALSE),VLOOKUP($B6,'Grid EFs'!$B$14:$F$167,3,FALSE)) -> 974.5395 | M6: =IF(ISERROR(VLOOKUP($B6,'Grid EFs'!$B$14:$F$167,4,FALSE)),VLOOKUP($J6,'Grid EFs'!$B$4:$F$9,4,FALSE),VLOOKUP($B6,'Grid EFs'!$B$14:$F$167,4,FALSE)) -> 935.3821 | N6: =IF(ISERROR(VLOOKUP($B6,'Grid EFs'!$B$14:$F$167,5,FALSE)),VLOOKUP($J6,'Grid EFs'!$B$4:$F$9,5,FALSE),VLOOKUP($B6,'Grid EFs'!$B$14:$F$167,5,FALSE)) -> 528.5084 | O6: 549.2008 | P6: 720.023585 | Q6: 5.61 | R6: =IF(ISERROR(VLOOKUP($B6,LineLoss!$B$4:$C$147,2,FALSE)),VLOOKUP($J6,LineLoss!$E$4:$F$9,2,FALSE),VLOOKUP($B6,LineLoss!$B$4:$C$147,2,FALSE)) -> 0.09492160819 | S6: =IF(ISNUMBER(MATCH(B6,'Grid EFs'!$B$14:$B$167,0)),"","*") ->  | T6: Africa | V6: 720.023585 | W6: 720.023585 | X6: 720.023585 | Y6: 720.023585 | Z6: 720.023585 | AA6: 720.023585 | AB6: 720.023585 | AC6: 720.023585 | AD6: 720.023585 | AE6: 720.023585 | AF6: 720.023585 | AG6: 720.023585 | AH6: 720.023585 | AI6: 720.023585 | AJ6: 720.023585 | AK6: 720.023585 | AL6: 720.023585 | AM6: 720.023585 | AN6: 720.023585 | AO6: 720.023585 | AP6: 720.023585 | AQ6: 720.023585 | AR6: 720.023585 | AS6: 720.023585 | AT6: 720.023585 | AU6: 720.023585 | AV6: 720.023585 | AW6: 720.023585 | AX6: 720.023585 | AY6: 720.023585 | AZ6: 720.023585 | BA6: 720.023585 | BB6: 720.023585 | BC6: 720.023585 | BD6: 720.023585 | BE6: 720.023585 | BF6: 720.023585 | BG6: 720.023585 | BH6: 720.023585 | BI6: 720.023585 | BJ6: 720.023585 | BK6: 720.023585 | BL6: 720.023585 | BM6: 720.023585 | BN6: 720.023585 | BP6: 720.023585 | BQ6: 720.023585 | BR6: 720.023585 | BS6: 720.023585 | BT6: 720.023585 | BU6: 720.023585 | BV6: 720.023585 | BW6: 720.023585 | BX6: 720.023585 | BY6: 720.023585 | BZ6: 720.023585 | CA6: 720.023585 | CB6: 720.023585 | CC6: 720.023585 | CD6: 720.023585 | CE6: 720.023585 | CF6: 720.023585 | CG6: 720.023585 | CH6: 720.023585 | CI6: 720.023585 | CJ6: 720.023585 | CK6: 720.023585 | CL6: 720.023585 | CM6: 720.023585 | CN6: 720.023585 | CO6: 720.023585 | CP6: 720.023585 | CQ6: 720.023585 | CR6: 720.023585 | CS6: 720.023585 | CT6: 720.023585 | CU6: 720.023585 | CV6: 720.023585 | CW6: 720.023585 | CX6: 720.023585 | CY6: 720.023585 | CZ6: 720.023585 | DA6: 720.023585 | DB6: 720.023585 | DC6: 720.023585 | DD6: 720.023585 | DE6: 720.023585 | DF6: 720.023585 | DG6: 720.023585 | DH6: 720.023585
B7: Andorra | C7: Principality of Andorra | D7: AN | E7: AD | F7: AND | G7: 20 | H7: 42.5 | I7: 1.6 | J7: Europe | K7: 331.064 | L7: =IF(ISERROR(VLOOKUP($B7,'Grid EFs'!$B$14:$F$167,3,FALSE)),VLOOKUP($J7,'Grid EFs'!$B$4:$F$9,3,FALSE),VLOOKUP($B7,'Grid EFs'!$B$14:$F$167,3,FALSE)) -> 917.4832 | M7: =IF(ISERROR(VLOOKUP($B7,'Grid EFs'!$B$14:$F$167,4,FALSE)),VLOOKUP($J7,'Grid EFs'!$B$4:$F$9,4,FALSE),VLOOKUP($B7,'Grid EFs'!$B$14:$F$167,4,FALSE)) -> 690.5793 | N7: =IF(ISERROR(VLOOKUP($B7,'Grid EFs'!$B$14:$F$167,5,FALSE)),VLOOKUP($J7,'Grid EFs'!$B$4:$F$9,5,FALSE),VLOOKUP($B7,'Grid EFs'!$B$14:$F$167,5,FALSE)) -> 359.0744 | O7: 331.064 | P7: N/A | Q7: 3.7 | R7: =IF(ISERROR(VLOOKUP($B7,LineLoss!$B$4:$C$147,2,FALSE)),VLOOKUP($J7,LineLoss!$E$4:$F$9,2,FALSE),VLOOKUP($B7,LineLoss!$B$4:$C$147,2,FALSE)) -> 0.05810932301 | S7: =IF(ISNUMBER(MATCH(B7,'Grid EFs'!$B$14:$B$167,0)),"","*") -> * | T7: Non-OECD | V7: 331.064 | W7: 331.064 | X7: 331.064 | Y7: 331.064 | Z7: 331.064 | AA7: 331.064 | AB7: 331.064 | AC7: 331.064 | AD7: 331.064 | AE7: 331.064 | AF7: 331.064 | AG7: 331.064 | AH7: 331.064 | AI7: 331.064 | AJ7: 331.064 | AK7: 331.064 | AL7: 331.064 | AM7: 331.064 | AN7: 331.064 | AO7: 331.064 | AP7: 331.064 | AQ7: 331.064 | AR7: 331.064 | AS7: 331.064 | AT7: 331.064 | AU7: 331.064 | AV7: 331.064 | AW7: 331.064 | AX7: 331.064 | AY7: 331.064 | AZ7: 331.064 | BA7: 331.064 | BB7: 331.064 | BC7: 331.064 | BD7: 331.064 | BE7: 331.064 | BF7: 331.064 | BG7: 331.064 | BH7: 331.064 | BI7: 331.064 | BJ7: 331.064 | BK7: 331.064 | BL7: 331.064 | BM7: 331.064 | BN7: 331.064 | BP7: 331.064 | BQ7: 331.064 | BR7: 331.064 | BS7: 331.064 | BT7: 331.064 | BU7: 331.064 | BV7: 331.064 | BW7: 331.064 | BX7: 331.064 | BY7: 331.064 | BZ7: 331.064 | CA7: 331.064 | CB7: 331.064 | CC7: 331.064 | CD7: 331.064 | CE7: 331.064 | CF7: 331.064 | CG7: 331.064 | CH7: 331.064 | CI7: 331.064 | CJ7: 331.064 | CK7: 331.064 | CL7: 331.064 | CM7: 331.064 | CN7: 331.064 | CO7: 331.064 | CP7: 331.064 | CQ7: 331.064 | CR7: 331.064 | CS7: 331.064 | CT7: 331.064 | CU7: 331.064 | CV7: 331.064 | CW7: 331.064 | CX7: 331.064 | CY7: 331.064 | CZ7: 331.064 | DA7: 331.064 | DB7: 331.064 | DC7: 331.064 | DD7: 331.064 | DE7: 331.064 | DF7: 331.064 | DG7: 331.064 | DH7: 331.064
B8: Angola | C8: Republic of Angola | D8: AO | E8: AO | F8: AGO | G8: 24 | H8: -12.5 | I8: 18.5 | J8: Africa | K8: 840.8 | L8: =IF(ISERROR(VLOOKUP($B8,'Grid EFs'!$B$14:$F$167,3,FALSE)),VLOOKUP($J8,'Grid EFs'!$B$4:$F$9,3,FALSE),VLOOKUP($B8,'Grid EFs'!$B$14:$F$167,3,FALSE)) -> 974.5395 | M8: =IF(ISERROR(VLOOKUP($B8,'Grid EFs'!$B$14:$F$167,4,FALSE)),VLOOKUP($J8,'Grid EFs'!$B$4:$F$9,4,FALSE),VLOOKUP($B8,'Grid EFs'!$B$14:$F$167,4,FALSE)) -> 1343.4219 | N8: =IF(ISERROR(VLOOKUP($B8,'Grid EFs'!$B$14:$F$167,5,FALSE)),VLOOKUP($J8,'Grid EFs'!$B$4:$F$9,5,FALSE),VLOOKUP($B8,'Grid EFs'!$B$14:$F$167,5,FALSE)) -> 456.774 | O8: 390.8441 | P8: 840.8 | Q8: 5.58 | R8: =IF(ISERROR(VLOOKUP($B8,LineLoss!$B$4:$C$147,2,FALSE)),VLOOKUP($J8,LineLoss!$E$4:$F$9,2,FALSE),VLOOKUP($B8,LineLoss!$B$4:$C$147,2,FALSE)) -> 0.07427444358 | S8: =IF(ISNUMBER(MATCH(B8,'Grid EFs'!$B$14:$B$167,0)),"","*") ->  | T8: Africa | V8: 840.8 | W8: 840.8 | X8: 840.8 | Y8: 840.8 | Z8: 840.8 | AA8: 840.8 | AB8: 840.8 | AC8: 840.8 | AD8: 840.8 | AE8: 840.8 | AF8: 840.8 | AG8: 840.8 | AH8: 840.8 | AI8: 840.8 | AJ8: 840.8 | AK8: 840.8 | AL8: 840.8 | AM8: 840.8 | AN8: 840.8 | AO8: 840.8 | AP8: 840.8 | AQ8: 840.8 | AR8: 840.8 | AS8: 840.8 | AT8: 840.8 | AU8: 840.8 | AV8: 840.8 | AW8: 840.8 | AX8: 840.8 | AY8: 840.8 | AZ8: 840.8 | BA8: 840.8 | BB8: 840.8 | BC8: 840.8 | BD8: 840.8 | BE8: 840.8 | BF8: 840.8 | BG8: 840.8 | BH8: 840.8 | BI8: 840.8 | BJ8: 840.8 | BK8: 840.8 | BL8: 840.8 | BM8: 840.8 | BN8: 840.8 | BP8: 840.8 | BQ8: 840.8 | BR8: 840.8 | BS8: 840.8 | BT8: 840.8 | BU8: 840.8 | BV8: 840.8 | BW8: 840.8 | BX8: 840.8 | BY8: 840.8 | BZ8: 840.8 | CA8: 840.8 | CB8: 840.8 | CC8: 840.8 | CD8: 840.8 | CE8: 840.8 | CF8: 840.8 | CG8: 840.8 | CH8: 840.8 | CI8: 840.8 | CJ8: 840.8 | CK8: 840.8 | CL8: 840.8 | CM8: 840.8 | CN8: 840.8 | CO8: 840.8 | CP8: 840.8 | CQ8: 840.8 | CR8: 840.8 | CS8: 840.8 | CT8: 840.8 | CU8: 840.8 | CV8: 840.8 | CW8: 840.8 | CX8: 840.8 | CY8: 840.8 | CZ8: 840.8 | DA8: 840.8 | DB8: 840.8 | DC8: 840.8 | DD8: 840.8 | DE8: 840.8 | DF8: 840.8 | DG8: 840.8 | DH8: 840.8
B9: Antigua and Barbuda | C9: Antigua and Barbuda | D9: AC | E9: AG | F9: ATG | G9: 28 | H9: 17.05 | I9: -61.8 | J9: North America | K9: 472.4409815 | L9: =IF(ISERROR(VLOOKUP($B9,'Grid EFs'!$B$14:$F$167,3,FALSE)),VLOOKUP($J9,'Grid EFs'!$B$4:$F$9,3,FALSE),VLOOKUP($B9,'Grid EFs'!$B$14:$F$167,3,FALSE)) -> 912.4052 | M9: =IF(ISERROR(VLOOKUP($B9,'Grid EFs'!$B$14:$F$167,4,FALSE)),VLOOKUP($J9,'Grid EFs'!$B$4:$F$9,4,FALSE),VLOOKUP($B9,'Grid EFs'!$B$14:$F$167,4,FALSE)) -> 718.4282 | N9: =IF(ISERROR(VLOOKUP($B9,'Grid EFs'!$B$14:$F$167,5,FALSE)),VLOOKUP($J9,'Grid EFs'!$B$4:$F$9,5,FALSE),VLOOKUP($B9,'Grid EFs'!$B$14:$F$167,5,FALSE)) -> 407.0114 | O9: 200.8047 | P9: 472.4409815 | Q9: 6.16 | R9: =IF(ISERROR(VLOOKUP($B9,LineLoss!$B$4:$C$147,2,FALSE)),VLOOKUP($J9,LineLoss!$E$4:$F$9,2,FALSE),VLOOKUP($B9,LineLoss!$B$4:$C$147,2,FALSE)) -> 0.05767936475 | S9: =IF(ISNUMBER(MATCH(B9,'Grid EFs'!$B$14:$B$167,0)),"","*") -> * | T9: Latin America | V9: 472.4409815 | W9: 472.4409815 | X9: 472.4409815 | Y9: 472.4409815 | Z9: 472.4409815 | AA9: 472.4409815 | AB9: 472.4409815 | AC9: 472.4409815 | AD9: 472.4409815 | AE9: 472.4409815 | AF9: 472.4409815 | AG9: 472.4409815 | AH9: 472.4409815 | AI9: 472.4409815 | AJ9: 472.4409815 | AK9: 472.4409815 | AL9: 472.4409815 | AM9: 472.4409815 | AN9: 472.4409815 | AO9: 472.4409815 | AP9: 472.4409815 | AQ9: 472.4409815 | AR9: 472.4409815 | AS9: 472.4409815 | AT9: 472.4409815 | AU9: 472.4409815 | AV9: 472.4409815 | AW9: 472.4409815 | AX9: 472.4409815 | AY9: 472.4409815 | AZ9: 472.4409815 | BA9: 472.4409815 | BB9: 472.4409815 | BC9: 472.4409815 | BD9: 472.4409815 | BE9: 472.4409815 | BF9: 472.4409815 | BG9: 472.4409815 | BH9: 472.4409815 | BI9: 472.4409815 | BJ9: 472.4409815 | BK9: 472.4409815 | BL9: 472.4409815 | BM9: 472.4409815 | BN9: 472.4409815 | BP9: 472.4409815 | BQ9: 472.4409815 | BR9: 472.4409815 | BS9: 472.4409815 | BT9: 472.4409815 | BU9: 472.4409815 | BV9: 472.4409815 | BW9: 472.4409815 | BX9: 472.4409815 | BY9: 472.4409815 | BZ9: 472.4409815 | CA9: 472.4409815 | CB9: 472.4409815 | CC9: 472.4409815 | CD9: 472.4409815 | CE9: 472.4409815 | CF9: 472.4409815 | CG9: 472.4409815 | CH9: 472.4409815 | CI9: 472.4409815 | CJ9: 472.4409815 | CK9: 472.4409815 | CL9: 472.4409815 | CM9: 472.4409815 | CN9: 472.4409815 | CO9: 472.4409815 | CP9: 472.4409815 | CQ9: 472.4409815 | CR9: 472.4409815 | CS9: 472.4409815 | CT9: 472.4409815 | CU9: 472.4409815 | CV9: 472.4409815 | CW9: 472.4409815 | CX9: 472.4409815 | CY9: 472.4409815 | CZ9: 472.4409815 | DA9: 472.4409815 | DB9: 472.4409815 | DC9: 472.4409815 | DD9: 472.4409815 | DE9: 472.4409815 | DF9: 472.4409815 | DG9: 472.4409815 | DH9: 472.4409815
B10: Argentina | C10: Argentine Republic | D10: AR | E10: AR | F10: ARG | G10: 32 | H10: -34 | I10: -64 | J10: South America | K10: 504.7211429 | L10: =IF(ISERROR(VLOOKUP($B10,'Grid EFs'!$B$14:$F$167,3,FALSE)),VLOOKUP($J10,'Grid EFs'!$B$4:$F$9,3,FALSE),VLOOKUP($B10,'Grid EFs'!$B$14:$F$167,3,FALSE)) -> 1165.1775 | M10: =IF(ISERROR(VLOOKUP($B10,'Grid EFs'!$B$14:$F$167,4,FALSE)),VLOOKUP($J10,'Grid EFs'!$B$4:$F$9,4,FALSE),VLOOKUP($B10,'Grid EFs'!$B$14:$F$167,4,FALSE)) -> 731.7614 | N10: =IF(ISERROR(VLOOKUP($B10,'Grid EFs'!$B$14:$F$167,5,FALSE)),VLOOKUP($J10,'Grid EFs'!$B$4:$F$9,5,FALSE),VLOOKUP($B10,'Grid EFs'!$B$14:$F$167,5,FALSE)) -> 476.0554 | O10: 397.1744 | P10: 504.7211429 | Q10: 4.8 | R10: =IF(ISERROR(VLOOKUP($B10,LineLoss!$B$4:$C$147,2,FALSE)),VLOOKUP($J10,LineLoss!$E$4:$F$9,2,FALSE),VLOOKUP($B10,LineLoss!$B$4:$C$147,2,FALSE)) -> 0.0848395274 | S10: =IF(ISNUMBER(MATCH(B10,'Grid EFs'!$B$14:$B$167,0)),"","*") ->  | T10: Latin America | V10: 504.7211429 | W10: 504.7211429 | X10: 504.7211429 | Y10: 504.7211429 | Z10: 504.7211429 | AA10: 504.7211429 | AB10: 504.7211429 | AC10: 504.7211429 | AD10: 504.7211429 | AE10: 504.7211429 | AF10: 504.7211429 | AG10: 504.7211429 | AH10: 504.7211429 | AI10: 504.7211429 | AJ10: 504.7211429 | AK10: 504.7211429 | AL10: 504.7211429 | AM10: 504.7211429 | AN10: 504.7211429 | AO10: 504.7211429 | AP10: 504.7211429 | AQ10: 504.7211429 | AR10: 504.7211429 | AS10: 504.7211429 | AT10: 504.7211429 | AU10: 504.7211429 | AV10: 504.7211429 | AW10: 504.7211429 | AX10: 504.7211429 | AY10: 504.7211429 | AZ10: 504.7211429 | BA10: 504.7211429 | BB10: 504.7211429 | BC10: 504.7211429 | BD10: 504.7211429 | BE10: 504.7211429 | BF10: 504.7211429 | BG10: 504.7211429 | BH10: 504.7211429 | BI10: 504.7211429 | BJ10: 504.7211429 | BK10: 504.7211429 | BL10: 504.7211429 | BM10: 504.7211429 | BN10: 504.7211429 | BP10: 504.7211429 | BQ10: 504.7211429 | BR10: 504.7211429 | BS10: 504.7211429 | BT10: 504.7211429 | BU10: 504.7211429 | BV10: 504.7211429 | BW10: 504.7211429 | BX10: 504.7211429 | BY10: 504.7211429 | BZ10: 504.7211429 | CA10: 504.7211429 | CB10: 504.7211429 | CC10: 504.7211429 | CD10: 504.7211429 | CE10: 504.7211429 | CF10: 504.7211429 | CG10: 504.7211429 | CH10: 504.7211429 | CI10: 504.7211429 | CJ10: 504.7211429 | CK10: 504.7211429 | CL10: 504.7211429 | CM10: 504.7211429 | CN10: 504.7211429 | CO10: 504.7211429 | CP10: 504.7211429 | CQ10: 504.7211429 | CR10: 504.7211429 | CS10: 504.7211429 | CT10: 504.7211429 | CU10: 504.7211429 | CV10: 504.7211429 | CW10: 504.7211429 | CX10: 504.7211429 | CY10: 504.7211429 | CZ10: 504.7211429 | DA10: 504.7211429 | DB10: 504.7211429 | DC10: 504.7211429 | DD10: 504.7211429 | DE10: 504.7211429 | DF10: 504.7211429 | DG10: 504.7211429 | DH10: 504.7211429
B11: Armenia | C11: Republic of Armenia | D11: AM | E11: AM | F11: ARM | G11: 51 | H11: 40 | I11: 45 | J11: Asia | K11: 435.9666667 | L11: =IF(ISERROR(VLOOKUP($B11,'Grid EFs'!$B$14:$F$167,3,FALSE)),VLOOKUP($J11,'Grid EFs'!$B$4:$F$9,3,FALSE),VLOOKUP($B11,'Grid EFs'!$B$14:$F$167,3,FALSE)) -> 919.0507 | M11: =IF(ISERROR(VLOOKUP($B11,'Grid EFs'!$B$14:$F$167,4,FALSE)),VLOOKUP($J11,'Grid EFs'!$B$4:$F$9,4,FALSE),VLOOKUP($B11,'Grid EFs'!$B$14:$F$167,4,FALSE)) -> 785.5197 | N11: =IF(ISERROR(VLOOKUP($B11,'Grid EFs'!$B$14:$F$167,5,FALSE)),VLOOKUP($J11,'Grid EFs'!$B$4:$F$9,5,FALSE),VLOOKUP($B11,'Grid EFs'!$B$14:$F$167,5,FALSE)) -> 417.3284 | O11: 176.5181 | P11: 435.9666667 | Q11: 3.96 | R11: =IF(ISERROR(VLOOKUP($B11,LineLoss!$B$4:$C$147,2,FALSE)),VLOOKUP($J11,LineLoss!$E$4:$F$9,2,FALSE),VLOOKUP($B11,LineLoss!$B$4:$C$147,2,FALSE)) -> 0.08111783648 | S11: =IF(ISNUMBER(MATCH(B11,'Grid EFs'!$B$14:$B$167,0)),"","*") ->  | T11: Eastern Europe & Eurasia | V11: 435.9666667 | W11: 435.9666667 | X11: 435.9666667 | Y11: 435.9666667 | Z11: 435.9666667 | AA11: 435.9666667 | AB11: 435.9666667 | AC11: 435.9666667 | AD11: 435.9666667 | AE11: 435.9666667 | AF11: 435.9666667 | AG11: 435.9666667 | AH11: 435.9666667 | AI11: 435.9666667 | AJ11: 435.9666667 | AK11: 435.9666667 | AL11: 435.9666667 | AM11: 435.9666667 | AN11: 435.9666667 | AO11: 435.9666667 | AP11: 435.9666667 | AQ11: 435.9666667 | AR11: 435.9666667 | AS11: 435.9666667 | AT11: 435.9666667 | AU11: 435.9666667 | AV11: 435.9666667 | AW11: 435.9666667 | AX11: 435.9666667 | AY11: 435.9666667 | AZ11: 435.9666667 | BA11: 435.9666667 | BB11: 435.9666667 | BC11: 435.9666667 | BD11: 435.9666667 | BE11: 435.9666667 | BF11: 435.9666667 | BG11: 435.9666667 | BH11: 435.9666667 | BI11: 435.9666667 | BJ11: 435.9666667 | BK11: 435.9666667 | BL11: 435.9666667 | BM11: 435.9666667 | BN11: 435.9666667 | BP11: 435.9666667 | BQ11: 435.9666667 | BR11: 435.9666667 | BS11: 435.9666667 | BT11: 435.9666667 | BU11: 435.9666667 | BV11: 435.9666667 | BW11: 435.9666667 | BX11: 435.9666667 | BY11: 435.9666667 | BZ11: 435.9666667 | CA11: 435.9666667 | CB11: 435.9666667 | CC11: 435.9666667 | CD11: 435.9666667 | CE11: 435.9666667 | CF11: 435.9666667 | CG11: 435.9666667 | CH11: 435.9666667 | CI11: 435.9666667 | CJ11: 435.9666667 | CK11: 435.9666667 | CL11: 435.9666667 | CM11: 435.9666667 | CN11: 435.9666667 | CO11: 435.9666667 | CP11: 435.9666667 | CQ11: 435.9666667 | CR11: 435.9666667 | CS11: 435.9666667 | CT11: 435.9666667 | CU11: 435.9666667 | CV11: 435.9666667 | CW11: 435.9666667 | CX11: 435.9666667 | CY11: 435.9666667 | CZ11: 435.9666667 | DA11: 435.9666667 | DB11: 435.9666667 | DC11: 435.9666667 | DD11: 435.9666667 | DE11: 435.9666667 | DF11: 435.9666667 | DG11: 435.9666667 | DH11: 435.9666667
B12: Australia | C12: Commonwealth of Australia | D12: AS | E12: AU | F12: AUS | G12: 36 | H12: -27 | I12: 133 | J12: Oceania | K12: 798.9019 | L12: =IF(ISERROR(VLOOKUP($B12,'Grid EFs'!$B$14:$F$167,3,FALSE)),VLOOKUP($J12,'Grid EFs'!$B$4:$F$9,3,FALSE),VLOOKUP($B12,'Grid EFs'!$B$14:$F$167,3,FALSE)) -> 993.7538 | M12: =IF(ISERROR(VLOOKUP($B12,'Grid EFs'!$B$14:$F$167,4,FALSE)),VLOOKUP($J12,'Grid EFs'!$B$4:$F$9,4,FALSE),VLOOKUP($B12,'Grid EFs'!$B$14:$F$167,4,FALSE)) -> 679.1895 | N12: =IF(ISERROR(VLOOKUP($B12,'Grid EFs'!$B$14:$F$167,5,FALSE)),VLOOKUP($J12,'Grid EFs'!$B$4:$F$9,5,FALSE),VLOOKUP($B12,'Grid EFs'!$B$14:$F$167,5,FALSE)) -> 522.1739 | O12: 798.9019 | P12: N/A | Q12: 5.9 | R12: =IF(ISERROR(VLOOKUP($B12,LineLoss!$B$4:$C$147,2,FALSE)),VLOOKUP($J12,LineLoss!$E$4:$F$9,2,FALSE),VLOOKUP($B12,LineLoss!$B$4:$C$147,2,FALSE)) -> 0.0510883071 | S12: =IF(ISNUMBER(MATCH(B12,'Grid EFs'!$B$14:$B$167,0)),"","*") ->  | T12: OECD Asia Oceania | V12: 798.9019 | W12: 798.9019 | X12: 798.9019 | Y12: 798.9019 | Z12: 798.9019 | AA12: 798.9019 | AB12: 798.9019 | AC12: 798.9019 | AD12: 798.9019 | AE12: 798.9019 | AF12: 798.9019 | AG12: 798.9019 | AH12: 798.9019 | AI12: 798.9019 | AJ12: 798.9019 | AK12: 798.9019 | AL12: 798.9019 | AM12: 798.9019 | AN12: 798.9019 | AO12: 798.9019 | AP12: 798.9019 | AQ12: 798.9019 | AR12: 798.9019 | AS12: 798.9019 | AT12: 798.9019 | AU12: 798.9019 | AV12: 798.9019 | AW12: 798.9019 | AX12: 798.9019 | AY12: 798.9019 | AZ12: 798.9019 | BA12: 798.9019 | BB12: 798.9019 | BC12: 798.9019 | BD12: 798.9019 | BE12: 798.9019 | BF12: 798.9019 | BG12: 798.9019 | BH12: 798.9019 | BI12: 798.9019 | BJ12: 798.9019 | BK12: 798.9019 | BL12: 798.9019 | BM12: 798.9019 | BN12: 798.9019 | BP12: 798.9019 | BQ12: 798.9019 | BR12: 798.9019 | BS12: 798.9019 | BT12: 798.9019 | BU12: 798.9019 | BV12: 798.9019 | BW12: 798.9019 | BX12: 798.9019 | BY12: 798.9019 | BZ12: 798.9019 | CA12: 798.9019 | CB12: 798.9019 | CC12: 798.9019 | CD12: 798.9019 | CE12: 798.9019 | CF12: 798.9019 | CG12: 798.9019 | CH12: 798.9019 | CI12: 798.9019 | CJ12: 798.9019 | CK12: 798.9019 | CL12: 798.9019 | CM12: 798.9019 | CN12: 798.9019 | CO12: 798.9019 | CP12: 798.9019 | CQ12: 798.9019 | CR12: 798.9019 | CS12: 798.9019 | CT12: 798.9019 | CU12: 798.9019 | CV12: 798.9019 | CW12: 798.9019 | CX12: 798.9019 | CY12: 798.9019 | CZ12: 798.9019 | DA12: 798.9019 | DB12: 798.9019 | DC12: 798.9019 | DD12: 798.9019 | DE12: 798.9019 | DF12: 798.9019 | DG12: 798.9019 | DH12: 798.9019
B13: Austria | C13: Republic of Austria | D13: AU | E13: AT | F13: AUT | G13: 40 | H13: 47.3333 | I13: 13.3333 | J13: Europe | K13: 164.791 | L13: =IF(ISERROR(VLOOKUP($B13,'Grid EFs'!$B$14:$F$167,3,FALSE)),VLOOKUP($J13,'Grid EFs'!$B$4:$F$9,3,FALSE),VLOOKUP($B13,'Grid EFs'!$B$14:$F$167,3,FALSE)) -> 1057.8384 | M13: =IF(ISERROR(VLOOKUP($B13,'Grid EFs'!$B$14:$F$167,4,FALSE)),VLOOKUP($J13,'Grid EFs'!$B$4:$F$9,4,FALSE),VLOOKUP($B13,'Grid EFs'!$B$14:$F$167,4,FALSE)) -> 578.3732 | N13: =IF(ISERROR(VLOOKUP($B13,'Grid EFs'!$B$14:$F$167,5,FALSE)),VLOOKUP($J13,'Grid EFs'!$B$4:$F$9,5,FALSE),VLOOKUP($B13,'Grid EFs'!$B$14:$F$167,5,FALSE)) -> 320.4583 | O13: 164.791 | P13: N/A | Q13: 3.25 | R13: =IF(ISERROR(VLOOKUP($B13,LineLoss!$B$4:$C$147,2,FALSE)),VLOOKUP($J13,LineLoss!$E$4:$F$9,2,FALSE),VLOOKUP($B13,LineLoss!$B$4:$C$147,2,FALSE)) -> 0.04466872075 | S13: =IF(ISNUMBER(MATCH(B13,'Grid EFs'!$B$14:$B$167,0)),"","*") ->  | T13: OECD Europe | V13: 164.791 | W13: 164.791 | X13: 164.791 | Y13: 164.791 | Z13: 164.791 | AA13: 164.791 | AB13: 164.791 | AC13: 164.791 | AD13: 164.791 | AE13: 164.791 | AF13: 164.791 | AG13: 164.791 | AH13: 164.791 | AI13: 164.791 | AJ13: 164.791 | AK13: 164.791 | AL13: 164.791 | AM13: 164.791 | AN13: 164.791 | AO13: 164.791 | AP13: 164.791 | AQ13: 164.791 | AR13: 164.791 | AS13: 164.791 | AT13: 164.791 | AU13: 164.791 | AV13: 164.791 | AW13: 164.791 | AX13: 164.791 | AY13: 164.791 | AZ13: 164.791 | BA13: 164.791 | BB13: 164.791 | BC13: 164.791 | BD13: 164.791 | BE13: 164.791 | BF13: 164.791 | BG13: 164.791 | BH13: 164.791 | BI13: 164.791 | BJ13: 164.791 | BK13: 164.791 | BL13: 164.791 | BM13: 164.791 | BN13: 164.791 | BP13: 164.791 | BQ13: 164.791 | BR13: 164.791 | BS13: 164.791 | BT13: 164.791 | BU13: 164.791 | BV13: 164.791 | BW13: 164.791 | BX13: 164.791 | BY13: 164.791 | BZ13: 164.791 | CA13: 164.791 | CB13: 164.791 | CC13: 164.791 | CD13: 164.791 | CE13: 164.791 | CF13: 164.791 | CG13: 164.791 | CH13: 164.791 | CI13: 164.791 | CJ13: 164.791 | CK13: 164.791 | CL13: 164.791 | CM13: 164.791 | CN13: 164.791 | CO13: 164.791 | CP13: 164.791 | CQ13: 164.791 | CR13: 164.791 | CS13: 164.791 | CT13: 164.791 | CU13: 164.791 | CV13: 164.791 | CW13: 164.791 | CX13: 164.791 | CY13: 164.791 | CZ13: 164.791 | DA13: 164.791 | DB13: 164.791 | DC13: 164.791 | DD13: 164.791 | DE13: 164.791 | DF13: 164.791 | DG13: 164.791 | DH13: 164.791
B14: Azerbaijan | C14: Republic of Azerbaijan | D14: AJ | E14: AZ | F14: AZE | G14: 31 | H14: 40.5 | I14: 47.5 | J14: Asia | K14: 589.76 | L14: =IF(ISERROR(VLOOKUP($B14,'Grid EFs'!$B$14:$F$167,3,FALSE)),VLOOKUP($J14,'Grid EFs'!$B$4:$F$9,3,FALSE),VLOOKUP($B14,'Grid EFs'!$B$14:$F$167,3,FALSE)) -> 919.0507 | M14: =IF(ISERROR(VLOOKUP($B14,'Grid EFs'!$B$14:$F$167,4,FALSE)),VLOOKUP($J14,'Grid EFs'!$B$4:$F$9,4,FALSE),VLOOKUP($B14,'Grid EFs'!$B$14:$F$167,4,FALSE)) -> 627.9523 | N14: =IF(ISERROR(VLOOKUP($B14,'Grid EFs'!$B$14:$F$167,5,FALSE)),VLOOKUP($J14,'Grid EFs'!$B$4:$F$9,5,FALSE),VLOOKUP($B14,'Grid EFs'!$B$14:$F$167,5,FALSE)) -> 533.8971 | O14: 493.6623 | P14: 589.76 | Q14: 3.48 | R14: =IF(ISERROR(VLOOKUP($B14,LineLoss!$B$4:$C$147,2,FALSE)),VLOOKUP($J14,LineLoss!$E$4:$F$9,2,FALSE),VLOOKUP($B14,LineLoss!$B$4:$C$147,2,FALSE)) -> 0.0921910289 | S14: =IF(ISNUMBER(MATCH(B14,'Grid EFs'!$B$14:$B$167,0)),"","*") ->  | T14: Eastern Europe & Eurasia | V14: 589.76 | W14: 589.76 | X14: 589.76 | Y14: 589.76 | Z14: 589.76 | AA14: 589.76 | AB14: 589.76 | AC14: 589.76 | AD14: 589.76 | AE14: 589.76 | AF14: 589.76 | AG14: 589.76 | AH14: 589.76 | AI14: 589.76 | AJ14: 589.76 | AK14: 589.76 | AL14: 589.76 | AM14: 589.76 | AN14: 589.76 | AO14: 589.76 | AP14: 589.76 | AQ14: 589.76 | AR14: 589.76 | AS14: 589.76 | AT14: 589.76 | AU14: 589.76 | AV14: 589.76 | AW14: 589.76 | AX14: 589.76 | AY14: 589.76 | AZ14: 589.76 | BA14: 589.76 | BB14: 589.76 | BC14: 589.76 | BD14: 589.76 | BE14: 589.76 | BF14: 589.76 | BG14: 589.76 | BH14: 589.76 | BI14: 589.76 | BJ14: 589.76 | BK14: 589.76 | BL14: 589.76 | BM14: 589.76 | BN14: 589.76 | BP14: =$K14 -> 589.76 | BQ14: 589.76 | BR14: 589.76 | BS14: 589.76 | BT14: 589.76 | BU14: 589.76 | BV14: 589.76 | BW14: 589.76 | BX14: 589.76 | BY14: 589.76 | BZ14: =$K14 -> 589.76 | CA14: 589.76 | CB14: 589.76 | CC14: 589.76 | CD14: 589.76 | CE14: 589.76 | CF14: 589.76 | CG14: 589.76 | CH14: 589.76 | CI14: 589.76 | CJ14: 589.76 | CK14: 589.76 | CL14: 589.76 | CM14: 589.76 | CN14: 589.76 | CO14: 589.76 | CP14: 589.76 | CQ14: 589.76 | CR14: 589.76 | CS14: 589.76 | CT14: 589.76 | CU14: 589.76 | CV14: 589.76 | CW14: 589.76 | CX14: 589.76 | CY14: 589.76 | CZ14: 589.76 | DA14: 589.76 | DB14: 589.76 | DC14: 589.76 | DD14: 589.76 | DE14: 589.76 | DF14: 589.76 | DG14: 589.76 | DH14: 589.76
B15: Bahamas, The | C15: Commonwealth of The Bahamas | D15: BF | E15: BS | F15: BHS | G15: 44 | H15: 24.25 | I15: -76 | J15: North America | K15: 723 | L15: =IF(ISERROR(VLOOKUP($B15,'Grid EFs'!$B$14:$F$167,3,FALSE)),VLOOKUP($J15,'Grid EFs'!$B$4:$F$9,3,FALSE),VLOOKUP($B15,'Grid EFs'!$B$14:$F$167,3,FALSE)) -> 912.4052 | M15: =IF(ISERROR(VLOOKUP($B15,'Grid EFs'!$B$14:$F$167,4,FALSE)),VLOOKUP($J15,'Grid EFs'!$B$4:$F$9,4,FALSE),VLOOKUP($B15,'Grid EFs'!$B$14:$F$167,4,FALSE)) -> 718.4282 | N15: =IF(ISERROR(VLOOKUP($B15,'Grid EFs'!$B$14:$F$167,5,FALSE)),VLOOKUP($J15,'Grid EFs'!$B$4:$F$9,5,FALSE),VLOOKUP($B15,'Grid EFs'!$B$14:$F$167,5,FALSE)) -> 407.0114 | O15: 200.8047 | P15: 723 | Q15: 5.74 | R15: =IF(ISERROR(VLOOKUP($B15,LineLoss!$B$4:$C$147,2,FALSE)),VLOOKUP($J15,LineLoss!$E$4:$F$9,2,FALSE),VLOOKUP($B15,LineLoss!$B$4:$C$147,2,FALSE)) -> 0.05767936475 | S15: =IF(ISNUMBER(MATCH(B15,'Grid EFs'!$B$14:$B$167,0)),"","*") -> * | T15: Latin America | V15: 723 | W15: 723 | X15: 723 | Y15: 723 | Z15: 723 | AA15: 723 | AB15: 723 | AC15: 723 | AD15: 723 | AE15: 723 | AF15: 723 | AG15: 723 | AH15: 723 | AI15: 723 | AJ15: 723 | AK15: 723 | AL15: 723 | AM15: 723 | AN15: 723 | AO15: 723 | AP15: 723 | AQ15: 723 | AR15: 723 | AS15: 723 | AT15: 723 | AU15: 723 | AV15: 723 | AW15: 723 | AX15: 723 | AY15: 723 | AZ15: 723 | BA15: 723 | BB15: 723 | BC15: 723 | BD15: 723 | BE15: 723 | BF15: 723 | BG15: 723 | BH15: 723 | BI15: 723 | BJ15: 723 | BK15: 723 | BL15: 723 | BM15: 723 | BN15: 723 | BP15: 723 | BQ15: 723 | BR15: 723 | BS15: 723 | BT15: 723 | BU15: 723 | BV15: 723 | BW15: 723 | BX15: 723 | BY15: 723 | BZ15: 723 | CA15: 723 | CB15: 723 | CC15: 723 | CD15: 723 | CE15: 723 | CF15: 723 | CG15: 723 | CH15: 723 | CI15: 723 | CJ15: 723 | CK15: 723 | CL15: 723 | CM15: 723 | CN15: 723 | CO15: 723 | CP15: 723 | CQ15: 723 | CR15: 723 | CS15: 723 | CT15: 723 | CU15: 723 | CV15: 723 | CW15: 723 | CX15: 723 | CY15: 723 | CZ15: 723 | DA15: 723 | DB15: 723 | DC15: 723 | DD15: 723 | DE15: 723 | DF15: 723 | DG15: 723 | DH15: 723
B16: Bahrain | C16: Kingdom of Bahrain | D16: BA | E16: BH | F16: BHR | G16: 48 | H16: 26 | I16: 50.55 | J16: Asia | K16: 679.1801887 | L16: =IF(ISERROR(VLOOKUP($B16,'Grid EFs'!$B$14:$F$167,3,FALSE)),VLOOKUP($J16,'Grid EFs'!$B$4:$F$9,3,FALSE),VLOOKUP($B16,'Grid EFs'!$B$14:$F$167,3,FALSE)) -> 1144.2709 | M16: =IF(ISERROR(VLOOKUP($B16,'Grid EFs'!$B$14:$F$167,4,FALSE)),VLOOKUP($J16,'Grid EFs'!$B$4:$F$9,4,FALSE),VLOOKUP($B16,'Grid EFs'!$B$14:$F$167,4,FALSE)) -> 915.4122 | N16: =IF(ISERROR(VLOOKUP($B16,'Grid EFs'!$B$14:$F$167,5,FALSE)),VLOOKUP($J16,'Grid EFs'!$B$4:$F$9,5,FALSE),VLOOKUP($B16,'Grid EFs'!$B$14:$F$167,5,FALSE)) -> 754.7189 | O16: 754.7189 | P16: 679.1801887 | Q16: 6.01 | R16: =IF(ISERROR(VLOOKUP($B16,LineLoss!$B$4:$C$147,2,FALSE)),VLOOKUP($J16,LineLoss!$E$4:$F$9,2,FALSE),VLOOKUP($B16,LineLoss!$B$4:$C$147,2,FALSE)) -> 0.05652999654 | S16: =IF(ISNUMBER(MATCH(B16,'Grid EFs'!$B$14:$B$167,0)),"","*") ->  | T16: Middle East | V16: 679.1801887 | W16: 679.1801887 | X16: 679.1801887 | Y16: 679.1801887 | Z16: 679.1801887 | AA16: 679.1801887 | AB16: 679.1801887 | AC16: 679.1801887 | AD16: 679.1801887 | AE16: 679.1801887 | AF16: 679.1801887 | AG16: 679.1801887 | AH16: 679.1801887 | AI16: 679.1801887 | AJ16: 679.1801887 | AK16: 679.1801887 | AL16: 679.1801887 | AM16: 679.1801887 | AN16: 679.1801887 | AO16: 679.1801887 | AP16: 679.1801887 | AQ16: 679.1801887 | AR16: 679.1801887 | AS16: 679.1801887 | AT16: 679.1801887 | AU16: 679.1801887 | AV16: 679.1801887 | AW16: 679.1801887 | AX16: 679.1801887 | AY16: 679.1801887 | AZ16: 679.1801887 | BA16: 679.1801887 | BB16: 679.1801887 | BC16: 679.1801887 | BD16: 679.1801887 | BE16: 679.1801887 | BF16: 679.1801887 | BG16: 679.1801887 | BH16: 679.1801887 | BI16: 679.1801887 | BJ16: 679.1801887 | BK16: 679.1801887 | BL16: 679.1801887 | BM16: 679.1801887 | BN16: 679.1801887 | BP16: 679.1801887 | BQ16: 679.1801887 | BR16: 679.1801887 | BS16: 679.1801887 | BT16: 679.1801887 | BU16: 679.1801887 | BV16: 679.1801887 | BW16: 679.1801887 | BX16: 679.1801887 | BY16: 679.1801887 | BZ16: 679.1801887 | CA16: 679.1801887 | CB16: 679.1801887 | CC16: 679.1801887 | CD16: 679.1801887 | CE16: 679.1801887 | CF16: 679.1801887 | CG16: 679.1801887 | CH16: 679.1801887 | CI16: 679.1801887 | CJ16: 679.1801887 | CK16: 679.1801887 | CL16: 679.1801887 | CM16: 679.1801887 | CN16: 679.1801887 | CO16: 679.1801887 | CP16: 679.1801887 | CQ16: 679.1801887 | CR16: 679.1801887 | CS16: 679.1801887 | CT16: 679.1801887 | CU16: 679.1801887 | CV16: 679.1801887 | CW16: 679.1801887 | CX16: 679.1801887 | CY16: 679.1801887 | CZ16: 679.1801887 | DA16: 679.1801887 | DB16: 679.1801887 | DC16: 679.1801887 | DD16: 679.1801887 | DE16: 679.1801887 | DF16: 679.1801887 | DG16: 679.1801887 | DH16: 679.1801887
B17: Bangladesh | C17: People's Republic of Bangladesh | D17: BG | E17: BD | F17: BGD | G17: 50 | H17: 24 | I17: 90 | J17: Asia | K17: 640.685 | L17: =IF(ISERROR(VLOOKUP($B17,'Grid EFs'!$B$14:$F$167,3,FALSE)),VLOOKUP($J17,'Grid EFs'!$B$4:$F$9,3,FALSE),VLOOKUP($B17,'Grid EFs'!$B$14:$F$167,3,FALSE)) -> 1037.0159 | M17: =IF(ISERROR(VLOOKUP($B17,'Grid EFs'!$B$14:$F$167,4,FALSE)),VLOOKUP($J17,'Grid EFs'!$B$4:$F$9,4,FALSE),VLOOKUP($B17,'Grid EFs'!$B$14:$F$167,4,FALSE)) -> 598.7265 | N17: =IF(ISERROR(VLOOKUP($B17,'Grid EFs'!$B$14:$F$167,5,FALSE)),VLOOKUP($J17,'Grid EFs'!$B$4:$F$9,5,FALSE),VLOOKUP($B17,'Grid EFs'!$B$14:$F$167,5,FALSE)) -> 572.8531 | O17: 575.1163 | P17: 640.685 | Q17: 4.65 | R17: =IF(ISERROR(VLOOKUP($B17,LineLoss!$B$4:$C$147,2,FALSE)),VLOOKUP($J17,LineLoss!$E$4:$F$9,2,FALSE),VLOOKUP($B17,LineLoss!$B$4:$C$147,2,FALSE)) -> 0.0756347503 | S17: =IF(ISNUMBER(MATCH(B17,'Grid EFs'!$B$14:$B$167,0)),"","*") ->  | T17: Non-OECD Asia | V17: 640.685 | W17: 640.685 | X17: 640.685 | Y17: 640.685 | Z17: 640.685 | AA17: 640.685 | AB17: 640.685 | AC17: 640.685 | AD17: 640.685 | AE17: 640.685 | AF17: 640.685 | AG17: 640.685 | AH17: 640.685 | AI17: 640.685 | AJ17: 640.685 | AK17: 640.685 | AL17: 640.685 | AM17: 640.685 | AN17: 640.685 | AO17: 640.685 | AP17: 640.685 | AQ17: 640.685 | AR17: 640.685 | AS17: 640.685 | AT17: 640.685 | AU17: 640.685 | AV17: 640.685 | AW17: 640.685 | AX17: 640.685 | AY17: 640.685 | AZ17: 640.685 | BA17: 640.685 | BB17: 640.685 | BC17: 640.685 | BD17: 640.685 | BE17: 640.685 | BF17: 640.685 | BG17: 640.685 | BH17: 640.685 | BI17: 640.685 | BJ17: 640.685 | BK17: 640.685 | BL17: 640.685 | BM17: 640.685 | BN17: 640.685 | BP17: 640.685 | BQ17: 640.685 | BR17: 640.685 | BS17: 640.685 | BT17: 640.685 | BU17: 640.685 | BV17: 640.685 | BW17: 640.685 | BX17: 640.685 | BY17: 640.685 | BZ17: 640.685 | CA17: 640.685 | CB17: 640.685 | CC17: 640.685 | CD17: 640.685 | CE17: 640.685 | CF17: 640.685 | CG17: 640.685 | CH17: 640.685 | CI17: 640.685 | CJ17: 640.685 | CK17: 640.685 | CL17: 640.685 | CM17: 640.685 | CN17: 640.685 | CO17: 640.685 | CP17: 640.685 | CQ17: 640.685 | CR17: 640.685 | CS17: 640.685 | CT17: 640.685 | CU17: 640.685 | CV17: 640.685 | CW17: 640.685 | CX17: 640.685 | CY17: 640.685 | CZ17: 640.685 | DA17: 640.685 | DB17: 640.685 | DC17: 640.685 | DD17: 640.685 | DE17: 640.685 | DF17: 640.685 | DG17: 640.685 | DH17: 640.685
B18: Barbados | C18: Barbados | D18: BB | E18: BB | F18: BRB | G18: 52 | H18: 13.1667 | I18: -59.5333 | J18: North America | K18: 472.4409815 | L18: =IF(ISERROR(VLOOKUP($B18,'Grid EFs'!$B$14:$F$167,3,FALSE)),VLOOKUP($J18,'Grid EFs'!$B$4:$F$9,3,FALSE),VLOOKUP($B18,'Grid EFs'!$B$14:$F$167,3,FALSE)) -> 912.4052 | M18: =IF(ISERROR(VLOOKUP($B18,'Grid EFs'!$B$14:$F$167,4,FALSE)),VLOOKUP($J18,'Grid EFs'!$B$4:$F$9,4,FALSE),VLOOKUP($B18,'Grid EFs'!$B$14:$F$167,4,FALSE)) -> 718.4282 | N18: =IF(ISERROR(VLOOKUP($B18,'Grid EFs'!$B$14:$F$167,5,FALSE)),VLOOKUP($J18,'Grid EFs'!$B$4:$F$9,5,FALSE),VLOOKUP($B18,'Grid EFs'!$B$14:$F$167,5,FALSE)) -> 407.0114 | O18: 200.8047 | P18: 472.4409815 | Q18: 6.1 | R18: =IF(ISERROR(VLOOKUP($B18,LineLoss!$B$4:$C$147,2,FALSE)),VLOOKUP($J18,LineLoss!$E$4:$F$9,2,FALSE),VLOOKUP($B18,LineLoss!$B$4:$C$147,2,FALSE)) -> 0.05767936475 | S18: =IF(ISNUMBER(MATCH(B18,'Grid EFs'!$B$14:$B$167,0)),"","*") -> * | T18: Latin America | V18: 472.4409815 | W18: 472.4409815 | X18: 472.4409815 | Y18: 472.4409815 | Z18: 472.4409815 | AA18: 472.4409815 | AB18: 472.4409815 | AC18: 472.4409815 | AD18: 472.4409815 | AE18: 472.4409815 | AF18: 472.4409815 | AG18: 472.4409815 | AH18: 472.4409815 | AI18: 472.4409815 | AJ18: 472.4409815 | AK18: 472.4409815 | AL18: 472.4409815 | AM18: 472.4409815 | AN18: 472.4409815 | AO18: 472.4409815 | AP18: 472.4409815 | AQ18: 472.4409815 | AR18: 472.4409815 | AS18: 472.4409815 | AT18: 472.4409815 | AU18: 472.4409815 | AV18: 472.4409815 | AW18: 472.4409815 | AX18: =$K18 -> 472.4409815 | AY18: 472.4409815 | AZ18: 472.4409815 | BA18: 472.4409815 | BB18: 472.4409815 | BC18: 472.4409815 | BD18: 472.4409815 | BE18: 472.4409815 | BF18: 472.4409815 | BG18: 472.4409815 | BH18: 472.4409815 | BI18: 472.4409815 | BJ18: 472.4409815 | BK18: 472.4409815 | BL18: 472.4409815 | BM18: 472.4409815 | BN18: 472.4409815 | BP18: 472.4409815 | BQ18: 472.4409815 | BR18: 472.4409815 | BS18: 472.4409815 | BT18: 472.4409815 | BU18: 472.4409815 | BV18: 472.4409815 | BW18: 472.4409815 | BX18: 472.4409815 | BY18: 472.4409815 | BZ18: 472.4409815 | CA18: 472.4409815 | CB18: 472.4409815 | CC18: 472.4409815 | CD18: 472.4409815 | CE18: 472.4409815 | CF18: 472.4409815 | CG18: 472.4409815 | CH18: 472.4409815 | CI18: 472.4409815 | CJ18: 472.4409815 | CK18: 472.4409815 | CL18: 472.4409815 | CM18: 472.4409815 | CN18: 472.4409815 | CO18: 472.4409815 | CP18: 472.4409815 | CQ18: 472.4409815 | CR18: 472.4409815 | CS18: 472.4409815 | CT18: 472.4409815 | CU18: 472.4409815 | CV18: 472.4409815 | CW18: 472.4409815 | CX18: 472.4409815 | CY18: 472.4409815 | CZ18: 472.4409815 | DA18: 472.4409815 | DB18: 472.4409815 | DC18: 472.4409815 | DD18: 472.4409815 | DE18: 472.4409815 | DF18: 472.4409815 | DG18: 472.4409815 | DH18: 472.4409815
B19: Belarus | C19: Republic of Belarus | D19: BO | E19: BY | F19: BLR | G19: 112 | H19: 53 | I19: 28 | J19: Europe | K19: 425.1181 | L19: =IF(ISERROR(VLOOKUP($B19,'Grid EFs'!$B$14:$F$167,3,FALSE)),VLOOKUP($J19,'Grid EFs'!$B$4:$F$9,3,FALSE),VLOOKUP($B19,'Grid EFs'!$B$14:$F$167,3,FALSE)) -> 1487.011 | M19: =IF(ISERROR(VLOOKUP($B19,'Grid EFs'!$B$14:$F$167,4,FALSE)),VLOOKUP($J19,'Grid EFs'!$B$4:$F$9,4,FALSE),VLOOKUP($B19,'Grid EFs'!$B$14:$F$167,4,FALSE)) -> 583.2028 | N19: =IF(ISERROR(VLOOKUP($B19,'Grid EFs'!$B$14:$F$167,5,FALSE)),VLOOKUP($J19,'Grid EFs'!$B$4:$F$9,5,FALSE),VLOOKUP($B19,'Grid EFs'!$B$14:$F$167,5,FALSE)) -> 422.5169 | O19: 425.1181 | P19: N/A | Q19: 2.82 | R19: =IF(ISERROR(VLOOKUP($B19,LineLoss!$B$4:$C$147,2,FALSE)),VLOOKUP($J19,LineLoss!$E$4:$F$9,2,FALSE),VLOOKUP($B19,LineLoss!$B$4:$C$147,2,FALSE)) -> 0.07364560087 | S19: =IF(ISNUMBER(MATCH(B19,'Grid EFs'!$B$14:$B$167,0)),"","*") ->  | T19: Eastern Europe & Eurasia | V19: 425.1181 | W19: 425.1181 | X19: 425.1181 | Y19: 425.1181 | Z19: 425.1181 | AA19: 425.1181 | AB19: 425.1181 | AC19: 425.1181 | AD19: 425.1181 | AE19: 425.1181 | AF19: 425.1181 | AG19: 425.1181 | AH19: 425.1181 | AI19: 425.1181 | AJ19: 425.1181 | AK19: 425.1181 | AL19: =$K19 -> 425.1181 | AM19: 425.1181 | AN19: 425.1181 | AO19: 425.1181 | AP19: 425.1181 | AQ19: =$K19 -> 425.1181 | AR19: 425.1181 | AS19: 425.1181 | AT19: 425.1181 | AU19: 425.1181 | AV19: 425.1181 | AW19: 425.1181 | AX19: 425.1181 | AY19: 425.1181 | AZ19: 425.1181 | BA19: 425.1181 | BB19: 425.1181 | BC19: 425.1181 | BD19: 425.1181 | BE19: 425.1181 | BF19: =$K19 -> 425.1181 | BG19: 425.1181 | BH19: 425.1181 | BI19: 425.1181 | BJ19: 425.1181 | BK19: 425.1181 | BL19: 425.1181 | BM19: 425.1181 | BN19: 425.1181 | BP19: 425.1181 | BQ19: 425.1181 | BR19: 425.1181 | BS19: 425.1181 | BT19: 425.1181 | BU19: 425.1181 | BV19: 425.1181 | BW19: 425.1181 | BX19: 425.1181 | BY19: 425.1181 | BZ19: 425.1181 | CA19: 425.1181 | CB19: 425.1181 | CC19: 425.1181 | CD19: 425.1181 | CE19: 425.1181 | CF19: 425.1181 | CG19: 425.1181 | CH19: 425.1181 | CI19: 425.1181 | CJ19: 425.1181 | CK19: 425.1181 | CL19: 425.1181 | CM19: 425.1181 | CN19: 425.1181 | CO19: 425.1181 | CP19: 425.1181 | CQ19: 425.1181 | CR19: 425.1181 | CS19: 425.1181 | CT19: 425.1181 | CU19: 425.1181 | CV19: 425.1181 | CW19: 425.1181 | CX19: 425.1181 | CY19: 425.1181 | CZ19: 425.1181 | DA19: 425.1181 | DB19: 425.1181 | DC19: 425.1181 | DD19: 425.1181 | DE19: 425.1181 | DF19: 425.1181 | DG19: 425.1181 | DH19: 425.1181
B20: Belgium | C20: Kingdom of Belgium | D20: BE | E20: BE | F20: BEL | G20: 56 | H20: 50.8333 | I20: 4 | J20: Europe | K20: 212.018 | L20: =IF(ISERROR(VLOOKUP($B20,'Grid EFs'!$B$14:$F$167,3,FALSE)),VLOOKUP($J20,'Grid EFs'!$B$4:$F$9,3,FALSE),VLOOKUP($B20,'Grid EFs'!$B$14:$F$167,3,FALSE)) -> 1318.2679 | M20: =IF(ISERROR(VLOOKUP($B20,'Grid EFs'!$B$14:$F$167,4,FALSE)),VLOOKUP($J20,'Grid EFs'!$B$4:$F$9,4,FALSE),VLOOKUP($B20,'Grid EFs'!$B$14:$F$167,4,FALSE)) -> 507.5213 | N20: =IF(ISERROR(VLOOKUP($B20,'Grid EFs'!$B$14:$F$167,5,FALSE)),VLOOKUP($J20,'Grid EFs'!$B$4:$F$9,5,FALSE),VLOOKUP($B20,'Grid EFs'!$B$14:$F$167,5,FALSE)) -> 313.3031 | O20: 212.018 | P20: N/A | Q20: 2.81 | R20: =IF(ISERROR(VLOOKUP($B20,LineLoss!$B$4:$C$147,2,FALSE)),VLOOKUP($J20,LineLoss!$E$4:$F$9,2,FALSE),VLOOKUP($B20,LineLoss!$B$4:$C$147,2,FALSE)) -> 0.04266864083 | S20: =IF(ISNUMBER(MATCH(B20,'Grid EFs'!$B$14:$B$167,0)),"","*") ->  | T20: OECD Europe | V20: 212.018 | W20: =$K20 -> 212.018 | X20: 212.018 | Y20: 212.018 | Z20: 212.018 | AA20: 212.018 | AB20: 212.018 | AC20: 212.018 | AD20: 212.018 | AE20: 212.018 | AF20: 212.018 | AG20: 212.018 | AH20: 212.018 | AI20: 212.018 | AJ20: 212.018 | AK20: 212.018 | AL20: 212.018 | AM20: 212.018 | AN20: 212.018 | AO20: 212.018 | AP20: 212.018 | AQ20: 212.018 | AR20: 212.018 | AS20: 212.018 | AT20: 212.018 | AU20: 212.018 | AV20: 212.018 | AW20: 212.018 | AX20: 212.018 | AY20: 212.018 | AZ20: 212.018 | BA20: 212.018 | BB20: 212.018 | BC20: 212.018 | BD20: 212.018 | BE20: 212.018 | BF20: 212.018 | BG20: =$K20 -> 212.018 | BH20: 212.018 | BI20: 212.018 | BJ20: 212.018 | BK20: 212.018 | BL20: 212.018 | BM20: 212.018 | BN20: 212.018 | BP20: 212.018 | BQ20: 212.018 | BR20: 212.018 | BS20: 212.018 | BT20: 212.018 | BU20: 212.018 | BV20: 212.018 | BW20: 212.018 | BX20: 212.018 | BY20: 212.018 | BZ20: 212.018 | CA20: 212.018 | CB20: 212.018 | CC20: 212.018 | CD20: 212.018 | CE20: 212.018 | CF20: 212.018 | CG20: 212.018 | CH20: 212.018 | CI20: 212.018 | CJ20: 212.018 | CK20: 212.018 | CL20: 212.018 | CM20: 212.018 | CN20: 212.018 | CO20: 212.018 | CP20: =$K20 -> 212.018 | CQ20: 212.018 | CR20: 212.018 | CS20: 212.018 | CT20: 212.018 | CU20: 212.018 | CV20: 212.018 | CW20: 212.018 | CX20: 212.018 | CY20: 212.018 | CZ20: 212.018 | DA20: 212.018 | DB20: 212.018 | DC20: 212.018 | DD20: 212.018 | DE20: 212.018 | DF20: =$K20 -> 212.018 | DG20: 212.018 | DH20: 212.018
B21: Belize | C21: Belize | D21: BH | E21: BZ | F21: BLZ | G21: 84 | H21: 17.25 | I21: -88.75 | J21: North America | K21: 151.9 | L21: =IF(ISERROR(VLOOKUP($B21,'Grid EFs'!$B$14:$F$167,3,FALSE)),VLOOKUP($J21,'Grid EFs'!$B$4:$F$9,3,FALSE),VLOOKUP($B21,'Grid EFs'!$B$14:$F$167,3,FALSE)) -> 912.4052 | M21: =IF(ISERROR(VLOOKUP($B21,'Grid EFs'!$B$14:$F$167,4,FALSE)),VLOOKUP($J21,'Grid EFs'!$B$4:$F$9,4,FALSE),VLOOKUP($B21,'Grid EFs'!$B$14:$F$167,4,FALSE)) -> 718.4282 | N21: =IF(ISERROR(VLOOKUP($B21,'Grid EFs'!$B$14:$F$167,5,FALSE)),VLOOKUP($J21,'Grid EFs'!$B$4:$F$9,5,FALSE),VLOOKUP($B21,'Grid EFs'!$B$14:$F$167,5,FALSE)) -> 407.0114 | O21: 200.8047 | P21: 151.9 | Q21: 4.85 | R21: =IF(ISERROR(VLOOKUP($B21,LineLoss!$B$4:$C$147,2,FALSE)),VLOOKUP($J21,LineLoss!$E$4:$F$9,2,FALSE),VLOOKUP($B21,LineLoss!$B$4:$C$147,2,FALSE)) -> 0.05767936475 | S21: =IF(ISNUMBER(MATCH(B21,'Grid EFs'!$B$14:$B$167,0)),"","*") -> * | T21: Latin America | V21: =$K21 -> 151.9 | W21: 151.9 | X21: 151.9 | Y21: 151.9 | Z21: 151.9 | AA21: 151.9 | AB21: 151.9 | AC21: 151.9 | AD21: 151.9 | AE21: 151.9 | AF21: 151.9 | AG21: 151.9 | AH21: 151.9 | AI21: 151.9 | AJ21: 151.9 | AK21: 151.9 | AL21: 151.9 | AM21: 151.9 | AN21: 151.9 | AO21: 151.9 | AP21: 151.9 | AQ21: 151.9 | AR21: 151.9 | AS21: 151.9 | AT21: 151.9 | AU21: 151.9 | AV21: 151.9 | AW21: 151.9 | AX21: 151.9 | AY21: 151.9 | AZ21: 151.9 | BA21: 151.9 | BB21: 151.9 | BC21: 151.9 | BD21: 151.9 | BE21: 151.9 | BF21: 151.9 | BG21: 151.9 | BH21: 151.9 | BI21: 151.9 | BJ21: 151.9 | BK21: 151.9 | BL21: 151.9 | BM21: 151.9 | BN21: 151.9 | BP21: 151.9 | BQ21: 151.9 | BR21: 151.9 | BS21: 151.9 | BT21: 151.9 | BU21: 151.9 | BV21: 151.9 | BW21: 151.9 | BX21: 151.9 | BY21: 151.9 | BZ21: 151.9 | CA21: 151.9 | CB21: 151.9 | CC21: 151.9 | CD21: 151.9 | CE21: 151.9 | CF21: 151.9 | CG21: 151.9 | CH21: 151.9 | CI21: 151.9 | CJ21: 151.9 | CK21: 151.9 | CL21: 151.9 | CM21: 151.9 | CN21: 151.9 | CO21: 151.9 | CP21: 151.9 | CQ21: 151.9 | CR21: 151.9 | CS21: 151.9 | CT21: 151.9 | CU21: 151.9 | CV21: 151.9 | CW21: 151.9 | CX21: 151.9 | CY21: 151.9 | CZ21: 151.9 | DA21: 151.9 | DB21: 151.9 | DC21: 151.9 | DD21: 151.9 | DE21: 151.9 | DF21: 151.9 | DG21: 151.9 | DH21: 151.9
B22: Benin | C22: Republic of Benin | D22: BN | E22: BJ | F22: BEN | G22: 204 | H22: 9.5 | I22: 2.25 | J22: Africa | K22: 720.023585 | L22: =IF(ISERROR(VLOOKUP($B22,'Grid EFs'!$B$14:$F$167,3,FALSE)),VLOOKUP($J22,'Grid EFs'!$B$4:$F$9,3,FALSE),VLOOKUP($B22,'Grid EFs'!$B$14:$F$167,3,FALSE)) -> 974.5395 | M22: =IF(ISERROR(VLOOKUP($B22,'Grid EFs'!$B$14:$F$167,4,FALSE)),VLOOKUP($J22,'Grid EFs'!$B$4:$F$9,4,FALSE),VLOOKUP($B22,'Grid EFs'!$B$14:$F$167,4,FALSE)) -> 725.1481 | N22: =IF(ISERROR(VLOOKUP($B22,'Grid EFs'!$B$14:$F$167,5,FALSE)),VLOOKUP($J22,'Grid EFs'!$B$4:$F$9,5,FALSE),VLOOKUP($B22,'Grid EFs'!$B$14:$F$167,5,FALSE)) -> 456.774 | O22: 720.6994 | P22: 720.023585 | Q22: 5.59 | R22: =IF(ISERROR(VLOOKUP($B22,LineLoss!$B$4:$C$147,2,FALSE)),VLOOKUP($J22,LineLoss!$E$4:$F$9,2,FALSE),VLOOKUP($B22,LineLoss!$B$4:$C$147,2,FALSE)) -> 0.07571494693 | S22: =IF(ISNUMBER(MATCH(B22,'Grid EFs'!$B$14:$B$167,0)),"","*") ->  | T22: Africa | V22: 720.023585 | W22: 720.023585 | X22: 720.023585 | Y22: 720.023585 | Z22: 720.023585 | AA22: 720.023585 | AB22: 720.023585 | AC22: 720.023585 | AD22: 720.023585 | AE22: 720.023585 | AF22: 720.023585 | AG22: 720.023585 | AH22: 720.023585 | AI22: 720.023585 | AJ22: 720.023585 | AK22: 720.023585 | AL22: 720.023585 | AM22: 720.023585 | AN22: 720.023585 | AO22: 720.023585 | AP22: 720.023585 | AQ22: 720.023585 | AR22: 720.023585 | AS22: 720.023585 | AT22: 720.023585 | AU22: 720.023585 | AV22: 720.023585 | AW22: 720.023585 | AX22: 720.023585 | AY22: 720.023585 | AZ22: 720.023585 | BA22: 720.023585 | BB22: 720.023585 | BC22: 720.023585 | BD22: 720.023585 | BE22: 720.023585 | BF22: 720.023585 | BG22: 720.023585 | BH22: 720.023585 | BI22: 720.023585 | BJ22: 720.023585 | BK22: 720.023585 | BL22: 720.023585 | BM22: 720.023585 | BN22: 720.023585 | BP22: 720.023585 | BQ22: 720.023585 | BR22: 720.023585 | BS22: 720.023585 | BT22: 720.023585 | BU22: 720.023585 | BV22: 720.023585 | BW22: 720.023585 | BX22: 720.023585 | BY22: 720.023585 | BZ22: 720.023585 | CA22: 720.023585 | CB22: 720.023585 | CC22: 720.023585 | CD22: 720.023585 | CE22: 720.023585 | CF22: 720.023585 | CG22: 720.023585 | CH22: 720.023585 | CI22: 720.023585 | CJ22: 720.023585 | CK22: 720.023585 | CL22: 720.023585 | CM22: 720.023585 | CN22: 720.023585 | CO22: 720.023585 | CP22: 720.023585 | CQ22: 720.023585 | CR22: 720.023585 | CS22: 720.023585 | CT22: 720.023585 | CU22: 720.023585 | CV22: 720.023585 | CW22: 720.023585 | CX22: 720.023585 | CY22: 720.023585 | CZ22: 720.023585 | DA22: 720.023585 | DB22: 720.023585 | DC22: 720.023585 | DD22: 720.023585 | DE22: 720.023585 | DF22: 720.023585 | DG22: 720.023585 | DH22: 720.023585
B23: Bhutan | C23: Kingdom of Bhutan | D23: BT | E23: BT | F23: BTN | G23: 64 | H23: 27.5 | I23: 90.5 | J23: Asia | K23: 830.45 | L23: =IF(ISERROR(VLOOKUP($B23,'Grid EFs'!$B$14:$F$167,3,FALSE)),VLOOKUP($J23,'Grid EFs'!$B$4:$F$9,3,FALSE),VLOOKUP($B23,'Grid EFs'!$B$14:$F$167,3,FALSE)) -> 1144.2709 | M23: =IF(ISERROR(VLOOKUP($B23,'Grid EFs'!$B$14:$F$167,4,FALSE)),VLOOKUP($J23,'Grid EFs'!$B$4:$F$9,4,FALSE),VLOOKUP($B23,'Grid EFs'!$B$14:$F$167,4,FALSE)) -> 843.0648 | N23: =IF(ISERROR(VLOOKUP($B23,'Grid EFs'!$B$14:$F$167,5,FALSE)),VLOOKUP($J23,'Grid EFs'!$B$4:$F$9,5,FALSE),VLOOKUP($B23,'Grid EFs'!$B$14:$F$167,5,FALSE)) -> 451.9748 | O23: 736.1338 | P23: 830.45 | Q23: 5.31 | R23: =IF(ISERROR(VLOOKUP($B23,LineLoss!$B$4:$C$147,2,FALSE)),VLOOKUP($J23,LineLoss!$E$4:$F$9,2,FALSE),VLOOKUP($B23,LineLoss!$B$4:$C$147,2,FALSE)) -> 0.05730004629 | S23: =IF(ISNUMBER(MATCH(B23,'Grid EFs'!$B$14:$B$167,0)),"","*") -> * | T23: Non-OECD Asia | V23: 830.45 | W23: 830.45 | X23: 830.45 | Y23: 830.45 | Z23: 830.45 | AA23: 830.45 | AB23: 830.45 | AC23: 830.45 | AD23: 830.45 | AE23: 830.45 | AF23: 830.45 | AG23: 830.45 | AH23: 830.45 | AI23: 830.45 | AJ23: 830.45 | AK23: 830.45 | AL23: 830.45 | AM23: 830.45 | AN23: 830.45 | AO23: 830.45 | AP23: 830.45 | AQ23: 830.45 | AR23: 830.45 | AS23: 830.45 | AT23: 830.45 | AU23: 830.45 | AV23: 830.45 | AW23: 830.45 | AX23: 830.45 | AY23: 830.45 | AZ23: 830.45 | BA23: 830.45 | BB23: 830.45 | BC23: 830.45 | BD23: 830.45 | BE23: 830.45 | BF23: 830.45 | BG23: 830.45 | BH23: 830.45 | BI23: 830.45 | BJ23: 830.45 | BK23: 830.45 | BL23: 830.45 | BM23: 830.45 | BN23: 830.45 | BP23: 830.45 | BQ23: 830.45 | BR23: 830.45 | BS23: 830.45 | BT23: 830.45 | BU23: 830.45 | BV23: 830.45 | BW23: 830.45 | BX23: 830.45 | BY23: 830.45 | BZ23: 830.45 | CA23: 830.45 | CB23: 830.45 | CC23: 830.45 | CD23: 830.45 | CE23: 830.45 | CF23: 830.45 | CG23: 830.45 | CH23: 830.45 | CI23: 830.45 | CJ23: 830.45 | CK23: 830.45 | CL23: 830.45 | CM23: 830.45 | CN23: 830.45 | CO23: 830.45 | CP23: 830.45 | CQ23: 830.45 | CR23: 830.45 | CS23: 830.45 | CT23: 830.45 | CU23: 830.45 | CV23: 830.45 | CW23: 830.45 | CX23: 830.45 | CY23: 830.45 | CZ23: 830.45 | DA23: 830.45 | DB23: 830.45 | DC23: 830.45 | DD23: 830.45 | DE23: 830.45 | DF23: 830.45 | DG23: 830.45 | DH23: 830.45
B24: Bolivia | C24: Plurinational State of Bolivia | D24: BL | E24: BO | F24: BOL | G24: 68 | H24: -17 | I24: -65 | J24: South America | K24: 588.75 | L24: =IF(ISERROR(VLOOKUP($B24,'Grid EFs'!$B$14:$F$167,3,FALSE)),VLOOKUP($J24,'Grid EFs'!$B$4:$F$9,3,FALSE),VLOOKUP($B24,'Grid EFs'!$B$14:$F$167,3,FALSE)) -> 1240.488 | M24: =IF(ISERROR(VLOOKUP($B24,'Grid EFs'!$B$14:$F$167,4,FALSE)),VLOOKUP($J24,'Grid EFs'!$B$4:$F$9,4,FALSE),VLOOKUP($B24,'Grid EFs'!$B$14:$F$167,4,FALSE)) -> 942.2581 | N24: =IF(ISERROR(VLOOKUP($B24,'Grid EFs'!$B$14:$F$167,5,FALSE)),VLOOKUP($J24,'Grid EFs'!$B$4:$F$9,5,FALSE),VLOOKUP($B24,'Grid EFs'!$B$14:$F$167,5,FALSE)) -> 634.0785 | O24: 426.278 | P24: 588.75 | Q24: 4.61 | R24: =IF(ISERROR(VLOOKUP($B24,LineLoss!$B$4:$C$147,2,FALSE)),VLOOKUP($J24,LineLoss!$E$4:$F$9,2,FALSE),VLOOKUP($B24,LineLoss!$B$4:$C$147,2,FALSE)) -> 0.07374593312 | S24: =IF(ISNUMBER(MATCH(B24,'Grid EFs'!$B$14:$B$167,0)),"","*") ->  | T24: Latin America | V24: 588.75 | W24: 588.75 | X24: 588.75 | Y24: 588.75 | Z24: 588.75 | AA24: 588.75 | AB24: 588.75 | AC24: 588.75 | AD24: 588.75 | AE24: 588.75 | AF24: 588.75 | AG24: 588.75 | AH24: 588.75 | AI24: 588.75 | AJ24: 588.75 | AK24: 588.75 | AL24: 588.75 | AM24: 588.75 | AN24: 588.75 | AO24: 588.75 | AP24: 588.75 | AQ24: 588.75 | AR24: 588.75 | AS24: 588.75 | AT24: 588.75 | AU24: 588.75 | AV24: 588.75 | AW24: 588.75 | AX24: 588.75 | AY24: 588.75 | AZ24: 588.75 | BA24: 588.75 | BB24: 588.75 | BC24: 588.75 | BD24: 588.75 | BE24: 588.75 | BF24: 588.75 | BG24: 588.75 | BH24: 588.75 | BI24: 588.75 | BJ24: 588.75 | BK24: 588.75 | BL24: 588.75 | BM24: 588.75 | BN24: 588.75 | BP24: =$K24 -> 588.75 | BQ24: 588.75 | BR24: 588.75 | BS24: 588.75 | BT24: 588.75 | BU24: 588.75 | BV24: 588.75 | BW24: 588.75 | BX24: 588.75 | BY24: 588.75 | BZ24: =$K24 -> 588.75 | CA24: 588.75 | CB24: 588.75 | CC24: 588.75 | CD24: 588.75 | CE24: 588.75 | CF24: 588.75 | CG24: 588.75 | CH24: 588.75 | CI24: 588.75 | CJ24: 588.75 | CK24: 588.75 | CL24: 588.75 | CM24: 588.75 | CN24: 588.75 | CO24: 588.75 | CP24: 588.75 | CQ24: 588.75 | CR24: 588.75 | CS24: 588.75 | CT24: 588.75 | CU24: 588.75 | CV24: 588.75 | CW24: 588.75 | CX24: 588.75 | CY24: 588.75 | CZ24: 588.75 | DA24: 588.75 | DB24: 588.75 | DC24: 588.75 | DD24: 588.75 | DE24: 588.75 | DF24: 588.75 | DG24: 588.75 | DH24: 588.75
B25: Bosnia and Herzegovina | C25: Bosnia and Herzegovina | D25: BK | E25: BA | F25: BIH | G25: 70 | H25: 44 | I25: 18 | J25: Europe | K25: 973.15 | L25: =IF(ISERROR(VLOOKUP($B25,'Grid EFs'!$B$14:$F$167,3,FALSE)),VLOOKUP($J25,'Grid EFs'!$B$4:$F$9,3,FALSE),VLOOKUP($B25,'Grid EFs'!$B$14:$F$167,3,FALSE)) -> 1395.2871 | M25: =IF(ISERROR(VLOOKUP($B25,'Grid EFs'!$B$14:$F$167,4,FALSE)),VLOOKUP($J25,'Grid EFs'!$B$4:$F$9,4,FALSE),VLOOKUP($B25,'Grid EFs'!$B$14:$F$167,4,FALSE)) -> 765.8214 | N25: =IF(ISERROR(VLOOKUP($B25,'Grid EFs'!$B$14:$F$167,5,FALSE)),VLOOKUP($J25,'Grid EFs'!$B$4:$F$9,5,FALSE),VLOOKUP($B25,'Grid EFs'!$B$14:$F$167,5,FALSE)) -> 694.4231 | O25: 973.8126 | P25: 973.15 | Q25: 3.43 | R25: =IF(ISERROR(VLOOKUP($B25,LineLoss!$B$4:$C$147,2,FALSE)),VLOOKUP($J25,LineLoss!$E$4:$F$9,2,FALSE),VLOOKUP($B25,LineLoss!$B$4:$C$147,2,FALSE)) -> 0.0703046414 | S25: =IF(ISNUMBER(MATCH(B25,'Grid EFs'!$B$14:$B$167,0)),"","*") ->  | T25: Eastern Europe & Eurasia | V25: 973.15 | W25: 973.15 | X25: 973.15 | Y25: 973.15 | Z25: 973.15 | AA25: 973.15 | AB25: 973.15 | AC25: 973.15 | AD25: 973.15 | AE25: 973.15 | AF25: 973.15 | AG25: 973.15 | AH25: 973.15 | AI25: 973.15 | AJ25: 973.15 | AK25: 973.15 | AL25: 973.15 | AM25: 973.15 | AN25: 973.15 | AO25: 973.15 | AP25: 973.15 | AQ25: 973.15 | AR25: 973.15 | AS25: 973.15 | AT25: 973.15 | AU25: 973.15 | AV25: 973.15 | AW25: 973.15 | AX25: 973.15 | AY25: 973.15 | AZ25: 973.15 | BA25: 973.15 | BB25: 973.15 | BC25: 973.15 | BD25: 973.15 | BE25: 973.15 | BF25: 973.15 | BG25: 973.15 | BH25: 973.15 | BI25: 973.15 | BJ25: 973.15 | BK25: 973.15 | BL25: 973.15 | BM25: 973.15 | BN25: 973.15 | BP25: 973.15 | BQ25: 973.15 | BR25: 973.15 | BS25: 973.15 | BT25: 973.15 | BU25: 973.15 | BV25: 973.15 | BW25: 973.15 | BX25: 973.15 | BY25: 973.15 | BZ25: 973.15 | CA25: 973.15 | CB25: 973.15 | CC25: 973.15 | CD25: 973.15 | CE25: 973.15 | CF25: 973.15 | CG25: 973.15 | CH25: 973.15 | CI25: 973.15 | CJ25: 973.15 | CK25: 973.15 | CL25: 973.15 | CM25: 973.15 | CN25: 973.15 | CO25: 973.15 | CP25: 973.15 | CQ25: 973.15 | CR25: 973.15 | CS25: 973.15 | CT25: 973.15 | CU25: 973.15 | CV25: 973.15 | CW25: 973.15 | CX25: 973.15 | CY25: 973.15 | CZ25: 973.15 | DA25: 973.15 | DB25: 973.15 | DC25: 973.15 | DD25: 973.15 | DE25: 973.15 | DF25: 973.15 | DG25: 973.15 | DH25: 973.15
B26: Botswana | C26: Republic of Botswana | D26: BC | E26: BW | F26: BWA | G26: 72 | H26: -22 | I26: 24 | J26: Africa | K26: 720.023585 | L26: =IF(ISERROR(VLOOKUP($B26,'Grid EFs'!$B$14:$F$167,3,FALSE)),VLOOKUP($J26,'Grid EFs'!$B$4:$F$9,3,FALSE),VLOOKUP($B26,'Grid EFs'!$B$14:$F$167,3,FALSE)) -> 1478.836 | M26: =IF(ISERROR(VLOOKUP($B26,'Grid EFs'!$B$14:$F$167,4,FALSE)),VLOOKUP($J26,'Grid EFs'!$B$4:$F$9,4,FALSE),VLOOKUP($B26,'Grid EFs'!$B$14:$F$167,4,FALSE)) -> 833.9727 | N26: =IF(ISERROR(VLOOKUP($B26,'Grid EFs'!$B$14:$F$167,5,FALSE)),VLOOKUP($J26,'Grid EFs'!$B$4:$F$9,5,FALSE),VLOOKUP($B26,'Grid EFs'!$B$14:$F$167,5,FALSE)) -> 456.774 | O26: 1478.836 | P26: 720.023585 | Q26: 5.87 | R26: =IF(ISERROR(VLOOKUP($B26,LineLoss!$B$4:$C$147,2,FALSE)),VLOOKUP($J26,LineLoss!$E$4:$F$9,2,FALSE),VLOOKUP($B26,LineLoss!$B$4:$C$147,2,FALSE)) -> 0.07571494693 | S26: =IF(ISNUMBER(MATCH(B26,'Grid EFs'!$B$14:$B$167,0)),"","*") ->  | T26: Africa | V26: 720.023585 | W26: 720.023585 | X26: 720.023585 | Y26: 720.023585 | Z26: 720.023585 | AA26: 720.023585 | AB26: 720.023585 | AC26: 720.023585 | AD26: 720.023585 | AE26: 720.023585 | AF26: 720.023585 | AG26: 720.023585 | AH26: 720.023585 | AI26: 720.023585 | AJ26: 720.023585 | AK26: 720.023585 | AL26: 720.023585 | AM26: 720.023585 | AN26: 720.023585 | AO26: 720.023585 | AP26: 720.023585 | AQ26: 720.023585 | AR26: 720.023585 | AS26: 720.023585 | AT26: 720.023585 | AU26: 720.023585 | AV26: 720.023585 | AW26: 720.023585 | AX26: 720.023585 | AY26: 720.023585 | AZ26: 720.023585 | BA26: 720.023585 | BB26: 720.023585 | BC26: 720.023585 | BD26: 720.023585 | BE26: 720.023585 | BF26: 720.023585 | BG26: 720.023585 | BH26: 720.023585 | BI26: 720.023585 | BJ26: 720.023585 | BK26: 720.023585 | BL26: 720.023585 | BM26: 720.023585 | BN26: 720.023585 | BP26: 720.023585 | BQ26: 720.023585 | BR26: 720.023585 | BS26: 720.023585 | BT26: 720.023585 | BU26: 720.023585 | BV26: 720.023585 | BW26: 720.023585 | BX26: 720.023585 | BY26: 720.023585 | BZ26: 720.023585 | CA26: 720.023585 | CB26: 720.023585 | CC26: 720.023585 | CD26: 720.023585 | CE26: 720.023585 | CF26: 720.023585 | CG26: 720.023585 | CH26: 720.023585 | CI26: 720.023585 | CJ26: 720.023585 | CK26: 720.023585 | CL26: 720.023585 | CM26: 720.023585 | CN26: 720.023585 | CO26: 720.023585 | CP26: 720.023585 | CQ26: 720.023585 | CR26: 720.023585 | CS26: 720.023585 | CT26: 720.023585 | CU26: 720.023585 | CV26: 720.023585 | CW26: 720.023585 | CX26: 720.023585 | CY26: 720.023585 | CZ26: 720.023585 | DA26: 720.023585 | DB26: 720.023585 | DC26: 720.023585 | DD26: 720.023585 | DE26: 720.023585 | DF26: 720.023585 | DG26: 720.023585 | DH26: 720.023585
B27: Brazil | C27: Federative Republic of Brazil | D27: BR | E27: BR | F27: BRA | G27: 76 | H27: -10 | I27: -55 | J27: South America | K27: 292.377932 | L27: =IF(ISERROR(VLOOKUP($B27,'Grid EFs'!$B$14:$F$167,3,FALSE)),VLOOKUP($J27,'Grid EFs'!$B$4:$F$9,3,FALSE),VLOOKUP($B27,'Grid EFs'!$B$14:$F$167,3,FALSE)) -> 1409.4494 | M27: =IF(ISERROR(VLOOKUP($B27,'Grid EFs'!$B$14:$F$167,4,FALSE)),VLOOKUP($J27,'Grid EFs'!$B$4:$F$9,4,FALSE),VLOOKUP($B27,'Grid EFs'!$B$14:$F$167,4,FALSE)) -> 726.969 | N27: =IF(ISERROR(VLOOKUP($B27,'Grid EFs'!$B$14:$F$167,5,FALSE)),VLOOKUP($J27,'Grid EFs'!$B$4:$F$9,5,FALSE),VLOOKUP($B27,'Grid EFs'!$B$14:$F$167,5,FALSE)) -> 428.3065 | O27: 98.1739 | P27: 292.377932 | Q27: 4.87 | R27: =IF(ISERROR(VLOOKUP($B27,LineLoss!$B$4:$C$147,2,FALSE)),VLOOKUP($J27,LineLoss!$E$4:$F$9,2,FALSE),VLOOKUP($B27,LineLoss!$B$4:$C$147,2,FALSE)) -> 0.08950058604 | S27: =IF(ISNUMBER(MATCH(B27,'Grid EFs'!$B$14:$B$167,0)),"","*") ->  | T27: Latin America | V27: 292.377932 | W27: 292.377932 | X27: 292.377932 | Y27: 292.377932 | Z27: 292.377932 | AA27: 292.377932 | AB27: 292.377932 | AC27: 292.377932 | AD27: 292.377932 | AE27: 292.377932 | AF27: 292.377932 | AG27: 292.377932 | AH27: 292.377932 | AI27: 292.377932 | AJ27: 292.377932 | AK27: 292.377932 | AL27: 292.377932 | AM27: 292.377932 | AN27: 292.377932 | AO27: 292.377932 | AP27: 292.377932 | AQ27: 292.377932 | AR27: 292.377932 | AS27: 292.377932 | AT27: 292.377932 | AU27: 292.377932 | AV27: 292.377932 | AW27: 292.377932 | AX27: 292.377932 | AY27: 292.377932 | AZ27: 292.377932 | BA27: 292.377932 | BB27: 292.377932 | BC27: 292.377932 | BD27: 292.377932 | BE27: 292.377932 | BF27: 292.377932 | BG27: 292.377932 | BH27: 292.377932 | BI27: 292.377932 | BJ27: 292.377932 | BK27: 292.377932 | BL27: 292.377932 | BM27: 292.377932 | BN27: 292.377932 | BP27: 292.377932 | BQ27: 292.377932 | BR27: 292.377932 | BS27: 292.377932 | BT27: 292.377932 | BU27: 292.377932 | BV27: 292.377932 | BW27: 292.377932 | BX27: 292.377932 | BY27: 292.377932 | BZ27: 292.377932 | CA27: 292.377932 | CB27: 292.377932 | CC27: 292.377932 | CD27: 292.377932 | CE27: 292.377932 | CF27: 292.377932 | CG27: 292.377932 | CH27: 292.377932 | CI27: 292.377932 | CJ27: 292.377932 | CK27: 292.377932 | CL27: 292.377932 | CM27: 292.377932 | CN27: 292.377932 | CO27: 292.377932 | CP27: 292.377932 | CQ27: 292.377932 | CR27: 292.377932 | CS27: 292.377932 | CT27: 292.377932 | CU27: 292.377932 | CV27: 292.377932 | CW27: 292.377932 | CX27: 292.377932 | CY27: 292.377932 | CZ27: 292.377932 | DA27: 292.377932 | DB27: 292.377932 | DC27: 292.377932 | DD27: 292.377932 | DE27: 292.377932 | DF27: 292.377932 | DG27: 292.377932 | DH27: 292.377932
B28: Brunei Darussalam | C28: Brunei Darussalam | D28: BX | E28: BN | F28: BRN | G28: 96 | H28: 4.5 | I28: 114.6667 | J28: Asia | K28: 846.5339208 | L28: =IF(ISERROR(VLOOKUP($B28,'Grid EFs'!$B$14:$F$167,3,FALSE)),VLOOKUP($J28,'Grid EFs'!$B$4:$F$9,3,FALSE),VLOOKUP($B28,'Grid EFs'!$B$14:$F$167,3,FALSE)) -> 1144.2709 | M28: =IF(ISERROR(VLOOKUP($B28,'Grid EFs'!$B$14:$F$167,4,FALSE)),VLOOKUP($J28,'Grid EFs'!$B$4:$F$9,4,FALSE),VLOOKUP($B28,'Grid EFs'!$B$14:$F$167,4,FALSE)) -> 858.1081 | N28: =IF(ISERROR(VLOOKUP($B28,'Grid EFs'!$B$14:$F$167,5,FALSE)),VLOOKUP($J28,'Grid EFs'!$B$4:$F$9,5,FALSE),VLOOKUP($B28,'Grid EFs'!$B$14:$F$167,5,FALSE)) -> 721.7504 | O28: 722.6669 | P28: 846.5339208 | Q28: 5.65 | R28: =IF(ISERROR(VLOOKUP($B28,LineLoss!$B$4:$C$147,2,FALSE)),VLOOKUP($J28,LineLoss!$E$4:$F$9,2,FALSE),VLOOKUP($B28,LineLoss!$B$4:$C$147,2,FALSE)) -> 0.06070584111 | S28: =IF(ISNUMBER(MATCH(B28,'Grid EFs'!$B$14:$B$167,0)),"","*") ->  | T28: Non-OECD Asia | V28: 846.5339208 | W28: 846.5339208 | X28: 846.5339208 | Y28: 846.5339208 | Z28: 846.5339208 | AA28: 846.5339208 | AB28: 846.5339208 | AC28: 846.5339208 | AD28: 846.5339208 | AE28: 846.5339208 | AF28: 846.5339208 | AG28: 846.5339208 | AH28: 846.5339208 | AI28: 846.5339208 | AJ28: 846.5339208 | AK28: 846.5339208 | AL28: 846.5339208 | AM28: 846.5339208 | AN28: 846.5339208 | AO28: 846.5339208 | AP28: 846.5339208 | AQ28: 846.5339208 | AR28: 846.5339208 | AS28: 846.5339208 | AT28: 846.5339208 | AU28: 846.5339208 | AV28: 846.5339208 | AW28: 846.5339208 | AX28: 846.5339208 | AY28: 846.5339208 | AZ28: 846.5339208 | BA28: 846.5339208 | BB28: 846.5339208 | BC28: 846.5339208 | BD28: 846.5339208 | BE28: 846.5339208 | BF28: 846.5339208 | BG28: 846.5339208 | BH28: 846.5339208 | BI28: 846.5339208 | BJ28: 846.5339208 | BK28: 846.5339208 | BL28: 846.5339208 | BM28: 846.5339208 | BN28: 846.5339208 | BP28: 846.5339208 | BQ28: 846.5339208 | BR28: 846.5339208 | BS28: 846.5339208 | BT28: 846.5339208 | BU28: 846.5339208 | BV28: 846.5339208 | BW28: 846.5339208 | BX28: 846.5339208 | BY28: 846.5339208 | BZ28: 846.5339208 | CA28: 846.5339208 | CB28: 846.5339208 | CC28: 846.5339208 | CD28: 846.5339208 | CE28: 846.5339208 | CF28: 846.5339208 | CG28: 846.5339208 | CH28: 846.5339208 | CI28: 846.5339208 | CJ28: 846.5339208 | CK28: 846.5339208 | CL28: 846.5339208 | CM28: 846.5339208 | CN28: 846.5339208 | CO28: 846.5339208 | CP28: 846.5339208 | CQ28: 846.5339208 | CR28: 846.5339208 | CS28: 846.5339208 | CT28: 846.5339208 | CU28: 846.5339208 | CV28: 846.5339208 | CW28: 846.5339208 | CX28: 846.5339208 | CY28: 846.5339208 | CZ28: 846.5339208 | DA28: 846.5339208 | DB28: 846.5339208 | DC28: 846.5339208 | DD28: 846.5339208 | DE28: 846.5339208 | DF28: 846.5339208 | DG28: 846.5339208 | DH28: 846.5339208
B29: Bulgaria | C29: Republic of Bulgaria | D29: BU | E29: BG | F29: BGR | G29: 100 | H29: 43 | I29: 25 | J29: Europe | K29: 531.6944 | L29: =IF(ISERROR(VLOOKUP($B29,'Grid EFs'!$B$14:$F$167,3,FALSE)),VLOOKUP($J29,'Grid EFs'!$B$4:$F$9,3,FALSE),VLOOKUP($B29,'Grid EFs'!$B$14:$F$167,3,FALSE)) -> 1042.7764 | M29: =IF(ISERROR(VLOOKUP($B29,'Grid EFs'!$B$14:$F$167,4,FALSE)),VLOOKUP($J29,'Grid EFs'!$B$4:$F$9,4,FALSE),VLOOKUP($B29,'Grid EFs'!$B$14:$F$167,4,FALSE)) -> 782.3285 | N29: =IF(ISERROR(VLOOKUP($B29,'Grid EFs'!$B$14:$F$167,5,FALSE)),VLOOKUP($J29,'Grid EFs'!$B$4:$F$9,5,FALSE),VLOOKUP($B29,'Grid EFs'!$B$14:$F$167,5,FALSE)) -> 311.9086 | O29: 531.6944 | P29: N/A | Q29: 3.78 | R29: =IF(ISERROR(VLOOKUP($B29,LineLoss!$B$4:$C$147,2,FALSE)),VLOOKUP($J29,LineLoss!$E$4:$F$9,2,FALSE),VLOOKUP($B29,LineLoss!$B$4:$C$147,2,FALSE)) -> 0.0672753413 | S29: =IF(ISNUMBER(MATCH(B29,'Grid EFs'!$B$14:$B$167,0)),"","*") ->  | T29: Eastern Europe & Eurasia | V29: 531.6944 | W29: 531.6944 | X29: 531.6944 | Y29: 531.6944 | Z29: 531.6944 | AA29: 531.6944 | AB29: 531.6944 | AC29: 531.6944 | AD29: 531.6944 | AE29: 531.6944 | AF29: 531.6944 | AG29: 531.6944 | AH29: 531.6944 | AI29: 531.6944 | AJ29: 531.6944 | AK29: 531.6944 | AL29: 531.6944 | AM29: 531.6944 | AN29: 531.6944 | AO29: 531.6944 | AP29: 531.6944 | AQ29: 531.6944 | AR29: 531.6944 | AS29: 531.6944 | AT29: 531.6944 | AU29: 531.6944 | AV29: 531.6944 | AW29: 531.6944 | AX29: 531.6944 | AY29: 531.6944 | AZ29: 531.6944 | BA29: 531.6944 | BB29: 531.6944 | BC29: 531.6944 | BD29: 531.6944 | BE29: 531.6944 | BF29: 531.6944 | BG29: 531.6944 | BH29: 531.6944 | BI29: 531.6944 | BJ29: 531.6944 | BK29: 531.6944 | BL29: 531.6944 | BM29: 531.6944 | BN29: 531.6944 | BP29: 531.6944 | BQ29: 531.6944 | BR29: 531.6944 | BS29: 531.6944 | BT29: 531.6944 | BU29: 531.6944 | BV29: 531.6944 | BW29: 531.6944 | BX29: 531.6944 | BY29: 531.6944 | BZ29: 531.6944 | CA29: 531.6944 | CB29: 531.6944 | CC29: 531.6944 | CD29: 531.6944 | CE29: 531.6944 | CF29: 531.6944 | CG29: 531.6944 | CH29: 531.6944 | CI29: 531.6944 | CJ29: 531.6944 | CK29: 531.6944 | CL29: 531.6944 | CM29: 531.6944 | CN29: 531.6944 | CO29: 531.6944 | CP29: 531.6944 | CQ29: 531.6944 | CR29: 531.6944 | CS29: 531.6944 | CT29: 531.6944 | CU29: 531.6944 | CV29: 531.6944 | CW29: 531.6944 | CX29: 531.6944 | CY29: 531.6944 | CZ29: 531.6944 | DA29: 531.6944 | DB29: 531.6944 | DC29: 531.6944 | DD29: 531.6944 | DE29: 531.6944 | DF29: 531.6944 | DG29: 531.6944 | DH29: 531.6944
B30: Burkina Faso | C30: Burkina Faso | D30: UV | E30: BF | F30: BFA | G30: 854 | H30: 13 | I30: -2 | J30: Africa | K30: 470.625 | L30: =IF(ISERROR(VLOOKUP($B30,'Grid EFs'!$B$14:$F$167,3,FALSE)),VLOOKUP($J30,'Grid EFs'!$B$4:$F$9,3,FALSE),VLOOKUP($B30,'Grid EFs'!$B$14:$F$167,3,FALSE)) -> 974.5395 | M30: =IF(ISERROR(VLOOKUP($B30,'Grid EFs'!$B$14:$F$167,4,FALSE)),VLOOKUP($J30,'Grid EFs'!$B$4:$F$9,4,FALSE),VLOOKUP($B30,'Grid EFs'!$B$14:$F$167,4,FALSE)) -> 833.9727 | N30: =IF(ISERROR(VLOOKUP($B30,'Grid EFs'!$B$14:$F$167,5,FALSE)),VLOOKUP($J30,'Grid EFs'!$B$4:$F$9,5,FALSE),VLOOKUP($B30,'Grid EFs'!$B$14:$F$167,5,FALSE)) -> 456.774 | O30: 597.6623 | P30: 470.625 | Q30: 5.95 | R30: =IF(ISERROR(VLOOKUP($B30,LineLoss!$B$4:$C$147,2,FALSE)),VLOOKUP($J30,LineLoss!$E$4:$F$9,2,FALSE),VLOOKUP($B30,LineLoss!$B$4:$C$147,2,FALSE)) -> 0.07571494693 | S30: =IF(ISNUMBER(MATCH(B30,'Grid EFs'!$B$14:$B$167,0)),"","*") -> * | T30: Africa | V30: 470.625 | W30: 470.625 | X30: 470.625 | Y30: 470.625 | Z30: 470.625 | AA30: 470.625 | AB30: 470.625 | AC30: 470.625 | AD30: 470.625 | AE30: 470.625 | AF30: 470.625 | AG30: 470.625 | AH30: 470.625 | AI30: 470.625 | AJ30: 470.625 | AK30: 470.625 | AL30: 470.625 | AM30: 470.625 | AN30: 470.625 | AO30: 470.625 | AP30: 470.625 | AQ30: 470.625 | AR30: 470.625 | AS30: 470.625 | AT30: 470.625 | AU30: 470.625 | AV30: 470.625 | AW30: 470.625 | AX30: 470.625 | AY30: 470.625 | AZ30: 470.625 | BA30: 470.625 | BB30: 470.625 | BC30: 470.625 | BD30: 470.625 | BE30: 470.625 | BF30: 470.625 | BG30: 470.625 | BH30: 470.625 | BI30: 470.625 | BJ30: 470.625 | BK30: 470.625 | BL30: 470.625 | BM30: 470.625 | BN30: 470.625 | BP30: 470.625 | BQ30: 470.625 | BR30: 470.625 | BS30: 470.625 | BT30: 470.625 | BU30: 470.625 | BV30: 470.625 | BW30: 470.625 | BX30: 470.625 | BY30: 470.625 | BZ30: 470.625 | CA30: 470.625 | CB30: 470.625 | CC30: 470.625 | CD30: 470.625 | CE30: 470.625 | CF30: 470.625 | CG30: 470.625 | CH30: 470.625 | CI30: 470.625 | CJ30: 470.625 | CK30: 470.625 | CL30: 470.625 | CM30: 470.625 | CN30: 470.625 | CO30: 470.625 | CP30: 470.625 | CQ30: 470.625 | CR30: 470.625 | CS30: 470.625 | CT30: 470.625 | CU30: 470.625 | CV30: 470.625 | CW30: 470.625 | CX30: 470.625 | CY30: 470.625 | CZ30: 470.625 | DA30: 470.625 | DB30: 470.625 | DC30: 470.625 | DD30: 470.625 | DE30: 470.625 | DF30: 470.625 | DG30: 470.625 | DH30: 470.625
B31: Burma | C31: Union of Burma | D31: BM | H31: 20 | I31: 96 | J31: Asia | K31: 394.8 | L31: =IF(ISERROR(VLOOKUP($B31,'Grid EFs'!$B$14:$F$167,3,FALSE)),VLOOKUP($J31,'Grid EFs'!$B$4:$F$9,3,FALSE),VLOOKUP($B31,'Grid EFs'!$B$14:$F$167,3,FALSE)) -> 939.9922 | M31: =IF(ISERROR(VLOOKUP($B31,'Grid EFs'!$B$14:$F$167,4,FALSE)),VLOOKUP($J31,'Grid EFs'!$B$4:$F$9,4,FALSE),VLOOKUP($B31,'Grid EFs'!$B$14:$F$167,4,FALSE)) -> 809.3333 | N31: =IF(ISERROR(VLOOKUP($B31,'Grid EFs'!$B$14:$F$167,5,FALSE)),VLOOKUP($J31,'Grid EFs'!$B$4:$F$9,5,FALSE),VLOOKUP($B31,'Grid EFs'!$B$14:$F$167,5,FALSE)) -> 724.9576 | O31: 216.2057 | P31: 394.8 | Q31: 5.14 | R31: =IF(ISERROR(VLOOKUP($B31,LineLoss!$B$4:$C$147,2,FALSE)),VLOOKUP($J31,LineLoss!$E$4:$F$9,2,FALSE),VLOOKUP($B31,LineLoss!$B$4:$C$147,2,FALSE)) -> 0.1028454192 | S31: =IF(ISNUMBER(MATCH(B31,'Grid EFs'!$B$14:$B$167,0)),"","*") ->  | T31: Non-OECD Asia | V31: 394.8 | W31: 394.8 | X31: 394.8 | Y31: 394.8 | Z31: 394.8 | AA31: 394.8 | AB31: 394.8 | AC31: 394.8 | AD31: 394.8 | AE31: 394.8 | AF31: 394.8 | AG31: 394.8 | AH31: 394.8 | AI31: 394.8 | AJ31: 394.8 | AK31: 394.8 | AL31: 394.8 | AM31: 394.8 | AN31: 394.8 | AO31: 394.8 | AP31: 394.8 | AQ31: 394.8 | AR31: 394.8 | AS31: 394.8 | AT31: 394.8 | AU31: 394.8 | AV31: 394.8 | AW31: 394.8 | AX31: 394.8 | AY31: 394.8 | AZ31: 394.8 | BA31: 394.8 | BB31: 394.8 | BC31: 394.8 | BD31: 394.8 | BE31: 394.8 | BF31: 394.8 | BG31: 394.8 | BH31: 394.8 | BI31: 394.8 | BJ31: 394.8 | BK31: 394.8 | BL31: 394.8 | BM31: 394.8 | BN31: 394.8 | BP31: 394.8 | BQ31: 394.8 | BR31: 394.8 | BS31: 394.8 | BT31: 394.8 | BU31: 394.8 | BV31: 394.8 | BW31: 394.8 | BX31: 394.8 | BY31: 394.8 | BZ31: 394.8 | CA31: 394.8 | CB31: 394.8 | CC31: 394.8 | CD31: 394.8 | CE31: 394.8 | CF31: 394.8 | CG31: 394.8 | CH31: 394.8 | CI31: 394.8 | CJ31: 394.8 | CK31: 394.8 | CL31: 394.8 | CM31: 394.8 | CN31: 394.8 | CO31: 394.8 | CP31: 394.8 | CQ31: 394.8 | CR31: 394.8 | CS31: 394.8 | CT31: 394.8 | CU31: 394.8 | CV31: 394.8 | CW31: 394.8 | CX31: 394.8 | CY31: 394.8 | CZ31: 394.8 | DA31: 394.8 | DB31: 394.8 | DC31: 394.8 | DD31: 394.8 | DE31: 394.8 | DF31: 394.8 | DG31: 394.8 | DH31: 394.8
B32: Burundi | C32: Republic of Burundi | D32: BY | E32: BI | F32: BDI | G32: 108 | H32: -3.5 | I32: 30 | J32: Africa | K32: 720.023585 | L32: =IF(ISERROR(VLOOKUP($B32,'Grid EFs'!$B$14:$F$167,3,FALSE)),VLOOKUP($J32,'Grid EFs'!$B$4:$F$9,3,FALSE),VLOOKUP($B32,'Grid EFs'!$B$14:$F$167,3,FALSE)) -> 974.5395 | M32: =IF(ISERROR(VLOOKUP($B32,'Grid EFs'!$B$14:$F$167,4,FALSE)),VLOOKUP($J32,'Grid EFs'!$B$4:$F$9,4,FALSE),VLOOKUP($B32,'Grid EFs'!$B$14:$F$167,4,FALSE)) -> 833.9727 | N32: =IF(ISERROR(VLOOKUP($B32,'Grid EFs'!$B$14:$F$167,5,FALSE)),VLOOKUP($J32,'Grid EFs'!$B$4:$F$9,5,FALSE),VLOOKUP($B32,'Grid EFs'!$B$14:$F$167,5,FALSE)) -> 456.774 | O32: 597.6623 | P32: 720.023585 | Q32: 5.05 | R32: =IF(ISERROR(VLOOKUP($B32,LineLoss!$B$4:$C$147,2,FALSE)),VLOOKUP($J32,LineLoss!$E$4:$F$9,2,FALSE),VLOOKUP($B32,LineLoss!$B$4:$C$147,2,FALSE)) -> 0.07571494693 | S32: =IF(ISNUMBER(MATCH(B32,'Grid EFs'!$B$14:$B$167,0)),"","*") -> * | T32: Africa | V32: 720.023585 | W32: 720.023585 | X32: 720.023585 | Y32: 720.023585 | Z32: 720.023585 | AA32: 720.023585 | AB32: 720.023585 | AC32: 720.023585 | AD32: 720.023585 | AE32: 720.023585 | AF32: 720.023585 | AG32: 720.023585 | AH32: 720.023585 | AI32: 720.023585 | AJ32: 720.023585 | AK32: 720.023585 | AL32: 720.023585 | AM32: 720.023585 | AN32: 720.023585 | AO32: 720.023585 | AP32: 720.023585 | AQ32: 720.023585 | AR32: 720.023585 | AS32: 720.023585 | AT32: 720.023585 | AU32: 720.023585 | AV32: 720.023585 | AW32: 720.023585 | AX32: 720.023585 | AY32: 720.023585 | AZ32: 720.023585 | BA32: 720.023585 | BB32: 720.023585 | BC32: 720.023585 | BD32: 720.023585 | BE32: 720.023585 | BF32: 720.023585 | BG32: 720.023585 | BH32: 720.023585 | BI32: 720.023585 | BJ32: 720.023585 | BK32: 720.023585 | BL32: 720.023585 | BM32: 720.023585 | BN32: 720.023585 | BP32: 720.023585 | BQ32: 720.023585 | BR32: 720.023585 | BS32: 720.023585 | BT32: 720.023585 | BU32: 720.023585 | BV32: 720.023585 | BW32: 720.023585 | BX32: 720.023585 | BY32: 720.023585 | BZ32: 720.023585 | CA32: 720.023585 | CB32: 720.023585 | CC32: 720.023585 | CD32: 720.023585 | CE32: 720.023585 | CF32: 720.023585 | CG32: 720.023585 | CH32: 720.023585 | CI32: 720.023585 | CJ32: 720.023585 | CK32: 720.023585 | CL32: 720.023585 | CM32: 720.023585 | CN32: 720.023585 | CO32: 720.023585 | CP32: 720.023585 | CQ32: 720.023585 | CR32: 720.023585 | CS32: 720.023585 | CT32: 720.023585 | CU32: 720.023585 | CV32: 720.023585 | CW32: 720.023585 | CX32: 720.023585 | CY32: 720.023585 | CZ32: 720.023585 | DA32: 720.023585 | DB32: 720.023585 | DC32: 720.023585 | DD32: 720.023585 | DE32: 720.023585 | DF32: 720.023585 | DG32: 720.023585 | DH32: 720.023585
B33: Cambodia | C33: Kingdom of Cambodia | D33: CB | E33: KH | F33: KHM | G33: 116 | H33: 13 | I33: 105 | J33: Asia | K33: 585.86 | L33: =IF(ISERROR(VLOOKUP($B33,'Grid EFs'!$B$14:$F$167,3,FALSE)),VLOOKUP($J33,'Grid EFs'!$B$4:$F$9,3,FALSE),VLOOKUP($B33,'Grid EFs'!$B$14:$F$167,3,FALSE)) -> 1062.6486 | M33: =IF(ISERROR(VLOOKUP($B33,'Grid EFs'!$B$14:$F$167,4,FALSE)),VLOOKUP($J33,'Grid EFs'!$B$4:$F$9,4,FALSE),VLOOKUP($B33,'Grid EFs'!$B$14:$F$167,4,FALSE)) -> 839.2182 | N33: =IF(ISERROR(VLOOKUP($B33,'Grid EFs'!$B$14:$F$167,5,FALSE)),VLOOKUP($J33,'Grid EFs'!$B$4:$F$9,5,FALSE),VLOOKUP($B33,'Grid EFs'!$B$14:$F$167,5,FALSE)) -> 451.9748 | O33: 528.9596 | P33: 585.86 | Q33: 5.27 | R33: =IF(ISERROR(VLOOKUP($B33,LineLoss!$B$4:$C$147,2,FALSE)),VLOOKUP($J33,LineLoss!$E$4:$F$9,2,FALSE),VLOOKUP($B33,LineLoss!$B$4:$C$147,2,FALSE)) -> 0.1029562342 | S33: =IF(ISNUMBER(MATCH(B33,'Grid EFs'!$B$14:$B$167,0)),"","*") ->  | T33: Non-OECD Asia | V33: 585.86 | W33: 585.86 | X33: 585.86 | Y33: 585.86 | Z33: 585.86 | AA33: 585.86 | AB33: 585.86 | AC33: 585.86 | AD33: 585.86 | AE33: 585.86 | AF33: 585.86 | AG33: 585.86 | AH33: 585.86 | AI33: 585.86 | AJ33: 585.86 | AK33: 585.86 | AL33: 585.86 | AM33: 585.86 | AN33: 585.86 | AO33: 585.86 | AP33: 585.86 | AQ33: 585.86 | AR33: 585.86 | AS33: 585.86 | AT33: 585.86 | AU33: 585.86 | AV33: 585.86 | AW33: 585.86 | AX33: 585.86 | AY33: 585.86 | AZ33: 585.86 | BA33: 585.86 | BB33: 585.86 | BC33: 585.86 | BD33: 585.86 | BE33: 585.86 | BF33: 585.86 | BG33: 585.86 | BH33: 585.86 | BI33: 585.86 | BJ33: 585.86 | BK33: 585.86 | BL33: 585.86 | BM33: 585.86 | BN33: 585.86 | BP33: 585.86 | BQ33: 585.86 | BR33: 585.86 | BS33: 585.86 | BT33: 585.86 | BU33: 585.86 | BV33: 585.86 | BW33: 585.86 | BX33: 585.86 | BY33: 585.86 | BZ33: 585.86 | CA33: 585.86 | CB33: 585.86 | CC33: 585.86 | CD33: 585.86 | CE33: 585.86 | CF33: 585.86 | CG33: 585.86 | CH33: 585.86 | CI33: 585.86 | CJ33: 585.86 | CK33: 585.86 | CL33: 585.86 | CM33: 585.86 | CN33: 585.86 | CO33: 585.86 | CP33: 585.86 | CQ33: 585.86 | CR33: 585.86 | CS33: 585.86 | CT33: 585.86 | CU33: 585.86 | CV33: 585.86 | CW33: 585.86 | CX33: 585.86 | CY33: 585.86 | CZ33: 585.86 | DA33: 585.86 | DB33: 585.86 | DC33: 585.86 | DD33: 585.86 | DE33: 585.86 | DF33: 585.86 | DG33: 585.86 | DH33: 585.86
B34: Cameroon | C34: Republic of Cameroon | D34: CM | E34: CM | F34: CMR | G34: 120 | H34: 6 | I34: 12 | J34: Africa | K34: 390 | L34: =IF(ISERROR(VLOOKUP($B34,'Grid EFs'!$B$14:$F$167,3,FALSE)),VLOOKUP($J34,'Grid EFs'!$B$4:$F$9,3,FALSE),VLOOKUP($B34,'Grid EFs'!$B$14:$F$167,3,FALSE)) -> 974.5395 | M34: =IF(ISERROR(VLOOKUP($B34,'Grid EFs'!$B$14:$F$167,4,FALSE)),VLOOKUP($J34,'Grid EFs'!$B$4:$F$9,4,FALSE),VLOOKUP($B34,'Grid EFs'!$B$14:$F$167,4,FALSE)) -> 859.7422 | N34: =IF(ISERROR(VLOOKUP($B34,'Grid EFs'!$B$14:$F$167,5,FALSE)),VLOOKUP($J34,'Grid EFs'!$B$4:$F$9,5,FALSE),VLOOKUP($B34,'Grid EFs'!$B$14:$F$167,5,FALSE)) -> 537.8502 | O34: 208.5946 | P34: 390 | Q34: 5.65 | R34: =IF(ISERROR(VLOOKUP($B34,LineLoss!$B$4:$C$147,2,FALSE)),VLOOKUP($J34,LineLoss!$E$4:$F$9,2,FALSE),VLOOKUP($B34,LineLoss!$B$4:$C$147,2,FALSE)) -> 0.06891392247 | S34: =IF(ISNUMBER(MATCH(B34,'Grid EFs'!$B$14:$B$167,0)),"","*") ->  | T34: Africa | V34: 390 | W34: 390 | X34: 390 | Y34: 390 | Z34: 390 | AA34: 390 | AB34: 390 | AC34: 390 | AD34: 390 | AE34: 390 | AF34: 390 | AG34: 390 | AH34: 390 | AI34: 390 | AJ34: 390 | AK34: 390 | AL34: 390 | AM34: 390 | AN34: 390 | AO34: 390 | AP34: 390 | AQ34: 390 | AR34: 390 | AS34: 390 | AT34: 390 | AU34: 390 | AV34: 390 | AW34: 390 | AX34: 390 | AY34: 390 | AZ34: 390 | BA34: 390 | BB34: 390 | BC34: 390 | BD34: 390 | BE34: 390 | BF34: 390 | BG34: 390 | BH34: 390 | BI34: 390 | BJ34: 390 | BK34: 390 | BL34: 390 | BM34: 390 | BN34: 390 | BP34: =$K34 -> 390 | BQ34: 390 | BR34: 390 | BS34: 390 | BT34: 390 | BU34: 390 | BV34: 390 | BW34: 390 | BX34: 390 | BY34: 390 | BZ34: =$K34 -> 390 | CA34: 390 | CB34: 390 | CC34: 390 | CD34: 390 | CE34: 390 | CF34: 390 | CG34: 390 | CH34: 390 | CI34: 390 | CJ34: 390 | CK34: 390 | CL34: 390 | CM34: 390 | CN34: 390 | CO34: 390 | CP34: 390 | CQ34: 390 | CR34: 390 | CS34: 390 | CT34: 390 | CU34: 390 | CV34: 390 | CW34: 390 | CX34: 390 | CY34: 390 | CZ34: 390 | DA34: 390 | DB34: 390 | DC34: 390 | DD34: 390 | DE34: 390 | DF34: 390 | DG34: 390 | DH34: 390
B35: Canada | C35: Canada | D35: CA | E35: CA | F35: CAN | G35: 124 | H35: 60 | I35: -95 | J35: North America | K35: 150.8889 | L35: =IF(ISERROR(VLOOKUP($B35,'Grid EFs'!$B$14:$F$167,3,FALSE)),VLOOKUP($J35,'Grid EFs'!$B$4:$F$9,3,FALSE),VLOOKUP($B35,'Grid EFs'!$B$14:$F$167,3,FALSE)) -> 900.9834 | M35: =IF(ISERROR(VLOOKUP($B35,'Grid EFs'!$B$14:$F$167,4,FALSE)),VLOOKUP($J35,'Grid EFs'!$B$4:$F$9,4,FALSE),VLOOKUP($B35,'Grid EFs'!$B$14:$F$167,4,FALSE)) -> 882.0182 | N35: =IF(ISERROR(VLOOKUP($B35,'Grid EFs'!$B$14:$F$167,5,FALSE)),VLOOKUP($J35,'Grid EFs'!$B$4:$F$9,5,FALSE),VLOOKUP($B35,'Grid EFs'!$B$14:$F$167,5,FALSE)) -> 475.467 | O35: 150.8889 | P35: N/A | Q35: 2.87 | R35: =IF(ISERROR(VLOOKUP($B35,LineLoss!$B$4:$C$147,2,FALSE)),VLOOKUP($J35,LineLoss!$E$4:$F$9,2,FALSE),VLOOKUP($B35,LineLoss!$B$4:$C$147,2,FALSE)) -> 0.06465087143 | S35: =IF(ISNUMBER(MATCH(B35,'Grid EFs'!$B$14:$B$167,0)),"","*") ->  | T35: OECD Americas | V35: 150.8889 | W35: 150.8889 | X35: 150.8889 | Y35: 150.8889 | Z35: 150.8889 | AA35: 150.8889 | AB35: 150.8889 | AC35: 150.8889 | AD35: 150.8889 | AE35: 150.8889 | AF35: 150.8889 | AG35: 150.8889 | AH35: 150.8889 | AI35: 150.8889 | AJ35: 150.8889 | AK35: 150.8889 | AL35: =$K35 -> 150.8889 | AM35: 150.8889 | AN35: 150.8889 | AO35: 150.8889 | AP35: 150.8889 | AQ35: 150.8889 | AR35: 150.8889 | AS35: 150.8889 | AT35: 150.8889 | AU35: 150.8889 | AV35: 150.8889 | AW35: 150.8889 | AX35: 150.8889 | AY35: 150.8889 | AZ35: 150.8889 | BA35: 150.8889 | BB35: =$K35 -> 150.8889 | BC35: 150.8889 | BD35: 150.8889 | BE35: 150.8889 | BF35: 150.8889 | BG35: 150.8889 | BH35: 150.8889 | BI35: 150.8889 | BJ35: 150.8889 | BK35: 150.8889 | BL35: 150.8889 | BM35: 150.8889 | BN35: 150.8889 | BP35: 150.8889 | BQ35: 150.8889 | BR35: 150.8889 | BS35: 150.8889 | BT35: 150.8889 | BU35: 150.8889 | BV35: 150.8889 | BW35: 150.8889 | BX35: 150.8889 | BY35: 150.8889 | BZ35: 150.8889 | CA35: 150.8889 | CB35: 150.8889 | CC35: 150.8889 | CD35: 150.8889 | CE35: 150.8889 | CF35: 150.8889 | CG35: 150.8889 | CH35: 150.8889 | CI35: 150.8889 | CJ35: 150.8889 | CK35: 150.8889 | CL35: 150.8889 | CM35: 150.8889 | CN35: 150.8889 | CO35: 150.8889 | CP35: 150.8889 | CQ35: 150.8889 | CR35: 150.8889 | CS35: 150.8889 | CT35: 150.8889 | CU35: 150.8889 | CV35: 150.8889 | CW35: 150.8889 | CX35: 150.8889 | CY35: 150.8889 | CZ35: 150.8889 | DA35: 150.8889 | DB35: 150.8889 | DC35: 150.8889 | DD35: 150.8889 | DE35: 150.8889 | DF35: 150.8889 | DG35: 150.8889 | DH35: 150.8889
B36: Cape Verde | C36: Republic of Cape Verde | D36: CV | E36: CV | F36: CPV | G36: 132 | H36: 16 | I36: -24 | J36: Africa | K36: 654.9 | L36: =IF(ISERROR(VLOOKUP($B36,'Grid EFs'!$B$14:$F$167,3,FALSE)),VLOOKUP($J36,'Grid EFs'!$B$4:$F$9,3,FALSE),VLOOKUP($B36,'Grid EFs'!$B$14:$F$167,3,FALSE)) -> 974.5395 | M36: =IF(ISERROR(VLOOKUP($B36,'Grid EFs'!$B$14:$F$167,4,FALSE)),VLOOKUP($J36,'Grid EFs'!$B$4:$F$9,4,FALSE),VLOOKUP($B36,'Grid EFs'!$B$14:$F$167,4,FALSE)) -> 833.9727 | N36: =IF(ISERROR(VLOOKUP($B36,'Grid EFs'!$B$14:$F$167,5,FALSE)),VLOOKUP($J36,'Grid EFs'!$B$4:$F$9,5,FALSE),VLOOKUP($B36,'Grid EFs'!$B$14:$F$167,5,FALSE)) -> 456.774 | O36: 597.6623 | P36: 654.9 | Q36: 5.9 | R36: =IF(ISERROR(VLOOKUP($B36,LineLoss!$B$4:$C$147,2,FALSE)),VLOOKUP($J36,LineLoss!$E$4:$F$9,2,FALSE),VLOOKUP($B36,LineLoss!$B$4:$C$147,2,FALSE)) -> 0.07571494693 | S36: =IF(ISNUMBER(MATCH(B36,'Grid EFs'!$B$14:$B$167,0)),"","*") -> * | T36: Africa | V36: 654.9 | W36: 654.9 | X36: 654.9 | Y36: 654.9 | Z36: 654.9 | AA36: 654.9 | AB36: 654.9 | AC36: 654.9 | AD36: 654.9 | AE36: 654.9 | AF36: 654.9 | AG36: 654.9 | AH36: 654.9 | AI36: 654.9 | AJ36: 654.9 | AK36: =$K36 -> 654.9 | AL36: 654.9 | AM36: 654.9 | AN36: 654.9 | AO36: 654.9 | AP36: 654.9 | AQ36: 654.9 | AR36: 654.9 | AS36: 654.9 | AT36: 654.9 | AU36: 654.9 | AV36: 654.9 | AW36: 654.9 | AX36: 654.9 | AY36: 654.9 | AZ36: 654.9 | BA36: 654.9 | BB36: 654.9 | BC36: 654.9 | BD36: 654.9 | BE36: 654.9 | BF36: 654.9 | BG36: 654.9 | BH36: 654.9 | BI36: 654.9 | BJ36: 654.9 | BK36: 654.9 | BL36: 654.9 | BM36: 654.9 | BN36: 654.9 | BP36: 654.9 | BQ36: 654.9 | BR36: 654.9 | BS36: 654.9 | BT36: 654.9 | BU36: 654.9 | BV36: 654.9 | BW36: 654.9 | BX36: 654.9 | BY36: 654.9 | BZ36: 654.9 | CA36: 654.9 | CB36: 654.9 | CC36: 654.9 | CD36: 654.9 | CE36: 654.9 | CF36: 654.9 | CG36: 654.9 | CH36: 654.9 | CI36: 654.9 | CJ36: 654.9 | CK36: 654.9 | CL36: 654.9 | CM36: 654.9 | CN36: 654.9 | CO36: 654.9 | CP36: =$K36 -> 654.9 | CQ36: 654.9 | CR36: 654.9 | CS36: 654.9 | CT36: 654.9 | CU36: 654.9 | CV36: 654.9 | CW36: 654.9 | CX36: 654.9 | CY36: 654.9 | CZ36: 654.9 | DA36: 654.9 | DB36: 654.9 | DC36: 654.9 | DD36: 654.9 | DE36: 654.9 | DF36: =$K36 -> 654.9 | DG36: 654.9 | DH36: 654.9
B37: Central African Republic | C37: Central African Republic | D37: CT | E37: CF | F37: CAF | G37: 140 | H37: 7 | I37: 21 | J37: Africa | K37: 720.023585 | L37: =IF(ISERROR(VLOOKUP($B37,'Grid EFs'!$B$14:$F$167,3,FALSE)),VLOOKUP($J37,'Grid EFs'!$B$4:$F$9,3,FALSE),VLOOKUP($B37,'Grid EFs'!$B$14:$F$167,3,FALSE)) -> 974.5395 | M37: =IF(ISERROR(VLOOKUP($B37,'Grid EFs'!$B$14:$F$167,4,FALSE)),VLOOKUP($J37,'Grid EFs'!$B$4:$F$9,4,FALSE),VLOOKUP($B37,'Grid EFs'!$B$14:$F$167,4,FALSE)) -> 833.9727 | N37: =IF(ISERROR(VLOOKUP($B37,'Grid EFs'!$B$14:$F$167,5,FALSE)),VLOOKUP($J37,'Grid EFs'!$B$4:$F$9,5,FALSE),VLOOKUP($B37,'Grid EFs'!$B$14:$F$167,5,FALSE)) -> 456.774 | O37: 597.6623 | P37: 720.023585 | Q37: 5.69 | R37: =IF(ISERROR(VLOOKUP($B37,LineLoss!$B$4:$C$147,2,FALSE)),VLOOKUP($J37,LineLoss!$E$4:$F$9,2,FALSE),VLOOKUP($B37,LineLoss!$B$4:$C$147,2,FALSE)) -> 0.07571494693 | S37: =IF(ISNUMBER(MATCH(B37,'Grid EFs'!$B$14:$B$167,0)),"","*") -> * | T37: Africa | V37: =$K37 -> 720.023585 | W37: 720.023585 | X37: 720.023585 | Y37: 720.023585 | Z37: 720.023585 | AA37: 720.023585 | AB37: 720.023585 | AC37: 720.023585 | AD37: 720.023585 | AE37: 720.023585 | AF37: 720.023585 | AG37: 720.023585 | AH37: 720.023585 | AI37: 720.023585 | AJ37: 720.023585 | AK37: 720.023585 | AL37: 720.023585 | AM37: 720.023585 | AN37: 720.023585 | AO37: 720.023585 | AP37: 720.023585 | AQ37: 720.023585 | AR37: 720.023585 | AS37: 720.023585 | AT37: 720.023585 | AU37: 720.023585 | AV37: 720.023585 | AW37: 720.023585 | AX37: 720.023585 | AY37: 720.023585 | AZ37: 720.023585 | BA37: 720.023585 | BB37: 720.023585 | BC37: 720.023585 | BD37: 720.023585 | BE37: 720.023585 | BF37: 720.023585 | BG37: 720.023585 | BH37: 720.023585 | BI37: 720.023585 | BJ37: 720.023585 | BK37: 720.023585 | BL37: 720.023585 | BM37: 720.023585 | BN37: 720.023585 | BP37: 720.023585 | BQ37: 720.023585 | BR37: 720.023585 | BS37: 720.023585 | BT37: 720.023585 | BU37: 720.023585 | BV37: 720.023585 | BW37: 720.023585 | BX37: 720.023585 | BY37: 720.023585 | BZ37: 720.023585 | CA37: 720.023585 | CB37: 720.023585 | CC37: 720.023585 | CD37: 720.023585 | CE37: 720.023585 | CF37: 720.023585 | CG37: 720.023585 | CH37: 720.023585 | CI37: 720.023585 | CJ37: 720.023585 | CK37: 720.023585 | CL37: 720.023585 | CM37: 720.023585 | CN37: 720.023585 | CO37: 720.023585 | CP37: 720.023585 | CQ37: 720.023585 | CR37: 720.023585 | CS37: 720.023585 | CT37: 720.023585 | CU37: 720.023585 | CV37: 720.023585 | CW37: 720.023585 | CX37: 720.023585 | CY37: 720.023585 | CZ37: 720.023585 | DA37: 720.023585 | DB37: 720.023585 | DC37: 720.023585 | DD37: 720.023585 | DE37: 720.023585 | DF37: 720.023585 | DG37: 720.023585 | DH37: 720.023585
B38: Chad | C38: Republic of Chad | D38: CD | E38: TD | F38: TCD | G38: 148 | H38: 15 | I38: 19 | J38: Africa | K38: 720.023585 | L38: =IF(ISERROR(VLOOKUP($B38,'Grid EFs'!$B$14:$F$167,3,FALSE)),VLOOKUP($J38,'Grid EFs'!$B$4:$F$9,3,FALSE),VLOOKUP($B38,'Grid EFs'!$B$14:$F$167,3,FALSE)) -> 974.5395 | M38: =IF(ISERROR(VLOOKUP($B38,'Grid EFs'!$B$14:$F$167,4,FALSE)),VLOOKUP($J38,'Grid EFs'!$B$4:$F$9,4,FALSE),VLOOKUP($B38,'Grid EFs'!$B$14:$F$167,4,FALSE)) -> 833.9727 | N38: =IF(ISERROR(VLOOKUP($B38,'Grid EFs'!$B$14:$F$167,5,FALSE)),VLOOKUP($J38,'Grid EFs'!$B$4:$F$9,5,FALSE),VLOOKUP($B38,'Grid EFs'!$B$14:$F$167,5,FALSE)) -> 456.774 | O38: 597.6623 | P38: 720.023585 | Q38: 6.64 | R38: =IF(ISERROR(VLOOKUP($B38,LineLoss!$B$4:$C$147,2,FALSE)),VLOOKUP($J38,LineLoss!$E$4:$F$9,2,FALSE),VLOOKUP($B38,LineLoss!$B$4:$C$147,2,FALSE)) -> 0.07571494693 | S38: =IF(ISNUMBER(MATCH(B38,'Grid EFs'!$B$14:$B$167,0)),"","*") -> * | T38: Africa | V38: 720.023585 | W38: 720.023585 | X38: 720.023585 | Y38: 720.023585 | Z38: 720.023585 | AA38: 720.023585 | AB38: 720.023585 | AC38: 720.023585 | AD38: 720.023585 | AE38: 720.023585 | AF38: 720.023585 | AG38: 720.023585 | AH38: 720.023585 | AI38: 720.023585 | AJ38: 720.023585 | AK38: 720.023585 | AL38: 720.023585 | AM38: 720.023585 | AN38: 720.023585 | AO38: 720.023585 | AP38: 720.023585 | AQ38: 720.023585 | AR38: 720.023585 | AS38: 720.023585 | AT38: 720.023585 | AU38: 720.023585 | AV38: 720.023585 | AW38: 720.023585 | AX38: 720.023585 | AY38: 720.023585 | AZ38: 720.023585 | BA38: 720.023585 | BB38: 720.023585 | BC38: 720.023585 | BD38: 720.023585 | BE38: 720.023585 | BF38: 720.023585 | BG38: 720.023585 | BH38: 720.023585 | BI38: 720.023585 | BJ38: 720.023585 | BK38: 720.023585 | BL38: 720.023585 | BM38: 720.023585 | BN38: 720.023585 | BP38: 720.023585 | BQ38: 720.023585 | BR38: 720.023585 | BS38: 720.023585 | BT38: 720.023585 | BU38: 720.023585 | BV38: 720.023585 | BW38: 720.023585 | BX38: 720.023585 | BY38: 720.023585 | BZ38: 720.023585 | CA38: 720.023585 | CB38: 720.023585 | CC38: 720.023585 | CD38: 720.023585 | CE38: 720.023585 | CF38: 720.023585 | CG38: 720.023585 | CH38: 720.023585 | CI38: 720.023585 | CJ38: 720.023585 | CK38: 720.023585 | CL38: 720.023585 | CM38: 720.023585 | CN38: 720.023585 | CO38: 720.023585 | CP38: 720.023585 | CQ38: 720.023585 | CR38: 720.023585 | CS38: 720.023585 | CT38: 720.023585 | CU38: 720.023585 | CV38: 720.023585 | CW38: 720.023585 | CX38: 720.023585 | CY38: 720.023585 | CZ38: 720.023585 | DA38: 720.023585 | DB38: 720.023585 | DC38: 720.023585 | DD38: 720.023585 | DE38: 720.023585 | DF38: 720.023585 | DG38: 720.023585 | DH38: 720.023585
B39: Chile | C39: Republic of Chile | D39: CI | E39: CL | F39: CHL | G39: 152 | H39: -30 | I39: -71 | J39: South America | K39: 598.5909592 | L39: =IF(ISERROR(VLOOKUP($B39,'Grid EFs'!$B$14:$F$167,3,FALSE)),VLOOKUP($J39,'Grid EFs'!$B$4:$F$9,3,FALSE),VLOOKUP($B39,'Grid EFs'!$B$14:$F$167,3,FALSE)) -> 868.7917 | M39: =IF(ISERROR(VLOOKUP($B39,'Grid EFs'!$B$14:$F$167,4,FALSE)),VLOOKUP($J39,'Grid EFs'!$B$4:$F$9,4,FALSE),VLOOKUP($B39,'Grid EFs'!$B$14:$F$167,4,FALSE)) -> 984.1206 | N39: =IF(ISERROR(VLOOKUP($B39,'Grid EFs'!$B$14:$F$167,5,FALSE)),VLOOKUP($J39,'Grid EFs'!$B$4:$F$9,5,FALSE),VLOOKUP($B39,'Grid EFs'!$B$14:$F$167,5,FALSE)) -> 438.0978 | O39: 482.977 | P39: 598.5909592 | Q39: 5.59 | R39: =IF(ISERROR(VLOOKUP($B39,LineLoss!$B$4:$C$147,2,FALSE)),VLOOKUP($J39,LineLoss!$E$4:$F$9,2,FALSE),VLOOKUP($B39,LineLoss!$B$4:$C$147,2,FALSE)) -> 0.06008554032 | S39: =IF(ISNUMBER(MATCH(B39,'Grid EFs'!$B$14:$B$167,0)),"","*") ->  | T39: OECD Americas | V39: 598.5909592 | W39: 598.5909592 | X39: 598.5909592 | Y39: 598.5909592 | Z39: 598.5909592 | AA39: 598.5909592 | AB39: 598.5909592 | AC39: 598.5909592 | AD39: 598.5909592 | AE39: 598.5909592 | AF39: 598.5909592 | AG39: 598.5909592 | AH39: 598.5909592 | AI39: 598.5909592 | AJ39: 598.5909592 | AK39: 598.5909592 | AL39: 598.5909592 | AM39: 598.5909592 | AN39: 598.5909592 | AO39: 598.5909592 | AP39: 598.5909592 | AQ39: 598.5909592 | AR39: 598.5909592 | AS39: 598.5909592 | AT39: 598.5909592 | AU39: 598.5909592 | AV39: 598.5909592 | AW39: 598.5909592 | AX39: 598.5909592 | AY39: 598.5909592 | AZ39: 598.5909592 | BA39: 598.5909592 | BB39: 598.5909592 | BC39: 598.5909592 | BD39: 598.5909592 | BE39: 598.5909592 | BF39: 598.5909592 | BG39: 598.5909592 | BH39: 598.5909592 | BI39: 598.5909592 | BJ39: 598.5909592 | BK39: 598.5909592 | BL39: 598.5909592 | BM39: 598.5909592 | BN39: 598.5909592 | BP39: 598.5909592 | BQ39: 598.5909592 | BR39: 598.5909592 | BS39: 598.5909592 | BT39: 598.5909592 | BU39: 598.5909592 | BV39: 598.5909592 | BW39: 598.5909592 | BX39: 598.5909592 | BY39: 598.5909592 | BZ39: 598.5909592 | CA39: 598.5909592 | CB39: 598.5909592 | CC39: 598.5909592 | CD39: 598.5909592 | CE39: 598.5909592 | CF39: 598.5909592 | CG39: 598.5909592 | CH39: 598.5909592 | CI39: 598.5909592 | CJ39: 598.5909592 | CK39: 598.5909592 | CL39: 598.5909592 | CM39: 598.5909592 | CN39: 598.5909592 | CO39: 598.5909592 | CP39: 598.5909592 | CQ39: 598.5909592 | CR39: 598.5909592 | CS39: 598.5909592 | CT39: 598.5909592 | CU39: 598.5909592 | CV39: 598.5909592 | CW39: 598.5909592 | CX39: 598.5909592 | CY39: 598.5909592 | CZ39: 598.5909592 | DA39: 598.5909592 | DB39: 598.5909592 | DC39: 598.5909592 | DD39: 598.5909592 | DE39: 598.5909592 | DF39: 598.5909592 | DG39: 598.5909592 | DH39: 598.5909592
B40: China | C40: People's Republic of China | D40: CH | E40: CN | F40: CHN | G40: 156 | H40: 35 | I40: 105 | J40: Asia | K40: 850.2804795 | L40: =IF(ISERROR(VLOOKUP($B40,'Grid EFs'!$B$14:$F$167,3,FALSE)),VLOOKUP($J40,'Grid EFs'!$B$4:$F$9,3,FALSE),VLOOKUP($B40,'Grid EFs'!$B$14:$F$167,3,FALSE)) -> 948.2106 | M40: =IF(ISERROR(VLOOKUP($B40,'Grid EFs'!$B$14:$F$167,4,FALSE)),VLOOKUP($J40,'Grid EFs'!$B$4:$F$9,4,FALSE),VLOOKUP($B40,'Grid EFs'!$B$14:$F$167,4,FALSE)) -> 755.2116 | N40: =IF(ISERROR(VLOOKUP($B40,'Grid EFs'!$B$14:$F$167,5,FALSE)),VLOOKUP($J40,'Grid EFs'!$B$4:$F$9,5,FALSE),VLOOKUP($B40,'Grid EFs'!$B$14:$F$167,5,FALSE)) -> 508.3844 | O40: 734.2853 | P40: 850.2804795 | Q40: 4.28 | R40: =IF(ISERROR(VLOOKUP($B40,LineLoss!$B$4:$C$147,2,FALSE)),VLOOKUP($J40,LineLoss!$E$4:$F$9,2,FALSE),VLOOKUP($B40,LineLoss!$B$4:$C$147,2,FALSE)) -> 0.053072478 | S40: =IF(ISNUMBER(MATCH(B40,'Grid EFs'!$B$14:$B$167,0)),"","*") ->  | T40: Non-OECD Asia | V40: 850.2804795 | W40: 850.2804795 | X40: 850.2804795 | Y40: 850.2804795 | Z40: 850.2804795 | AA40: 850.2804795 | AB40: 850.2804795 | AC40: 850.2804795 | AD40: 850.2804795 | AE40: 850.2804795 | AF40: 850.2804795 | AG40: 850.2804795 | AH40: 850.2804795 | AI40: 850.2804795 | AJ40: 850.2804795 | AK40: 850.2804795 | AL40: 850.2804795 | AM40: 850.2804795 | AN40: 850.2804795 | AO40: 850.2804795 | AP40: 850.2804795 | AQ40: 850.2804795 | AR40: 850.2804795 | AS40: 850.2804795 | AT40: 850.2804795 | AU40: 850.2804795 | AV40: 850.2804795 | AW40: 850.2804795 | AX40: 850.2804795 | AY40: 850.2804795 | AZ40: 850.2804795 | BA40: 850.2804795 | BB40: 850.2804795 | BC40: 850.2804795 | BD40: 850.2804795 | BE40: 850.2804795 | BF40: 850.2804795 | BG40: 850.2804795 | BH40: 850.2804795 | BI40: 850.2804795 | BJ40: 850.2804795 | BK40: 850.2804795 | BL40: 850.2804795 | BM40: 850.2804795 | BN40: 850.2804795 | BP40: 850.2804795 | BQ40: 850.2804795 | BR40: 850.2804795 | BS40: 850.2804795 | BT40: 850.2804795 | BU40: 850.2804795 | BV40: 850.2804795 | BW40: 850.2804795 | BX40: 850.2804795 | BY40: 850.2804795 | BZ40: 850.2804795 | CA40: 850.2804795 | CB40: 850.2804795 | CC40: 850.2804795 | CD40: 850.2804795 | CE40: 850.2804795 | CF40: 850.2804795 | CG40: 850.2804795 | CH40: 850.2804795 | CI40: 850.2804795 | CJ40: 850.2804795 | CK40: 850.2804795 | CL40: 850.2804795 | CM40: 850.2804795 | CN40: 850.2804795 | CO40: 850.2804795 | CP40: 850.2804795 | CQ40: 850.2804795 | CR40: 850.2804795 | CS40: 850.2804795 | CT40: 850.2804795 | CU40: 850.2804795 | CV40: 850.2804795 | CW40: 850.2804795 | CX40: 850.2804795 | CY40: 850.2804795 | CZ40: 850.2804795 | DA40: 850.2804795 | DB40: 850.2804795 | DC40: 850.2804795 | DD40: 850.2804795 | DE40: 850.2804795 | DF40: 850.2804795 | DG40: 850.2804795 | DH40: 850.2804795
B41: Colombia | C41: Republic of Colombia | D41: CO | E41: CO | F41: COL | G41: 170 | H41: 4 | I41: -72 | J41: South America | K41: 333.1309091 | L41: =IF(ISERROR(VLOOKUP($B41,'Grid EFs'!$B$14:$F$167,3,FALSE)),VLOOKUP($J41,'Grid EFs'!$B$4:$F$9,3,FALSE),VLOOKUP($B41,'Grid EFs'!$B$14:$F$167,3,FALSE)) -> 959.6617 | M41: =IF(ISERROR(VLOOKUP($B41,'Grid EFs'!$B$14:$F$167,4,FALSE)),VLOOKUP($J41,'Grid EFs'!$B$4:$F$9,4,FALSE),VLOOKUP($B41,'Grid EFs'!$B$14:$F$167,4,FALSE)) -> 921.2711 | N41: =IF(ISERROR(VLOOKUP($B41,'Grid EFs'!$B$14:$F$167,5,FALSE)),VLOOKUP($J41,'Grid EFs'!$B$4:$F$9,5,FALSE),VLOOKUP($B41,'Grid EFs'!$B$14:$F$167,5,FALSE)) -> 451.8582 | O41: 122.7676 | P41: 333.1309091 | Q41: 4.86 | R41: =IF(ISERROR(VLOOKUP($B41,LineLoss!$B$4:$C$147,2,FALSE)),VLOOKUP($J41,LineLoss!$E$4:$F$9,2,FALSE),VLOOKUP($B41,LineLoss!$B$4:$C$147,2,FALSE)) -> 0.08256524015 | S41: =IF(ISNUMBER(MATCH(B41,'Grid EFs'!$B$14:$B$167,0)),"","*") ->  | T41: Latin America | V41: 333.1309091 | W41: 333.1309091 | X41: 333.1309091 | Y41: 333.1309091 | Z41: 333.1309091 | AA41: 333.1309091 | AB41: 333.1309091 | AC41: 333.1309091 | AD41: 333.1309091 | AE41: 333.1309091 | AF41: 333.1309091 | AG41: 333.1309091 | AH41: 333.1309091 | AI41: 333.1309091 | AJ41: 333.1309091 | AK41: 333.1309091 | AL41: 333.1309091 | AM41: 333.1309091 | AN41: 333.1309091 | AO41: 333.1309091 | AP41: 333.1309091 | AQ41: 333.1309091 | AR41: 333.1309091 | AS41: 333.1309091 | AT41: 333.1309091 | AU41: 333.1309091 | AV41: 333.1309091 | AW41: 333.1309091 | AX41: 333.1309091 | AY41: 333.1309091 | AZ41: 333.1309091 | BA41: 333.1309091 | BB41: 333.1309091 | BC41: 333.1309091 | BD41: 333.1309091 | BE41: 333.1309091 | BF41: 333.1309091 | BG41: 333.1309091 | BH41: 333.1309091 | BI41: 333.1309091 | BJ41: 333.1309091 | BK41: 333.1309091 | BL41: 333.1309091 | BM41: 333.1309091 | BN41: 333.1309091 | BP41: 333.1309091 | BQ41: 333.1309091 | BR41: 333.1309091 | BS41: 333.1309091 | BT41: 333.1309091 | BU41: 333.1309091 | BV41: 333.1309091 | BW41: 333.1309091 | BX41: 333.1309091 | BY41: 333.1309091 | BZ41: 333.1309091 | CA41: 333.1309091 | CB41: 333.1309091 | CC41: 333.1309091 | CD41: 333.1309091 | CE41: 333.1309091 | CF41: 333.1309091 | CG41: 333.1309091 | CH41: 333.1309091 | CI41: 333.1309091 | CJ41: 333.1309091 | CK41: 333.1309091 | CL41: 333.1309091 | CM41: 333.1309091 | CN41: 333.1309091 | CO41: 333.1309091 | CP41: 333.1309091 | CQ41: 333.1309091 | CR41: 333.1309091 | CS41: 333.1309091 | CT41: 333.1309091 | CU41: 333.1309091 | CV41: 333.1309091 | CW41: 333.1309091 | CX41: 333.1309091 | CY41: 333.1309091 | CZ41: 333.1309091 | DA41: 333.1309091 | DB41: 333.1309091 | DC41: 333.1309091 | DD41: 333.1309091 | DE41: 333.1309091 | DF41: 333.1309091 | DG41: 333.1309091 | DH41: 333.1309091
B42: Comoros | C42: Union of the Comoros | D42: CN | E42: KM | F42: COM | G42: 174 | H42: -12.1667 | I42: 44.25 | J42: Africa | K42: 720.023585 | L42: =IF(ISERROR(VLOOKUP($B42,'Grid EFs'!$B$14:$F$167,3,FALSE)),VLOOKUP($J42,'Grid EFs'!$B$4:$F$9,3,FALSE),VLOOKUP($B42,'Grid EFs'!$B$14:$F$167,3,FALSE)) -> 974.5395 | M42: =IF(ISERROR(VLOOKUP($B42,'Grid EFs'!$B$14:$F$167,4,FALSE)),VLOOKUP($J42,'Grid EFs'!$B$4:$F$9,4,FALSE),VLOOKUP($B42,'Grid EFs'!$B$14:$F$167,4,FALSE)) -> 833.9727 | N42: =IF(ISERROR(VLOOKUP($B42,'Grid EFs'!$B$14:$F$167,5,FALSE)),VLOOKUP($J42,'Grid EFs'!$B$4:$F$9,5,FALSE),VLOOKUP($B42,'Grid EFs'!$B$14:$F$167,5,FALSE)) -> 456.774 | O42: 597.6623 | P42: 720.023585 | Q42: 6.22 | R42: =IF(ISERROR(VLOOKUP($B42,LineLoss!$B$4:$C$147,2,FALSE)),VLOOKUP($J42,LineLoss!$E$4:$F$9,2,FALSE),VLOOKUP($B42,LineLoss!$B$4:$C$147,2,FALSE)) -> 0.07571494693 | S42: =IF(ISNUMBER(MATCH(B42,'Grid EFs'!$B$14:$B$167,0)),"","*") -> * | T42: Africa | V42: 720.023585 | W42: 720.023585 | X42: 720.023585 | Y42: 720.023585 | Z42: 720.023585 | AA42: 720.023585 | AB42: 720.023585 | AC42: 720.023585 | AD42: 720.023585 | AE42: 720.023585 | AF42: 720.023585 | AG42: 720.023585 | AH42: 720.023585 | AI42: 720.023585 | AJ42: 720.023585 | AK42: 720.023585 | AL42: 720.023585 | AM42: 720.023585 | AN42: 720.023585 | AO42: 720.023585 | AP42: 720.023585 | AQ42: 720.023585 | AR42: 720.023585 | AS42: 720.023585 | AT42: 720.023585 | AU42: 720.023585 | AV42: 720.023585 | AW42: 720.023585 | AX42: 720.023585 | AY42: 720.023585 | AZ42: 720.023585 | BA42: 720.023585 | BB42: 720.023585 | BC42: 720.023585 | BD42: 720.023585 | BE42: 720.023585 | BF42: 720.023585 | BG42: 720.023585 | BH42: 720.023585 | BI42: 720.023585 | BJ42: 720.023585 | BK42: 720.023585 | BL42: 720.023585 | BM42: 720.023585 | BN42: 720.023585 | BP42: 720.023585 | BQ42: 720.023585 | BR42: 720.023585 | BS42: 720.023585 | BT42: 720.023585 | BU42: 720.023585 | BV42: 720.023585 | BW42: 720.023585 | BX42: 720.023585 | BY42: 720.023585 | BZ42: 720.023585 | CA42: 720.023585 | CB42: 720.023585 | CC42: 720.023585 | CD42: 720.023585 | CE42: 720.023585 | CF42: 720.023585 | CG42: 720.023585 | CH42: 720.023585 | CI42: 720.023585 | CJ42: 720.023585 | CK42: 720.023585 | CL42: 720.023585 | CM42: 720.023585 | CN42: 720.023585 | CO42: 720.023585 | CP42: 720.023585 | CQ42: 720.023585 | CR42: 720.023585 | CS42: 720.023585 | CT42: 720.023585 | CU42: 720.023585 | CV42: 720.023585 | CW42: 720.023585 | CX42: 720.023585 | CY42: 720.023585 | CZ42: 720.023585 | DA42: 720.023585 | DB42: 720.023585 | DC42: 720.023585 | DD42: 720.023585 | DE42: 720.023585 | DF42: 720.023585 | DG42: 720.023585 | DH42: 720.023585
B43: Congo | C43: Republic of the Congo | D43: CF | E43: CG | F43: COG | G43: 178 | H43: -1 | I43: 15 | J43: Africa | K43: 720.023585 | L43: =IF(ISERROR(VLOOKUP($B43,'Grid EFs'!$B$14:$F$167,3,FALSE)),VLOOKUP($J43,'Grid EFs'!$B$4:$F$9,3,FALSE),VLOOKUP($B43,'Grid EFs'!$B$14:$F$167,3,FALSE)) -> 974.5395 | M43: =IF(ISERROR(VLOOKUP($B43,'Grid EFs'!$B$14:$F$167,4,FALSE)),VLOOKUP($J43,'Grid EFs'!$B$4:$F$9,4,FALSE),VLOOKUP($B43,'Grid EFs'!$B$14:$F$167,4,FALSE)) -> 1058.4444 | N43: =IF(ISERROR(VLOOKUP($B43,'Grid EFs'!$B$14:$F$167,5,FALSE)),VLOOKUP($J43,'Grid EFs'!$B$4:$F$9,5,FALSE),VLOOKUP($B43,'Grid EFs'!$B$14:$F$167,5,FALSE)) -> 584.1387 | O43: 229.9598 | P43: 720.023585 | Q43: 4.86 | R43: =IF(ISERROR(VLOOKUP($B43,LineLoss!$B$4:$C$147,2,FALSE)),VLOOKUP($J43,LineLoss!$E$4:$F$9,2,FALSE),VLOOKUP($B43,LineLoss!$B$4:$C$147,2,FALSE)) -> 0.1640924929 | S43: =IF(ISNUMBER(MATCH(B43,'Grid EFs'!$B$14:$B$167,0)),"","*") ->  | T43: Africa | V43: 720.023585 | W43: 720.023585 | X43: 720.023585 | Y43: 720.023585 | Z43: 720.023585 | AA43: 720.023585 | AB43: 720.023585 | AC43: 720.023585 | AD43: 720.023585 | AE43: 720.023585 | AF43: 720.023585 | AG43: 720.023585 | AH43: 720.023585 | AI43: 720.023585 | AJ43: 720.023585 | AK43: 720.023585 | AL43: 720.023585 | AM43: 720.023585 | AN43: 720.023585 | AO43: 720.023585 | AP43: 720.023585 | AQ43: 720.023585 | AR43: 720.023585 | AS43: 720.023585 | AT43: 720.023585 | AU43: 720.023585 | AV43: 720.023585 | AW43: 720.023585 | AX43: 720.023585 | AY43: 720.023585 | AZ43: 720.023585 | BA43: 720.023585 | BB43: 720.023585 | BC43: 720.023585 | BD43: 720.023585 | BE43: 720.023585 | BF43: 720.023585 | BG43: 720.023585 | BH43: 720.023585 | BI43: 720.023585 | BJ43: 720.023585 | BK43: 720.023585 | BL43: 720.023585 | BM43: 720.023585 | BN43: 720.023585 | BP43: 720.023585 | BQ43: 720.023585 | BR43: 720.023585 | BS43: 720.023585 | BT43: 720.023585 | BU43: 720.023585 | BV43: 720.023585 | BW43: 720.023585 | BX43: 720.023585 | BY43: 720.023585 | BZ43: 720.023585 | CA43: 720.023585 | CB43: 720.023585 | CC43: 720.023585 | CD43: 720.023585 | CE43: 720.023585 | CF43: 720.023585 | CG43: 720.023585 | CH43: 720.023585 | CI43: 720.023585 | CJ43: 720.023585 | CK43: 720.023585 | CL43: 720.023585 | CM43: 720.023585 | CN43: 720.023585 | CO43: 720.023585 | CP43: 720.023585 | CQ43: 720.023585 | CR43: 720.023585 | CS43: 720.023585 | CT43: 720.023585 | CU43: 720.023585 | CV43: 720.023585 | CW43: 720.023585 | CX43: 720.023585 | CY43: 720.023585 | CZ43: 720.023585 | DA43: 720.023585 | DB43: 720.023585 | DC43: 720.023585 | DD43: 720.023585 | DE43: 720.023585 | DF43: 720.023585 | DG43: 720.023585 | DH43: 720.023585
B44: Congo, Democratic Republic | C44: Democratic Republic of the Congo | D44: CG | E44: CD | F44: COD | G44: 180 | H44: 0 | I44: 25 | J44: Africa | K44: 720.023585 | L44: =IF(ISERROR(VLOOKUP($B44,'Grid EFs'!$B$14:$F$167,3,FALSE)),VLOOKUP($J44,'Grid EFs'!$B$4:$F$9,3,FALSE),VLOOKUP($B44,'Grid EFs'!$B$14:$F$167,3,FALSE)) -> 974.5395 | M44: =IF(ISERROR(VLOOKUP($B44,'Grid EFs'!$B$14:$F$167,4,FALSE)),VLOOKUP($J44,'Grid EFs'!$B$4:$F$9,4,FALSE),VLOOKUP($B44,'Grid EFs'!$B$14:$F$167,4,FALSE)) -> 1058.1667 | N44: =IF(ISERROR(VLOOKUP($B44,'Grid EFs'!$B$14:$F$167,5,FALSE)),VLOOKUP($J44,'Grid EFs'!$B$4:$F$9,5,FALSE),VLOOKUP($B44,'Grid EFs'!$B$14:$F$167,5,FALSE)) -> 573.2069 | O44: 2.8838 | P44: 720.023585 | Q44: 4.8 | R44: =IF(ISERROR(VLOOKUP($B44,LineLoss!$B$4:$C$147,2,FALSE)),VLOOKUP($J44,LineLoss!$E$4:$F$9,2,FALSE),VLOOKUP($B44,LineLoss!$B$4:$C$147,2,FALSE)) -> 0.05498898861 | S44: =IF(ISNUMBER(MATCH(B44,'Grid EFs'!$B$14:$B$167,0)),"","*") ->  | T44: Africa | V44: 720.023585 | W44: 720.023585 | X44: 720.023585 | Y44: 720.023585 | Z44: 720.023585 | AA44: 720.023585 | AB44: 720.023585 | AC44: 720.023585 | AD44: 720.023585 | AE44: 720.023585 | AF44: 720.023585 | AG44: 720.023585 | AH44: 720.023585 | AI44: 720.023585 | AJ44: 720.023585 | AK44: 720.023585 | AL44: 720.023585 | AM44: 720.023585 | AN44: 720.023585 | AO44: 720.023585 | AP44: 720.023585 | AQ44: 720.023585 | AR44: 720.023585 | AS44: 720.023585 | AT44: 720.023585 | AU44: 720.023585 | AV44: 720.023585 | AW44: 720.023585 | AX44: 720.023585 | AY44: 720.023585 | AZ44: 720.023585 | BA44: 720.023585 | BB44: 720.023585 | BC44: 720.023585 | BD44: 720.023585 | BE44: 720.023585 | BF44: 720.023585 | BG44: 720.023585 | BH44: 720.023585 | BI44: 720.023585 | BJ44: 720.023585 | BK44: 720.023585 | BL44: 720.023585 | BM44: 720.023585 | BN44: 720.023585 | BP44: =$K44 -> 720.023585 | BQ44: 720.023585 | BR44: 720.023585 | BS44: 720.023585 | BT44: 720.023585 | BU44: 720.023585 | BV44: 720.023585 | BW44: 720.023585 | BX44: 720.023585 | BY44: 720.023585 | BZ44: =$K44 -> 720.023585 | CA44: 720.023585 | CB44: 720.023585 | CC44: 720.023585 | CD44: 720.023585 | CE44: 720.023585 | CF44: 720.023585 | CG44: 720.023585 | CH44: 720.023585 | CI44: 720.023585 | CJ44: 720.023585 | CK44: 720.023585 | CL44: 720.023585 | CM44: 720.023585 | CN44: 720.023585 | CO44: 720.023585 | CP44: 720.023585 | CQ44: 720.023585 | CR44: 720.023585 | CS44: 720.023585 | CT44: 720.023585 | CU44: 720.023585 | CV44: 720.023585 | CW44: 720.023585 | CX44: 720.023585 | CY44: 720.023585 | CZ44: 720.023585 | DA44: 720.023585 | DB44: 720.023585 | DC44: 720.023585 | DD44: 720.023585 | DE44: 720.023585 | DF44: 720.023585 | DG44: 720.023585 | DH44: 720.023585
B45: Costa Rica | C45: Republic of Costa Rica | D45: CS | E45: CR | F45: CRI | G45: 188 | H45: 10 | I45: -84 | J45: North America | K45: 280.5230769 | L45: =IF(ISERROR(VLOOKUP($B45,'Grid EFs'!$B$14:$F$167,3,FALSE)),VLOOKUP($J45,'Grid EFs'!$B$4:$F$9,3,FALSE),VLOOKUP($B45,'Grid EFs'!$B$14:$F$167,3,FALSE)) -> 1240.488 | M45: =IF(ISERROR(VLOOKUP($B45,'Grid EFs'!$B$14:$F$167,4,FALSE)),VLOOKUP($J45,'Grid EFs'!$B$4:$F$9,4,FALSE),VLOOKUP($B45,'Grid EFs'!$B$14:$F$167,4,FALSE)) -> 666.3482 | N45: =IF(ISERROR(VLOOKUP($B45,'Grid EFs'!$B$14:$F$167,5,FALSE)),VLOOKUP($J45,'Grid EFs'!$B$4:$F$9,5,FALSE),VLOOKUP($B45,'Grid EFs'!$B$14:$F$167,5,FALSE)) -> 502.8366 | O45: 54.3557 | P45: 280.5230769 | Q45: 4.15 | R45: =IF(ISERROR(VLOOKUP($B45,LineLoss!$B$4:$C$147,2,FALSE)),VLOOKUP($J45,LineLoss!$E$4:$F$9,2,FALSE),VLOOKUP($B45,LineLoss!$B$4:$C$147,2,FALSE)) -> 0.07217607684 | S45: =IF(ISNUMBER(MATCH(B45,'Grid EFs'!$B$14:$B$167,0)),"","*") ->  | T45: Latin America | V45: 280.5230769 | W45: 280.5230769 | X45: 280.5230769 | Y45: 280.5230769 | Z45: 280.5230769 | AA45: 280.5230769 | AB45: 280.5230769 | AC45: 280.5230769 | AD45: 280.5230769 | AE45: 280.5230769 | AF45: 280.5230769 | AG45: 280.5230769 | AH45: 280.5230769 | AI45: 280.5230769 | AJ45: 280.5230769 | AK45: 280.5230769 | AL45: 280.5230769 | AM45: 280.5230769 | AN45: 280.5230769 | AO45: 280.5230769 | AP45: 280.5230769 | AQ45: 280.5230769 | AR45: 280.5230769 | AS45: 280.5230769 | AT45: 280.5230769 | AU45: 280.5230769 | AV45: 280.5230769 | AW45: 280.5230769 | AX45: 280.5230769 | AY45: 280.5230769 | AZ45: 280.5230769 | BA45: 280.5230769 | BB45: 280.5230769 | BC45: 280.5230769 | BD45: 280.5230769 | BE45: 280.5230769 | BF45: 280.5230769 | BG45: 280.5230769 | BH45: 280.5230769 | BI45: 280.5230769 | BJ45: 280.5230769 | BK45: 280.5230769 | BL45: 280.5230769 | BM45: 280.5230769 | BN45: 280.5230769 | BP45: 280.5230769 | BQ45: 280.5230769 | BR45: 280.5230769 | BS45: 280.5230769 | BT45: 280.5230769 | BU45: 280.5230769 | BV45: 280.5230769 | BW45: 280.5230769 | BX45: 280.5230769 | BY45: 280.5230769 | BZ45: 280.5230769 | CA45: 280.5230769 | CB45: 280.5230769 | CC45: 280.5230769 | CD45: 280.5230769 | CE45: 280.5230769 | CF45: 280.5230769 | CG45: 280.5230769 | CH45: 280.5230769 | CI45: 280.5230769 | CJ45: 280.5230769 | CK45: 280.5230769 | CL45: 280.5230769 | CM45: 280.5230769 | CN45: 280.5230769 | CO45: 280.5230769 | CP45: 280.5230769 | CQ45: 280.5230769 | CR45: 280.5230769 | CS45: 280.5230769 | CT45: 280.5230769 | CU45: 280.5230769 | CV45: 280.5230769 | CW45: 280.5230769 | CX45: 280.5230769 | CY45: 280.5230769 | CZ45: 280.5230769 | DA45: 280.5230769 | DB45: 280.5230769 | DC45: 280.5230769 | DD45: 280.5230769 | DE45: 280.5230769 | DF45: 280.5230769 | DG45: 280.5230769 | DH45: 280.5230769
B46: Côte d'Ivoire | C46: Republic of Côte d'Ivoire | D46: IV | E46: CI | F46: CIV | G46: 384 | H46: 8 | I46: -5 | J46: Africa | K46: 634.45 | L46: =IF(ISERROR(VLOOKUP($B46,'Grid EFs'!$B$14:$F$167,3,FALSE)),VLOOKUP($J46,'Grid EFs'!$B$4:$F$9,3,FALSE),VLOOKUP($B46,'Grid EFs'!$B$14:$F$167,3,FALSE)) -> 974.5395 | M46: =IF(ISERROR(VLOOKUP($B46,'Grid EFs'!$B$14:$F$167,4,FALSE)),VLOOKUP($J46,'Grid EFs'!$B$4:$F$9,4,FALSE),VLOOKUP($B46,'Grid EFs'!$B$14:$F$167,4,FALSE)) -> 928.7009 | N46: =IF(ISERROR(VLOOKUP($B46,'Grid EFs'!$B$14:$F$167,5,FALSE)),VLOOKUP($J46,'Grid EFs'!$B$4:$F$9,5,FALSE),VLOOKUP($B46,'Grid EFs'!$B$14:$F$167,5,FALSE)) -> 642.9379 | O46: 490.3806 | P46: 634.45 | Q46: 5.1 | R46: =IF(ISERROR(VLOOKUP($B46,LineLoss!$B$4:$C$147,2,FALSE)),VLOOKUP($J46,LineLoss!$E$4:$F$9,2,FALSE),VLOOKUP($B46,LineLoss!$B$4:$C$147,2,FALSE)) -> 0.09790035425 | S46: =IF(ISNUMBER(MATCH(B46,'Grid EFs'!$B$14:$B$167,0)),"","*") ->  | T46: Africa | V46: 634.45 | W46: 634.45 | X46: 634.45 | Y46: 634.45 | Z46: 634.45 | AA46: 634.45 | AB46: 634.45 | AC46: 634.45 | AD46: 634.45 | AE46: 634.45 | AF46: 634.45 | AG46: 634.45 | AH46: 634.45 | AI46: 634.45 | AJ46: 634.45 | AK46: 634.45 | AL46: 634.45 | AM46: 634.45 | AN46: 634.45 | AO46: 634.45 | AP46: 634.45 | AQ46: 634.45 | AR46: 634.45 | AS46: 634.45 | AT46: 634.45 | AU46: 634.45 | AV46: 634.45 | AW46: 634.45 | AX46: 634.45 | AY46: 634.45 | AZ46: 634.45 | BA46: 634.45 | BB46: 634.45 | BC46: 634.45 | BD46: 634.45 | BE46: 634.45 | BF46: 634.45 | BG46: 634.45 | BH46: 634.45 | BI46: 634.45 | BJ46: 634.45 | BK46: 634.45 | BL46: 634.45 | BM46: 634.45 | BN46: 634.45 | BP46: 634.45 | BQ46: 634.45 | BR46: 634.45 | BS46: 634.45 | BT46: 634.45 | BU46: 634.45 | BV46: 634.45 | BW46: 634.45 | BX46: 634.45 | BY46: 634.45 | BZ46: 634.45 | CA46: 634.45 | CB46: 634.45 | CC46: 634.45 | CD46: 634.45 | CE46: 634.45 | CF46: 634.45 | CG46: 634.45 | CH46: 634.45 | CI46: 634.45 | CJ46: 634.45 | CK46: 634.45 | CL46: 634.45 | CM46: 634.45 | CN46: 634.45 | CO46: 634.45 | CP46: 634.45 | CQ46: 634.45 | CR46: 634.45 | CS46: 634.45 | CT46: 634.45 | CU46: 634.45 | CV46: 634.45 | CW46: 634.45 | CX46: 634.45 | CY46: 634.45 | CZ46: 634.45 | DA46: 634.45 | DB46: 634.45 | DC46: 634.45 | DD46: 634.45 | DE46: 634.45 | DF46: 634.45 | DG46: 634.45 | DH46: 634.45
B47: Croatia | C47: Republic of Croatia | D47: HR | E47: HR | F47: HRV | G47: 191 | H47: 45.1667 | I47: 15.5 | J47: Europe | K47: 311.063 | L47: =IF(ISERROR(VLOOKUP($B47,'Grid EFs'!$B$14:$F$167,3,FALSE)),VLOOKUP($J47,'Grid EFs'!$B$4:$F$9,3,FALSE),VLOOKUP($B47,'Grid EFs'!$B$14:$F$167,3,FALSE)) -> 868.7399 | M47: =IF(ISERROR(VLOOKUP($B47,'Grid EFs'!$B$14:$F$167,4,FALSE)),VLOOKUP($J47,'Grid EFs'!$B$4:$F$9,4,FALSE),VLOOKUP($B47,'Grid EFs'!$B$14:$F$167,4,FALSE)) -> 638.5863 | N47: =IF(ISERROR(VLOOKUP($B47,'Grid EFs'!$B$14:$F$167,5,FALSE)),VLOOKUP($J47,'Grid EFs'!$B$4:$F$9,5,FALSE),VLOOKUP($B47,'Grid EFs'!$B$14:$F$167,5,FALSE)) -> 365.6484 | O47: 311.063 | P47: N/A | Q47: 3.54 | R47: =IF(ISERROR(VLOOKUP($B47,LineLoss!$B$4:$C$147,2,FALSE)),VLOOKUP($J47,LineLoss!$E$4:$F$9,2,FALSE),VLOOKUP($B47,LineLoss!$B$4:$C$147,2,FALSE)) -> 0.08775678566 | S47: =IF(ISNUMBER(MATCH(B47,'Grid EFs'!$B$14:$B$167,0)),"","*") ->  | T47: Eastern Europe & Eurasia | V47: 311.063 | W47: 311.063 | X47: 311.063 | Y47: 311.063 | Z47: 311.063 | AA47: 311.063 | AB47: 311.063 | AC47: 311.063 | AD47: 311.063 | AE47: 311.063 | AF47: 311.063 | AG47: 311.063 | AH47: 311.063 | AI47: 311.063 | AJ47: 311.063 | AK47: 311.063 | AL47: 311.063 | AM47: 311.063 | AN47: 311.063 | AO47: 311.063 | AP47: 311.063 | AQ47: 311.063 | AR47: 311.063 | AS47: 311.063 | AT47: 311.063 | AU47: 311.063 | AV47: 311.063 | AW47: 311.063 | AX47: 311.063 | AY47: 311.063 | AZ47: 311.063 | BA47: 311.063 | BB47: 311.063 | BC47: 311.063 | BD47: 311.063 | BE47: 311.063 | BF47: 311.063 | BG47: 311.063 | BH47: 311.063 | BI47: 311.063 | BJ47: 311.063 | BK47: 311.063 | BL47: 311.063 | BM47: 311.063 | BN47: 311.063 | BP47: 311.063 | BQ47: 311.063 | BR47: 311.063 | BS47: 311.063 | BT47: 311.063 | BU47: 311.063 | BV47: 311.063 | BW47: 311.063 | BX47: 311.063 | BY47: 311.063 | BZ47: 311.063 | CA47: 311.063 | CB47: 311.063 | CC47: 311.063 | CD47: 311.063 | CE47: 311.063 | CF47: 311.063 | CG47: 311.063 | CH47: 311.063 | CI47: 311.063 | CJ47: 311.063 | CK47: 311.063 | CL47: 311.063 | CM47: 311.063 | CN47: 311.063 | CO47: 311.063 | CP47: 311.063 | CQ47: 311.063 | CR47: 311.063 | CS47: 311.063 | CT47: 311.063 | CU47: 311.063 | CV47: 311.063 | CW47: 311.063 | CX47: 311.063 | CY47: 311.063 | CZ47: 311.063 | DA47: 311.063 | DB47: 311.063 | DC47: 311.063 | DD47: 311.063 | DE47: 311.063 | DF47: 311.063 | DG47: 311.063 | DH47: 311.063
B48: Cuba | C48: Republic of Cuba | D48: CU | E48: CU | F48: CUB | G48: 192 | H48: 21.5 | I48: -80 | J48: North America | K48: 873.5 | L48: =IF(ISERROR(VLOOKUP($B48,'Grid EFs'!$B$14:$F$167,3,FALSE)),VLOOKUP($J48,'Grid EFs'!$B$4:$F$9,3,FALSE),VLOOKUP($B48,'Grid EFs'!$B$14:$F$167,3,FALSE)) -> 1240.488 | M48: =IF(ISERROR(VLOOKUP($B48,'Grid EFs'!$B$14:$F$167,4,FALSE)),VLOOKUP($J48,'Grid EFs'!$B$4:$F$9,4,FALSE),VLOOKUP($B48,'Grid EFs'!$B$14:$F$167,4,FALSE)) -> 989.4932 | N48: =IF(ISERROR(VLOOKUP($B48,'Grid EFs'!$B$14:$F$167,5,FALSE)),VLOOKUP($J48,'Grid EFs'!$B$4:$F$9,5,FALSE),VLOOKUP($B48,'Grid EFs'!$B$14:$F$167,5,FALSE)) -> 502.2323 | O48: 897.2557 | P48: 873.5 | Q48: 5.05 | R48: =IF(ISERROR(VLOOKUP($B48,LineLoss!$B$4:$C$147,2,FALSE)),VLOOKUP($J48,LineLoss!$E$4:$F$9,2,FALSE),VLOOKUP($B48,LineLoss!$B$4:$C$147,2,FALSE)) -> 0.08729144176 | S48: =IF(ISNUMBER(MATCH(B48,'Grid EFs'!$B$14:$B$167,0)),"","*") ->  | T48: Latin America | V48: 873.5 | W48: 873.5 | X48: 873.5 | Y48: 873.5 | Z48: 873.5 | AA48: 873.5 | AB48: 873.5 | AC48: 873.5 | AD48: 873.5 | AE48: 873.5 | AF48: 873.5 | AG48: 873.5 | AH48: 873.5 | AI48: 873.5 | AJ48: 873.5 | AK48: 873.5 | AL48: 873.5 | AM48: 873.5 | AN48: 873.5 | AO48: 873.5 | AP48: 873.5 | AQ48: 873.5 | AR48: 873.5 | AS48: 873.5 | AT48: 873.5 | AU48: 873.5 | AV48: 873.5 | AW48: 873.5 | AX48: 873.5 | AY48: 873.5 | AZ48: 873.5 | BA48: 873.5 | BB48: 873.5 | BC48: 873.5 | BD48: 873.5 | BE48: 873.5 | BF48: 873.5 | BG48: 873.5 | BH48: 873.5 | BI48: 873.5 | BJ48: 873.5 | BK48: 873.5 | BL48: 873.5 | BM48: 873.5 | BN48: 873.5 | BP48: 873.5 | BQ48: 873.5 | BR48: 873.5 | BS48: 873.5 | BT48: 873.5 | BU48: 873.5 | BV48: 873.5 | BW48: 873.5 | BX48: 873.5 | BY48: 873.5 | BZ48: 873.5 | CA48: 873.5 | CB48: 873.5 | CC48: 873.5 | CD48: 873.5 | CE48: 873.5 | CF48: 873.5 | CG48: 873.5 | CH48: 873.5 | CI48: 873.5 | CJ48: 873.5 | CK48: 873.5 | CL48: 873.5 | CM48: 873.5 | CN48: 873.5 | CO48: 873.5 | CP48: 873.5 | CQ48: 873.5 | CR48: 873.5 | CS48: 873.5 | CT48: 873.5 | CU48: 873.5 | CV48: 873.5 | CW48: 873.5 | CX48: 873.5 | CY48: 873.5 | CZ48: 873.5 | DA48: 873.5 | DB48: 873.5 | DC48: 873.5 | DD48: 873.5 | DE48: 873.5 | DF48: 873.5 | DG48: 873.5 | DH48: 873.5
B49: Cyprus | C49: Republic of Cyprus | D49: CY | E49: CY | F49: CYP | G49: 196 | H49: 35 | I49: 33 | J49: Europe | K49: 798.22 | L49: =IF(ISERROR(VLOOKUP($B49,'Grid EFs'!$B$14:$F$167,3,FALSE)),VLOOKUP($J49,'Grid EFs'!$B$4:$F$9,3,FALSE),VLOOKUP($B49,'Grid EFs'!$B$14:$F$167,3,FALSE)) -> 919.0507 | M49: =IF(ISERROR(VLOOKUP($B49,'Grid EFs'!$B$14:$F$167,4,FALSE)),VLOOKUP($J49,'Grid EFs'!$B$4:$F$9,4,FALSE),VLOOKUP($B49,'Grid EFs'!$B$14:$F$167,4,FALSE)) -> 768.1473 | N49: =IF(ISERROR(VLOOKUP($B49,'Grid EFs'!$B$14:$F$167,5,FALSE)),VLOOKUP($J49,'Grid EFs'!$B$4:$F$9,5,FALSE),VLOOKUP($B49,'Grid EFs'!$B$14:$F$167,5,FALSE)) -> 527.4198 | O49: 726.2957 | P49: 798.22 | Q49: 5.19 | R49: =IF(ISERROR(VLOOKUP($B49,LineLoss!$B$4:$C$147,2,FALSE)),VLOOKUP($J49,LineLoss!$E$4:$F$9,2,FALSE),VLOOKUP($B49,LineLoss!$B$4:$C$147,2,FALSE)) -> 0.03401495746 | S49: =IF(ISNUMBER(MATCH(B49,'Grid EFs'!$B$14:$B$167,0)),"","*") ->  | T49: Eastern Europe & Eurasia | V49: 798.22 | W49: 798.22 | X49: 798.22 | Y49: 798.22 | Z49: 798.22 | AA49: 798.22 | AB49: 798.22 | AC49: 798.22 | AD49: 798.22 | AE49: 798.22 | AF49: 798.22 | AG49: 798.22 | AH49: 798.22 | AI49: 798.22 | AJ49: 798.22 | AK49: 798.22 | AL49: 798.22 | AM49: 798.22 | AN49: 798.22 | AO49: 798.22 | AP49: 798.22 | AQ49: 798.22 | AR49: 798.22 | AS49: 798.22 | AT49: 798.22 | AU49: 798.22 | AV49: 798.22 | AW49: 798.22 | AX49: 798.22 | AY49: 798.22 | AZ49: 798.22 | BA49: 798.22 | BB49: 798.22 | BC49: 798.22 | BD49: 798.22 | BE49: 798.22 | BF49: 798.22 | BG49: 798.22 | BH49: 798.22 | BI49: 798.22 | BJ49: 798.22 | BK49: 798.22 | BL49: 798.22 | BM49: 798.22 | BN49: 798.22 | BP49: 798.22 | BQ49: 798.22 | BR49: 798.22 | BS49: 798.22 | BT49: 798.22 | BU49: 798.22 | BV49: 798.22 | BW49: 798.22 | BX49: 798.22 | BY49: 798.22 | BZ49: 798.22 | CA49: 798.22 | CB49: 798.22 | CC49: 798.22 | CD49: 798.22 | CE49: 798.22 | CF49: 798.22 | CG49: 798.22 | CH49: 798.22 | CI49: 798.22 | CJ49: 798.22 | CK49: 798.22 | CL49: 798.22 | CM49: 798.22 | CN49: 798.22 | CO49: 798.22 | CP49: 798.22 | CQ49: 798.22 | CR49: 798.22 | CS49: 798.22 | CT49: 798.22 | CU49: 798.22 | CV49: 798.22 | CW49: 798.22 | CX49: 798.22 | CY49: 798.22 | CZ49: 798.22 | DA49: 798.22 | DB49: 798.22 | DC49: 798.22 | DD49: 798.22 | DE49: 798.22 | DF49: 798.22 | DG49: 798.22 | DH49: 798.22
B50: Czech Republic | C50: Czech Republic | D50: EZ | E50: CZ | F50: CZE | G50: 203 | H50: 49.75 | I50: 15.5 | J50: Europe | K50: 551.8495 | L50: =IF(ISERROR(VLOOKUP($B50,'Grid EFs'!$B$14:$F$167,3,FALSE)),VLOOKUP($J50,'Grid EFs'!$B$4:$F$9,3,FALSE),VLOOKUP($B50,'Grid EFs'!$B$14:$F$167,3,FALSE)) -> 1008.5516 | M50: =IF(ISERROR(VLOOKUP($B50,'Grid EFs'!$B$14:$F$167,4,FALSE)),VLOOKUP($J50,'Grid EFs'!$B$4:$F$9,4,FALSE),VLOOKUP($B50,'Grid EFs'!$B$14:$F$167,4,FALSE)) -> 925.9844 | N50: =IF(ISERROR(VLOOKUP($B50,'Grid EFs'!$B$14:$F$167,5,FALSE)),VLOOKUP($J50,'Grid EFs'!$B$4:$F$9,5,FALSE),VLOOKUP($B50,'Grid EFs'!$B$14:$F$167,5,FALSE)) -> 419.2575 | O50: 551.8495 | P50: N/A | Q50: 2.84 | R50: =IF(ISERROR(VLOOKUP($B50,LineLoss!$B$4:$C$147,2,FALSE)),VLOOKUP($J50,LineLoss!$E$4:$F$9,2,FALSE),VLOOKUP($B50,LineLoss!$B$4:$C$147,2,FALSE)) -> 0.04579332385 | S50: =IF(ISNUMBER(MATCH(B50,'Grid EFs'!$B$14:$B$167,0)),"","*") ->  | T50: OECD Europe | V50: 551.8495 | W50: 551.8495 | X50: 551.8495 | Y50: 551.8495 | Z50: 551.8495 | AA50: 551.8495 | AB50: 551.8495 | AC50: 551.8495 | AD50: 551.8495 | AE50: 551.8495 | AF50: 551.8495 | AG50: 551.8495 | AH50: 551.8495 | AI50: 551.8495 | AJ50: 551.8495 | AK50: 551.8495 | AL50: 551.8495 | AM50: 551.8495 | AN50: 551.8495 | AO50: 551.8495 | AP50: 551.8495 | AQ50: 551.8495 | AR50: 551.8495 | AS50: 551.8495 | AT50: 551.8495 | AU50: 551.8495 | AV50: 551.8495 | AW50: 551.8495 | AX50: 551.8495 | AY50: 551.8495 | AZ50: 551.8495 | BA50: =$K50 -> 551.8495 | BB50: =$K50 -> 551.8495 | BC50: =$K50 -> 551.8495 | BD50: =$K50 -> 551.8495 | BE50: 551.8495 | BF50: 551.8495 | BG50: 551.8495 | BH50: 551.8495 | BI50: 551.8495 | BJ50: 551.8495 | BK50: 551.8495 | BL50: 551.8495 | BM50: 551.8495 | BN50: 551.8495 | BP50: 551.8495 | BQ50: 551.8495 | BR50: 551.8495 | BS50: 551.8495 | BT50: 551.8495 | BU50: 551.8495 | BV50: 551.8495 | BW50: 551.8495 | BX50: 551.8495 | BY50: 551.8495 | BZ50: 551.8495 | CA50: 551.8495 | CB50: 551.8495 | CC50: 551.8495 | CD50: 551.8495 | CE50: 551.8495 | CF50: 551.8495 | CG50: 551.8495 | CH50: 551.8495 | CI50: 551.8495 | CJ50: 551.8495 | CK50: 551.8495 | CL50: 551.8495 | CM50: 551.8495 | CN50: 551.8495 | CO50: 551.8495 | CP50: 551.8495 | CQ50: 551.8495 | CR50: 551.8495 | CS50: 551.8495 | CT50: 551.8495 | CU50: 551.8495 | CV50: 551.8495 | CW50: 551.8495 | CX50: 551.8495 | CY50: 551.8495 | CZ50: 551.8495 | DA50: 551.8495 | DB50: 551.8495 | DC50: 551.8495 | DD50: 551.8495 | DE50: 551.8495 | DF50: 551.8495 | DG50: 551.8495 | DH50: 551.8495
B51: Denmark | C51: Kingdom of Denmark | D51: DA | E51: DK | F51: DNK | G51: 208 | H51: 56 | I51: 10 | J51: Europe | K51: 257.2642 | L51: =IF(ISERROR(VLOOKUP($B51,'Grid EFs'!$B$14:$F$167,3,FALSE)),VLOOKUP($J51,'Grid EFs'!$B$4:$F$9,3,FALSE),VLOOKUP($B51,'Grid EFs'!$B$14:$F$167,3,FALSE)) -> 579.9076 | M51: =IF(ISERROR(VLOOKUP($B51,'Grid EFs'!$B$14:$F$167,4,FALSE)),VLOOKUP($J51,'Grid EFs'!$B$4:$F$9,4,FALSE),VLOOKUP($B51,'Grid EFs'!$B$14:$F$167,4,FALSE)) -> 602.4329 | N51: =IF(ISERROR(VLOOKUP($B51,'Grid EFs'!$B$14:$F$167,5,FALSE)),VLOOKUP($J51,'Grid EFs'!$B$4:$F$9,5,FALSE),VLOOKUP($B51,'Grid EFs'!$B$14:$F$167,5,FALSE)) -> 270.1276 | O51: 257.2642 | P51: N/A | Q51: 2.91 | R51: =IF(ISERROR(VLOOKUP($B51,LineLoss!$B$4:$C$147,2,FALSE)),VLOOKUP($J51,LineLoss!$E$4:$F$9,2,FALSE),VLOOKUP($B51,LineLoss!$B$4:$C$147,2,FALSE)) -> 0.05570721059 | S51: =IF(ISNUMBER(MATCH(B51,'Grid EFs'!$B$14:$B$167,0)),"","*") ->  | T51: OECD Europe | V51: 257.2642 | W51: 257.2642 | X51: 257.2642 | Y51: 257.2642 | Z51: 257.2642 | AA51: 257.2642 | AB51: 257.2642 | AC51: 257.2642 | AD51: 257.2642 | AE51: 257.2642 | AF51: 257.2642 | AG51: 257.2642 | AH51: 257.2642 | AI51: 257.2642 | AJ51: 257.2642 | AK51: 257.2642 | AL51: =$K51 -> 257.2642 | AM51: 257.2642 | AN51: 257.2642 | AO51: 257.2642 | AP51: 257.2642 | AQ51: =$K51 -> 257.2642 | AR51: 257.2642 | AS51: 257.2642 | AT51: 257.2642 | AU51: 257.2642 | AV51: 257.2642 | AW51: 257.2642 | AX51: 257.2642 | AY51: 257.2642 | AZ51: 257.2642 | BA51: 257.2642 | BB51: 257.2642 | BC51: 257.2642 | BD51: 257.2642 | BE51: 257.2642 | BF51: =$K51 -> 257.2642 | BG51: =$K51 -> 257.2642 | BH51: =$K51 -> 257.2642 | BI51: =$K51 -> 257.2642 | BJ51: =$K51 -> 257.2642 | BK51: 257.2642 | BL51: 257.2642 | BM51: 257.2642 | BN51: =$K51 -> 257.2642 | BP51: 257.2642 | BQ51: 257.2642 | BR51: 257.2642 | BS51: 257.2642 | BT51: 257.2642 | BU51: 257.2642 | BV51: 257.2642 | BW51: 257.2642 | BX51: 257.2642 | BY51: 257.2642 | BZ51: 257.2642 | CA51: 257.2642 | CB51: 257.2642 | CC51: 257.2642 | CD51: 257.2642 | CE51: 257.2642 | CF51: 257.2642 | CG51: 257.2642 | CH51: 257.2642 | CI51: 257.2642 | CJ51: 257.2642 | CK51: 257.2642 | CL51: 257.2642 | CM51: 257.2642 | CN51: 257.2642 | CO51: 257.2642 | CP51: 257.2642 | CQ51: 257.2642 | CR51: 257.2642 | CS51: 257.2642 | CT51: 257.2642 | CU51: 257.2642 | CV51: 257.2642 | CW51: 257.2642 | CX51: 257.2642 | CY51: 257.2642 | CZ51: 257.2642 | DA51: 257.2642 | DB51: 257.2642 | DC51: 257.2642 | DD51: 257.2642 | DE51: 257.2642 | DF51: 257.2642 | DG51: 257.2642 | DH51: 257.2642
B52: Djibouti | C52: Republic of Djibouti | D52: DJ | E52: DJ | F52: DJI | G52: 262 | H52: 11.5 | I52: 43 | J52: Africa | K52: 720.023585 | L52: =IF(ISERROR(VLOOKUP($B52,'Grid EFs'!$B$14:$F$167,3,FALSE)),VLOOKUP($J52,'Grid EFs'!$B$4:$F$9,3,FALSE),VLOOKUP($B52,'Grid EFs'!$B$14:$F$167,3,FALSE)) -> 974.5395 | M52: =IF(ISERROR(VLOOKUP($B52,'Grid EFs'!$B$14:$F$167,4,FALSE)),VLOOKUP($J52,'Grid EFs'!$B$4:$F$9,4,FALSE),VLOOKUP($B52,'Grid EFs'!$B$14:$F$167,4,FALSE)) -> 833.9727 | N52: =IF(ISERROR(VLOOKUP($B52,'Grid EFs'!$B$14:$F$167,5,FALSE)),VLOOKUP($J52,'Grid EFs'!$B$4:$F$9,5,FALSE),VLOOKUP($B52,'Grid EFs'!$B$14:$F$167,5,FALSE)) -> 456.774 | O52: 597.6623 | P52: 720.023585 | Q52: 6.05 | R52: =IF(ISERROR(VLOOKUP($B52,LineLoss!$B$4:$C$147,2,FALSE)),VLOOKUP($J52,LineLoss!$E$4:$F$9,2,FALSE),VLOOKUP($B52,LineLoss!$B$4:$C$147,2,FALSE)) -> 0.07571494693 | S52: =IF(ISNUMBER(MATCH(B52,'Grid EFs'!$B$14:$B$167,0)),"","*") -> * | T52: Africa | V52: 720.023585 | W52: 720.023585 | X52: 720.023585 | Y52: 720.023585 | Z52: 720.023585 | AA52: 720.023585 | AB52: 720.023585 | AC52: 720.023585 | AD52: 720.023585 | AE52: 720.023585 | AF52: 720.023585 | AG52: 720.023585 | AH52: 720.023585 | AI52: 720.023585 | AJ52: 720.023585 | AK52: 720.023585 | AL52: 720.023585 | AM52: 720.023585 | AN52: 720.023585 | AO52: 720.023585 | AP52: 720.023585 | AQ52: 720.023585 | AR52: 720.023585 | AS52: 720.023585 | AT52: 720.023585 | AU52: 720.023585 | AV52: 720.023585 | AW52: 720.023585 | AX52: 720.023585 | AY52: 720.023585 | AZ52: 720.023585 | BA52: 720.023585 | BB52: 720.023585 | BC52: 720.023585 | BD52: 720.023585 | BE52: 720.023585 | BF52: 720.023585 | BG52: =$K52 -> 720.023585 | BH52: 720.023585 | BI52: 720.023585 | BJ52: 720.023585 | BK52: 720.023585 | BL52: 720.023585 | BM52: 720.023585 | BN52: 720.023585 | BP52: 720.023585 | BQ52: 720.023585 | BR52: 720.023585 | BS52: 720.023585 | BT52: 720.023585 | BU52: 720.023585 | BV52: 720.023585 | BW52: 720.023585 | BX52: 720.023585 | BY52: 720.023585 | BZ52: 720.023585 | CA52: 720.023585 | CB52: 720.023585 | CC52: 720.023585 | CD52: 720.023585 | CE52: 720.023585 | CF52: 720.023585 | CG52: 720.023585 | CH52: 720.023585 | CI52: 720.023585 | CJ52: 720.023585 | CK52: 720.023585 | CL52: 720.023585 | CM52: 720.023585 | CN52: 720.023585 | CO52: 720.023585 | CP52: =$K52 -> 720.023585 | CQ52: 720.023585 | CR52: 720.023585 | CS52: 720.023585 | CT52: 720.023585 | CU52: 720.023585 | CV52: 720.023585 | CW52: 720.023585 | CX52: 720.023585 | CY52: 720.023585 | CZ52: 720.023585 | DA52: 720.023585 | DB52: 720.023585 | DC52: 720.023585 | DD52: 720.023585 | DE52: 720.023585 | DF52: =$K52 -> 720.023585 | DG52: 720.023585 | DH52: 720.023585
B53: Dominica | C53: Commonwealth of Dominica | D53: DO | E53: DM | F53: DMA | G53: 212 | H53: 15.4167 | I53: -61.3333 | J53: North America | K53: 472.4409815 | L53: =IF(ISERROR(VLOOKUP($B53,'Grid EFs'!$B$14:$F$167,3,FALSE)),VLOOKUP($J53,'Grid EFs'!$B$4:$F$9,3,FALSE),VLOOKUP($B53,'Grid EFs'!$B$14:$F$167,3,FALSE)) -> 912.4052 | M53: =IF(ISERROR(VLOOKUP($B53,'Grid EFs'!$B$14:$F$167,4,FALSE)),VLOOKUP($J53,'Grid EFs'!$B$4:$F$9,4,FALSE),VLOOKUP($B53,'Grid EFs'!$B$14:$F$167,4,FALSE)) -> 718.4282 | N53: =IF(ISERROR(VLOOKUP($B53,'Grid EFs'!$B$14:$F$167,5,FALSE)),VLOOKUP($J53,'Grid EFs'!$B$4:$F$9,5,FALSE),VLOOKUP($B53,'Grid EFs'!$B$14:$F$167,5,FALSE)) -> 407.0114 | O53: 200.8047 | P53: 472.4409815 | Q53: 5.97 | R53: =IF(ISERROR(VLOOKUP($B53,LineLoss!$B$4:$C$147,2,FALSE)),VLOOKUP($J53,LineLoss!$E$4:$F$9,2,FALSE),VLOOKUP($B53,LineLoss!$B$4:$C$147,2,FALSE)) -> 0.05767936475 | S53: =IF(ISNUMBER(MATCH(B53,'Grid EFs'!$B$14:$B$167,0)),"","*") -> * | T53: Latin America | V53: =$K53 -> 472.4409815 | W53: 472.4409815 | X53: 472.4409815 | Y53: 472.4409815 | Z53: 472.4409815 | AA53: 472.4409815 | AB53: 472.4409815 | AC53: 472.4409815 | AD53: 472.4409815 | AE53: 472.4409815 | AF53: 472.4409815 | AG53: 472.4409815 | AH53: 472.4409815 | AI53: 472.4409815 | AJ53: 472.4409815 | AK53: 472.4409815 | AL53: 472.4409815 | AM53: 472.4409815 | AN53: 472.4409815 | AO53: 472.4409815 | AP53: 472.4409815 | AQ53: 472.4409815 | AR53: 472.4409815 | AS53: 472.4409815 | AT53: 472.4409815 | AU53: 472.4409815 | AV53: 472.4409815 | AW53: 472.4409815 | AX53: 472.4409815 | AY53: 472.4409815 | AZ53: 472.4409815 | BA53: 472.4409815 | BB53: 472.4409815 | BC53: 472.4409815 | BD53: 472.4409815 | BE53: 472.4409815 | BF53: 472.4409815 | BG53: 472.4409815 | BH53: 472.4409815 | BI53: 472.4409815 | BJ53: 472.4409815 | BK53: 472.4409815 | BL53: 472.4409815 | BM53: 472.4409815 | BN53: 472.4409815 | BP53: 472.4409815 | BQ53: 472.4409815 | BR53: 472.4409815 | BS53: 472.4409815 | BT53: 472.4409815 | BU53: 472.4409815 | BV53: 472.4409815 | BW53: 472.4409815 | BX53: 472.4409815 | BY53: 472.4409815 | BZ53: 472.4409815 | CA53: 472.4409815 | CB53: 472.4409815 | CC53: 472.4409815 | CD53: 472.4409815 | CE53: 472.4409815 | CF53: 472.4409815 | CG53: 472.4409815 | CH53: 472.4409815 | CI53: 472.4409815 | CJ53: 472.4409815 | CK53: 472.4409815 | CL53: 472.4409815 | CM53: 472.4409815 | CN53: 472.4409815 | CO53: 472.4409815 | CP53: 472.4409815 | CQ53: 472.4409815 | CR53: 472.4409815 | CS53: 472.4409815 | CT53: 472.4409815 | CU53: 472.4409815 | CV53: 472.4409815 | CW53: 472.4409815 | CX53: 472.4409815 | CY53: 472.4409815 | CZ53: 472.4409815 | DA53: 472.4409815 | DB53: 472.4409815 | DC53: 472.4409815 | DD53: 472.4409815 | DE53: 472.4409815 | DF53: 472.4409815 | DG53: 472.4409815 | DH53: 472.4409815
B54: Dominican Republic | C54: Dominican Republic | D54: DR | E54: DO | F54: DOM | G54: 214 | H54: 19 | I54: -70.6667 | J54: North America | K54: 637.86 | L54: =IF(ISERROR(VLOOKUP($B54,'Grid EFs'!$B$14:$F$167,3,FALSE)),VLOOKUP($J54,'Grid EFs'!$B$4:$F$9,3,FALSE),VLOOKUP($B54,'Grid EFs'!$B$14:$F$167,3,FALSE)) -> 953.6987 | M54: =IF(ISERROR(VLOOKUP($B54,'Grid EFs'!$B$14:$F$167,4,FALSE)),VLOOKUP($J54,'Grid EFs'!$B$4:$F$9,4,FALSE),VLOOKUP($B54,'Grid EFs'!$B$14:$F$167,4,FALSE)) -> 616.9241 | N54: =IF(ISERROR(VLOOKUP($B54,'Grid EFs'!$B$14:$F$167,5,FALSE)),VLOOKUP($J54,'Grid EFs'!$B$4:$F$9,5,FALSE),VLOOKUP($B54,'Grid EFs'!$B$14:$F$167,5,FALSE)) -> 458.2333 | O54: 555.2511 | P54: 637.86 | Q54: 5.1 | R54: =IF(ISERROR(VLOOKUP($B54,LineLoss!$B$4:$C$147,2,FALSE)),VLOOKUP($J54,LineLoss!$E$4:$F$9,2,FALSE),VLOOKUP($B54,LineLoss!$B$4:$C$147,2,FALSE)) -> 0.07781567069 | S54: =IF(ISNUMBER(MATCH(B54,'Grid EFs'!$B$14:$B$167,0)),"","*") ->  | T54: Latin America | V54: 637.86 | W54: 637.86 | X54: 637.86 | Y54: 637.86 | Z54: 637.86 | AA54: 637.86 | AB54: 637.86 | AC54: 637.86 | AD54: 637.86 | AE54: 637.86 | AF54: 637.86 | AG54: 637.86 | AH54: 637.86 | AI54: 637.86 | AJ54: 637.86 | AK54: 637.86 | AL54: 637.86 | AM54: 637.86 | AN54: 637.86 | AO54: 637.86 | AP54: 637.86 | AQ54: 637.86 | AR54: 637.86 | AS54: 637.86 | AT54: 637.86 | AU54: 637.86 | AV54: 637.86 | AW54: 637.86 | AX54: 637.86 | AY54: 637.86 | AZ54: 637.86 | BA54: 637.86 | BB54: 637.86 | BC54: 637.86 | BD54: 637.86 | BE54: 637.86 | BF54: 637.86 | BG54: 637.86 | BH54: 637.86 | BI54: 637.86 | BJ54: 637.86 | BK54: 637.86 | BL54: 637.86 | BM54: 637.86 | BN54: 637.86 | BP54: =$K54 -> 637.86 | BQ54: 637.86 | BR54: 637.86 | BS54: 637.86 | BT54: 637.86 | BU54: 637.86 | BV54: 637.86 | BW54: 637.86 | BX54: 637.86 | BY54: 637.86 | BZ54: =$K54 -> 637.86 | CA54: 637.86 | CB54: 637.86 | CC54: 637.86 | CD54: 637.86 | CE54: 637.86 | CF54: 637.86 | CG54: 637.86 | CH54: 637.86 | CI54: 637.86 | CJ54: 637.86 | CK54: 637.86 | CL54: 637.86 | CM54: 637.86 | CN54: 637.86 | CO54: 637.86 | CP54: 637.86 | CQ54: 637.86 | CR54: 637.86 | CS54: 637.86 | CT54: 637.86 | CU54: 637.86 | CV54: 637.86 | CW54: 637.86 | CX54: 637.86 | CY54: 637.86 | CZ54: 637.86 | DA54: 637.86 | DB54: 637.86 | DC54: 637.86 | DD54: 637.86 | DE54: 637.86 | DF54: 637.86 | DG54: 637.86 | DH54: 637.86
B55: Ecuador | C55: Republic of Ecuador | D55: EC | E55: EC | F55: ECU | G55: 218 | H55: -2 | I55: -77.5 | J55: South America | K55: 566.7796296 | L55: =IF(ISERROR(VLOOKUP($B55,'Grid EFs'!$B$14:$F$167,3,FALSE)),VLOOKUP($J55,'Grid EFs'!$B$4:$F$9,3,FALSE),VLOOKUP($B55,'Grid EFs'!$B$14:$F$167,3,FALSE)) -> 1240.488 | M55: =IF(ISERROR(VLOOKUP($B55,'Grid EFs'!$B$14:$F$167,4,FALSE)),VLOOKUP($J55,'Grid EFs'!$B$4:$F$9,4,FALSE),VLOOKUP($B55,'Grid EFs'!$B$14:$F$167,4,FALSE)) -> 752.9636 | N55: =IF(ISERROR(VLOOKUP($B55,'Grid EFs'!$B$14:$F$167,5,FALSE)),VLOOKUP($J55,'Grid EFs'!$B$4:$F$9,5,FALSE),VLOOKUP($B55,'Grid EFs'!$B$14:$F$167,5,FALSE)) -> 490.9927 | O55: 313.0207 | P55: 566.7796296 | Q55: 3.75 | R55: =IF(ISERROR(VLOOKUP($B55,LineLoss!$B$4:$C$147,2,FALSE)),VLOOKUP($J55,LineLoss!$E$4:$F$9,2,FALSE),VLOOKUP($B55,LineLoss!$B$4:$C$147,2,FALSE)) -> 0.08744771585 | S55: =IF(ISNUMBER(MATCH(B55,'Grid EFs'!$B$14:$B$167,0)),"","*") ->  | T55: Latin America | V55: 566.7796296 | W55: 566.7796296 | X55: 566.7796296 | Y55: 566.7796296 | Z55: 566.7796296 | AA55: 566.7796296 | AB55: 566.7796296 | AC55: 566.7796296 | AD55: 566.7796296 | AE55: 566.7796296 | AF55: 566.7796296 | AG55: 566.7796296 | AH55: 566.7796296 | AI55: 566.7796296 | AJ55: 566.7796296 | AK55: 566.7796296 | AL55: 566.7796296 | AM55: 566.7796296 | AN55: 566.7796296 | AO55: 566.7796296 | AP55: 566.7796296 | AQ55: 566.7796296 | AR55: 566.7796296 | AS55: 566.7796296 | AT55: 566.7796296 | AU55: 566.7796296 | AV55: 566.7796296 | AW55: 566.7796296 | AX55: 566.7796296 | AY55: 566.7796296 | AZ55: 566.7796296 | BA55: 566.7796296 | BB55: 566.7796296 | BC55: 566.7796296 | BD55: 566.7796296 | BE55: 566.7796296 | BF55: 566.7796296 | BG55: 566.7796296 | BH55: 566.7796296 | BI55: 566.7796296 | BJ55: 566.7796296 | BK55: 566.7796296 | BL55: 566.7796296 | BM55: 566.7796296 | BN55: 566.7796296 | BP55: 566.7796296 | BQ55: 566.7796296 | BR55: 566.7796296 | BS55: 566.7796296 | BT55: 566.7796296 | BU55: 566.7796296 | BV55: 566.7796296 | BW55: 566.7796296 | BX55: 566.7796296 | BY55: 566.7796296 | BZ55: 566.7796296 | CA55: 566.7796296 | CB55: 566.7796296 | CC55: 566.7796296 | CD55: 566.7796296 | CE55: 566.7796296 | CF55: 566.7796296 | CG55: 566.7796296 | CH55: 566.7796296 | CI55: 566.7796296 | CJ55: 566.7796296 | CK55: 566.7796296 | CL55: 566.7796296 | CM55: 566.7796296 | CN55: 566.7796296 | CO55: 566.7796296 | CP55: 566.7796296 | CQ55: 566.7796296 | CR55: 566.7796296 | CS55: 566.7796296 | CT55: 566.7796296 | CU55: 566.7796296 | CV55: 566.7796296 | CW55: 566.7796296 | CX55: 566.7796296 | CY55: 566.7796296 | CZ55: 566.7796296 | DA55: 566.7796296 | DB55: 566.7796296 | DC55: 566.7796296 | DD55: 566.7796296 | DE55: 566.7796296 | DF55: 566.7796296 | DG55: 566.7796296 | DH55: 566.7796296
B56: Egypt | C56: Arab Republic of Egypt | D56: EG | E56: EG | F56: EGY | G56: 818 | H56: 27 | I56: 30 | J56: Africa | K56: 532.7666667 | L56: =IF(ISERROR(VLOOKUP($B56,'Grid EFs'!$B$14:$F$167,3,FALSE)),VLOOKUP($J56,'Grid EFs'!$B$4:$F$9,3,FALSE),VLOOKUP($B56,'Grid EFs'!$B$14:$F$167,3,FALSE)) -> 974.5395 | M56: =IF(ISERROR(VLOOKUP($B56,'Grid EFs'!$B$14:$F$167,4,FALSE)),VLOOKUP($J56,'Grid EFs'!$B$4:$F$9,4,FALSE),VLOOKUP($B56,'Grid EFs'!$B$14:$F$167,4,FALSE)) -> 834.9802 | N56: =IF(ISERROR(VLOOKUP($B56,'Grid EFs'!$B$14:$F$167,5,FALSE)),VLOOKUP($J56,'Grid EFs'!$B$4:$F$9,5,FALSE),VLOOKUP($B56,'Grid EFs'!$B$14:$F$167,5,FALSE)) -> 418.2891 | O56: 443.76 | P56: 532.7666667 | Q56: 6.05 | R56: =IF(ISERROR(VLOOKUP($B56,LineLoss!$B$4:$C$147,2,FALSE)),VLOOKUP($J56,LineLoss!$E$4:$F$9,2,FALSE),VLOOKUP($B56,LineLoss!$B$4:$C$147,2,FALSE)) -> 0.07040063898 | S56: =IF(ISNUMBER(MATCH(B56,'Grid EFs'!$B$14:$B$167,0)),"","*") ->  | T56: Africa | V56: 532.7666667 | W56: 532.7666667 | X56: 532.7666667 | Y56: 532.7666667 | Z56: 532.7666667 | AA56: 532.7666667 | AB56: 532.7666667 | AC56: 532.7666667 | AD56: 532.7666667 | AE56: 532.7666667 | AF56: 532.7666667 | AG56: 532.7666667 | AH56: 532.7666667 | AI56: 532.7666667 | AJ56: 532.7666667 | AK56: 532.7666667 | AL56: 532.7666667 | AM56: 532.7666667 | AN56: 532.7666667 | AO56: 532.7666667 | AP56: 532.7666667 | AQ56: 532.7666667 | AR56: 532.7666667 | AS56: 532.7666667 | AT56: 532.7666667 | AU56: 532.7666667 | AV56: 532.7666667 | AW56: 532.7666667 | AX56: 532.7666667 | AY56: 532.7666667 | AZ56: 532.7666667 | BA56: 532.7666667 | BB56: 532.7666667 | BC56: 532.7666667 | BD56: 532.7666667 | BE56: 532.7666667 | BF56: 532.7666667 | BG56: 532.7666667 | BH56: 532.7666667 | BI56: 532.7666667 | BJ56: 532.7666667 | BK56: 532.7666667 | BL56: 532.7666667 | BM56: 532.7666667 | BN56: 532.7666667 | BP56: 532.7666667 | BQ56: 532.7666667 | BR56: 532.7666667 | BS56: 532.7666667 | BT56: 532.7666667 | BU56: 532.7666667 | BV56: 532.7666667 | BW56: 532.7666667 | BX56: 532.7666667 | BY56: 532.7666667 | BZ56: 532.7666667 | CA56: 532.7666667 | CB56: 532.7666667 | CC56: 532.7666667 | CD56: 532.7666667 | CE56: 532.7666667 | CF56: 532.7666667 | CG56: 532.7666667 | CH56: 532.7666667 | CI56: 532.7666667 | CJ56: 532.7666667 | CK56: 532.7666667 | CL56: 532.7666667 | CM56: 532.7666667 | CN56: 532.7666667 | CO56: 532.7666667 | CP56: 532.7666667 | CQ56: 532.7666667 | CR56: 532.7666667 | CS56: 532.7666667 | CT56: 532.7666667 | CU56: 532.7666667 | CV56: 532.7666667 | CW56: 532.7666667 | CX56: 532.7666667 | CY56: 532.7666667 | CZ56: 532.7666667 | DA56: 532.7666667 | DB56: 532.7666667 | DC56: 532.7666667 | DD56: 532.7666667 | DE56: 532.7666667 | DF56: 532.7666667 | DG56: 532.7666667 | DH56: 532.7666667
B57: El Salvador | C57: Republic of El Salvador | D57: ES | E57: SV | F57: SLV | G57: 222 | H57: 13.8333 | I57: -88.9167 | J57: North America | K57: 678.4142857 | L57: =IF(ISERROR(VLOOKUP($B57,'Grid EFs'!$B$14:$F$167,3,FALSE)),VLOOKUP($J57,'Grid EFs'!$B$4:$F$9,3,FALSE),VLOOKUP($B57,'Grid EFs'!$B$14:$F$167,3,FALSE)) -> 1240.488 | M57: =IF(ISERROR(VLOOKUP($B57,'Grid EFs'!$B$14:$F$167,4,FALSE)),VLOOKUP($J57,'Grid EFs'!$B$4:$F$9,4,FALSE),VLOOKUP($B57,'Grid EFs'!$B$14:$F$167,4,FALSE)) -> 662.9535 | N57: =IF(ISERROR(VLOOKUP($B57,'Grid EFs'!$B$14:$F$167,5,FALSE)),VLOOKUP($J57,'Grid EFs'!$B$4:$F$9,5,FALSE),VLOOKUP($B57,'Grid EFs'!$B$14:$F$167,5,FALSE)) -> 502.8366 | O57: 238.3513 | P57: 678.4142857 | Q57: 5.28 | R57: =IF(ISERROR(VLOOKUP($B57,LineLoss!$B$4:$C$147,2,FALSE)),VLOOKUP($J57,LineLoss!$E$4:$F$9,2,FALSE),VLOOKUP($B57,LineLoss!$B$4:$C$147,2,FALSE)) -> 0.07469299447 | S57: =IF(ISNUMBER(MATCH(B57,'Grid EFs'!$B$14:$B$167,0)),"","*") ->  | T57: Latin America | V57: 678.4142857 | W57: 678.4142857 | X57: 678.4142857 | Y57: 678.4142857 | Z57: 678.4142857 | AA57: 678.4142857 | AB57: 678.4142857 | AC57: 678.4142857 | AD57: 678.4142857 | AE57: 678.4142857 | AF57: 678.4142857 | AG57: 678.4142857 | AH57: 678.4142857 | AI57: 678.4142857 | AJ57: 678.4142857 | AK57: 678.4142857 | AL57: 678.4142857 | AM57: 678.4142857 | AN57: 678.4142857 | AO57: 678.4142857 | AP57: 678.4142857 | AQ57: 678.4142857 | AR57: 678.4142857 | AS57: 678.4142857 | AT57: 678.4142857 | AU57: 678.4142857 | AV57: 678.4142857 | AW57: 678.4142857 | AX57: 678.4142857 | AY57: 678.4142857 | AZ57: 678.4142857 | BA57: 678.4142857 | BB57: 678.4142857 | BC57: 678.4142857 | BD57: 678.4142857 | BE57: 678.4142857 | BF57: 678.4142857 | BG57: 678.4142857 | BH57: 678.4142857 | BI57: 678.4142857 | BJ57: 678.4142857 | BK57: 678.4142857 | BL57: 678.4142857 | BM57: 678.4142857 | BN57: 678.4142857 | BP57: 678.4142857 | BQ57: 678.4142857 | BR57: 678.4142857 | BS57: 678.4142857 | BT57: 678.4142857 | BU57: 678.4142857 | BV57: 678.4142857 | BW57: 678.4142857 | BX57: 678.4142857 | BY57: 678.4142857 | BZ57: 678.4142857 | CA57: 678.4142857 | CB57: 678.4142857 | CC57: 678.4142857 | CD57: 678.4142857 | CE57: 678.4142857 | CF57: 678.4142857 | CG57: 678.4142857 | CH57: 678.4142857 | CI57: 678.4142857 | CJ57: 678.4142857 | CK57: 678.4142857 | CL57: 678.4142857 | CM57: 678.4142857 | CN57: 678.4142857 | CO57: 678.4142857 | CP57: 678.4142857 | CQ57: 678.4142857 | CR57: 678.4142857 | CS57: 678.4142857 | CT57: 678.4142857 | CU57: 678.4142857 | CV57: 678.4142857 | CW57: 678.4142857 | CX57: 678.4142857 | CY57: 678.4142857 | CZ57: 678.4142857 | DA57: 678.4142857 | DB57: 678.4142857 | DC57: 678.4142857 | DD57: 678.4142857 | DE57: 678.4142857 | DF57: 678.4142857 | DG57: 678.4142857 | DH57: 678.4142857
B58: Equatorial Guinea | C58: Republic of Equatorial Guinea | D58: EK | E58: GQ | F58: GNQ | G58: 226 | H58: 2 | I58: 10 | J58: Africa | K58: 720.023585 | L58: =IF(ISERROR(VLOOKUP($B58,'Grid EFs'!$B$14:$F$167,3,FALSE)),VLOOKUP($J58,'Grid EFs'!$B$4:$F$9,3,FALSE),VLOOKUP($B58,'Grid EFs'!$B$14:$F$167,3,FALSE)) -> 974.5395 | M58: =IF(ISERROR(VLOOKUP($B58,'Grid EFs'!$B$14:$F$167,4,FALSE)),VLOOKUP($J58,'Grid EFs'!$B$4:$F$9,4,FALSE),VLOOKUP($B58,'Grid EFs'!$B$14:$F$167,4,FALSE)) -> 833.9727 | N58: =IF(ISERROR(VLOOKUP($B58,'Grid EFs'!$B$14:$F$167,5,FALSE)),VLOOKUP($J58,'Grid EFs'!$B$4:$F$9,5,FALSE),VLOOKUP($B58,'Grid EFs'!$B$14:$F$167,5,FALSE)) -> 456.774 | O58: 597.6623 | P58: 720.023585 | Q58: 4.35 | R58: =IF(ISERROR(VLOOKUP($B58,LineLoss!$B$4:$C$147,2,FALSE)),VLOOKUP($J58,LineLoss!$E$4:$F$9,2,FALSE),VLOOKUP($B58,LineLoss!$B$4:$C$147,2,FALSE)) -> 0.07571494693 | S58: =IF(ISNUMBER(MATCH(B58,'Grid EFs'!$B$14:$B$167,0)),"","*") -> * | T58: Africa | V58: 720.023585 | W58: 720.023585 | X58: 720.023585 | Y58: 720.023585 | Z58: 720.023585 | AA58: 720.023585 | AB58: 720.023585 | AC58: 720.023585 | AD58: 720.023585 | AE58: 720.023585 | AF58: 720.023585 | AG58: 720.023585 | AH58: 720.023585 | AI58: 720.023585 | AJ58: 720.023585 | AK58: 720.023585 | AL58: 720.023585 | AM58: 720.023585 | AN58: 720.023585 | AO58: 720.023585 | AP58: 720.023585 | AQ58: 720.023585 | AR58: 720.023585 | AS58: 720.023585 | AT58: 720.023585 | AU58: 720.023585 | AV58: 720.023585 | AW58: 720.023585 | AX58: 720.023585 | AY58: 720.023585 | AZ58: 720.023585 | BA58: 720.023585 | BB58: 720.023585 | BC58: 720.023585 | BD58: 720.023585 | BE58: 720.023585 | BF58: 720.023585 | BG58: 720.023585 | BH58: 720.023585 | BI58: 720.023585 | BJ58: 720.023585 | BK58: 720.023585 | BL58: 720.023585 | BM58: 720.023585 | BN58: 720.023585 | BP58: 720.023585 | BQ58: 720.023585 | BR58: 720.023585 | BS58: 720.023585 | BT58: 720.023585 | BU58: 720.023585 | BV58: 720.023585 | BW58: 720.023585 | BX58: 720.023585 | BY58: 720.023585 | BZ58: 720.023585 | CA58: 720.023585 | CB58: 720.023585 | CC58: 720.023585 | CD58: 720.023585 | CE58: 720.023585 | CF58: 720.023585 | CG58: 720.023585 | CH58: 720.023585 | CI58: 720.023585 | CJ58: 720.023585 | CK58: 720.023585 | CL58: 720.023585 | CM58: 720.023585 | CN58: 720.023585 | CO58: 720.023585 | CP58: 720.023585 | CQ58: 720.023585 | CR58: 720.023585 | CS58: 720.023585 | CT58: 720.023585 | CU58: 720.023585 | CV58: 720.023585 | CW58: 720.023585 | CX58: 720.023585 | CY58: 720.023585 | CZ58: 720.023585 | DA58: 720.023585 | DB58: 720.023585 | DC58: 720.023585 | DD58: 720.023585 | DE58: 720.023585 | DF58: 720.023585 | DG58: 720.023585 | DH58: 720.023585
